Workbook

Sheet Q (hidden)
A2: Versions-Nummer: | B2: Impex | C2: 2.12 | D2: 2023-01-31
B3: Finished | C3: 1
B4: Language | C4: =Textes!SprachIdx -> 1
A5: BlattRef: | E5: Menüs
A6: =Dblatt!B16 -> Table des matières | E6: =IF($C$4=1,F6,IF($C$4=2,G6,IF($C$4=3,D39,""))) -> Li&gnes | F6: Li&gnes | G6: &Zeilen
A7: =Info!L1 -> Mode d'emploi | E7: a&jouter une ligne | F7: a&jouter une ligne | G7: Zeile &einfügen
A8: =Inv!K1 -> Inventaire début et fin | E8: ajouter &plusieurs lignes | F8: ajouter &plusieurs lignes | G8: &Mehrere Zeilen einfügen
A9: =A1a!$K$6 -> Entrée animaux | E9: e&ffacer les lignes sélectionnées | F9: e&ffacer les lignes sélectionnées | G9: Markierte Zeilen &löschen
A10: =A1b!$K$6 -> Entrée animaux | E10: &découper les lignes sélectionnées | F10: &découper les lignes sélectionnées | G10: Markierte Zeilen &ausschneiden
A11: =A1c!$K$6 -> Entrée animaux | E11: d&écaler les lignes découpées | F11: d&écaler les lignes découpées | G11: Ausgeschnittene Zeilen &verschieben
A12: =A1d!$K$6 -> Entrée animaux | E12: &Feuilles | F12: &Feuilles | G12: Tabe&llenblätter
A13: =A1e!$K$6 -> Entrée animaux | E13: c&hoisir | F13: c&hoisir | G13: &auswählen
A14: =A2a!$K$8 -> Sortie animaux | E14: im&primer | F14: im&primer | G14: &drucken
A15: =A2b!$K$8 -> Sortie animaux | E15: Data &importer | F15: Data &importer | G15: Daten&import
A16: =A2c!$K$8 -> Sortie animaux | E16: &importer | F16: &importer | G16: Anfangs&bestand importieren
A17: =A2d!$K$8 -> Sortie animaux | E17: &tester | F17: &tester | G17: &Testdaten importieren
A18: =A2e!$K$8 -> Sortie animaux
A19: ='B1'!$K$13 -> Entrée aliments | E19: Msg-Boxen
A20: ='B2'!$K$13 -> Entrée aliments | E20: =IF($C$4=1,F20,IF($C$4=2,G20,IF($C$4=3,D45,""))) -> Vous ne pouvez pas sélectionner plusieurs cellules! | F20: Vous ne pouvez pas sélectionner plusieurs cellules! | G20: Mehrfachmarkierung nicht erlaubt!
A21: ='B3'!$K$13 -> Entrée aliments | E21: Nombre de lignes | F21: Nombre de lignes | G21: Anzahl Zeilen
A22: ='B4'!$K$13 -> Entrée aliments | E22: Ajouter des lignes | F22: Ajouter des lignes | G22: Zeilen einfügen
A23: ='BX1'!$K$13 -> Entrée aliments | E23: Sur cette feuille vous ne pouvez pas ajouter des lignes ! | F23: Sur cette feuille vous ne pouvez pas ajouter des lignes ! | G23: Auf diesem Blatt können keine Zeilen eingefügt werden
A24: ='BX2'!$K$13 -> Entrée aliments | E24: Choisissez une seule ligne ! | F24: Choisissez une seule ligne ! | G24: Zum Einfügen darf nur eine Zeile ausgewählt sein!
A25: ='BX3'!$K$13 -> Entrée aliments | E25: Ici vous ne pouvez pas ajouter des lignes ! | F25: Ici vous ne pouvez pas ajouter des lignes ! | G25: Hier können keine Zeilen eingefügt werden!
A26: ='BX4'!$K$13 -> Entrée aliments | E26: Sur cette feuille vous ne pouvez pas effacer des lignes ! | F26: Sur cette feuille vous ne pouvez pas effacer des lignes ! | G26: Auf diesem Blatt können keine Zeilen gelöscht werden
A27: ='B5'!$K$11 -> Entrée aliments | E27: La position sélectionnée contient des lignes qui ne peuvent pas être effacées ! | F27: La position sélectionnée contient des lignes qui ne peuvent pas être effacées ! | G27: Der markierte Bereich enthält Zeilen, die nicht gelöscht werden dürfen!
A28: ='BX5'!$K$11 -> Entrée aliments | E28: Sur cette feuille vous ne pouvez pas découper des lignes ! | F28: Sur cette feuille vous ne pouvez pas découper des lignes ! | G28: Auf diesem Blatt können keine Zeilen ausgeschnitten werden
A29: ='B6'!$K$11 -> Entrée aliments | E29: La position sélectionnée contient des lignes qui ne peuvent pas être décalées ! | F29: La position sélectionnée contient des lignes qui ne peuvent pas être décalées ! | G29: Der markierte Bereich enthält Zeilen, die nicht verschoben werden dürfen!
A30: ='B7'!$K$11 -> Entrée aliments | E30: Décaler ne peut pas être interrompu par une autre opération ! | F30: Décaler ne peut pas être interrompu par une autre opération ! | G30: Verschieben darf nicht durch eine andere Operation unterbrochen werden!
A31: =Impex!L1 -> Bilan import/export | E31: Vous ne pouvez pas ajouter les lignes sur une autre feuille ! | F31: Vous ne pouvez pas ajouter les lignes sur une autre feuille ! | G31: Die Zeilen können nicht in ein anderes Blatt eingefügt werden!
A32: =Plausi!K1 -> Calcul des valeurs minimales
A33: =Poulet1!L2 -> Poulailler 1 | E33: =IF($C$4=1,F33,IF($C$4=2,G33,IF($C$4=3,H33,""))) -> Ici vous ne pouvez pas ajouter les lignes découpées ! | F33: Ici vous ne pouvez pas ajouter les lignes découpées ! | G33: Hier können die ausgeschnittenen Zeilen nicht eingefügt werden!
A34: =Poulet2!L2 -> Poulailler 2 | E34: terminée le | F34: terminée le | G34: fertigestellt am
A35: =Poulet3!L2 -> Poulailler 3 | E35: Par cette action toutes les données | F35: Par cette action toutes les données | G35: Bei dieser Aktion werden alle in den Zielblättern
A36: =Poulet_tot!H1 -> Sommaire poulets | E36: existantes dans les fiches cible seront écrasées ! | F36: existantes dans les fiches cible seront écrasées ! | G36: schon vorhandenen Daten überschrieben.
A37: =Reserve!A1 -> Reserve | E37: Voulez-vous continuer ? | F37: Voulez-vous continuer ? | G37: Wollen Sie fortfahren?
A38: =Faktoren!E2 -> Umrechnungsfaktoren | E38: Mot de passe pas valable | F38: Mot de passe pas valable | G38: Passwort ungültig
A39: =Textes!A1 -> Texte | E39: Attention | F39: Attention | G39: Warnung
A40: =Corr!D1 -> Anpassungen | E40: Vous devez d'abord entrer le début et la fin de l'année de contrôle ! | F40: Vous devez d'abord entrer le début et la fin de l'année de contrôle ! | G40: Sie müssen zuerst den Beginn und Ende des Kontrolljahres eintragen!
E41: La date début doit être le 1er janvier ! | F41: La date début doit être le 1er janvier ! | G41: Das Anfangsdatum muss der 1. Januar sein!
E42: La date fin doit être le 31 décembre ! | F42: La date fin doit être le 31 décembre ! | G42: Das Enddatum muss der 31. Dezember sein!
A43: Blatt-Liste | B43: lstBlattDisplay | E43: L'année de la date début et de date fin doit être la même ! | F43: L'année de la date début et de date fin doit être la même ! | G43: Das Jahr des Anfangs- und des Enddatums muss gleich sein!
A44: =Info!L1 -> Mode d'emploi | B44: =$A$44 & ", Info" -> Mode d'emploi, Info | E44: Année de contrôle et année de la | F44: Année de contrôle et année de la | G44: Das Kontrolljahr und das Jahr
A45: =Inv!K1 -> Inventaire début et fin | B45: =$A$45 & ", Inv" -> Inventaire début et fin, Inv | E45: rotation saisie ne correspondent pas ! | F45: rotation saisie ne correspondent pas ! | G45: der erfassten Umtriebe stimmen nicht überein!
A46: =A1a!$K$6 -> Entrée animaux | B46: =$A$46 & ", A1a" -> Entrée animaux, A1a | E46: Indication | F46: Indication | G46: Hinweis
A47: =A1b!$K$6 -> Entrée animaux | B47: =$A$47 & ", A1b" -> Entrée animaux, A1b | E47: page | F47: page | G47: Seite
A48: =A1c!$K$6 -> Entrée animaux | B48: =$A$48 & ", A1c" -> Entrée animaux, A1c | E48: Table des matières | F48: Table des matières | G48: Inhaltsverzeichnis
A49: =A1d!$K$6 -> Entrée animaux | B49: =$A$49 & ", A1d" -> Entrée animaux, A1d | E49: Cette action efface de manière irréversible toutes les données dans les lignes supplémentaires des aliments ! | F49: Cette action efface de manière irréversible toutes les données dans les lignes supplémentaires des aliments ! | G49: Bestehende Inhalte in den zusätzlichen Futtermittelzeilen werden unwiderruflich gelöscht!
A50: =A1e!$K$6 -> Entrée animaux | B50: =$A$50 & ", A1e" -> Entrée animaux, A1e | E50: Veuillez enregistrer ce classeur sous un autre nom! | F50: Veuillez enregistrer ce classeur sous un autre nom! | G50: Bitte diese Mappe unter einem neuen Namen abspeichern!
A51: =A2a!$K$8 -> Sortie animaux | B51: =$A$51 & ", A2a" -> Sortie animaux, A2a | E51: Le nouveau nom ne doit contenir ni espaces ni signes particuliers (p.ex. .,:/&)! | F51: Le nouveau nom ne doit contenir ni espaces ni signes particuliers (p.ex. .,:/&)! | G51: Der neue Name darf keine Leerschläge oder Sonderzeichen (z.B. .,:/& etc.) enthalten!
A52: =A2b!$K$8 -> Sortie animaux | B52: =$A$52 & ", A2b" -> Sortie animaux, A2b | E52: Souhaitez-vous importer les données d'exploitation et le stock à partir d'un autre bilan d'importation/exportation ? | F52: Souhaitez-vous importer les données d'exploitation et le stock à partir d'un autre bilan d'importation/exportation ? | G52: Wollen Sie die Betriebsdaten und das Inventar aus einer anderen Import-/Exportbilanz importieren?
A53: =A2c!$K$8 -> Sortie animaux | B53: =$A$53 & ", A2c" -> Sortie animaux, A2c | E53: IMPORTATION DES DONNÉES | F53: IMPORTATION DES DONNÉES | G53: DATENIMPORT
A54: =A2d!$K$8 -> Sortie animaux | B54: =$A$54 & ", A2d" -> Sortie animaux, A2d | E54: =IF($C$4=1,F54,IF($C$4=2,G54,IF($C$4=3,H54,""))) -> Il y a déjà des données, voulez-vous commencer l'importation de toute façon ? | F54: Il y a déjà des données, voulez-vous commencer l'importation de toute façon ? | G54: Es befinden sich bereits Daten in Ihrer Arbeitsmappe. Wollen Sie trotzdem Daten importieren? Achtung: Bestehende Inhalte werden dann unwiederruflich gelöscht!
A55: =A2e!$K$8 -> Sortie animaux | B55: =$A$55 & ", A2e" -> Sortie animaux, A2e | E55: IMPORTATION DES DONNÉES? | F55: IMPORTATION DES DONNÉES? | G55: DATENIMPORT?
A56: ='B1'!$K$13 -> Entrée aliments | B56: =$A$56 & ", B1" -> Entrée aliments, B1 | E56: Importation des données terminée avec succès | F56: Importation des données terminée avec succès | G56: Die Daten wurden erfolgreich importiert.
A57: ='B2'!$K$13 -> Entrée aliments | B57: =$A$57 & ", B2" -> Entrée aliments, B2 | E57: IMPORTATION des données TERMINÉE | F57: IMPORTATION des données TERMINÉE | G57: IMPORT ABGESCHLOSSEN
A58: ='B3'!$K$13 -> Entrée aliments | B58: =$A$58 & ", B3" -> Entrée aliments, B3 | E58: Veuillez enregistrer ce classeur sous un autre nom! | F58: Veuillez enregistrer ce classeur sous un autre nom! | G58: Wollen Sie diese Mappe unter einem neuen Namen abspeichern?
A59: ='B4'!$K$13 -> Entrée aliments | B59: =$A$59 & ", B4" -> Entrée aliments, B4 | E59: La version du fichier que vous voulez importer est trop ancienne. | F59: La version du fichier que vous voulez importer est trop ancienne. | G59: Die Version der Datei, die Sie importieren wollen, ist zu alt.
A60: ='B5'!$K$11 -> Entrée aliments | B60: =$A$60 & ", B5" -> Entrée aliments, B5 | E60: Veuillez reprendre les données manuellement ! | F60: Veuillez reprendre les données manuellement ! | G60: Bitte übernehmen Sie die Daten manuell!
A61: ='B6'!$K$11 -> Entrée aliments | B61: =$A$61 & ", B6" -> Entrée aliments, B6 | E61: Veuillez entrer le mot de passe ! | F61: Veuillez entrer le mot de passe ! | G61: Bitte geben Sie das Passwort ein!
A62: ='B7'!$K$11 -> Entrée aliments | B62: =$A$62 & ", B7" -> Entrée aliments, B7 | E62: MOT DE PASSE | F62: MOT DE PASSE | G62: PASSWORT
A63: =Impex!L1 -> Bilan import/export | B63: =$A$63 & ", Impex" -> Bilan import/export, Impex | E63: IMPORTATION IMPOSSIBLE | F63: IMPORTATION IMPOSSIBLE | G63: KEIN IMPORT MÖGLICH
A64: =Plausi!K1 -> Calcul des valeurs minimales | B64: =$A$64 & ", Plausi" -> Calcul des valeurs minimales, Plausi | E64: Importation à partir de ce fichier impossible | F64: Importation à partir de ce fichier impossible | G64: Ein Import aus dieser Datei ist nicht möglich!
A65: =Reserve!A1 -> Reserve | B65: =$A$65 & ", Reserve" -> Reserve, Reserve
A84: rngVersAreas | B84: rngCtrl | C84: rngReImp | D84: rngExp
A85: 2.6 | B85: WENN(FuttermittelErweitert=FALSCH();0;1);Textes!$G$2;Textes!SprachIdx | C85: Inv!$D$4:$D$9,Inv!$I$4:$I$9,Inv!$E$14:$E$22,Inv!$B$28:$I$59,Inv!$B$63:$I$70,Inv!$F$71:$F$72 | D85: Inv!$I$14:$J$22,Inv!$K$28:$K$59,Inv!$K$63:$K$72,Inv!$K$74,Inv!$K$75 | E85: rngImp
A86: 2.7 | B86: WENN(FuttermittelErweitert=FALSCH();0;1);Textes!$G$2;Textes!SprachIdx | C86: Inv!$D$4:$D$9,Inv!$I$4:$I$9,Inv!$E$14:$E$22,Inv!$B$28:$I$59,Inv!$B$63:$I$70,Inv!$F$72:$F$73 | D86: Inv!$I$14:$J$22,Inv!$K$28:$K$59,Inv!$K$63:$K$74,Inv!$K$77,Inv!$K$78 | E86: Inv!$F$14:$G$22,Inv!$J$28:$J$59,Inv!$J$63:$J$72,Inv!$J$74,Inv!$J$75
A87: 2.8 | B87: WENN(FuttermittelErweitert=FALSCH();0;1);Textes!$G$2;Textes!SprachIdx | C87: Inv!$D$4:$D$9,Inv!$I$4:$I$9,Inv!$E$14:$E$22,Inv!$B$28:$I$59,Inv!$B$64:$I$71,Inv!$F$72:$F$73 | D87: Inv!$I$14:$J$22,Inv!$K$28:$K$59,Inv!$K$64:$K$75,Inv!$K$77,Inv!$K$78 | E87: Inv!$F$14:$G$22,Inv!$J$28:$J$59,Inv!$J$63:$J$74,Inv!$J$77,Inv!$J$78
A88: 2.9 | B88: rngCtrl | C88: Inv!$D$4:$D$9,Inv!$I$4:$I$9,Inv!$E$14:$E$22,Inv!$B$28:$I$59,Inv!$B$64:$I$71,Inv!$F$72:$F$73 | D88: Inv!$I$14:$J$22,Inv!$K$28:$K$60,Inv!$K$64:$K$75,Inv!$K$77,Inv!$K$79,Inv!$K$78 | E88: Inv!$F$14:$G$22,Inv!$J$28:$J$59,Inv!$J$64:$J$75,Inv!$J$77,Inv!$J$78
B89: rngCtrl | C89: rngReImp | D89: rngExp | E89: Inv!$F$14:$G$22,Inv!$J$28:$J$59,Inv!$J$64:$J$75,Inv!$J$77,Inv!$J$79,Inv!$J$78
E90: rngImp

Sheet Dblatt (hidden)
G2: Impex
B5: =Textes!A371 -> No cantonal: | D5: =Inv!StartZelle -> 0
B6: =Textes!A372 -> Exploitation: | D6: =Inv!D6&" "&Inv!D5 -> 
B7: =Textes!A373 -> Adresse: | D7: =Inv!D7 -> 0
B8: =Textes!A374 -> NPA, lieu: | D8: =Inv!D9 -> 0
B10: =Textes!A375 -> Calculé par: | D10: =Inv!I4 -> 0
B11: =Textes!A376 -> Firme: | D11: =Inv!I7 -> 00:00:00
B12: =Textes!A377 -> No téléphone: | D12: =Inv!J5 -> 0
B14: =Textes!A378 -> Période: | D14: =Inv!DatumAnfang -> 00:00:00 | E14: - | F14: =Inv!DatumEnde -> 00:00:00
B16: =Textes!A370 -> Table des matières | G16: =Q!Seite -> page
D18: =Textes!A370 -> Table des matières | G18: 1
D19: Tiereingang , A1a | G19: 2
D20: Mischfutterzufuhr, B1 | G20: 3
D21: Mischfutterzufuhr, BX2 | G21: 4
D22: Futterzufuhr, BX5 | G22: 5
D23: Futterzufuhr, B6 | G23: 6
D24: Futterzufuhr, B7 | G24: 7
D25: Import/Exportbilanz, Impex | G25: 8
D26: Berechnung der Tiefstwerte, Plausi | G26: 9
D27: Stall 1, Poulet1 | G27: 10
D28: Poulets Zusammenfassung, Poulet_tot | G28: 11

Sheet Info
L1: =Textes!A379 -> Mode d'emploi
B3: =Textes!A381 -> Table des matières | L3: =Q!ProgrammTyp & " " &Textes!A380 & ": " & Q!VersionsNummer -> Impex Version: 2.12
B5: =Textes!A382 -> 1 Indications générales concernant l‘utilisation
B6: =Textes!A383 -> 2 Notes concernant le remplissage des tableaux
B7: =Textes!A384 -> 2a) Instructions pour les porcs, poulettes, dindes à l’engrais et lapins
B8: =Textes!A385 -> 2b) Instructions pour les exploitations ayant des poulets à l‘engrais
B9: =Textes!A386 -> 2c) Indications supplémentaires pour des exploitations ayant des poulets à l‘engrais extensif
B11: =Textes!A387 -> 1 Indications générales concernant l‘utilisation
C13: =Textes!A388 -> Macros: | D13: =Textes!A389 -> Les macros doivent être autorisées.
D14: =Textes!A390 -> Si « poulets à l’engrais » apparaît automatiquement dans le tableau
D15: =Textes!A391 -> Poulet1 lors du choix de l’espèce, les macros sont autorisées
D16: =Textes!A392 -> => Instructions en détail | G16: =Textes!A393 -> www.agridea.ch > Software > Downloads > Impex 2.12 > Instructions
C18: =Textes!A394 -> Saisie des données | D18: =Textes!A395 -> Cellules jaunes | G18: =Textes!A396 -> Selon les besoins, vous pouvez ici saisir du texte ou des chiffres
D20: =Textes!A397 -> Cellules blanches | G20: =Textes!A398 -> Ces cellules sont généralement bloquées à la saisie
C22: =Textes!A399 -> Imprimer: | D22: =Textes!A400 -> Excel 2007, 2010, 2013 ainsi que 2016: Choisissez le menu
D23: =Textes!A401 -> « Compléments » et le sous-menu « Feuilles »
D24: =Textes!A402 -> Excel 2003: Choisissiez le menu «Feuilles »
D25: =Textes!A403 -> Lorsque vous choisissez le sous-menu « Imprimer », une liste de sélection apparait
D26: =Textes!A404 -> dans laquelle une ou plusieurs feuilles de calcul peuvent être sélectionnées
D27: =Textes!A405 -> par simple clic pour l'impression. Pour une sélection multiple, pressez Ctrl pendant le processus de sélection.
D28: =Textes!A406 -> En appuyant sur ce bouton toutes les feuilles seront sélectionnées.
C30: =Textes!A407 -> Enregistrement du fichier: | D30: =Textes!A408 -> Attention : avec Excel 2007, 2010, 2013 ainsi que 2016: Sous « enregistrer sous »
D31: =Textes!A409 -> vous devez choisir le type « fichier Excel avec macros » (.xlsm).
B33: =Textes!A410 -> 2 Notes concernant le remplissage des tableaux
C35: =Textes!A411 -> Tenez tous les documents (listing des aliments, poids abattus…) à portée de main.
C36: =Textes!A412 -> Les virgules ne sont pas acceptées! Toutes les virgules et dates doivent être saisies avec des points (« . »).
C38: =Textes!A413 -> 2a) Instructions concernant les porcs, poulettes, dindes et lapins
C40: =Textes!A414 -> 1. Start au tableau Inv [=Inventaire]: | E40: =Textes!A415 -> Choisissez la langue, saisissez votre adresse, la période et la catégorie d’animaux
C42: =Textes!A416 -> 2. Saisie des données sur les fiches suivantes (poulets à l’engrais => voir point 2b)
E43: =Textes!A417 -> - De plus, sur la fiche Inv: Inventaire des aliments et animaux
E44: =Textes!A418 -> Attention: Les saisies des teneurs des aliments doivent toujours être faites en g par kg !
E45: =Textes!A419 -> - Fiche A1a-e: Toutes les entrées des animaux
E46: =Textes!A420 -> - Fiche A2a-e: Toutes les sorties des animaux
E47: =Textes!A421 -> Porcs: Répartition des catégories d’animaux sur les différentes fiches
E48: =Textes!A422 -> et choix du rendement d’abattage concerné. Par exemple :
E49: =Textes!A423 -> A2a saisie des porcs à l’engrais, A2b truies mères échaudées, A2c truies mères dépouillées, etc.
E50: =Textes!A424 -> - Page B1-5: Tous les aliments
E51: =Textes!A425 -> - Fiche Impex: Aperçu/résultats. Le bilan des animaux doit être égal à zéro.
E52: =Textes!A426 -> - Fiche Plausi: Saisie de l’effectif moyen et transfert de la production
E53: =Textes!A427 -> des éléments nutritifs dans le Suisse-Bilanz
C55: =Textes!A428 -> 2b) Instructions pour les exploitations ayant des poulets à l‘engrais
C57: =Textes!A429 -> 1. Start à la fiche Inv [Inventaire]: | E57: =Textes!A430 -> Choix de la langue, saisie de l’adresse et de la période.
E58: =Textes!A431 -> L’inventaire des animaux ne doit PAS être saisi.
E59: =Textes!A432 -> Choix de la catégorie « poulets à l’engrais » => transfert automatiquement vers Poulet1
C61: =Textes!A433 -> 2. Fiches Poulet1, Poulet2, …: | E61: =Textes!A434 -> Saisissiez les dates et nombres de toutes les rotations.
E62: =Textes!A435 -> Attention : les rotations qui ont commencé avant la période
E63: =Textes!A436 -> ou qui finissent après la période doivent être saisies entièrement.
E64: =Textes!A437 -> La délimitation de l’année s’effectue automatiquement.
E65: =Textes!A438 -> Si l’effectif moyen calculé est supérieur à 3‘000 poulets,
E66: =Textes!A439 -> le poids vivant doit aussi être saisi ainsi qu’un bilan import/export complet calculé.
E67: =Textes!A440 -> Si l’effectif moyen calculé est inférieur à 3‘000 poulets,
E68: =Textes!A441 -> le poids vivant ne doit pas être saisi.
C70: =Textes!A442 -> 3. Bouton de commande «Achat et | E70: =Textes!A444 -> transfert de toutes le entrées et sorties d’animaux dans les fiches A1a-c et A2a-c.
C71: =Textes!A443 -> vente transférés dans A1c et A2c»: | E71: =Textes!A445 -> Attention : il faut d’abord saisir toutes les rotations.
C73: =Textes!A446 -> 4. Fiche Inv: | E73: =Textes!A447 -> Saisissez les teneurs des aliments et les inventaires début/fin
E74: =Textes!A448 -> Attention : les teneurs des aliments doivent être saisies en g! Exemple : 21% MA= 210 g MA par kg aliment
C76: =Textes!A449 -> 5. Fiche B1-B4 | E76: =Textes!A450 -> Saisissez la quantité des aliments achetés.
E77: =Textes!A451 -> Comparer le total des aliments livrés dans cette année et le listing du fournisseur d’aliments.
C79: =Textes!A452 -> 6. Fiche Poulet_tot : | E79: =Textes!A453 -> Résultats concernant l’effectif moyen
C81: =Textes!A454 -> 7. Fiche Impex : | E81: =Textes!A455 -> Résultat concernant le bilan import/export
E82: =Textes!A456 -> Contrôle : Le bilan des animaux doit être égal à zéro,
C84: =Textes!A457 -> 8. Fiche Plausi : | E84: =Textes!A458 -> Production des éléments nutritifs effectifs à reporter dans le Suisse-Bilanz
C86: =Textes!A459 -> 2c) Indications supplémentaires pour des exploitations ayant des poulets à l’engrais extensif (Bio)
C88: =Textes!A460 -> Exploitation ayant des poulaillers de | E88: =Textes!A462 -> Saisir les rotations en alternand dans les fiches Poulet1 et Poulet2
C89: =Textes!A461 -> pré-engraissement et d’engraissement | E89: =Textes!A463 -> Exemple: Rotations 1, 3, 5 => Fiche Poulet1; Rotations 2, 4, 6 => Fiche Poulet2

Sheet Inv
E1: ="Impex:"&" "&R3 -> Impex: Production porcine | K1: =Textes!A8 -> Inventaire début et fin
R3: =IF($U$4=1,Textes!G3,IF($U$4=2,Textes!G4,IF($U$4=3,Textes!G5,IF($U$4=4,Textes!G6,IF($U$4=5,Textes!G7))))) -> Production porcine | S3: FALSE | U3: =IF(FuttermittelErweitert=FALSE(),0,1) -> 0
C4: =Textes!A9&" " -> No cantonal: | H4: =Textes!A15&" " -> Calculé par: | U4: =Textes!$G$2 -> 1
C5: =Textes!A10&" " -> Nom: | H5: =Textes!A17&" " -> No téléphone: | U5: =Textes!SprachIdx -> 1
C6: =Textes!A11&" " -> Prénom: | H6: =Textes!A18&" " -> Fax / e-mail:
C7: =Textes!A13&" " -> Adresse: | H7: =Textes!A16&" " -> Firme:
C8: =Textes!A12&" " -> Complément: | H8: =Textes!A20&" " -> Date début: | M8: =IF(AND(PRODUCT($I$8:$I$9)>0,$N$9>=0,$N$9<10),"!!!","") -> 
C9: =Textes!A14&" " -> NPA, lieu: | H9: =Textes!A21&" " -> Date fin: | M9: =IF(AND(PRODUCT($I$8:$I$9)>0,$N$9>=0,$N$9<10),"!!!","") ->  | N9: =IF(ISERROR($O$9),0,$O$9) -> 0 | O9: =DATEDIF(DatumAnfang,DatumEnde+1, "M") -> 0
E11: =Textes!A25 -> Maximum | F11: =Textes!A27 -> Début de la période | I11: =Textes!A28 -> Fin de la période | N11: =$F$12 -> Nombre | R11: Ende
B12: =Textes!A24 -> Inventaire des animaux | E12: =Textes!A29 -> Nombre | F12: =Textes!A29 -> Nombre | G12: =Textes!A30 -> Poids | H12: =G12 -> Poids | I12: =F12 -> Nombre | J12: =G12 -> Poids | K12: =H12 -> Poids | N12: < 60 kg | P12: > 60 kg | R12: < 60 kg | T12: > 60 kg
E13: =Textes!A26 -> de places | G13: =Textes!A31 -> PV / anim. | H13: =Textes!A32 -> PV | J13: =G13 -> PV / anim. | K13: =H13 -> PV | N13: =$F$12 -> Nombre | O13: =Textes!$A$85 -> kg PV total | P13: =$F$12 -> Nombre | Q13: =Textes!$A$85 -> kg PV total | R13: =$F$12 -> Nombre | S13: =Textes!$A$85 -> kg PV total | T13: =$F$12 -> Nombre | U13: =Textes!$A$85 -> kg PV total
H14: =IF(F14<>"",F14*G14,"") ->  | K14: =IF(I14<>"",I14*J14,"") ->  | N14: =IF(G14<60,F14,0) -> 0 | O14: =IF(G14<60,H14,0) ->  | P14: =IF(N14=0,F14,0) -> 0 | Q14: =IF(O14=0,H14,0) -> 0 | R14: =IF(J14<60,I14,0) -> 0 | S14: =IF(J14<60,K14,0) ->  | T14: =IF(R14=0,I14,0) -> 0 | U14: =IF(S14=0,K14,0) -> 0
B15: =IF(Textes!Q4>0,Textes!Q4,"") -> 1611 | C15: =IF(Textes!R4>0,Textes!R4,"") -> Truies allaitantes | H15: =IF(F15<>"",F15*G15,"") ->  | K15: =IF(I15<>"",I15*J15,"") ->  | N15: =IF(G15<60,F15,0) -> 0 | P15: 0 | Q15: 0 | R15: 0 | T15: 0 | U15: 0
B16: =IF(Textes!Q5>0,Textes!Q5,"") -> 1615 | C16: =IF(Textes!R5>0,Textes!R5,"") -> Truies non allaitantes > 6 mois | H16: =IF(F16<>"",F16*G16,"") ->  | N16: 0 | P16: 0 | Q16: 0 | R16: 0 | T16: 0 | U16: 0
B17: =IF(Textes!Q6>0,Textes!Q6,"") -> 1621 | C17: =IF(Textes!R6>0,Textes!R6,"") -> Verrats d'élevage | H17: =IF(F17<>"",F17*G17,"") ->  | N17: 0 | P17: 0 | Q17: 0 | R17: 0 | T17: 0 | U17: 0
B18: =IF(Textes!Q7>0,Textes!Q7,"") -> 1631 | C18: =IF(Textes!R7>0,Textes!R7,"") -> Porcelets sevrés < 26 kg PV | N18: 0 | P18: 0 | Q18: 0 | R18: 0 | T18: 0 | U18: 0
B19: =IF(Textes!Q8>0,Textes!Q8,"") -> 1635 | C19: =IF(Textes!R8>0,Textes!R8,"") -> Porcelets allaités | N19: 0 | P19: 0 | Q19: 0 | R19: 0 | T19: 0 | U19: 0
B20: =IF(Textes!Q9>0,Textes!Q9,"") -> 1639 | C20: =IF(Textes!R9>0,Textes!R9,"") -> Porcs à l'engrais/remontes<6 mois | N20: 0 | P20: 0 | Q20: 0 | R20: 0 | T20: 0 | U20: 0
B21: =IF(Textes!Q10>0,Textes!Q10,"") -> 1639 | C21: =IF(Textes!R10>0,Textes!R10,"") -> Porcs à l'engrais/remontes<6 mois | N21: 0 | P21: 0 | Q21: 0 | R21: 0 | T21: 0 | U21: 0
B22: =IF(Textes!Q11>0,Textes!Q11,"") -> 1639 | C22: =IF(Textes!R11>0,Textes!R11,"") -> Porcs à l'engrais/remontes<6 mois | N22: 0 | P22: 0 | Q22: 0 | R22: 0 | T22: 0 | U22: 0
B23: =Textes!A51 -> Total inventaire animaux | E23: =IF(SUM(E14:E22)=0,"",SUM(E14:E22)) ->  | F23: =IF(SUM(F14:F22)=0,0,SUM(F14:F22)) -> 0 | G23: =IF(ISERROR(H23/F23)=TRUE,"",H23/F23) ->  | H23: =IF(SUM(H14:H22)=0,"",SUM(H14:H22)) ->  | I23: =IF(SUM(I14:I22)=0,0,SUM(I14:I22)) -> 0 | J23: =IF(ISERROR(K23/I23)=TRUE,"",K23/I23) ->  | K23: =IF(SUM(K14:K22)=0,"",SUM(K14:K22)) ->  | N23: =SUM(N14:N22) -> 0 | O23: =SUM(O14:O22) -> 0 | P23: 0 | Q23: 0 | R23: 0 | S23: 0 | T23: 0 | U23: 0
B25: =Textes!A52 -> Inventaire aliments | F25: =Textes!A54 -> Teneur par kg aliment | J25: =Textes!A58 -> Début | K25: =Textes!A59 -> Fin
B26: =Textes!A53 -> Aliments | F26: =Textes!A55 -> MS en % | G26: =Textes!A6 -> MJ EDP | H26: =Textes!A56 -> g MA | I26: =Textes!A57 -> g P | J26: =Textes!A60 -> kg d'aliment
B61: =B25 -> Inventaire aliments | F61: =Textes!A62 -> Teneurs par kg de MS | J61: =J25 -> Début | K61: =K25 -> Fin
B62: =Textes!A61 -> Autres aliments | F62: =F26 -> MS en % | G62: =G26 -> MJ EDP | H62: =H26 -> g MA | I62: =I26 -> g P | J62: =Textes!A63 -> kg de MF
B72: =Textes!A71 -> Lactosérum | F72: 6 | G72: 14.6 | H72: 129 | I72: 7.3
B73: =Textes!A72 -> CCM | F73: 61 | G73: 15.7 | H73: 95 | I73: 3.3
B74: =Textes!A64 -> Paille, granulés de paille | F74: 88 | G74: 2.2 | H74: 35 | I74: 0.9
B75: =Textes!A65 -> Matériaux d’occupation, dés de fourrage grossier | F75: 87 | G75: 2.1 | H75: 25 | I75: 1.6
B76: =Textes!A66 -> Fourrages | J76: =Textes!A67 -> kg de MS
B77: =Textes!A68 -> Maïs, plante entière | F77: 100 | G77: 10.7 | H77: 75 | I77: 1.9
B78: =Textes!A69 -> Ensilages de céréales plante entière | F78: 30 | G78: 7.4 | H78: 92 | I78: 3.2
B79: =Textes!A70 -> Herbages: herbe, silo, … | F79: 100 | G79: 7.6 | H79: 155 | I79: 3.5
B81: =Textes!A75 -> L'exploitant certifie l'exactitude des informations saisies sur cette feuille ainsi que les indications sur les entrées
B82: =Textes!A76 -> et les sorties d'animaux, les achats d'aliments.
B84: =Textes!A73 -> Organisation de contrôle, Date: | H84: =Textes!A74 -> Signature:
B86: =Textes!A77 -> Exploitant, Date: | H86: =H84 -> Signature:

Sheet A1a
D1: =+Inv!E1 -> Impex: Production porcine | G1: ="A1a: "&K6 -> A1a: Entrée animaux
B2: =Inv!C4&IF(Inv!D4=0,"",Inv!D4) -> No cantonal: | E2: =Inv!C5&IF(Inv!D5=0,"",Inv!D6&" "&Inv!D5) -> Nom:
C4: =IF(Textes!G2=1,Textes!A80,Textes!A82) -> Entrée animaux < 60 kg PV | F4: =IF(Textes!G2=1,Textes!A81,"") -> Entrée animaux > 60 kg PV
B5: =+Textes!A83 -> Date | C5: =+Textes!A84 -> Nombre | D5: =+Textes!A85 -> kg PV total | E5: =IF(Textes!G2=1,B5,"") -> Date | F5: =IF(Textes!G2=1,C5,"") -> Nombre | G5: =IF(Textes!G2=1,D5,"") -> kg PV total
K6: =Textes!A79 -> Entrée animaux
B61: =+Textes!A86 -> Total entrée | C61: =IF(SUM(C6:C60)=0,0,SUM(C6:C60)) -> 0 | D61: =IF(SUM(D6:D60)=0,0,SUM(D6:D60)) -> 0 | E61: =+Textes!A86 -> Total entrée | F61: =IF(SUM(F6:F60)=0,0,SUM(F6:F60)) -> 0 | G61: =IF(SUM(G6:G60)=0,0,SUM(G6:G60)) -> 0
B63: =+Textes!A73 -> Organisation de contrôle, Date: | E63: =+Textes!A88 -> Signature:
B65: =+Textes!A77 -> Exploitant, Date: | E65: =+Textes!A88 -> Signature:

Sheet A1b
D1: =+Inv!E1 -> Impex: Production porcine | G1: ="A1b: "&K6 -> A1b: Entrée animaux
B2: =Inv!C4&IF(Inv!D4=0,"",Inv!D4) -> No cantonal: | E2: =Inv!C5&IF(Inv!D5=0,"",Inv!D6&" "&Inv!D5) -> Nom:
C4: =IF(Textes!G2=1,Textes!A80,Textes!A82) -> Entrée animaux < 60 kg PV | F4: =IF(Textes!G2=1,Textes!A81,"") -> Entrée animaux > 60 kg PV
B5: =+Textes!A83 -> Date | C5: =+Textes!A84 -> Nombre | D5: =+Textes!A85 -> kg PV total | E5: =IF(Textes!G2=1,B5,"") -> Date | F5: =IF(Textes!G2=1,C5,"") -> Nombre | G5: =IF(Textes!G2=1,D5,"") -> kg PV total
K6: =Textes!A79 -> Entrée animaux
B61: =+Textes!A86 -> Total entrée | C61: =IF(SUM(C6:C60)=0,0,SUM(C6:C60)) -> 0 | D61: =IF(SUM(D6:D60)=0,0,SUM(D6:D60)) -> 0 | E61: =+Textes!A86 -> Total entrée | F61: =IF(SUM(F6:F60)=0,0,SUM(F6:F60)) -> 0 | G61: =IF(SUM(G6:G60)=0,0,SUM(G6:G60)) -> 0
B63: =+Textes!A73 -> Organisation de contrôle, Date: | E63: =+Textes!A88 -> Signature:
B65: =+Textes!A77 -> Exploitant, Date: | E65: =+Textes!A88 -> Signature:

Sheet A1c
D1: =+Inv!E1 -> Impex: Production porcine | G1: ="A1c: "&K6 -> A1c: Entrée animaux
B2: =Inv!C4&IF(Inv!D4=0,"",Inv!D4) -> No cantonal: | E2: =Inv!C5&IF(Inv!D5=0,"",Inv!D6&" "&Inv!D5) -> Nom:
C4: =IF(Textes!G2=1,Textes!A80,Textes!A82) -> Entrée animaux < 60 kg PV | F4: =IF(Textes!G2=1,Textes!A81,"") -> Entrée animaux > 60 kg PV
B5: =+Textes!A83 -> Date | C5: =+Textes!A84 -> Nombre | D5: =+Textes!A85 -> kg PV total | E5: =IF(Textes!G2=1,B5,"") -> Date | F5: =IF(Textes!G2=1,C5,"") -> Nombre | G5: =IF(Textes!G2=1,D5,"") -> kg PV total
K6: =Textes!A79 -> Entrée animaux
B61: =+Textes!A86 -> Total entrée | C61: =IF(SUM(C6:C60)=0,0,SUM(C6:C60)) -> 0 | D61: =IF(SUM(D6:D60)=0,0,SUM(D6:D60)) -> 0 | E61: =+Textes!A86 -> Total entrée | F61: =IF(SUM(F6:F60)=0,0,SUM(F6:F60)) -> 0 | G61: =IF(SUM(G6:G60)=0,0,SUM(G6:G60)) -> 0
B63: =+Textes!A73 -> Organisation de contrôle, Date: | E63: =+Textes!A88 -> Signature:
B65: =+Textes!A77 -> Exploitant, Date: | E65: =+Textes!A88 -> Signature:

Sheet A1d
D1: =+Inv!E1 -> Impex: Production porcine | G1: ="A1d: "&K6 -> A1d: Entrée animaux
B2: =Inv!C4&IF(Inv!D4=0,"",Inv!D4) -> No cantonal: | E2: =Inv!C5&IF(Inv!D5=0,"",Inv!D6&" "&Inv!D5) -> Nom:
C4: =IF(Textes!G2=1,Textes!A80,Textes!A82) -> Entrée animaux < 60 kg PV | F4: =IF(Textes!G2=1,Textes!A81,"") -> Entrée animaux > 60 kg PV
B5: =+Textes!A83 -> Date | C5: =+Textes!A84 -> Nombre | D5: =+Textes!A85 -> kg PV total | E5: =IF(Textes!G2=1,B5,"") -> Date | F5: =IF(Textes!G2=1,C5,"") -> Nombre | G5: =IF(Textes!G2=1,D5,"") -> kg PV total
K6: =Textes!A79 -> Entrée animaux
B61: =+Textes!A86 -> Total entrée | C61: =IF(SUM(C6:C60)=0,0,SUM(C6:C60)) -> 0 | D61: =IF(SUM(D6:D60)=0,0,SUM(D6:D60)) -> 0 | E61: =+Textes!A86 -> Total entrée | F61: =IF(SUM(F6:F60)=0,0,SUM(F6:F60)) -> 0 | G61: =IF(SUM(G6:G60)=0,0,SUM(G6:G60)) -> 0
B63: =+Textes!A73 -> Organisation de contrôle, Date: | E63: =+Textes!A88 -> Signature:
B65: =+Textes!A77 -> Exploitant, Date: | E65: =+Textes!A88 -> Signature:

Sheet A1e
D1: =+Inv!E1 -> Impex: Production porcine | G1: ="A1e: "&K6 -> A1e: Entrée animaux
B2: =Inv!C4&IF(Inv!D4=0,"",Inv!D4) -> No cantonal: | E2: =Inv!C5&IF(Inv!D5=0,"",Inv!D6&" "&Inv!D5) -> Nom:
C4: =IF(Textes!G2=1,Textes!A80,Textes!A82) -> Entrée animaux < 60 kg PV | F4: =IF(Textes!G2=1,Textes!A81,"") -> Entrée animaux > 60 kg PV
B5: =+Textes!A83 -> Date | C5: =+Textes!A84 -> Nombre | D5: =+Textes!A85 -> kg PV total | E5: =IF(Textes!G2=1,B5,"") -> Date | F5: =IF(Textes!G2=1,C5,"") -> Nombre | G5: =IF(Textes!G2=1,D5,"") -> kg PV total
K6: =Textes!A79 -> Entrée animaux
B61: =+Textes!A86 -> Total entrée | C61: =IF(SUM(C6:C60)=0,0,SUM(C6:C60)) -> 0 | D61: =IF(SUM(D6:D60)=0,0,SUM(D6:D60)) -> 0 | E61: =+Textes!A86 -> Total entrée | F61: =IF(SUM(F6:F60)=0,0,SUM(F6:F60)) -> 0 | G61: =IF(SUM(G6:G60)=0,0,SUM(G6:G60)) -> 0
B63: =+Textes!A73 -> Organisation de contrôle, Date: | E63: =+Textes!A88 -> Signature:
B65: =+Textes!A77 -> Exploitant, Date: | E65: =+Textes!A88 -> Signature:

Sheet A2a
D1: =+A1a!D1 -> Impex: Production porcine | H1: ="A2a: "&K8 -> A2a: Sortie animaux
F2: =Textes!$A$90 -> Choisissez la catégorie correcte! | J2: 1
B3: =Inv!C4 & IF(Inv!D4=0,"",Inv!D4) -> No cantonal: | E3: =Inv!C5 & IF(Inv!D5=0,"",Inv!D6 & " " & Inv!D5) -> Nom:
B4: =+Textes!A92 -> Inclure les ventes, les utilisations propres et les pertes d'animaux. | J4: =IF($J$2=3,Textes!$O$5,IF($J$2=2,Textes!$O$4,Textes!$O$3)) -> 0.79
C6: =IF(Textes!G2=1,Textes!A93,Textes!A95) -> Sortie animaux < 60 kg PV | F6: =IF(Textes!G2=1,Textes!A94,"") -> Sortie animaux > 60 kg PV | J6: Verkauf
B7: =+Textes!A96 -> Date | C7: =+Textes!A97 -> Nombre | D7: =+Textes!A98 -> kg PV total | E7: =IF(Textes!G2=1,B7,"") -> Date | F7: =IF(Textes!G2=1,C7,"") -> Nombre | G7: =IF(Textes!G2=1,D7,"") -> kg PV total | H7: =IF(Textes!G2=1,Textes!A91,"") -> kg PM total * | J7: Total LG
J8: =IF(G8<(H8/$J$4),H8/$J$4,G8) -> 0 | K8: =Textes!A89 -> Sortie animaux
J9: 0
J10: 0
J11: 0
J12: 0
J13: 0
J14: 0
J15: 0
J16: 0
J17: 0
J18: 0
J19: 0
J20: 0
J21: 0
J22: 0
J23: 0
J24: 0
J25: 0
J26: 0
J27: 0
J28: 0
J29: 0
J30: 0
J31: 0
J32: 0
J33: 0
J34: 0
J35: 0
J36: 0
J37: 0
J38: 0
J39: 0
J40: =IF(G40<(H40/$J$4),H40/$J$4,G40) -> 0
J41: 0
J42: 0
J43: 0
J44: 0
J45: 0
J46: 0
J47: 0
J48: 0
J49: 0
J50: 0
J51: 0
J52: 0
J53: 0
J54: 0
J55: 0
J56: 0
J57: 0
J58: 0
J59: 0
J60: 0
B61: =+Textes!A99 -> Total sortie | C61: =IF(SUM(C8:C60)=0,0,SUM(C8:C60)) -> 0 | D61: =IF(SUM(D8:D60)=0,0,SUM(D8:D60)) -> 0 | E61: =+B61 -> Total sortie | F61: =IF(SUM(F8:F60)=0,0,SUM(F8:F60)) -> 0 | G61: =IF(J61=0,0,J61) -> 0 | J61: =SUM(J8:J60) -> 0
B62: =IF(Textes!G2=1,Textes!A102,"") -> * = selon le système; en kg PV ou PM
B64: =+Textes!A73 -> Organisation de contrôle, Date: | F64: =+Textes!A74 -> Signature:
J65: .........................................…
B66: =+Textes!A77 -> Exploitant, Date: | F66: =+Textes!A74 -> Signature:

Sheet A2b
D1: =+A1a!D1 -> Impex: Production porcine | H1: ="A2b: "&K8 -> A2b: Sortie animaux
F2: =Textes!$A$90 -> Choisissez la catégorie correcte! | J2: 1
B3: =Inv!C4 & IF(Inv!D4=0,"",Inv!D4) -> No cantonal: | E3: =Inv!C5 & IF(Inv!D5=0,"",Inv!D6 & " " & Inv!D5) -> Nom:
B4: =+Textes!A92 -> Inclure les ventes, les utilisations propres et les pertes d'animaux. | J4: =IF($J$2=3,Textes!$O$5,IF($J$2=2,Textes!$O$4,Textes!$O$3)) -> 0.79
C6: =IF(Textes!G2=1,Textes!A93,Textes!A95) -> Sortie animaux < 60 kg PV | F6: =IF(Textes!G2=1,Textes!A94,"") -> Sortie animaux > 60 kg PV | J6: Verkauf
B7: =+Textes!A96 -> Date | C7: =+Textes!A97 -> Nombre | D7: =+Textes!A98 -> kg PV total | E7: =IF(Textes!G2=1,B7,"") -> Date | F7: =IF(Textes!G2=1,C7,"") -> Nombre | G7: =IF(Textes!G2=1,D7,"") -> kg PV total | H7: =IF(Textes!G2=1,Textes!A91,"") -> kg PM total * | J7: Total LG
J8: =IF(G8<(H8/$J$4),H8/$J$4,G8) -> 0 | K8: =Textes!A89 -> Sortie animaux
J9: =IF(G9<(H9/$J$4),H9/$J$4,G9) -> 0
J10: 0
J11: 0
J12: 0
J13: 0
J14: 0
J15: 0
J16: 0
J17: 0
J18: 0
J19: 0
J20: 0
J21: 0
J22: 0
J23: 0
J24: 0
J25: 0
J26: 0
J27: 0
J28: 0
J29: 0
J30: 0
J31: 0
J32: 0
J33: 0
J34: 0
J35: 0
J36: 0
J37: 0
J38: 0
J39: 0
J40: 0
J41: 0
J42: 0
J43: 0
J44: 0
J45: 0
J46: 0
J47: 0
J48: 0
J49: 0
J50: 0
J51: 0
J52: 0
J53: 0
J54: 0
J55: 0
J56: 0
J57: 0
J58: 0
J59: 0
J60: 0
B61: =+Textes!A99 -> Total sortie | C61: =IF(SUM(C8:C60)=0,0,SUM(C8:C60)) -> 0 | D61: =IF(SUM(D8:D60)=0,0,SUM(D8:D60)) -> 0 | E61: =+B61 -> Total sortie | F61: =IF(SUM(F8:F60)=0,0,SUM(F8:F60)) -> 0 | G61: =IF(J61=0,0,J61) -> 0 | J61: =SUM(J8:J60) -> 0
B62: =IF(Textes!G2=1,Textes!A102,"") -> * = selon le système; en kg PV ou PM
B64: =+Textes!A73 -> Organisation de contrôle, Date: | F64: =+Textes!A74 -> Signature:
J65: .........................................…
B66: =+Textes!A77 -> Exploitant, Date: | F66: =+Textes!A74 -> Signature:

Sheet A2c
D1: =+A1a!D1 -> Impex: Production porcine | H1: ="A2c: "&K8 -> A2c: Sortie animaux
F2: =Textes!$A$90 -> Choisissez la catégorie correcte! | J2: 1
B3: =Inv!C4 & IF(Inv!D4=0,"",Inv!D4) -> No cantonal: | E3: =Inv!C5 & IF(Inv!D5=0,"",Inv!D6 & " " & Inv!D5) -> Nom:
B4: =+Textes!A92 -> Inclure les ventes, les utilisations propres et les pertes d'animaux. | J4: =IF($J$2=3,Textes!$O$5,IF($J$2=2,Textes!$O$4,Textes!$O$3)) -> 0.79
C6: =IF(Textes!G2=1,Textes!A93,Textes!A95) -> Sortie animaux < 60 kg PV | F6: =IF(Textes!G2=1,Textes!A94,"") -> Sortie animaux > 60 kg PV | J6: Verkauf
B7: =+Textes!A96 -> Date | C7: =+Textes!A97 -> Nombre | D7: =+Textes!A98 -> kg PV total | E7: =IF(Textes!G2=1,B7,"") -> Date | F7: =IF(Textes!G2=1,C7,"") -> Nombre | G7: =IF(Textes!G2=1,D7,"") -> kg PV total | H7: =IF(Textes!G2=1,Textes!A91,"") -> kg PM total * | J7: Total LG
J8: =IF(G8<(H8/$J$4),H8/$J$4,G8) -> 0 | K8: =Textes!A89 -> Sortie animaux
J9: =IF(G9<(H9/$J$4),H9/$J$4,G9) -> 0
J10: 0
J11: 0
J12: 0
J13: 0
J14: 0
J15: 0
J16: 0
J17: 0
J18: 0
J19: 0
J20: 0
J21: 0
J22: 0
J23: 0
J24: 0
J25: 0
J26: 0
J27: 0
J28: 0
J29: 0
J30: 0
J31: 0
J32: 0
J33: 0
J34: 0
J35: 0
J36: 0
J37: 0
J38: 0
J39: 0
J40: 0
J41: 0
J42: 0
J43: 0
J44: 0
J45: 0
J46: 0
J47: 0
J48: 0
J49: 0
J50: 0
J51: 0
J52: 0
J53: 0
J54: 0
J55: 0
J56: 0
J57: 0
J58: 0
J59: 0
J60: 0
B61: =+Textes!A99 -> Total sortie | C61: =IF(SUM(C8:C60)=0,0,SUM(C8:C60)) -> 0 | D61: =IF(SUM(D8:D60)=0,0,SUM(D8:D60)) -> 0 | E61: =+B61 -> Total sortie | F61: =IF(SUM(F8:F60)=0,0,SUM(F8:F60)) -> 0 | G61: =IF(J61=0,0,J61) -> 0 | J61: =SUM(J8:J60) -> 0
B62: =IF(Textes!G2=1,Textes!A102,"") -> * = selon le système; en kg PV ou PM
B64: =+Textes!A73 -> Organisation de contrôle, Date: | F64: =+Textes!A74 -> Signature:
J65: .........................................…
B66: =+Textes!A77 -> Exploitant, Date: | F66: =+Textes!A74 -> Signature:

Sheet A2d
D1: =+A1a!D1 -> Impex: Production porcine | H1: ="A2d: "& K8 -> A2d: Sortie animaux
F2: =Textes!$A$90 -> Choisissez la catégorie correcte! | J2: 1
B3: =Inv!C4 & IF(Inv!D4=0,"",Inv!D4) -> No cantonal: | E3: =Inv!C5 & IF(Inv!D5=0,"",Inv!D6 & " " & Inv!D5) -> Nom:
B4: =+Textes!A92 -> Inclure les ventes, les utilisations propres et les pertes d'animaux. | J4: =IF($J$2=3,Textes!$O$5,IF($J$2=2,Textes!$O$4,Textes!$O$3)) -> 0.79
C6: =IF(Textes!G2=1,Textes!A93,Textes!A95) -> Sortie animaux < 60 kg PV | F6: =IF(Textes!G2=1,Textes!A94,"") -> Sortie animaux > 60 kg PV | J6: Verkauf
B7: =+Textes!A96 -> Date | C7: =+Textes!A97 -> Nombre | D7: =+Textes!A98 -> kg PV total | E7: =IF(Textes!G2=1,B7,"") -> Date | F7: =IF(Textes!G2=1,C7,"") -> Nombre | G7: =IF(Textes!G2=1,D7,"") -> kg PV total | H7: =IF(Textes!G2=1,Textes!A91,"") -> kg PM total * | J7: Total LG
J8: =IF(G8<(H8/$J$4),H8/$J$4,G8) -> 0 | K8: =Textes!A89 -> Sortie animaux
J9: =IF(G9<(H9/$J$4),H9/$J$4,G9) -> 0
J10: 0
J11: 0
J12: 0
J13: 0
J14: 0
J15: 0
J16: 0
J17: 0
J18: 0
J19: 0
J20: 0
J21: 0
J22: 0
J23: 0
J24: 0
J25: 0
J26: 0
J27: 0
J28: 0
J29: 0
J30: 0
J31: 0
J32: 0
J33: 0
J34: 0
J35: 0
J36: 0
J37: 0
J38: 0
J39: 0
J40: 0
J41: 0
J42: 0
J43: 0
J44: 0
J45: 0
J46: 0
J47: 0
J48: 0
J49: 0
J50: 0
J51: 0
J52: 0
J53: 0
J54: 0
J55: 0
J56: 0
J57: 0
J58: 0
J59: 0
J60: 0
B61: =+Textes!A99 -> Total sortie | C61: =IF(SUM(C8:C60)=0,0,SUM(C8:C60)) -> 0 | D61: =IF(SUM(D8:D60)=0,0,SUM(D8:D60)) -> 0 | E61: =+B61 -> Total sortie | F61: =IF(SUM(F8:F60)=0,0,SUM(F8:F60)) -> 0 | G61: =IF(J61=0,0,J61) -> 0 | J61: =SUM(J8:J60) -> 0
B62: =IF(Textes!G2=1,Textes!A102,"") -> * = selon le système; en kg PV ou PM
B64: =+Textes!A73 -> Organisation de contrôle, Date: | F64: =+Textes!A74 -> Signature:
J65: .........................................…
B66: =+Textes!A77 -> Exploitant, Date: | F66: =+Textes!A74 -> Signature:

Sheet A2e
D1: =+A1a!D1 -> Impex: Production porcine | H1: ="A2e: "&K8 -> A2e: Sortie animaux
F2: =Textes!$A$90 -> Choisissez la catégorie correcte! | J2: 1
B3: =Inv!C4 & IF(Inv!D4=0,"",Inv!D4) -> No cantonal: | E3: =Inv!C5 & IF(Inv!D5=0,"",Inv!D6 & " " & Inv!D5) -> Nom:
B4: =+Textes!A92 -> Inclure les ventes, les utilisations propres et les pertes d'animaux. | J4: =IF($J$2=3,Textes!$O$5,IF($J$2=2,Textes!$O$4,Textes!$O$3)) -> 0.79
C6: =IF(Textes!G2=1,Textes!A93,Textes!A95) -> Sortie animaux < 60 kg PV | F6: =IF(Textes!G2=1,Textes!A94,"") -> Sortie animaux > 60 kg PV | J6: Verkauf
B7: =+Textes!A96 -> Date | C7: =+Textes!A97 -> Nombre | D7: =+Textes!A98 -> kg PV total | E7: =IF(Textes!G2=1,B7,"") -> Date | F7: =IF(Textes!G2=1,C7,"") -> Nombre | G7: =IF(Textes!G2=1,D7,"") -> kg PV total | H7: =IF(Textes!G2=1,Textes!A91,"") -> kg PM total * | J7: Total LG
J8: =IF(G8<(H8/$J$4),H8/$J$4,G8) -> 0 | K8: =Textes!A89 -> Sortie animaux
J9: =IF(G9<(H9/$J$4),H9/$J$4,G9) -> 0
J10: 0
J11: 0
J12: 0
J13: 0
J14: 0
J15: 0
J16: 0
J17: 0
J18: 0
J19: 0
J20: 0
J21: 0
J22: 0
J23: 0
J24: 0
J25: 0
J26: 0
J27: 0
J28: 0
J29: 0
J30: 0
J31: 0
J32: 0
J33: 0
J34: 0
J35: 0
J36: 0
J37: 0
J38: 0
J39: 0
J40: 0
J41: 0
J42: 0
J43: 0
J44: 0
J45: 0
J46: 0
J47: 0
J48: 0
J49: 0
J50: 0
J51: 0
J52: 0
J53: 0
J54: 0
J55: 0
J56: 0
J57: 0
J58: 0
J59: 0
J60: 0
B61: =+Textes!A99 -> Total sortie | C61: =IF(SUM(C8:C60)=0,0,SUM(C8:C60)) -> 0 | D61: =IF(SUM(D8:D60)=0,0,SUM(D8:D60)) -> 0 | E61: =+B61 -> Total sortie | F61: =IF(SUM(F8:F60)=0,0,SUM(F8:F60)) -> 0 | G61: =IF(J61=0,0,J61) -> 0 | J61: =SUM(J8:J60) -> 0
B62: =IF(Textes!G2=1,Textes!A102,"") -> * = selon le système; en kg PV ou PM
B64: =+Textes!A73 -> Organisation de contrôle, Date: | F64: =+Textes!A74 -> Signature:
J65: .........................................…
B66: =+Textes!A77 -> Exploitant, Date: | F66: =+Textes!A74 -> Signature:

Sheet B1
D1: =+A2a!D1 -> Impex: Production porcine | I1: ="B1: "&K13 -> B1: Entrée aliments
B2: =Inv!C4&IF(Inv!D4=0,"",Inv!D4) -> No cantonal: | F2: =Inv!C5&IF(Inv!D5=0,"",Inv!D6&" "&Inv!D5) -> Nom:
B4: =+Textes!A105 -> Moulin | D4: =+B4 -> Moulin | F4: =+D4 -> Moulin | H4: =+F4 -> Moulin
B6: =Impex!B20 ->  | D6: =Impex!B21 ->  | F6: =Impex!B22 ->  | H6: =Impex!B23 -> 
B7: =+Inv!F26 -> MS en % | C7: =IF(Inv!F28=0,"",Inv!F28) ->  | D7: =+B7 -> MS en % | E7: =IF(Inv!F29=0,"",Inv!F29) ->  | F7: =+B7 -> MS en % | G7: =IF(Inv!F30=0,"",Inv!F30) ->  | H7: =+B7 -> MS en % | I7: =IF(Inv!F31=0,"",Inv!F31) -> 
B8: =+Textes!A106 -> par kg d'aliment | D8: =+B8 -> par kg d'aliment | F8: =+D8 -> par kg d'aliment | H8: =+F8 -> par kg d'aliment
B9: =+Inv!G26 -> MJ EDP | C9: =IF(Inv!G28=0,"",Inv!G28) ->  | D9: =B9 -> MJ EDP | E9: =IF(Inv!G29=0,"",Inv!G29) ->  | F9: =B9 -> MJ EDP | G9: =IF(Inv!G30=0,"",Inv!G30) ->  | H9: =B9 -> MJ EDP | I9: =IF(Inv!G31=0,"",Inv!G31) -> 
B10: =+Inv!H26 -> g MA | C10: =IF(Inv!H28=0,"",Inv!H28) ->  | D10: =B10 -> g MA | E10: =IF(Inv!H29=0,"",Inv!H29) ->  | F10: =B10 -> g MA | G10: =IF(Inv!H30=0,"",Inv!H30) ->  | H10: =B10 -> g MA | I10: =IF(Inv!H31=0,"",Inv!H31) -> 
B11: =+Inv!I26 -> g P | C11: =IF(Inv!I28=0,"",Inv!I28) ->  | D11: =B11 -> g P | E11: =IF(Inv!I29=0,"",Inv!I29) ->  | F11: =B11 -> g P | G11: =IF(Inv!I30=0,"",Inv!I30) ->  | H11: =B11 -> g P | I11: =IF(Inv!I31=0,"",Inv!I31) -> 
B12: =+Textes!A107 -> Date | C12: =+Textes!A108 -> kg aliment | D12: =+B12 -> Date | E12: kg aliment | F12: Date | G12: kg aliment | H12: Date | I12: kg aliment
K13: =Textes!A103 -> Entrée aliments
B58: =+Textes!A109 -> Total entrée | C58: =IF(SUM(C13:C57)=0,0,SUM(C13:C57)) -> 0 | D58: =+B58 -> Total entrée | E58: =IF(SUM(E13:E57)=0,0,SUM(E13:E57)) -> 0 | F58: =+D58 -> Total entrée | G58: =IF(SUM(G13:G57)=0,0,SUM(G13:G57)) -> 0 | H58: =+F58 -> Total entrée | I58: =IF(SUM(I13:I57)=0,0,SUM(I13:I57)) -> 0
B60: =+Textes!A112 -> Tous les aliments utilisés doivent être saisis.
B62: =+Inv!B84 -> Organisation de contrôle, Date: | F62: =+Inv!H84 -> Signature:
B64: =+Inv!B86 -> Exploitant, Date: | F64: =+Inv!H86 -> Signature:

Sheet B2
D1: =+A2a!D1 -> Impex: Production porcine | I1: ="B2: "&K13 -> B2: Entrée aliments
B2: =Inv!C4&IF(Inv!D4=0,"",Inv!D4) -> No cantonal: | F2: =Inv!C5&IF(Inv!D5=0,"",Inv!D6&" "&Inv!D5) -> Nom:
B4: =+'B1'!B4 -> Moulin | D4: =+B4 -> Moulin | F4: =+D4 -> Moulin | H4: =+F4 -> Moulin
B6: =Impex!B24 ->  | D6: =Impex!B25 ->  | F6: =Impex!B26 ->  | H6: =Impex!B27 -> 
B7: =+Inv!F26 -> MS en % | C7: =IF(Inv!F32=0,"",Inv!F32) ->  | D7: =+B7 -> MS en % | E7: =IF(Inv!F33=0,"",Inv!F33) ->  | F7: =+D7 -> MS en % | G7: =IF(Inv!F34=0,"",Inv!F34) ->  | H7: =+F7 -> MS en % | I7: =IF(Inv!F35=0,"",Inv!F35) -> 
B8: =+'B1'!B8 -> par kg d'aliment | D8: =+B8 -> par kg d'aliment | F8: =+D8 -> par kg d'aliment | H8: =+F8 -> par kg d'aliment
B9: ='B1'!B9 -> MJ EDP | C9: =IF(Inv!G32=0,"",Inv!G32) ->  | D9: ='B1'!B9 -> MJ EDP | E9: =IF(Inv!G33=0,"",Inv!G33) ->  | F9: ='B1'!B9 -> MJ EDP | G9: =IF(Inv!G34=0,"",Inv!G34) ->  | H9: ='B1'!B9 -> MJ EDP | I9: =IF(Inv!G35=0,"",Inv!G35) -> 
B10: ='B1'!B10 -> g MA | C10: =IF(Inv!H32=0,"",Inv!H32) ->  | D10: ='B1'!B10 -> g MA | E10: =IF(Inv!H33=0,"",Inv!H33) ->  | F10: ='B1'!B10 -> g MA | G10: =IF(Inv!H34=0,"",Inv!H34) ->  | H10: ='B1'!B10 -> g MA | I10: =IF(Inv!H35=0,"",Inv!H35) -> 
B11: ='B1'!B11 -> g P | C11: =IF(Inv!I32=0,"",Inv!I32) ->  | D11: ='B1'!B11 -> g P | E11: =IF(Inv!I33=0,"",Inv!I33) ->  | F11: ='B1'!B11 -> g P | G11: =IF(Inv!I34=0,"",Inv!I34) ->  | H11: ='B1'!B11 -> g P | I11: =IF(Inv!I35=0,"",Inv!I35) -> 
B12: =+'B1'!B12 -> Date | C12: =+'B1'!C12 -> kg aliment | D12: =+B12 -> Date | E12: kg aliment | F12: Date | G12: kg aliment | H12: Date | I12: kg aliment
K13: =Textes!A103 -> Entrée aliments
B58: =+'B1'!B58 -> Total entrée | C58: =IF(SUM(C13:C57)=0,0,SUM(C13:C57)) -> 0 | D58: =+B58 -> Total entrée | E58: =IF(SUM(E13:E57)=0,0,SUM(E13:E57)) -> 0 | F58: =+D58 -> Total entrée | G58: =IF(SUM(G13:G57)=0,0,SUM(G13:G57)) -> 0 | H58: =+F58 -> Total entrée | I58: =IF(SUM(I13:I57)=0,0,SUM(I13:I57)) -> 0
B60: =+'B1'!B60 -> Tous les aliments utilisés doivent être saisis.
B62: =+Inv!B84 -> Organisation de contrôle, Date: | F62: =+Inv!H84 -> Signature:
B64: =+Inv!B86 -> Exploitant, Date: | F64: =+Inv!H86 -> Signature:

Sheet B3
D1: =+A2a!D1 -> Impex: Production porcine | I1: ="B3: "&K13 -> B3: Entrée aliments
B2: =Inv!C4&IF(Inv!D4=0,"",Inv!D4) -> No cantonal: | F2: =Inv!C5&IF(Inv!D5=0,"",Inv!D6&" "&Inv!D5) -> Nom:
B4: =+'B2'!B4 -> Moulin | D4: =+B4 -> Moulin | F4: =+D4 -> Moulin | H4: =+F4 -> Moulin
B6: =Impex!B28 ->  | D6: =Impex!B29 ->  | F6: =Impex!B30 ->  | H6: =Impex!B31 -> 
B7: =+'B2'!B7 -> MS en % | C7: =IF(Inv!F36=0,"",Inv!F36) ->  | D7: =+B7 -> MS en % | E7: =IF(Inv!F37=0,"",Inv!F37) ->  | F7: =+B7 -> MS en % | G7: =IF(Inv!F38=0,"",Inv!F38) ->  | H7: =+B7 -> MS en % | I7: =IF(Inv!F39=0,"",Inv!F39) -> 
B8: =+'B2'!B8 -> par kg d'aliment | D8: =+B8 -> par kg d'aliment | F8: =+D8 -> par kg d'aliment | H8: =+F8 -> par kg d'aliment
B9: ='B1'!B9 -> MJ EDP | C9: =IF(Inv!G36=0,"",Inv!G36) ->  | D9: ='B1'!B9 -> MJ EDP | E9: =IF(Inv!G37=0,"",Inv!G37) ->  | F9: ='B1'!B9 -> MJ EDP | G9: =IF(Inv!G38=0,"",Inv!G38) ->  | H9: ='B1'!B9 -> MJ EDP | I9: =IF(Inv!G39=0,"",Inv!G39) -> 
B10: ='B1'!B10 -> g MA | C10: =IF(Inv!H36=0,"",Inv!H36) ->  | D10: ='B1'!B10 -> g MA | E10: =IF(Inv!H37=0,"",Inv!H37) ->  | F10: ='B1'!B10 -> g MA | G10: =IF(Inv!H38=0,"",Inv!H38) ->  | H10: ='B1'!B10 -> g MA | I10: =IF(Inv!H39=0,"",Inv!H39) -> 
B11: ='B1'!B11 -> g P | C11: =IF(Inv!I36=0,"",Inv!I36) ->  | D11: ='B1'!B11 -> g P | E11: =IF(Inv!I37=0,"",Inv!I37) ->  | F11: ='B1'!B11 -> g P | G11: =IF(Inv!I38=0,"",Inv!I38) ->  | H11: ='B1'!B11 -> g P | I11: =IF(Inv!I39=0,"",Inv!I39) -> 
B12: =+'B2'!B12 -> Date | C12: =+'B2'!C12 -> kg aliment | D12: =+B12 -> Date | E12: kg aliment | F12: Date | G12: kg aliment | H12: Date | I12: kg aliment
K13: =Textes!A103 -> Entrée aliments
B58: =+'B2'!B58 -> Total entrée | C58: =IF(SUM(C13:C57)=0,0,SUM(C13:C57)) -> 0 | D58: =+B58 -> Total entrée | E58: =IF(SUM(E13:E57)=0,0,SUM(E13:E57)) -> 0 | F58: =+D58 -> Total entrée | G58: =IF(SUM(G13:G57)=0,0,SUM(G13:G57)) -> 0 | H58: =+F58 -> Total entrée | I58: =IF(SUM(I13:I57)=0,0,SUM(I13:I57)) -> 0
B60: =+'B1'!B60 -> Tous les aliments utilisés doivent être saisis.
B62: =+Inv!B84 -> Organisation de contrôle, Date: | F62: =+Inv!H84 -> Signature:
B64: =+Inv!B86 -> Exploitant, Date: | F64: =+Inv!H86 -> Signature:

Sheet B4
D1: =+A2a!D1 -> Impex: Production porcine | I1: ="B4: "&K13 -> B4: Entrée aliments
B2: =Inv!C4&IF(Inv!D4=0,"",Inv!D4) -> No cantonal: | F2: =Inv!C5&IF(Inv!D5=0,"",Inv!D6&" "&Inv!D5) -> Nom:
B4: =+'B2'!B4 -> Moulin | D4: =+B4 -> Moulin | F4: =+D4 -> Moulin | H4: =+F4 -> Moulin
B6: =Impex!B32 ->  | D6: =Impex!B33 ->  | F6: =Impex!B34 ->  | H6: =Impex!B35 -> 
B7: =+'B2'!B7 -> MS en % | C7: =IF(Inv!F40=0,"",Inv!F40) ->  | D7: =+B7 -> MS en % | E7: =IF(Inv!F41=0,"",Inv!F41) ->  | F7: =+B7 -> MS en % | G7: =IF(Inv!F42=0,"",Inv!F42) ->  | H7: =+B7 -> MS en % | I7: =IF(Inv!F43=0,"",Inv!F43) -> 
B8: =+'B2'!B8 -> par kg d'aliment | D8: =+B8 -> par kg d'aliment | F8: =+D8 -> par kg d'aliment | H8: =+F8 -> par kg d'aliment
B9: ='B1'!B9 -> MJ EDP | C9: =IF(Inv!G40=0,"",Inv!G40) ->  | D9: ='B1'!B9 -> MJ EDP | E9: =IF(Inv!G41=0,"",Inv!G41) ->  | F9: ='B1'!B9 -> MJ EDP | G9: =IF(Inv!G42=0,"",Inv!G42) ->  | H9: ='B1'!B9 -> MJ EDP | I9: =IF(Inv!G43=0,"",Inv!G43) -> 
B10: ='B1'!B10 -> g MA | C10: =IF(Inv!H40=0,"",Inv!H40) ->  | D10: ='B1'!B10 -> g MA | E10: =IF(Inv!H41=0,"",Inv!H41) ->  | F10: ='B1'!B10 -> g MA | G10: =IF(Inv!H42=0,"",Inv!H42) ->  | H10: ='B1'!B10 -> g MA | I10: =IF(Inv!H43=0,"",Inv!H43) -> 
B11: ='B1'!B11 -> g P | C11: =IF(Inv!I40=0,"",Inv!I40) ->  | D11: ='B1'!B11 -> g P | E11: =IF(Inv!I41=0,"",Inv!I41) ->  | F11: ='B1'!B11 -> g P | G11: =IF(Inv!I42=0,"",Inv!I42) ->  | H11: ='B1'!B11 -> g P | I11: =IF(Inv!I43=0,"",Inv!I43) -> 
B12: =+'B2'!B12 -> Date | C12: =+'B2'!C12 -> kg aliment | D12: =+B12 -> Date | E12: kg aliment | F12: Date | G12: kg aliment | H12: Date | I12: kg aliment
K13: =Textes!A103 -> Entrée aliments
B58: =+'B2'!B58 -> Total entrée | C58: =IF(SUM(C13:C57)=0,0,SUM(C13:C57)) -> 0 | D58: =+B58 -> Total entrée | E58: =IF(SUM(E13:E57)=0,0,SUM(E13:E57)) -> 0 | F58: =+D58 -> Total entrée | G58: =IF(SUM(G13:G57)=0,0,SUM(G13:G57)) -> 0 | H58: =+F58 -> Total entrée | I58: =IF(SUM(I13:I57)=0,0,SUM(I13:I57)) -> 0
B60: =+'B1'!B60 -> Tous les aliments utilisés doivent être saisis.
B62: =+Inv!B84 -> Organisation de contrôle, Date: | F62: =+Inv!H84 -> Signature:
B64: =+Inv!B86 -> Exploitant, Date: | F64: =+Inv!H86 -> Signature:

Sheet BX1 (hidden)
D1: =+A2a!D1 -> Impex: Production porcine | I1: ="BX1: "&K13 -> BX1: Entrée aliments
B2: =Inv!C4&IF(Inv!D4=0,"",Inv!D4) -> No cantonal: | F2: =Inv!C5&IF(Inv!D5=0,"",Inv!D6&" "&Inv!D5) -> Nom:
B4: =+Textes!A105 -> Moulin | D4: =+B4 -> Moulin | F4: =+D4 -> Moulin | H4: =+F4 -> Moulin
B6: =Impex!B36 ->  | D6: =Impex!B37 ->  | F6: =Impex!B38 ->  | H6: =Impex!B39 -> 
B7: =+Inv!F26 -> MS en % | C7: =IF(Inv!F44=0,"",Inv!F44) ->  | D7: =+B7 -> MS en % | E7: =IF(Inv!F45=0,"",Inv!F45) ->  | F7: =+B7 -> MS en % | G7: =IF(Inv!F46=0,"",Inv!F46) ->  | H7: =+B7 -> MS en % | I7: =IF(Inv!F47=0,"",Inv!F47) -> 
B8: =+Textes!A106 -> par kg d'aliment | D8: =+B8 -> par kg d'aliment | F8: =+D8 -> par kg d'aliment | H8: =+F8 -> par kg d'aliment
B9: =+Inv!G26 -> MJ EDP | C9: =IF(Inv!G44=0,"",Inv!G44) ->  | D9: =B9 -> MJ EDP | E9: =IF(Inv!G45=0,"",Inv!G45) ->  | F9: =B9 -> MJ EDP | G9: =IF(Inv!G46=0,"",Inv!G46) ->  | H9: =B9 -> MJ EDP | I9: =IF(Inv!G47=0,"",Inv!G47) -> 
B10: =+Inv!H26 -> g MA | C10: =IF(Inv!H44=0,"",Inv!H44) ->  | D10: =B10 -> g MA | E10: =IF(Inv!H45=0,"",Inv!H45) ->  | F10: =B10 -> g MA | G10: =IF(Inv!H46=0,"",Inv!H46) ->  | H10: =B10 -> g MA | I10: =IF(Inv!H47=0,"",Inv!H47) -> 
B11: =+Inv!I26 -> g P | C11: =IF(Inv!I44=0,"",Inv!I44) ->  | D11: =B11 -> g P | E11: =IF(Inv!I45=0,"",Inv!I45) ->  | F11: =B11 -> g P | G11: =IF(Inv!I46=0,"",Inv!I46) ->  | H11: =B11 -> g P | I11: =IF(Inv!I47=0,"",Inv!I47) -> 
B12: =+Textes!A107 -> Date | C12: =+Textes!A108 -> kg aliment | D12: =+B12 -> Date | E12: kg aliment | F12: Date | G12: kg aliment | H12: Date | I12: kg aliment
K13: =Textes!A103 -> Entrée aliments
B58: =+Textes!A109 -> Total entrée | C58: =IF(SUM(C13:C57)=0,0,SUM(C13:C57)) -> 0 | D58: =+B58 -> Total entrée | E58: =IF(SUM(E13:E57)=0,0,SUM(E13:E57)) -> 0 | F58: =+D58 -> Total entrée | G58: =IF(SUM(G13:G57)=0,0,SUM(G13:G57)) -> 0 | H58: =+F58 -> Total entrée | I58: =IF(SUM(I13:I57)=0,0,SUM(I13:I57)) -> 0
B60: =+Textes!A112 -> Tous les aliments utilisés doivent être saisis.
B62: =+Inv!B84 -> Organisation de contrôle, Date: | F62: =+Inv!H84 -> Signature:
B64: =+Inv!B86 -> Exploitant, Date: | F64: =+Inv!H86 -> Signature:

Sheet BX2 (hidden)
D1: =+A2a!D1 -> Impex: Production porcine | I1: ="BX2: "&K13 -> BX2: Entrée aliments
B2: =Inv!C4&IF(Inv!D4=0,"",Inv!D4) -> No cantonal: | F2: =Inv!C5&IF(Inv!D5=0,"",Inv!D6&" "&Inv!D5) -> Nom:
B4: =+'BX1'!B4 -> Moulin | D4: =+B4 -> Moulin | F4: =+D4 -> Moulin | H4: =+F4 -> Moulin
B6: =Impex!B40 ->  | D6: =Impex!B41 ->  | F6: =Impex!B42 ->  | H6: =Impex!B43 -> 
B7: =+Inv!F26 -> MS en % | C7: =IF(Inv!F48=0,"",Inv!F48) ->  | D7: =+B7 -> MS en % | E7: =IF(Inv!F49=0,"",Inv!F49) ->  | F7: =+D7 -> MS en % | G7: =IF(Inv!F50=0,"",Inv!F50) ->  | H7: =+F7 -> MS en % | I7: =IF(Inv!F51=0,"",Inv!F51) -> 
B8: =+'BX1'!B8 -> par kg d'aliment | D8: =+B8 -> par kg d'aliment | F8: =+D8 -> par kg d'aliment | H8: =+F8 -> par kg d'aliment
B9: ='BX1'!B9 -> MJ EDP | C9: =IF(Inv!G48=0,"",Inv!G48) ->  | D9: ='BX1'!B9 -> MJ EDP | E9: =IF(Inv!G49=0,"",Inv!G49) ->  | F9: ='BX1'!B9 -> MJ EDP | G9: =IF(Inv!G50=0,"",Inv!G50) ->  | H9: ='BX1'!B9 -> MJ EDP | I9: =IF(Inv!G51=0,"",Inv!G51) -> 
B10: ='BX1'!B10 -> g MA | C10: =IF(Inv!H48=0,"",Inv!H48) ->  | D10: ='BX1'!B10 -> g MA | E10: =IF(Inv!H49=0,"",Inv!H49) ->  | F10: ='BX1'!B10 -> g MA | G10: =IF(Inv!H50=0,"",Inv!H50) ->  | H10: ='BX1'!B10 -> g MA | I10: =IF(Inv!H51=0,"",Inv!H51) -> 
B11: ='BX1'!B11 -> g P | C11: =IF(Inv!I48=0,"",Inv!I48) ->  | D11: ='BX1'!B11 -> g P | E11: =IF(Inv!I49=0,"",Inv!I49) ->  | F11: ='BX1'!B11 -> g P | G11: =IF(Inv!I50=0,"",Inv!I50) ->  | H11: ='BX1'!B11 -> g P | I11: =IF(Inv!I51=0,"",Inv!I51) -> 
B12: =+'BX1'!B12 -> Date | C12: =+'BX1'!C12 -> kg aliment | D12: =+B12 -> Date | E12: kg aliment | F12: Date | G12: kg aliment | H12: Date | I12: kg aliment
K13: =Textes!A103 -> Entrée aliments
B58: =+'BX1'!B58 -> Total entrée | C58: =IF(SUM(C13:C57)=0,0,SUM(C13:C57)) -> 0 | D58: =+B58 -> Total entrée | E58: =IF(SUM(E13:E57)=0,0,SUM(E13:E57)) -> 0 | F58: =+D58 -> Total entrée | G58: =IF(SUM(G13:G57)=0,0,SUM(G13:G57)) -> 0 | H58: =+F58 -> Total entrée | I58: =IF(SUM(I13:I57)=0,0,SUM(I13:I57)) -> 0
B60: =+'BX1'!B60 -> Tous les aliments utilisés doivent être saisis.
B62: =+Inv!B84 -> Organisation de contrôle, Date: | F62: =+Inv!H84 -> Signature:
B64: =+Inv!B86 -> Exploitant, Date: | F64: =+Inv!H86 -> Signature:

Sheet BX3 (hidden)
D1: =+A2a!D1 -> Impex: Production porcine | I1: ="BX3: "&K13 -> BX3: Entrée aliments
B2: =Inv!C4&IF(Inv!D4=0,"",Inv!D4) -> No cantonal: | F2: =Inv!C5&IF(Inv!D5=0,"",Inv!D6&" "&Inv!D5) -> Nom:
B4: =+'BX2'!B4 -> Moulin | D4: =+B4 -> Moulin | F4: =+D4 -> Moulin | H4: =+F4 -> Moulin
B6: =Impex!B44 ->  | D6: =Impex!B45 ->  | F6: =Impex!B46 ->  | H6: =Impex!B47 -> 
B7: =+'BX2'!B7 -> MS en % | C7: =IF(Inv!F52=0,"",Inv!F52) ->  | D7: =+B7 -> MS en % | E7: =IF(Inv!F53=0,"",Inv!F53) ->  | F7: =+B7 -> MS en % | G7: =IF(Inv!F54=0,"",Inv!F54) ->  | H7: =+B7 -> MS en % | I7: =IF(Inv!F55=0,"",Inv!F55) -> 
B8: =+'BX2'!B8 -> par kg d'aliment | D8: =+B8 -> par kg d'aliment | F8: =+D8 -> par kg d'aliment | H8: =+F8 -> par kg d'aliment
B9: ='BX1'!B9 -> MJ EDP | C9: =IF(Inv!G52=0,"",Inv!G52) ->  | D9: ='BX1'!B9 -> MJ EDP | E9: =IF(Inv!G53=0,"",Inv!G53) ->  | F9: ='BX1'!B9 -> MJ EDP | G9: =IF(Inv!G54=0,"",Inv!G54) ->  | H9: ='BX1'!B9 -> MJ EDP | I9: =IF(Inv!G55=0,"",Inv!G55) -> 
B10: ='BX1'!B10 -> g MA | C10: =IF(Inv!H52=0,"",Inv!H52) ->  | D10: ='BX1'!B10 -> g MA | E10: =IF(Inv!H53=0,"",Inv!H53) ->  | F10: ='BX1'!B10 -> g MA | G10: =IF(Inv!H54=0,"",Inv!H54) ->  | H10: ='BX1'!B10 -> g MA | I10: =IF(Inv!H55=0,"",Inv!H55) -> 
B11: ='BX1'!B11 -> g P | C11: =IF(Inv!I52=0,"",Inv!I52) ->  | D11: ='BX1'!B11 -> g P | E11: =IF(Inv!I53=0,"",Inv!I53) ->  | F11: ='BX1'!B11 -> g P | G11: =IF(Inv!I54=0,"",Inv!I54) ->  | H11: ='BX1'!B11 -> g P | I11: =IF(Inv!I55=0,"",Inv!I55) -> 
B12: =+'BX2'!B12 -> Date | C12: =+'BX2'!C12 -> kg aliment | D12: =+B12 -> Date | E12: kg aliment | F12: Date | G12: kg aliment | H12: Date | I12: kg aliment
K13: =Textes!A103 -> Entrée aliments
B58: =+'BX2'!B58 -> Total entrée | C58: =IF(SUM(C13:C57)=0,0,SUM(C13:C57)) -> 0 | D58: =+B58 -> Total entrée | E58: =IF(SUM(E13:E57)=0,0,SUM(E13:E57)) -> 0 | F58: =+D58 -> Total entrée | G58: =IF(SUM(G13:G57)=0,0,SUM(G13:G57)) -> 0 | H58: =+F58 -> Total entrée | I58: =IF(SUM(I13:I57)=0,0,SUM(I13:I57)) -> 0
B60: =+'BX1'!B60 -> Tous les aliments utilisés doivent être saisis.
B62: =+Inv!B84 -> Organisation de contrôle, Date: | F62: =+Inv!H84 -> Signature:
B64: =+Inv!B86 -> Exploitant, Date: | F64: =+Inv!H86 -> Signature:

Sheet BX4 (hidden)
D1: =+A2a!D1 -> Impex: Production porcine | I1: ="BX4: "&K13 -> BX4: Entrée aliments
B2: =Inv!C4&IF(Inv!D4=0,"",Inv!D4) -> No cantonal: | F2: =Inv!C5&IF(Inv!D5=0,"",Inv!D6&" "&Inv!D5) -> Nom:
B4: =+'BX2'!B4 -> Moulin | D4: =+B4 -> Moulin | F4: =+D4 -> Moulin | H4: =+F4 -> Moulin
B6: =Impex!B48 ->  | D6: =Impex!B49 ->  | F6: =Impex!B50 ->  | H6: =Impex!B51 -> 
B7: =+'BX2'!B7 -> MS en % | C7: =IF(Inv!F56=0,"",Inv!F56) ->  | D7: =+B7 -> MS en % | E7: =IF(Inv!F57=0,"",Inv!F57) ->  | F7: =+B7 -> MS en % | G7: =IF(Inv!F58=0,"",Inv!F58) ->  | H7: =+B7 -> MS en % | I7: =IF(Inv!F59=0,"",Inv!F59) -> 
B8: =+'BX2'!B8 -> par kg d'aliment | D8: =+B8 -> par kg d'aliment | F8: =+D8 -> par kg d'aliment | H8: =+F8 -> par kg d'aliment
B9: ='BX1'!B9 -> MJ EDP | C9: =IF(Inv!G56=0,"",Inv!G56) ->  | D9: ='BX1'!B9 -> MJ EDP | E9: =IF(Inv!G57=0,"",Inv!G57) ->  | F9: ='BX1'!B9 -> MJ EDP | G9: =IF(Inv!G58=0,"",Inv!G58) ->  | H9: ='BX1'!B9 -> MJ EDP | I9: =IF(Inv!G59=0,"",Inv!G59) -> 
B10: ='BX1'!B10 -> g MA | C10: =IF(Inv!H56=0,"",Inv!H56) ->  | D10: ='BX1'!B10 -> g MA | E10: =IF(Inv!H57=0,"",Inv!H57) ->  | F10: ='BX1'!B10 -> g MA | G10: =IF(Inv!H58=0,"",Inv!H58) ->  | H10: ='BX1'!B10 -> g MA | I10: =IF(Inv!H59=0,"",Inv!H59) -> 
B11: ='BX1'!B11 -> g P | C11: =IF(Inv!I56=0,"",Inv!I56) ->  | D11: ='BX1'!B11 -> g P | E11: =IF(Inv!I57=0,"",Inv!I57) ->  | F11: ='BX1'!B11 -> g P | G11: =IF(Inv!I58=0,"",Inv!I58) ->  | H11: ='BX1'!B11 -> g P | I11: =IF(Inv!I59=0,"",Inv!I59) -> 
B12: =+'BX2'!B12 -> Date | C12: =+'BX2'!C12 -> kg aliment | D12: =+B12 -> Date | E12: kg aliment | F12: Date | G12: kg aliment | H12: Date | I12: kg aliment
K13: =Textes!A103 -> Entrée aliments
B58: =+'BX2'!B58 -> Total entrée | C58: =IF(SUM(C13:C57)=0,0,SUM(C13:C57)) -> 0 | D58: =+B58 -> Total entrée | E58: =IF(SUM(E13:E57)=0,0,SUM(E13:E57)) -> 0 | F58: =+D58 -> Total entrée | G58: =IF(SUM(G13:G57)=0,0,SUM(G13:G57)) -> 0 | H58: =+F58 -> Total entrée | I58: =IF(SUM(I13:I57)=0,0,SUM(I13:I57)) -> 0
B60: =+'BX1'!B60 -> Tous les aliments utilisés doivent être saisis.
B62: =+Inv!B84 -> Organisation de contrôle, Date: | F62: =+Inv!H84 -> Signature:
B64: =+Inv!B86 -> Exploitant, Date: | F64: =+Inv!H86 -> Signature:

Sheet B5
D1: =+A2a!D1 -> Impex: Production porcine | I1: ="B5: " & K11 -> B5: Entrée aliments
B2: =Inv!C4&IF(Inv!D4=0,"",Inv!D4) -> No cantonal: | F2: =Inv!C5&IF(Inv!D5=0,"",Inv!D6&" "&Inv!D5) -> Nom:
B4: =Impex!B53 ->  | D4: =Impex!B54 ->  | F4: =Impex!B55 ->  | H4: =Impex!B56 -> 
B5: =+Inv!F26 -> MS en % | C5: =IF(Inv!F64=0,"",Inv!F64) ->  | D5: =+B5 -> MS en % | E5: =IF(Inv!F65=0,"",Inv!F65) ->  | F5: =+D5 -> MS en % | G5: =IF(Inv!F66=0,"",Inv!F66) ->  | H5: =+F5 -> MS en % | I5: =IF(Inv!F67=0,"",Inv!F67) -> 
B6: =+Textes!A116 -> par kg MS | D6: =+B6 -> par kg MS | F6: =+D6 -> par kg MS | H6: =+F6 -> par kg MS
B7: ='B1'!B9 -> MJ EDP | C7: =IF(Inv!G64=0,"",Inv!G64) ->  | D7: ='B1'!B9 -> MJ EDP | E7: =IF(Inv!G65=0,"",Inv!G65) ->  | F7: ='B1'!B9 -> MJ EDP | G7: =IF(Inv!G66=0,"",Inv!G66) ->  | H7: ='B1'!B9 -> MJ EDP | I7: =IF(Inv!G67=0,"",Inv!G67) -> 
B8: ='B1'!B10 -> g MA | C8: =IF(Inv!H64=0,"",Inv!H64) ->  | D8: ='B1'!B10 -> g MA | E8: =IF(Inv!H65=0,"",Inv!H65) ->  | F8: ='B1'!B10 -> g MA | G8: =IF(Inv!H66=0,"",Inv!H66) ->  | H8: ='B1'!B10 -> g MA | I8: =IF(Inv!H67=0,"",Inv!H67) -> 
B9: ='B1'!B11 -> g P | C9: =IF(Inv!I64=0,"",Inv!I64) ->  | D9: ='B1'!B11 -> g P | E9: =IF(Inv!I65=0,"",Inv!I65) ->  | F9: ='B1'!B11 -> g P | G9: =IF(Inv!I66=0,"",Inv!I66) ->  | H9: ='B1'!B11 -> g P | I9: =IF(Inv!I67=0,"",Inv!I67) -> 
B10: =+Textes!A107 -> Date | C10: =+Textes!A115 -> kg MF | D10: =+B10 -> Date | E10: kg MF | F10: Date | G10: kg MF | H10: Date | I10: kg MF
K11: =Textes!A104 -> Entrée aliments
B58: =+Textes!A113 -> En kg MF | C58: =IF(SUM(C11:C57)=0,0,SUM(C11:C57)) -> 0 | D58: =+B58 -> En kg MF | E58: =IF(SUM(E11:E57)=0,0,SUM(E11:E57)) -> 0 | F58: =+D58 -> En kg MF | G58: =IF(SUM(G11:G57)=0,0,SUM(G11:G57)) -> 0 | H58: =+F58 -> En kg MF | I58: =IF(SUM(I11:I57)=0,0,SUM(I11:I57)) -> 0
B59: =+Textes!A114 -> En kg MS | C59: =IF(SUM(C11:C57)=0,0,SUM(C11:C57)*C5/100) -> 0 | D59: =+B59 -> En kg MS | E59: =IF(SUM(E11:E57)=0,0,(SUM(E11:E57)*E5/100)) -> 0 | F59: =+D59 -> En kg MS | G59: =IF(SUM(G11:G57)=0,0,SUM(G11:G57)*G5/100) -> 0 | H59: =+F59 -> En kg MS | I59: =IF(SUM(I11:I57)=0,0,SUM(I11:I57)*I5/100) -> 0
B60: =+'B3'!B60 -> Tous les aliments utilisés doivent être saisis.
B62: =+Inv!B84 -> Organisation de contrôle, Date: | F62: =+Inv!H84 -> Signature:
B64: =+Inv!B86 -> Exploitant, Date: | F64: =+F62 -> Signature:

Sheet BX5 (hidden)
D1: =+A2a!D1 -> Impex: Production porcine | I1: ="BX5: " & K11 -> BX5: Entrée aliments
B2: =Inv!C4&IF(Inv!D4=0,"",Inv!D4) -> No cantonal: | F2: =Inv!C5&IF(Inv!D5=0,"",Inv!D6&" "&Inv!D5) -> Nom:
B4: =Impex!B57 ->  | D4: =Impex!B58 ->  | F4: =Impex!B59 ->  | H4: =Impex!B60 -> 
B5: =+Inv!F26 -> MS en % | C5: =IF(Inv!F68=0,"",Inv!F68) ->  | D5: =+B5 -> MS en % | E5: =IF(Inv!F69=0,"",Inv!F69) ->  | F5: =+D5 -> MS en % | G5: =IF(Inv!F70=0,"",Inv!F70) ->  | H5: =+F5 -> MS en % | I5: =IF(Inv!F71=0,"",Inv!F71) -> 
B6: =+Textes!A116 -> par kg MS | D6: =+B6 -> par kg MS | F6: =+D6 -> par kg MS | H6: =+F6 -> par kg MS
B7: ='BX1'!B9 -> MJ EDP | C7: =IF(Inv!G68=0,"",Inv!G68) ->  | D7: ='BX1'!B9 -> MJ EDP | E7: =IF(Inv!G69=0,"",Inv!G69) ->  | F7: ='BX1'!B9 -> MJ EDP | G7: =IF(Inv!G70=0,"",Inv!G70) ->  | H7: ='BX1'!B9 -> MJ EDP | I7: =IF(Inv!G71=0,"",Inv!G71) -> 
B8: ='BX1'!B10 -> g MA | C8: =IF(Inv!H68=0,"",Inv!H68) ->  | D8: ='BX1'!B10 -> g MA | E8: =IF(Inv!H69=0,"",Inv!H69) ->  | F8: ='BX1'!B10 -> g MA | G8: =IF(Inv!H70=0,"",Inv!H70) ->  | H8: ='BX1'!B10 -> g MA | I8: =IF(Inv!H71=0,"",Inv!H71) -> 
B9: ='BX1'!B11 -> g P | C9: =IF(Inv!I68=0,"",Inv!I68) ->  | D9: ='BX1'!B11 -> g P | E9: =IF(Inv!I69=0,"",Inv!I69) ->  | F9: ='BX1'!B11 -> g P | G9: =IF(Inv!I70=0,"",Inv!I70) ->  | H9: ='BX1'!B11 -> g P | I9: =IF(Inv!I71=0,"",Inv!I71) -> 
B10: =+Textes!A107 -> Date | C10: =+Textes!A115 -> kg MF | D10: =+B10 -> Date | E10: kg MF | F10: Date | G10: kg MF | H10: Date | I10: kg MF
K11: =Textes!A104 -> Entrée aliments
B58: =+Textes!A113 -> En kg MF | C58: =IF(SUM(C11:C57)=0,0,SUM(C11:C57)) -> 0 | D58: =+B58 -> En kg MF | E58: =IF(SUM(E11:E57)=0,0,SUM(E11:E57)) -> 0 | F58: =+D58 -> En kg MF | G58: =IF(SUM(G11:G57)=0,0,SUM(G11:G57)) -> 0 | H58: =+F58 -> En kg MF | I58: =IF(SUM(I11:I57)=0,0,SUM(I11:I57)) -> 0
B59: =+Textes!A114 -> En kg MS | C59: =IF(SUM(C11:C57)=0,0,SUM(C11:C57)*C5/100) -> 0 | D59: =+B59 -> En kg MS | E59: =IF(SUM(E11:E57)=0,0,(SUM(E11:E57)*E5/100)) -> 0 | F59: =+D59 -> En kg MS | G59: =IF(SUM(G11:G57)=0,0,SUM(G11:G57)*G5/100) -> 0 | H59: =+F59 -> En kg MS | I59: =IF(SUM(I11:I57)=0,0,SUM(I11:I57)*I5/100) -> 0
B60: =+'BX3'!B60 -> Tous les aliments utilisés doivent être saisis.
B62: =+Inv!B84 -> Organisation de contrôle, Date: | F62: =+Inv!H84 -> Signature:
B64: =+Inv!B86 -> Exploitant, Date: | F64: =+F62 -> Signature:

Sheet B6
D1: =+'B5'!D1 -> Impex: Production porcine | I1: ="B6: " & K11 -> B6: Entrée aliments
B2: =Inv!C4&IF(Inv!D4=0,"",Inv!D4) -> No cantonal: | F2: =Inv!C5&IF(Inv!D5=0,"",Inv!D6&" "&Inv!D5) -> Nom:
B4: =+Inv!B72 -> Lactosérum | D4: =+Inv!B73 -> CCM | F4: =+Inv!B74 -> Paille, granulés de paille | H4: =+Inv!B75 -> Matériaux d’occupation, dés de fourrage grossier
B5: =+Inv!F62 -> MS en % | C5: =IF(Inv!F72<>"",Inv!F72,"") -> 6 | D5: =+B5 -> MS en % | E5: =IF(Inv!F73<>"",Inv!F73,"") -> 61 | F5: =+D5 -> MS en % | G5: =IF(Inv!F74<>"",Inv!F74,"") -> 88 | H5: =+F5 -> MS en % | I5: =IF(Inv!F75<>"",Inv!F75,"") -> 87
B6: =+'B5'!B6 -> par kg MS | D6: =+B6 -> par kg MS | F6: =+D6 -> par kg MS | H6: =+F6 -> par kg MS
B7: ='B1'!B9 -> MJ EDP | C7: =IF(Inv!G72<>"",Inv!G72,"") -> 14.6 | D7: ='B1'!B9 -> MJ EDP | E7: =IF(Inv!G73<>"",Inv!G73,"") -> 15.7 | F7: ='B1'!B9 -> MJ EDP | G7: =IF(Inv!G74<>"",Inv!G74,"") -> 2.2 | H7: ='B1'!B9 -> MJ EDP | I7: =IF(Inv!G75<>"",Inv!G75,"") -> 2.1
B8: ='B1'!B10 -> g MA | C8: =IF(Inv!H72<>"",Inv!H72,"") -> 129 | D8: ='B1'!B10 -> g MA | E8: =IF(Inv!H73<>"",Inv!H73,"") -> 95 | F8: ='B1'!B10 -> g MA | G8: =IF(Inv!H74<>"",Inv!H74,"") -> 35 | H8: ='B1'!B10 -> g MA | I8: =IF(Inv!H75<>"",Inv!H75,"") -> 25
B9: ='B1'!B11 -> g P | C9: =IF(Inv!I72<>"",Inv!I72,"") -> 7.3 | D9: ='B1'!B11 -> g P | E9: =IF(Inv!I73<>"",Inv!I73,"") -> 3.3 | F9: ='B1'!B11 -> g P | G9: =IF(Inv!I74<>"",Inv!I74,"") -> 0.9 | H9: ='B1'!B11 -> g P | I9: =IF(Inv!I75<>"",Inv!I75,"") -> 1.6
B10: =+'B5'!B10 -> Date | C10: =+'B5'!C10 -> kg MF | D10: =+B10 -> Date | E10: =+C10 -> kg MF | F10: =+D10 -> Date | G10: =+C10 -> kg MF | H10: =+F10 -> Date | I10: =+G10 -> kg MF
K11: =Textes!A104 -> Entrée aliments
B58: =+'B5'!B58 -> En kg MF | C58: =IF(SUM(C11:C57)=0,0,SUM(C11:C57)) -> 0 | D58: =+B58 -> En kg MF | E58: =IF(SUM(E11:E57)=0,0,SUM(E11:E57)) -> 0 | F58: =D58 -> En kg MF | G58: =IF(SUM(G11:G57)=0,0,SUM(G11:G57)) -> 0 | H58: =F58 -> En kg MF | I58: =IF(SUM(I11:I57)=0,0,SUM(I11:I57)) -> 0
B59: =+'B5'!B59 -> En kg MS | C59: =IF(SUM(C11:C57)=0,0,SUM(C11:C57)*C5/100) -> 0 | D59: =+B59 -> En kg MS | E59: =IF(SUM(E11:E57)=0,0,SUM(E11:E57)*E5/100) -> 0 | F59: =+D59 -> En kg MS | G59: =IF(SUM(G11:G57)=0,0,SUM(G11:G57)*G5/100) -> 0 | H59: =+F59 -> En kg MS | I59: =IF(SUM(I11:I57)=0,0,SUM(I11:I57)*I5/100) -> 0
B60: =+'B3'!B60 -> Tous les aliments utilisés doivent être saisis.
B62: =+Inv!B84 -> Organisation de contrôle, Date: | F62: =+Inv!H84 -> Signature:
B64: =+Inv!B86 -> Exploitant, Date: | F64: =+F62 -> Signature:

Sheet B7
D1: =+'B5'!D1 -> Impex: Production porcine | I1: ="B7: " & K11 -> B7: Entrée aliments
B2: =Inv!C4&IF(Inv!D4=0,"",Inv!D4) -> No cantonal: | F2: =Inv!C5&IF(Inv!D5=0,"",Inv!D6&" "&Inv!D5) -> Nom:
B4: =+Inv!B77 -> Maïs, plante entière | D4: =+Inv!B78 -> Ensilages de céréales plante entière | F4: =+Inv!B79 -> Herbages: herbe, silo, …
B5: =+Inv!F62 -> MS en % | C5: =IF(Inv!F77<>"",Inv!F77,"") -> 100 | D5: =+B5 -> MS en % | E5: =IF(Inv!F79<>"",Inv!F78,"") -> 30 | F5: =+D5 -> MS en % | G5: =IF(Inv!F79<>"",Inv!F79,"") -> 100 | H5: =+F5 -> MS en %
B6: =+'B5'!B6 -> par kg MS | D6: =+B6 -> par kg MS | F6: =+D6 -> par kg MS | H6: =+F6 -> par kg MS
B7: ='B1'!B9 -> MJ EDP | C7: =IF(Inv!G77<>"",Inv!G77,"") -> 10.7 | D7: ='B1'!B9 -> MJ EDP | E7: =IF(Inv!G79<>"",Inv!G78,"") -> 7.4 | F7: ='B1'!B9 -> MJ EDP | G7: =IF(Inv!G79<>"",Inv!G79,"") -> 7.6 | H7: ='B1'!B9 -> MJ EDP
B8: ='B1'!B10 -> g MA | C8: =IF(Inv!H77<>"",Inv!H77,"") -> 75 | D8: ='B1'!B10 -> g MA | E8: =IF(Inv!H79<>"",Inv!H78,"") -> 92 | F8: ='B1'!B10 -> g MA | G8: =IF(Inv!H79<>"",Inv!H79,"") -> 155 | H8: ='B1'!B10 -> g MA
B9: ='B1'!B11 -> g P | C9: =IF(Inv!I77<>"",Inv!I77,"") -> 1.9 | D9: ='B1'!B11 -> g P | E9: =IF(Inv!I79<>"",Inv!I78,"") -> 3.2 | F9: ='B1'!B11 -> g P | G9: =IF(Inv!I79<>"",Inv!I79,"") -> 3.5 | H9: ='B1'!B11 -> g P
B10: =+'B5'!B10 -> Date | C10: =+Textes!A118 -> kg MS | D10: =+B10 -> Date | E10: =+C10 -> kg MS | F10: =+D10 -> Date | G10: =+Textes!A118 -> kg MS | H10: =+F10 -> Date | I10: =+G10 -> kg MS
K11: =Textes!A104 -> Entrée aliments
D58: =+B58 -> 0
B59: =+'B5'!B59 -> En kg MS | C59: =IF(SUM(C11:C57)=0,0,SUM(C11:C57)) -> 0 | D59: =+B59 -> En kg MS | E59: =IF(SUM(E11:E57)=0,0,SUM(E11:E57)) -> 0 | F59: =+D59 -> En kg MS | G59: =IF(SUM(G11:G57)=0,0,SUM(G11:G57)) -> 0 | H59: =+F59 -> En kg MS | I59: =IF(SUM(I11:I57)=0,0,SUM(I11:I57)) -> 0
B60: =+'B3'!B60 -> Tous les aliments utilisés doivent être saisis.
B62: =+Inv!B84 -> Organisation de contrôle, Date: | F62: =+Inv!H84 -> Signature:
B64: =+Inv!B86 -> Exploitant, Date: | F64: =+F62 -> Signature:

Sheet Impex
E1: =IF(Textes!G2=2,"Impex:"&" "&Textes!G4,IF(Textes!G2=3,"Impex:"&" "&Textes!G5,IF(Textes!G2=4,"Impex:"&" "&Textes!G6,IF(Textes!G2=5,"Impex:"&" "&Textes!G7,"Impex:"&" "&Textes!G3)))) -> Impex: Production porcine | L1: =+Textes!A119 -> Bilan import/export
T3: Truten | U3: 0.6
B4: =Inv!C4 -> No cantonal: | C4: =IF(Inv!D4<>0,Inv!D4,0) -> 0 | I4: =Inv!H4 -> Calculé par: | K4: =IF(Inv!I4<>0,Inv!I4,0) -> 0 | T4: N | U4: =IF(Textes!G2=1,U5,IF(OR(Textes!G2=2,Textes!G2=3,Textes!G2=4),U6,U7)) -> 0.8
B5: =Inv!C5 -> Nom: | C5: =IF(Inv!D5=0,"",Inv!D6 & " " & Inv!D5) ->  | I5: =Inv!H7 -> Firme: | K5: =IF(Inv!I7<>0,Inv!I7,0) -> 0 | T5: Porcs | U5: 0.8
B6: =Inv!C7 -> Adresse: | C6: =IF(Inv!D7<>0,Inv!D7,0) -> 0 | I6: =Inv!H8 -> Date début: | K6: =IF(H14=0,0,IF(Inv!I8<>0,Inv!I8,P6)) -> 00:00:00 | P6: =+Textes!A120 -> Date ? | T6: Poulettes | U6: 0.6
B7: =Inv!C9 -> NPA, lieu: | C7: =IF(Inv!D9<>0,Inv!D9,0) -> 0 | I7: =Inv!H9 -> Date fin: | K7: =IF(H14=0,0,IF(Inv!I9<>0,Inv!I9,P7)) -> 00:00:00 | P7: =+Textes!A120 -> Date ? | T7: Lapins | U7: 0.85
B9: =+Textes!A121 -> Pas A: Exportation d'éléments fertilisants par les animaux
D11: =+Textes!A122 -> Inv.-D | E11: =+Textes!A123 -> Inv.-F | F11: =+Textes!A124 -> Entrées | G11: =+Textes!A125 -> Sorties | H11: =+Textes!A126 -> PV total | I11: =+Textes!A127 -> g N / kg | J11: =+Textes!A128 -> g P / kg | K11: =+Textes!A129 -> Total kg N | L11: =+Textes!A130 -> Total kg P | R11: Porcs | T11: Poulettes / Poulets engr. | V11: Dindes à l'engrais | X11: Lapins
B12: =IF(Textes!G2=1,Impex!P12,Impex!Q12) -> Animaux < 60 kg PV | D12: =IF(Inv!O23=0,0,IF(Textes!G2=1,Inv!O23,Inv!H23)) -> 0 | E12: =IF(Inv!S23=0,0,IF(Textes!G2=1,Inv!S23,Inv!K23)) -> 0 | F12: =IF(ISERROR(SUM(A1a!D6:D60)=TRUE),0,SUM(A1a!D6:D60,A1b!D6:D60,A1c!D6:D60,A1d!D6:D60,A1e!D6:D60)) -> 0 | G12: =IF(ISERROR(SUM(A2a!D8:D60)=TRUE),0,SUM(A2a!D8:D60,A2b!D8:D60,A2c!D8:D60,A2d!D8:D60,A2e!D8:D60)) -> 0 | H12: =-D12+E12-F12+G12 -> 0 | I12: =IF(Textes!G2=1,R12,IF(Textes!G2=4,V12,IF(Textes!G2=5,X12,T12))) -> 25 | J12: =IF(Textes!G2=1,S12,IF(Textes!G2=4,W12,IF(Textes!G2=5,Y12,U12))) -> 5.3 | K12: =IF(H12=0,0,H12*I12/1000) -> 0 | L12: =IF(H12=0,0,H12*J12/1000) -> 0 | P12: =+Textes!A131 -> Animaux < 60 kg PV | Q12: =+Textes!A133 -> Animaux | R12: 25 | S12: 5.3 | T12: 29.1 | U12: 5.8 | V12: 34 | W12: 5.8 | X12: 30.4 | Y12: 6.5
B13: =IF(Textes!G2=1,Impex!P13,0) -> Animaux > 60 kg PV | D13: =IF(Inv!Q23=0,0,IF(Textes!G2=1,Inv!Q23,0)) -> 0 | E13: =IF(Inv!U23=0,0,IF(Textes!G2=1,Inv!U23,0)) -> 0 | F13: =IF(Textes!G2=1,IF(OR(ISERROR(SUM(A1a!G6:G60)=TRUE),ISERROR(SUM(A1b!G6:G60)=TRUE),ISERROR(SUM(A1c!G6:G60)=TRUE),ISERROR(SUM(A1d!G6:G60)=TRUE),ISERROR(SUM(A1e!G6:G60)=TRUE)),0,SUM(A1a!G6:G60,A1b!G6:G60,A1c!G6:G60,A1d!G6:G60,A1e!G6:G60)),0) -> 0 | G13: =IF(Textes!G2=1,IF(OR(ISERROR(SUM(A2a!J8:J60)=TRUE),ISERROR(SUM(A2b!J8:J60)=TRUE),ISERROR(SUM(A2c!J8:J60)=TRUE),ISERROR(SUM(A2d!J8:J60)=TRUE),ISERROR(SUM(A2e!J8:J60)=TRUE)),0,SUM(A2a!J8:J60,A2b!J8:J60,A2c!J8:J60,A2d!J8:J60,A2e!J8:J60)),0) -> 0 | H13: =IF(Textes!G2=1,(-D13+E13-F13+G13),0) -> 0 | I13: =IF(Textes!G2=1,R13,0) -> 26 | J13: =IF(Textes!G2=1,S13,0) -> 5.4 | K13: =IF(H13=0,0,IF(Textes!G2=1,(+H13*I13/1000),0)) -> 0 | L13: =IF(H13=0,0,IF(Textes!G2=1,(+H13*J13/1000),0)) -> 0 | P13: =+Textes!A132 -> Animaux > 60 kg PV | Q13: =+Q12 -> Animaux | R13: 26 | S13: 5.4
B14: =+Textes!A135 -> Exportation totale d'éléments fertilisants | H14: =SUM(H12:H13) -> 0 | K14: =SUM(K12:K13) -> 0 | L14: =SUM(L12:L13) -> 0
B16: =+Textes!A136 -> Pas B: Importation d'éléments fertilisants par les aliments | K16: =+Textes!A196 -> 1g N = 6.25 g MA
C18: =+Textes!A137 -> Inv.-D | D18: =+Textes!A138 -> Inv.-F | E18: =+Textes!A139 -> Entrées | F18: =+Textes!A140 -> kg total | G18: =+Textes!A141 -> % MS | H18: =+Inv!G26 -> MJ EDP | I18: =+Textes!A143 -> g MA / kg | J18: =+Textes!A144 -> g P / kg | K18: =+Textes!A145 -> Total kg N | L18: =+Textes!A146 -> Total kg P | O18: Tot RP | P18: N / kg in g | Q18: Tot VES | R18: kg Futter
C19: =+Textes!A147 -> en kg aliment | H19: =+Textes!A148 -> par kg aliment
B20: =IF(AND(Inv!B28=0,Inv!C28=0),"",Inv!B28 & " " & Inv!C28) ->  | C20: =Inv!J28 -> 0 | D20: =Inv!K28 -> 0 | E20: =IF(ISERROR(SUM('B1'!C13:C57)=TRUE),0,SUM('B1'!C13:C57)) -> 0 | F20: =E20+C20-D20 -> 0 | G20: =Inv!F28 -> 0 | H20: =Inv!G28 -> 0 | I20: =Inv!H28 -> 0 | J20: =Inv!I28 -> 0 | K20: =F20*I20/6.25/1000 -> 0 | L20: =F20*J20/1000 -> 0 | O20: =I20*F20 -> 0 | P20: =I20/6.25 -> 0 | Q20: =+F20*H20 -> 0 | R20: =+F20*G20/88 -> 0
B21: =IF(AND(Inv!B29=0,Inv!C29=0),"",Inv!B29 & " " & Inv!C29) ->  | C21: =Inv!J29 -> 0 | D21: =Inv!K29 -> 0 | E21: =IF(ISERROR(SUM('B1'!E13:E57)=TRUE),0,SUM('B1'!E13:E57)) -> 0 | F21: =E21+C21-D21 -> 0 | G21: =Inv!F29 -> 0 | H21: =Inv!G29 -> 0 | I21: =Inv!H29 -> 0 | J21: =Inv!I29 -> 0 | K21: 0 | L21: 0 | O21: =I21*F21 -> 0 | P21: 0 | Q21: 0 | R21: =+F21*G21/88 -> 0
B22: =IF(AND(Inv!B30=0,Inv!C30=0),"",Inv!B30 & " " & Inv!C30) ->  | C22: =Inv!J30 -> 0 | D22: =Inv!K30 -> 0 | E22: =IF(ISERROR(SUM('B1'!G13:G57)=TRUE),0,SUM('B1'!G13:G57)) -> 0 | F22: =E22+C22-D22 -> 0 | G22: =Inv!F30 -> 0 | H22: =Inv!G30 -> 0 | I22: =Inv!H30 -> 0 | J22: =Inv!I30 -> 0 | K22: 0 | L22: 0 | O22: 0 | P22: 0 | Q22: 0 | R22: 0
B23: =IF(AND(Inv!B31=0,Inv!C31=0),"",Inv!B31 & " " & Inv!C31) ->  | C23: =Inv!J31 -> 0 | D23: =Inv!K31 -> 0 | E23: =IF(ISERROR(SUM('B1'!I13:I57)=TRUE),0,SUM('B1'!I13:I57)) -> 0 | F23: 0 | G23: =Inv!F31 -> 0 | H23: =Inv!G31 -> 0 | I23: =Inv!H31 -> 0 | J23: =Inv!I31 -> 0 | K23: 0 | L23: 0 | O23: 0 | P23: 0 | Q23: 0 | R23: 0
B24: =IF(AND(Inv!B32=0,Inv!C32=0),"",Inv!B32 & " " & Inv!C32) ->  | C24: =Inv!J32 -> 0 | D24: =Inv!K32 -> 0 | E24: =IF(ISERROR(SUM('B2'!C13:C57)=TRUE),0,SUM('B2'!C13:C57)) -> 0 | F24: 0 | G24: =Inv!F32 -> 0 | H24: =Inv!G32 -> 0 | I24: =Inv!H32 -> 0 | J24: =Inv!I32 -> 0 | K24: 0 | L24: 0 | O24: 0 | P24: 0 | Q24: 0 | R24: 0
B25: =IF(AND(Inv!B33=0,Inv!C33=0),"",Inv!B33 & " " & Inv!C33) ->  | C25: =Inv!J33 -> 0 | D25: =Inv!K33 -> 0 | E25: =IF(ISERROR(SUM('B2'!E13:E57)=TRUE),0,SUM('B2'!E13:E57)) -> 0 | F25: 0 | G25: =Inv!F33 -> 0 | H25: =Inv!G33 -> 0 | I25: =Inv!H33 -> 0 | J25: =Inv!I33 -> 0 | K25: 0 | L25: 0 | O25: 0 | P25: 0 | Q25: 0 | R25: 0
B26: =IF(AND(Inv!B34=0,Inv!C34=0),"",Inv!B34 & " " & Inv!C34) ->  | C26: =Inv!J34 -> 0 | D26: =Inv!K34 -> 0 | E26: =IF(ISERROR(SUM('B2'!G13:G57)=TRUE),0,SUM('B2'!G13:G57)) -> 0 | F26: 0 | G26: =Inv!F34 -> 0 | H26: =Inv!G34 -> 0 | I26: =Inv!H34 -> 0 | J26: =Inv!I34 -> 0 | K26: 0 | L26: 0 | O26: 0 | P26: 0 | Q26: 0 | R26: 0
B27: =IF(AND(Inv!B35=0,Inv!C35=0),"",Inv!B35 & " " & Inv!C35) ->  | C27: =Inv!J35 -> 0 | D27: =Inv!K35 -> 0 | E27: =IF(ISERROR(SUM('B2'!I13:I57)=TRUE),0,SUM('B2'!I13:I57)) -> 0 | F27: 0 | G27: =Inv!F35 -> 0 | H27: =Inv!G35 -> 0 | I27: =Inv!H35 -> 0 | J27: =Inv!I35 -> 0 | K27: 0 | L27: 0 | O27: 0 | P27: 0 | Q27: 0 | R27: 0
B28: =IF(AND(Inv!B36=0,Inv!C36=0),"",Inv!B36 & " " & Inv!C36) ->  | C28: =Inv!J36 -> 0 | D28: =Inv!K36 -> 0 | E28: =IF(ISERROR(SUM('B3'!C13:C57)=TRUE),0,SUM('B3'!C13:C57)) -> 0 | F28: 0 | G28: =Inv!F36 -> 0 | H28: =Inv!G36 -> 0 | I28: =Inv!H36 -> 0 | J28: =Inv!I36 -> 0 | K28: 0 | L28: 0 | O28: 0 | P28: 0 | Q28: 0 | R28: 0
B29: =IF(AND(Inv!B37=0,Inv!C37=0),"",Inv!B37 & " " & Inv!C37) ->  | C29: =Inv!J37 -> 0 | D29: =Inv!K37 -> 0 | E29: =IF(ISERROR(SUM('B3'!E13:E57)=TRUE),0,SUM('B3'!E13:E57)) -> 0 | F29: 0 | G29: =Inv!F37 -> 0 | H29: =Inv!G37 -> 0 | I29: =Inv!H37 -> 0 | J29: =Inv!I37 -> 0 | K29: 0 | L29: 0 | O29: 0 | P29: 0 | Q29: 0 | R29: 0
B30: =IF(AND(Inv!B38=0,Inv!C38=0),"",Inv!B38 & " " & Inv!C38) ->  | C30: =Inv!J38 -> 0 | D30: =Inv!K38 -> 0 | E30: =IF(ISERROR(SUM('B3'!G13:G57)=TRUE),0,SUM('B3'!G13:G57)) -> 0 | F30: 0 | G30: =Inv!F38 -> 0 | H30: =Inv!G38 -> 0 | I30: =Inv!H38 -> 0 | J30: =Inv!I38 -> 0 | K30: 0 | L30: 0 | O30: 0 | P30: 0 | Q30: 0 | R30: 0
B31: =IF(AND(Inv!B39=0,Inv!C39=0),"",Inv!B39 & " " & Inv!C39) ->  | C31: =Inv!J39 -> 0 | D31: =Inv!K39 -> 0 | E31: =IF(ISERROR(SUM('B3'!I13:I57)=TRUE),0,SUM('B3'!I13:I57)) -> 0 | F31: 0 | G31: =Inv!F39 -> 0 | H31: =Inv!G39 -> 0 | I31: =Inv!H39 -> 0 | J31: =Inv!I39 -> 0 | K31: =F31*I31/6.25/1000 -> 0 | L31: =F31*J31/1000 -> 0 | O31: 0 | P31: 0 | Q31: =+F31*H31 -> 0 | R31: =+F31*G31/88 -> 0
B32: =IF(AND(Inv!B40=0,Inv!C40=0),"",Inv!B40 & " " & Inv!C40) ->  | C32: =Inv!J40 -> 0 | D32: =Inv!K40 -> 0 | E32: =IF(ISERROR(SUM('B4'!C13:C57)=TRUE),0,SUM('B4'!C13:C57)) -> 0 | F32: 0 | G32: =Inv!F40 -> 0 | H32: =Inv!G40 -> 0 | I32: =Inv!H40 -> 0 | J32: =Inv!I40 -> 0 | K32: =F32*I32/6.25/1000 -> 0 | L32: =F32*J32/1000 -> 0 | O32: 0 | P32: 0 | Q32: =+F32*H32 -> 0 | R32: =+F32*G32/88 -> 0
B33: =IF(AND(Inv!B41=0,Inv!C41=0),"",Inv!B41 & " " & Inv!C41) ->  | C33: =Inv!J41 -> 0 | D33: =Inv!K41 -> 0 | E33: =IF(ISERROR(SUM('B4'!E13:E57)=TRUE),0,SUM('B4'!E13:E57)) -> 0 | F33: 0 | G33: =Inv!F41 -> 0 | H33: =Inv!G41 -> 0 | I33: =Inv!H41 -> 0 | J33: =Inv!I41 -> 0 | K33: =F33*I33/6.25/1000 -> 0 | L33: =F33*J33/1000 -> 0 | O33: 0 | P33: 0 | Q33: =+F33*H33 -> 0 | R33: =+F33*G33/88 -> 0
B34: =IF(AND(Inv!B42=0,Inv!C42=0),"",Inv!B42 & " " & Inv!C42) ->  | C34: =Inv!J42 -> 0 | D34: =Inv!K42 -> 0 | E34: =IF(ISERROR(SUM('B4'!G13:G57)=TRUE),0,SUM('B4'!G13:G57)) -> 0 | F34: 0 | G34: =Inv!F42 -> 0 | H34: =Inv!G42 -> 0 | I34: =Inv!H42 -> 0 | J34: =Inv!I42 -> 0 | K34: =F34*I34/6.25/1000 -> 0 | L34: =F34*J34/1000 -> 0 | O34: 0 | P34: 0 | Q34: =+F34*H34 -> 0 | R34: =+F34*G34/88 -> 0
B35: =IF(AND(Inv!B43=0,Inv!C43=0),"",Inv!B43 & " " & Inv!C43) ->  | C35: =Inv!J43 -> 0 | D35: =Inv!K43 -> 0 | E35: =IF(ISERROR(SUM('B4'!I13:I57)=TRUE),0,SUM('B4'!I13:I57)) -> 0 | F35: 0 | G35: =Inv!F43 -> 0 | H35: =Inv!G43 -> 0 | I35: =Inv!H43 -> 0 | J35: =Inv!I43 -> 0 | K35: 0 | L35: 0 | O35: 0 | P35: 0 | Q35: 0 | R35: 0
B36: =IF(AND(Inv!B44=0,Inv!C44=0),"",Inv!B44 & " " & Inv!C44) ->  | C36: =Inv!J44 -> 0 | D36: =Inv!K44 -> 0 | E36: =IF(ISERROR(SUM('BX1'!C13:C57)=TRUE),0,SUM('BX1'!C13:C57)) -> 0 | F36: =E36+C36-D36 -> 0 | G36: =Inv!F44 -> 0 | H36: =Inv!G44 -> 0 | I36: =Inv!H44 -> 0 | J36: =Inv!I44 -> 0 | K36: =F36*I36/6.25/1000 -> 0 | L36: =F36*J36/1000 -> 0 | O36: 0 | P36: =I36/6.25 -> 0 | Q36: =+F36*H36 -> 0 | R36: =+F36*G36/88 -> 0
B37: =IF(AND(Inv!B45=0,Inv!C45=0),"",Inv!B45 & " " & Inv!C45) ->  | C37: =Inv!J45 -> 0 | D37: =Inv!K45 -> 0 | E37: =IF(ISERROR(SUM('BX1'!E13:E57)=TRUE),0,SUM('BX1'!E13:E57)) -> 0 | F37: =E37+C37-D37 -> 0 | G37: =Inv!F45 -> 0 | H37: =Inv!G45 -> 0 | I37: =Inv!H45 -> 0 | J37: =Inv!I45 -> 0 | K37: 0 | L37: 0 | O37: 0 | P37: 0 | Q37: 0 | R37: =+F37*G37/88 -> 0
B38: =IF(AND(Inv!B46=0,Inv!C46=0),"",Inv!B46 & " " & Inv!C46) ->  | C38: =Inv!J46 -> 0 | D38: =Inv!K46 -> 0 | E38: =IF(ISERROR(SUM('BX1'!G13:G57)=TRUE),0,SUM('BX1'!G13:G57)) -> 0 | F38: =E38+C38-D38 -> 0 | G38: =Inv!F46 -> 0 | H38: =Inv!G46 -> 0 | I38: =Inv!H46 -> 0 | J38: =Inv!I46 -> 0 | K38: 0 | L38: 0 | O38: 0 | P38: 0 | Q38: 0 | R38: 0
B39: =IF(AND(Inv!B47=0,Inv!C47=0),"",Inv!B47 & " " & Inv!C47) ->  | C39: =Inv!J47 -> 0 | D39: =Inv!K47 -> 0 | E39: =IF(ISERROR(SUM('BX1'!I13:I57)=TRUE),0,SUM('BX1'!I13:I57)) -> 0 | F39: 0 | G39: =Inv!F47 -> 0 | H39: =Inv!G47 -> 0 | I39: =Inv!H47 -> 0 | J39: =Inv!I47 -> 0 | K39: 0 | L39: 0 | O39: 0 | P39: 0 | Q39: 0 | R39: 0
B40: =IF(AND(Inv!B48=0,Inv!C48=0),"",Inv!B48 & " " & Inv!C48) ->  | C40: =Inv!J48 -> 0 | D40: =Inv!K48 -> 0 | E40: =IF(ISERROR(SUM('BX2'!C13:C57)=TRUE),0,SUM('BX2'!C13:C57)) -> 0 | F40: 0 | G40: =Inv!F48 -> 0 | H40: =Inv!G48 -> 0 | I40: =Inv!H48 -> 0 | J40: =Inv!I48 -> 0 | K40: 0 | L40: 0 | O40: 0 | P40: 0 | Q40: 0 | R40: 0
B41: =IF(AND(Inv!B49=0,Inv!C49=0),"",Inv!B49 & " " & Inv!C49) ->  | C41: =Inv!J49 -> 0 | D41: =Inv!K49 -> 0 | E41: =IF(ISERROR(SUM('BX2'!E13:E57)=TRUE),0,SUM('BX2'!E13:E57)) -> 0 | F41: 0 | G41: =Inv!F49 -> 0 | H41: =Inv!G49 -> 0 | I41: =Inv!H49 -> 0 | J41: =Inv!I49 -> 0 | K41: 0 | L41: 0 | O41: 0 | P41: 0 | Q41: 0 | R41: 0
B42: =IF(AND(Inv!B50=0,Inv!C50=0),"",Inv!B50 & " " & Inv!C50) ->  | C42: =Inv!J50 -> 0 | D42: =Inv!K50 -> 0 | E42: =IF(ISERROR(SUM('BX2'!G13:G57)=TRUE),0,SUM('BX2'!G13:G57)) -> 0 | F42: 0 | G42: =Inv!F50 -> 0 | H42: =Inv!G50 -> 0 | I42: =Inv!H50 -> 0 | J42: =Inv!I50 -> 0 | K42: 0 | L42: 0 | O42: 0 | P42: 0 | Q42: 0 | R42: 0
B43: =IF(AND(Inv!B51=0,Inv!C51=0),"",Inv!B51 & " " & Inv!C51) ->  | C43: =Inv!J51 -> 0 | D43: =Inv!K51 -> 0 | E43: =IF(ISERROR(SUM('BX2'!I13:I57)=TRUE),0,SUM('BX2'!I13:I57)) -> 0 | F43: 0 | G43: =Inv!F51 -> 0 | H43: =Inv!G51 -> 0 | I43: =Inv!H51 -> 0 | J43: =Inv!I51 -> 0 | K43: 0 | L43: 0 | O43: 0 | P43: 0 | Q43: 0 | R43: 0
B44: =IF(AND(Inv!B52=0,Inv!C52=0),"",Inv!B52 & " " & Inv!C52) ->  | C44: =Inv!J52 -> 0 | D44: =Inv!K52 -> 0 | E44: =IF(ISERROR(SUM('BX3'!C13:C57)=TRUE),0,SUM('BX3'!C13:C57)) -> 0 | F44: 0 | G44: =Inv!F52 -> 0 | H44: =Inv!G52 -> 0 | I44: =Inv!H52 -> 0 | J44: =Inv!I52 -> 0 | K44: 0 | L44: 0 | O44: 0 | P44: 0 | Q44: 0 | R44: 0
B45: =IF(AND(Inv!B53=0,Inv!C53=0),"",Inv!B53 & " " & Inv!C53) ->  | C45: =Inv!J53 -> 0 | D45: =Inv!K53 -> 0 | E45: =IF(ISERROR(SUM('BX3'!E13:E57)=TRUE),0,SUM('BX3'!E13:E57)) -> 0 | F45: 0 | G45: =Inv!F53 -> 0 | H45: =Inv!G53 -> 0 | I45: =Inv!H53 -> 0 | J45: =Inv!I53 -> 0 | K45: 0 | L45: 0 | O45: 0 | P45: 0 | Q45: 0 | R45: 0
B46: =IF(AND(Inv!B54=0,Inv!C54=0),"",Inv!B54 & " " & Inv!C54) ->  | C46: =Inv!J54 -> 0 | D46: =Inv!K54 -> 0 | E46: =IF(ISERROR(SUM('BX3'!G13:G57)=TRUE),0,SUM('BX3'!G13:G57)) -> 0 | F46: 0 | G46: =Inv!F54 -> 0 | H46: =Inv!G54 -> 0 | I46: =Inv!H54 -> 0 | J46: =Inv!I54 -> 0 | K46: 0 | L46: 0 | O46: 0 | P46: 0 | Q46: 0 | R46: 0
B47: =IF(AND(Inv!B55=0,Inv!C55=0),"",Inv!B55 & " " & Inv!C55) ->  | C47: =Inv!J55 -> 0 | D47: =Inv!K55 -> 0 | E47: =IF(ISERROR(SUM('BX3'!I13:I57)=TRUE),0,SUM('BX3'!I13:I57)) -> 0 | F47: 0 | G47: =Inv!F55 -> 0 | H47: =Inv!G55 -> 0 | I47: =Inv!H55 -> 0 | J47: =Inv!I55 -> 0 | K47: =F47*I47/6.25/1000 -> 0 | L47: =F47*J47/1000 -> 0 | O47: 0 | P47: 0 | Q47: =+F47*H47 -> 0 | R47: =+F47*G47/88 -> 0
B48: =IF(AND(Inv!B56=0,Inv!C56=0),"",Inv!B56 & " " & Inv!C56) ->  | C48: =Inv!J56 -> 0 | D48: =Inv!K56 -> 0 | E48: =IF(ISERROR(SUM('BX4'!C13:C57)=TRUE),0,SUM('BX4'!C13:C57)) -> 0 | F48: 0 | G48: =Inv!F56 -> 0 | H48: =Inv!G56 -> 0 | I48: =Inv!H56 -> 0 | J48: =Inv!I56 -> 0 | K48: =F48*I48/6.25/1000 -> 0 | L48: =F48*J48/1000 -> 0 | O48: 0 | P48: 0 | Q48: =+F48*H48 -> 0 | R48: =+F48*G48/88 -> 0
B49: =IF(AND(Inv!B57=0,Inv!C57=0),"",Inv!B57 & " " & Inv!C57) ->  | C49: =Inv!J57 -> 0 | D49: =Inv!K57 -> 0 | E49: =IF(ISERROR(SUM('BX4'!E13:E57)=TRUE),0,SUM('BX4'!E13:E57)) -> 0 | F49: 0 | G49: =Inv!F57 -> 0 | H49: =Inv!G57 -> 0 | I49: =Inv!H57 -> 0 | J49: =Inv!I57 -> 0 | K49: =F49*I49/6.25/1000 -> 0 | L49: =F49*J49/1000 -> 0 | O49: 0 | P49: 0 | Q49: =+F49*H49 -> 0 | R49: =+F49*G49/88 -> 0
B50: =IF(AND(Inv!B58=0,Inv!C58=0),"",Inv!B58 & " " & Inv!C58) ->  | C50: =Inv!J58 -> 0 | D50: =Inv!K58 -> 0 | E50: =IF(ISERROR(SUM('BX4'!G13:G57)=TRUE),0,SUM('BX4'!G13:G57)) -> 0 | F50: 0 | G50: =Inv!F58 -> 0 | H50: =Inv!G58 -> 0 | I50: =Inv!H58 -> 0 | J50: =Inv!I58 -> 0 | K50: =F50*I50/6.25/1000 -> 0 | L50: =F50*J50/1000 -> 0 | O50: 0 | P50: 0 | Q50: =+F50*H50 -> 0 | R50: =+F50*G50/88 -> 0
B51: =IF(AND(Inv!B59=0,Inv!C59=0),"",Inv!B59 & " " & Inv!C59) ->  | C51: =Inv!J59 -> 0 | D51: =Inv!K59 -> 0 | E51: =IF(ISERROR(SUM('BX4'!I13:I57)=TRUE),0,SUM('BX4'!I13:I57)) -> 0 | F51: 0 | G51: =Inv!F59 -> 0 | H51: =Inv!G59 -> 0 | I51: =Inv!H59 -> 0 | J51: =Inv!I59 -> 0 | K51: =F51*I51/6.25/1000 -> 0 | L51: =F51*J51/1000 -> 0 | O51: 0 | P51: 0 | Q51: =+F51*H51 -> 0 | R51: =+F51*G51/88 -> 0
C52: =+Textes!A149 -> en kg MS | G52: =+G18 -> % MS | H52: =+Textes!A150 -> par kg MS
B53: =IF(AND(Inv!B64=0,Inv!C64=0),"",Inv!B64 & " " & Inv!C64) ->  | C53: =IF(Inv!J64=0,0,Inv!J64*'B5'!C5/100) -> 0 | D53: =IF(Inv!K64=0,0,Inv!K64*'B5'!C5/100) -> 0 | E53: =IF(SUM('B5'!C11:C57)=0,0,SUM('B5'!C11:C57)*'B5'!C5/100) -> 0 | F53: =E53+C53-D53 -> 0 | G53: =Inv!F64 -> 0 | H53: =Inv!G64 -> 0 | I53: =Inv!H64 -> 0 | J53: =Inv!I64 -> 0 | K53: =F53*I53/6.25/1000 -> 0 | L53: =F53*J53/1000 -> 0 | O53: 0 | P53: 0 | Q53: =+F53*H53 -> 0 | R53: =+F53/0.88 -> 0
B54: =IF(AND(Inv!B65=0,Inv!C65=0),"",Inv!B65 & " " & Inv!C65) ->  | C54: =IF(Inv!J65=0,0,Inv!J65*'B5'!E5/100) -> 0 | D54: =IF(Inv!K65=0,0,Inv!K65*'B5'!E5/100) -> 0 | E54: =IF(SUM('B5'!E11:E57)=0,0,SUM('B5'!E11:E57)*'B5'!E5/100) -> 0 | F54: 0 | G54: =Inv!F65 -> 0 | H54: =Inv!G65 -> 0 | I54: =Inv!H65 -> 0 | J54: =Inv!I65 -> 0 | K54: 0 | L54: 0 | O54: 0 | P54: 0 | Q54: 0 | R54: 0
B55: =IF(AND(Inv!B66=0,Inv!C66=0),"",Inv!B66 & " " & Inv!C66) ->  | C55: =IF(Inv!J66=0,0,Inv!J66*'B5'!G5/100) -> 0 | D55: =IF(Inv!K66=0,0,Inv!K66*'B5'!G5/100) -> 0 | E55: =IF(SUM('B5'!G11:G57)=0,0,SUM('B5'!G11:G57)*'B5'!G5/100) -> 0 | F55: 0 | G55: =Inv!F66 -> 0 | H55: =Inv!G66 -> 0 | I55: =Inv!H66 -> 0 | J55: =Inv!I66 -> 0 | K55: 0 | L55: 0 | O55: 0 | P55: 0 | Q55: 0 | R55: 0
B56: =IF(AND(Inv!B67=0,Inv!C67=0),"",Inv!B67 & " " & Inv!C67) ->  | C56: =IF(Inv!J67=0,0,Inv!J67*'B5'!I5/100) -> 0 | D56: =IF(Inv!K67=0,0,Inv!K67*'B5'!I5/100) -> 0 | E56: =IF(SUM('B5'!I11:I57)=0,0,SUM('B5'!I11:I57)*'B5'!I5/100) -> 0 | F56: 0 | G56: =Inv!F67 -> 0 | H56: =Inv!G67 -> 0 | I56: =Inv!H67 -> 0 | J56: =Inv!I67 -> 0 | K56: 0 | L56: 0 | O56: 0 | P56: 0 | Q56: 0 | R56: 0
B57: =IF(AND(Inv!B68=0,Inv!C68=0),"",Inv!B68 & " " & Inv!C68) ->  | C57: =IF(Inv!J68=0,0,Inv!J68*'BX5'!C5/100) -> 0 | D57: =IF(Inv!K68=0,0,Inv!K68*'BX5'!C5/100) -> 0 | E57: =IF(SUM('BX5'!C11:C57)=0,0,SUM('BX5'!C11:C57)*'BX5'!C5/100) -> 0 | F57: =E57+C57-D57 -> 0 | G57: =Inv!F68 -> 0 | H57: =Inv!G68 -> 0 | I57: =Inv!H68 -> 0 | J57: =Inv!I68 -> 0 | K57: =F57*I57/6.25/1000 -> 0 | L57: =F57*J57/1000 -> 0 | O57: 0 | P57: =I57/6.25 -> 0 | Q57: =+F57*H57 -> 0 | R57: =+F57/0.88 -> 0
B58: =IF(AND(Inv!B69=0,Inv!C69=0),"",Inv!B69 & " " & Inv!C69) ->  | C58: =IF(Inv!J69=0,0,Inv!J69*'BX5'!E5/100) -> 0 | D58: =IF(Inv!K69=0,0,Inv!K69*'BX5'!E5/100) -> 0 | E58: =IF(SUM('BX5'!E11:E57)=0,0,SUM('BX5'!E11:E57)*'BX5'!E5/100) -> 0 | F58: =E58+C58-D58 -> 0 | G58: =Inv!F69 -> 0 | H58: =Inv!G69 -> 0 | I58: =Inv!H69 -> 0 | J58: =Inv!I69 -> 0 | K58: =F58*I58/6.25/1000 -> 0 | L58: =F58*J58/1000 -> 0 | O58: 0 | P58: =I58/6.25 -> 0 | Q58: =+F58*H58 -> 0 | R58: =+F58/0.88 -> 0
B59: =IF(AND(Inv!B70=0,Inv!C70=0),"",Inv!B70 & " " & Inv!C70) ->  | C59: =IF(Inv!J70=0,0,Inv!J70*'BX5'!G5/100) -> 0 | D59: =IF(Inv!K70=0,0,Inv!K70*'BX5'!G5/100) -> 0 | E59: =IF(SUM('BX5'!G11:G57)=0,0,SUM('BX5'!G11:G57)*'BX5'!G5/100) -> 0 | F59: =E59+C59-D59 -> 0 | G59: =Inv!F70 -> 0 | H59: =Inv!G70 -> 0 | I59: =Inv!H70 -> 0 | J59: =Inv!I70 -> 0 | K59: =F59*I59/6.25/1000 -> 0 | L59: =F59*J59/1000 -> 0 | O59: 0 | P59: =I59/6.25 -> 0 | Q59: =+F59*H59 -> 0 | R59: =+F59/0.88 -> 0
B60: =IF(AND(Inv!B71=0,Inv!C71=0),"",Inv!B71 & " " & Inv!C71) ->  | C60: =IF(Inv!J71=0,0,Inv!J71*'BX5'!I5/100) -> 0 | D60: =IF(Inv!K71=0,0,Inv!K71*'BX5'!I5/100) -> 0 | E60: =IF(SUM('BX5'!I11:I57)=0,0,SUM('BX5'!I11:I57)*'BX5'!I5/100) -> 0 | F60: =E60+C60-D60 -> 0 | G60: =Inv!F71 -> 0 | H60: =Inv!G71 -> 0 | I60: =Inv!H71 -> 0 | J60: =Inv!I71 -> 0 | K60: =F60*I60/6.25/1000 -> 0 | L60: =F60*J60/1000 -> 0 | O60: 0 | P60: =I60/6.25 -> 0 | Q60: =+F60*H60 -> 0 | R60: =+F60/0.88 -> 0
B61: =Inv!B72 -> Lactosérum | C61: =IF(Inv!J72=0,0,Inv!J72*'B6'!C5/100) -> 0 | D61: =IF(Inv!K72=0,0,Inv!K72*'B6'!C5/100) -> 0 | E61: =IF(SUM('B6'!C11:C57)=0,0,SUM('B6'!C11:C57)*'B6'!C5/100) -> 0 | F61: 0 | G61: =Inv!F72 -> 6 | H61: =Inv!G72 -> 14.6 | I61: =Inv!H72 -> 129 | J61: =Inv!I72 -> 7.3 | K61: 0 | L61: 0 | O61: 0 | P61: 20.64 | Q61: =F61*H61 -> 0 | R61: 0
B62: =Inv!B73 -> CCM | C62: =IF(Inv!J73=0,0,Inv!J73*'B6'!E5/100) -> 0 | D62: =IF(Inv!K73=0,0,Inv!K73*'B6'!E5/100) -> 0 | E62: =IF(SUM('B6'!E11:E57)=0,0,SUM('B6'!E11:E57)*'B6'!E5/100) -> 0 | F62: 0 | G62: =Inv!F73 -> 61 | H62: =Inv!G73 -> 15.7 | I62: =Inv!H73 -> 95 | J62: =Inv!I73 -> 3.3 | K62: 0 | L62: 0 | O62: 0 | P62: 15.2 | Q62: =F62*H62 -> 0 | R62: 0
B63: =+Inv!B74 -> Paille, granulés de paille | C63: =IF(Inv!J74=0,0,Inv!J74*'B6'!G5/100) -> 0 | D63: =IF(Inv!K74=0,0,Inv!K74*'B6'!G5/100) -> 0 | E63: =IF(SUM('B6'!G11:G57)=0,0,SUM('B6'!G11:G57)*'B6'!G5/100) -> 0 | F63: 0 | G63: =Inv!F74 -> 88 | H63: =Inv!G74 -> 2.2 | I63: =Inv!H74 -> 35 | J63: =Inv!I74 -> 0.9 | K63: 0 | L63: 0 | P63: 5.6
B64: =+Inv!B75 -> Matériaux d’occupation, dés de fourrage grossier | C64: =IF(Inv!J75=0,0,Inv!J75*'B6'!I5/100) -> 0 | D64: =IF(Inv!K75=0,0,Inv!K75*'B6'!I5/100) -> 0 | E64: =IF(SUM('B6'!I11:I57)=0,0,SUM('B6'!I11:I57)*'B6'!I5/100) -> 0 | F64: 0 | G64: =Inv!F75 -> 87 | H64: =Inv!G75 -> 2.1 | I64: =Inv!H75 -> 25 | J64: =Inv!I75 -> 1.6 | K64: 0 | L64: 0 | P64: 4
B65: =+Inv!B77 -> Maïs, plante entière | C65: =Inv!J77 -> 0 | D65: =Inv!K77 -> 0 | E65: =IF(SUM('B7'!C11:C57)=0,0,SUM('B7'!C11:C57)) -> 0 | F65: 0 | G65: =Inv!F77 -> 100 | H65: =Inv!G77 -> 10.7 | I65: =Inv!H77 -> 75 | J65: =Inv!I77 -> 1.9 | K65: 0 | L65: 0 | O65: 0 | P65: 12 | Q65: =F65*H65 -> 0 | R65: =F65/0.88 -> 0
B66: =+Textes!A151 -> Ensil. de céréal. pl. entière | C66: =Inv!J78 -> 0 | D66: =Inv!K78 -> 0 | E66: =IF(SUM('B7'!E12:E58)=0,0,SUM('B7'!E12:E58)) -> 0 | F66: =E66+C66-D66 -> 0 | G66: =Inv!F78 -> 30 | H66: =Inv!G78 -> 7.4 | I66: =Inv!H78 -> 92 | J66: =Inv!I78 -> 3.2 | K66: =F66*I66/6.25/1000 -> 0 | L66: =F66*J66/1000 -> 0 | O66: =I66*F66 -> 0 | P66: =I66/6.25 -> 14.72 | Q66: =F66*H66 -> 0 | R66: =F66/0.88 -> 0
B67: =+Textes!A152 -> Herbages: herbe, silo, … | C67: =Inv!J79 -> 0 | D67: =Inv!K79 -> 0 | E67: =IF(SUM('B7'!G11:G57)=0,0,SUM('B7'!G11:G57)) -> 0 | F67: 0 | G67: =Inv!F79 -> 100 | H67: =Inv!G79 -> 7.6 | I67: =Inv!H79 -> 155 | J67: =Inv!I79 -> 3.5 | K67: 0 | L67: 0 | O67: 0 | P67: 24.8 | Q67: =F67*H67 -> 0 | R67: =F67/0.88 -> 0
B68: =+Textes!A153 -> Importation totale d'éléments fertilisants | K68: =SUM(K20:K67) -> 0 | L68: =SUM(L20:L67) -> 0 | N68: Total | O68: =SUM(O20:O67) -> 0 | P68: =SUM(P20:P67) -> 96.96 | Q68: =SUM(Q20:Q67) -> 0 | R68: =SUM(R20:R67) -> 0 | S68: =IF(Q68>0,O68/Q68,0) -> 0 | T68: =Textes!A174 -> y. c. fourrages
O69: =SUM(O20:O62) -> 0 | P69: =SUM(P20:P62) -> 35.84 | Q69: =SUM(Q20:Q62) -> 0 | R69: 0 | S69: =IF(Q69>0,O69/Q69,0) -> 0 | T69: =Textes!A175 -> sans fourrages
B70: =+Textes!A154 -> Pas C: Bilan import/export
E72: =+Textes!A155 -> kg N | F72: =+Textes!A156 -> kg P | G72: =+Textes!A157 -> kg Nstock | H72: =+Textes!A158 -> kg P2O5
B73: =+Textes!A159 -> Exportation par les animaux | E73: =IF(K14=0,0,K14*-1) -> 0 | F73: =IF(L14=0,0,L14*-1) -> 0 | G73: =E73*U4 -> 0 | H73: =F73*2.291 -> 0 | J73: 1 kg N | K73: ="= "&U4&" "&Textes!A163 -> = 0.8 kg Nstock
B74: =+Textes!A160 -> Importation par les aliments | E74: =+K68 -> 0 | F74: =+L68 -> 0 | G74: =+E74*U4 -> 0 | H74: =+F74*2.291 -> 0 | J74: 1 kg P | K74: = 2.291 kg P2O5
B75: =+Textes!A161 -> Pour la période | C75: =IF(OR(K6=P6,K7=P7,K6=0,K7=0),0,K7-K6+1) -> 0 | D75: =+Textes!A197 -> jours | E75: =IF(E73=0,0,E73+E74) -> 0 | F75: =IF(F73=0,0,F73+F74) -> 0 | G75: =G73+G74 -> 0 | H75: =H73+H74 -> 0
B76: =+Textes!A162 -> Pour 365 jours | E76: =IF(C75=0,0,E75/C75*365) -> 0 | F76: =IF(C75=0,0,F75/C75*365) -> 0 | G76: =IF(C75=0,0,G75/C75*365) -> 0 | H76: =IF(C75=0,0,H75/C75*365) -> 0 | I76: =+Textes!A164 -> => Contrôle avec les valeurs minimales
B78: =+Textes!A165 -> Pas D: Données de contrôle | G78: =+Textes!A178 -> Bilan animaux | I78: =+Textes!A200 -> < 60 kg PV | K78: =IF(Textes!G2=1,Textes!A201,"") -> > 60 kg PV
B80: =+Textes!A166 -> Aliment 88% MS pour 365 j | E80: =IF(C75=0,0,R68/C75*365) -> 0 | F80: kg | I80: =+Textes!A179 -> Nombre | J80: =+Textes!A180 -> kg PV | K80: =IF(Textes!G2=1,I80,"") -> Nombre | L80: =IF(Textes!G2=1,J80,"") -> kg PV | N80: Total Anzahl Tiere Zukauf | S80: =IF(R68>0,IF(1-R69/R68>0.15,1,0),0) -> 0 | T80: =IF(Textes!G2=1,Textes!A173,0) -> Fourrages > 15 % ? | Z80: Gewicht pro Tier
B81: =+Textes!A167 -> Aliment 88% MS par kg croît | E81: =IF(H14=0,0,R68/H14) -> 0 | F81: kg / kg | G81: =+Textes!A181 -> Inventaire début | I81: =IF(Textes!G2=1,Inv!N23,Inv!F23) -> 0 | J81: =IF(Inv!N23=0,0,IF(Textes!G2=1,Inv!O23/Inv!N23,Inv!G23)) -> 0 | K81: =IF(Textes!G2=1,Inv!P23,0) -> 0 | L81: =IF(Inv!P23=0,0,IF(Textes!G2=1,Inv!Q23/Inv!P23,0)) -> 0 | N81: bis 60 Kg | Q81: =A1a!C61+A1b!C61+A1c!C61+A1d!C61+A1e!C61 -> 0 | X81: =A1a!D61+A1b!D61+A1c!D61+A1d!D61+A1e!D61 -> 0 | Z81: =IF(Q81=0,0,X81/Q81) -> 0
B82: =+Textes!A168 -> Aliment g MA / MJ EDP | E82: =IF(Textes!G2=1,S82,0) -> 0 | F82: g / MJ | G82: =+Textes!A182 -> Entrées | H82: =Textes!A185 -> Période | I82: =+Q81 -> 0 | J82: =IF(Z81=0,0,Z81) -> 0 | K82: =IF(Textes!G2=1,Q82,0) -> 0 | L82: =IF(Z82=0,0,IF(Textes!G2=1,Z82,0)) -> 0 | N82: ab 60 Kg | Q82: =A1a!F61+A1b!F61+A1c!F61+A1d!F61+A1e!F61 -> 0 | S82: =IF($S$80=1,S68,S69) -> 0 | T82: =B82 -> Aliment g MA / MJ EDP | X82: =A1a!G61+A1b!G61+A1c!G61+A1d!G61+A1e!G61 -> 0 | Z82: =IF(Q82=0,0,X82/Q82) -> 0
B83: =+Textes!A170 -> MJ consommés en 365 jours | E83: =IF(ISERROR(Q68/C75*365)=TRUE,0,(Q68/C75*365)) -> 0 | F83: MJ | G83: =+Textes!A183 -> Sorties | H83: =Textes!A185 -> Période | I83: =+Q85 -> 0 | J83: =IF(X85=0,0,Z85) -> 0 | K83: =IF(Textes!G2=1,Q86,0) -> 0 | L83: =IF(Z86=0,0,IF(Textes!G2=1,Z86,0)) -> 0 | T83: =IF($Q$68>0,IF($S$80=1,T68,T69),0) -> 0
B84: =+Textes!A169 -> MJ / kg croît | E84: =IF(H14=0,0,Q68/H14) -> 0 | F84: MJ / kg | G84: =+Textes!A182 -> Entrées | H84: =Textes!A186 -> 365 jours | I84: =IF(C75=0,0,+Q81/C75*365) -> 0 | J84: =IF(Z81=0,0,Z81) -> 0 | K84: =IF(AND(Textes!G2=1,C75<>0),Q82/C75*365,0) -> 0 | L84: =IF(Z82=0,0,IF(Textes!G2=1,Z82,0)) -> 0 | N84: Total Anzahl Tiere Verkauf
B85: =IF(Textes!G2=1,Textes!A172,0) -> dt MS de Fourrages par an | E85: =IF(AND(Textes!G2=1,C75<>0),SUM(F65:F67)/100/C75*365,0) -> 0 | F85: =IF(Textes!G2=1,Textes!A195,0) -> dt MS | G85: =+Textes!A183 -> Sorties | H85: =Textes!A186 -> 365 jours | I85: =IF(C75=0,0,+Q85/C75*365) -> 0 | J85: =IF(X85=0,0,Z85) -> 0 | K85: =IF(AND(Textes!G2=1,C75<>0),Q86/C75*365,0) -> 0 | L85: =IF(Z86=0,0,IF(Textes!G2=1,Z86,0)) -> 0 | N85: bis 60 Kg | Q85: =A2a!C61+A2b!C61+A2c!C61+A2d!C61+A2e!C61 -> 0 | X85: =A2a!D61+A2b!D61+A2c!D61+A2d!D61+A2e!D61 -> 0 | Z85: =IF(Q85=0,0,X85/Q85) -> 0
B86: =+Textes!A176 -> Croît total par an | E86: =IF(C75=0,0,H14/C75*365) -> 0 | F86: kg | G86: =+Textes!A184 -> Inventaire fin | I86: =IF(Textes!G2=1,Inv!R23,Inv!I23) -> 0 | J86: =IF(Inv!R23=0,0,IF(Textes!G2=1,Inv!S23/Inv!R23,Inv!J23)) -> 0 | K86: =IF(Textes!G2=1,Inv!T23,0) -> 0 | L86: =IF(Inv!T23=0,0,IF(Textes!G2=1,Inv!U23/Inv!T23,0)) -> 0 | N86: ab 60 Kg | Q86: =A2a!F61+A2b!F61+A2c!F61+A2d!F61+A2e!F61 -> 0 | X86: =A2a!G61+A2b!G61+A2c!G61+A2d!G61+A2e!G61 -> 0 | Z86: =IF(Q86=0,0,X86/Q86) -> 0
B87: =IF(Textes!G2=1,IF(AND(I88<20,L82<100),Textes!A177,0),0) -> PPE à partir du croît | E87: =IF(E86=0,0,IF(Textes!G2=1,IF(AND(I88<20,L82<100),E86 / 272,0),0)) -> 0 | F87: =IF(B87<>0,Textes!A198,0) -> PPE | G87: =+Textes!A189 -> Bilan | H87: =Textes!A185 -> Période | I87: =IF(I83-I81-I82+I86=0,0.0001,I83-I81-I82+I86) -> 0.0001 | K87: =IF(Textes!G2=1,IF(K83-K81-K82+K86=0,0.0001,K83-K81-K82+K86),0) -> 0.0001
G88: =+Textes!A190 -> Bilan total | I88: =IF((-I81-I82+I83+I86-K81-K82+K83+K86)=0,0.0001,-I81-I82+I83+I86-K81-K82+K83+K86) -> 0.0001 | K88: =Textes!A187 -> (Période)
B90: =+Textes!A191 -> L'exploitant autorise le calcul du Suisse-Bilanz
B91: =+Textes!A192 -> avec le résultat de ce bilan import/export
B93: =+Textes!A194 -> Organisation de contrôle, Date: | H93: =+Textes!A199 -> Signature:
B95: =+Textes!A193 -> Exploitant, Date: | H95: =+H93 -> Signature:

Sheet Plausi
D1: Impex | K1: =+Textes!A202 -> Calcul des valeurs minimales
B2: =Inv!C4&IF(Inv!D4=0,"",Inv!D4) -> No cantonal: | D2: =Inv!C5 & IF(Inv!D5=0,"",Inv!D6 & " " & Inv!D5) -> Nom:
I4: =+Textes!A266 -> Total
B5: =+Textes!A203 -> Catégorie d'animaux | C5: =+Textes!A225 -> Unité | D5: =+Textes!A228 -> Définition de l'unité | E5: =+Textes!A257 -> Nombre | F5: =+Textes!A258 -> N | G5: =+Textes!A259 -> Nstock | H5: =+Textes!A260 -> P2O5 | I5: N | J5: =+G5 -> Nstock | K5: =+H5 -> P2O5
B6: =+Textes!A204 -> Porc à l'engrais/de remonte | C6: =+Textes!A226 -> Place | D6: =+Textes!A229 -> 272 kg croît/année ; FV 2.6; 3.32 rotations | F6: 8.4 | G6: =ROUND(F6*0.8,2) -> 6.72 | H6: 2.8 | I6: =+E6*F6 -> 0 | J6: =+E6*G6 -> 0 | K6: =+E6*H6 -> 0
B7: =+Textes!A205 -> Porc à l'engrais/de remonte | C7: =+Textes!A227 -> Animal | D7: =+Textes!A230 -> 82 kg croît; FV 2.6 | F7: 2.54 | G7: 2.03 | H7: 0.85 | I7: =+E7*F7 -> 0 | J7: =+E7*G7 -> 0 | K7: =+E7*H7 -> 0
B8: =+Textes!A206 -> Truie d'élevage avec porcelets < 26 kg PV | C8: =+Textes!A226 -> Place | D8: =+Textes!A231 -> Ø des effectifs début et fin | F8: 31.4 | G8: 25.12 | H8: 11.5 | I8: 0 | J8: 0 | K8: 0
B9: =+Textes!A207 -> Verrat | C9: =+Textes!A226 -> Place | D9: =+Textes!A232 -> Ø des effectifs début et fin | F9: 12.2 | G9: 9.76 | H9: 5.8 | I9: 0 | J9: 0 | K9: 0
B10: =+Textes!A208 -> Truie non allaitante | C10: =+Textes!A226 -> Place | D10: =+Textes!A233 -> Calcul en fonction des rotations ou des jours d'affouragement, voir remarque | F10: 14.5 | G10: 11.6 | H10: 7.2 | I10: 0 | J10: 0 | K10: 0
B11: =+Textes!A209 -> Truie non allaitante | C11: =+Textes!A227 -> Animal | D11: =+Textes!A234 -> Ø (achats 365 j + sortie 365 j) | F11: 4.93 | G11: 3.94 | H11: 2.45 | I11: 0 | J11: 0 | K11: 0
B12: =+Textes!A210 -> Truie allaitante | C12: =+Textes!A226 -> Place | D12: =+Textes!A233 -> Calcul en fonction des rotations ou des jours d'affouragement, voir remarque | F12: 33.7 | G12: 26.96 | H12: 12.7 | I12: 0 | J12: 0 | K12: 0
B13: =+Textes!A211 -> Truie allaitante | C13: =+Textes!A227 -> Animal | D13: =+Textes!A236 -> Ø (achats 365 j + sortie 365 j) | F13: 3.42 | G13: 2.74 | H13: 1.29 | I13: 0 | J13: 0 | K13: 0
B14: =+Textes!A212 -> Porcelet sevré, d'env. 8 à 26 kg PV | C14: =+Textes!A226 -> Place | D14: =+Textes!A237 -> 173 kg croît/année ; FV 1.68; 9.61 rotations | F14: 2.56 | G14: 2.05 | H14: 0.63 | I14: 0 | J14: 0 | K14: 0
B15: =+Textes!A213 -> Porcelet sevré, d'env. 8 à 26 kg PV | C15: =+Textes!A227 -> Animal | D15: =+Textes!A238 -> 18 kg croît; FV 1.68 | F15: 0.27 | G15: 0.22 | H15: 0.07 | I15: 0 | J15: 0 | K15: 0
B16: =+Textes!A214 -> Poulettes | C16: =+Textes!A221 -> 100 places | D16: =+Textes!A239 -> Moyenne des poulettes; 2.25 rotations | F16: 21 | G16: =ROUND(F16*0.6,2) -> 12.6 | H16: 11.9 | I16: 0 | J16: 0 | K16: 0
B17: =+Textes!A214 -> Poulettes | C17: =+Textes!A222 -> 100 animaux | F17: 9.33 | G17: 5.6 | H17: 5.29 | I17: 0 | J17: 0 | K17: 0
B18: =+Textes!A215 -> Poulets à l'engrais | C18: =+Textes!A221 -> 100 places | D18: =+Textes!A240 -> Effectif moyen des poulets à l'engrais pour l'éval. des valeurs minimales | F18: 26 | G18: 15.6 | H18: 7 | I18: =+E18*F18 -> 0 | J18: =+E18*G18 -> 0 | K18: =+E18*H18 -> 0
B19: =Textes!A216 -> Dindes à l'engrais | C19: =+Textes!A221 -> 100 places | D19: =Textes!A241 -> Moyenne des dindes à l'engrais; 2.8 rotations | F19: 91 | G19: 54.6 | H19: 49 | I19: 0 | J19: 0 | K19: 0
B20: =Textes!A217 -> Dindes avancement | C20: =+Textes!A221 -> 100 places | D20: =Textes!A219 -> <= 1.5 kg PV, 6 rotations | F20: 26 | G20: 15.6 | H20: 14.4 | I20: 0 | J20: 0 | K20: 0
B21: =Textes!A218 -> Dindes finition | C21: =+Textes!A221 -> 100 places | D21: =Textes!A220 -> > 1.5 - 13 kg PV, 2.9 rotations | F21: 149.5 | G21: 89.7 | H21: 80.2 | I21: 0 | J21: 0 | K21: 0
B22: =+Textes!A223 -> Lapine mère, y.c. petits < 35 j. | C22: =+Textes!A227 -> Animal | D22: =+Textes!A242 -> Moyenne des lapins mère | F22: 1.82 | G22: =ROUND(F22*0.85,2) -> 1.55 | H22: 1.05 | I22: 0 | J22: 0 | K22: 0
B23: =+Textes!A224 -> Lapins d'engraissement > 35 j. | C23: =+Textes!A221 -> 100 places | D23: =+Textes!A243 -> Moyenne des lapins d'engraissement | F23: 55.3 | G23: =ROUND(F23*0.85,2) -> 47.01 | H23: 33.6 | I23: 0 | J23: 0 | K23: 0
B24: =+Textes!A263 -> Valeur minimale pour l'exploitation | I24: =SUM(I6:I23) -> 0 | J24: =SUM(J6:J23) -> 0 | K24: =SUM(K6:K23) -> 0
B25: =+Textes!A264 -> Valeur calculée par le bilan import/export | I25: =+Impex!E76 -> 0 | J25: =+Impex!G76 -> 0 | K25: =+Impex!H76 -> 0
B26: =+Textes!A265 -> Valeur à reporter dans le Suisse-Bilanz | I26: =IF(SUM(E6:E23)=0,0,IF(I25<I24,I24,I25)) -> 0 | J26: =IF(SUM(F6:F23)=0,0,IF(J25<J24,J24,J25)) -> 0 | K26: =IF(SUM(G6:G23)=0,0,IF(K25<K24,K24,K25)) -> 0
B28: =Textes!A244 -> Remarques pour le calcul du cheptel moyen chez les porcs : | G28: =Textes!A245 -> Remarque :
B29: =Textes!A246 -> - Les exploitations mixtes tiennent compte pour les porcs à l'engrais d'une croissance de 272 kg, de l'inventaire, de leur propre remonte,
B30: =Textes!A247 -> ainsi que d'éventuels porcelets en surpoids (=> tous les croîts entre 26 et 108 kg PV).
B31: =Textes!A248 -> - Places truie d'élevage et places verrat: des éventuelles fluctuations annuelles justifient un écart de la moyenne des cheptels début et fin.
B32: =Textes!A249 -> - Places truie non allaitante : nombre de places calculé en fonction de rotations: valeur moyenne (achats 365 j + sortie 365 j) divisée par 2.94 rotations
B33: =Textes!A250 -> ou par les jours d’affouragement. Le cheptel moyen peut atteindre au plus la moyenne des animaux en stabulation.
B34: =Textes!A251 -> Augmentation de poids entre entrée et sortie des animaux: valeur standard 35 kg (y. c. remontes et truites de réforme) ou peser tous les animaux.
B35: =Textes!A252 -> - Places truie allaitante: nombre de places calculé en fonction de rotations: valeur moyenne (achats 365 j + sortie 365 j) divisée par 9.86 rotations
B36: =Textes!A253 -> ou par les jours d’affouragement. Le cheptel moyen peut atteindre au plus la moyenne des animaux en stabulation.
B37: =Textes!A254 -> Diminution de poids entre entrée et sortie des animaux: valeur standard 35 kg (y. c. remontes et truites de réforme) ou peser tous les animaux.
B38: =Textes!A255 -> - Les exploitations de mise bas avec élevage tiennent compte d'un croît de 173 kg et de l'inventaire
B39: =Textes!A256 -> (=> tous les croîts entre 8 et 26 kg PV).

Sheet Poulet1 (hidden)
L2: =Textes!A267 -> Poulailler 1
B3: =Textes!A273 -> Attention:
B4: =Textes!A274 -> Travaux commencés avant la période et non terminés pendant la période sont à saisir entièrement !
B6: =Textes!A19 -> Période: | E6: =Textes!A20 -> Date début: | F6: =IF(Inv!I8=0,"",Inv!I8) ->  | H6: =Textes!A21 -> Date fin: | I6: =IF(Inv!I9=0,"",Inv!I9) ->  | J6: =Textes!A22 -> Durée en jours: | K6: =IF(OR(F6="",I6=""),"",I6-F6+1) -> 
F7: =YEAR(F6) -> 
B8: =+Textes!A9 -> No cantonal: | E8: =IF(Inv!D4=0,"",Inv!D4) -> 
B9: =+Textes!A10 -> Nom: | E9: =IF(Inv!D5=0,"",Inv!D6 & " " & Inv!D5) -> 
B10: =+Textes!A13 -> Adresse: | E10: =IF(Inv!D7=0,"",Inv!D7) -> 
B11: =+Textes!A14 -> NPA, lieu: | E11: =IF(Inv!D9=0,"",Inv!D9) -> 
H13: =Textes!A278 -> Jours | J13: =Textes!A282 -> Nbre d'ani- | K13: =Textes!A285 -> Nombre déter- | P13: Erkennen | R13: =I15 -> Coefficient | S13: =J13 -> Nbre d'ani- | T13: =D15 -> Nombre d'animaux
G14: Tier- | H14: =Textes!A279 -> d'engrais- | J14: =Textes!A283 -> maux abattus | K14: =Textes!A286 -> minant d'animaux | O14: Datum | P14: letzter Umtrieb | R14: =Textes!A288 -> pour valeurs | S14: =J14 -> maux abattus | T14: =K15 -> par rotation
B15: =Textes!A275 -> Date | D15: =Textes!A276 -> Nombre d'animaux | F15: =Textes!A277 -> kg PV total | G15: Bestand | H15: =Textes!A280 -> sement | I15: =Textes!A281 -> Coefficient | J15: =Textes!A284 -> x coefficient | K15: =Textes!A287 -> par rotation | O15: (Hilfswert) | P15: für Abgrenzung | R15: =Textes!A289 -> minimales (vm) | S15: x coefficient | T15: =Textes!A290 -> pour vm
B16: =Textes!A291 -> Rotation 1 | C16: =Jahr -> 
C17: =IF(ISERROR(Jahr), "", IF($F$6>B17,"",IF(B17>$I$6,Jahr + 1,Jahr))) ->  | E17: =Textes!A303 -> Mise en poulailler | F17: =D17*0.04 -> 0 | G17: =IF(D17>0,D17,0) -> 0 | M17: =IF(OR(B17="",D17=""),0,IF(B17<F$6,H17+(F$6-B17)-1,IF((I$6-B17)=0,1,H17+(I$6-B17)))) -> 0 | N17: =IF(D17="",0,IF(M17=0,VLOOKUP(1,Faktoren!$B$16:$D$55,2)/1000,VLOOKUP(M17,Faktoren!$B$16:$D$55,2)/1000)) -> 0 | R17: =IF(AND(H17 > 0, B17 > 0), LOOKUP(H17,INDEX(Faktoren!data,,1),INDEX(Faktoren!data,,5)),0) -> 0 | S17: =D17:D23 * R17:R23 -> 0
E18: =Textes!A304 -> 1er abattage | G18: =IF(D17-D18>0,D17-D18,0) -> 0 | H18: =IF(AND(D18>0,B18>0),B18-B17+1,0) -> 0 | I18: =IF(H18>0,IF(H18>Faktoren!$D$5,Faktoren!$E$4,Faktoren!$E$5),0) -> 0 | J18: =IF(H18>0,D18*I18,0) -> 0 | M18: =IF(OR(B18="",D18=""),0,IF(B18<F$6,H18+(F$6-B18)-1,H18+(I$6-B18))) -> 0 | N18: =IF(OR(D18="",M18=0),0,VLOOKUP(M18,Faktoren!$B$16:$D$55,2)/1000) -> 0 | R18: =IF(AND(H18 > 0, B18 > 0), LOOKUP(H18,INDEX(Faktoren!data,,1),INDEX(Faktoren!data,,5)),0) -> 0 | S18: 0
E19: =Textes!A305 -> 2e abattage | G19: =IF(D17-D18-D19>0,D17-D18-D19,0) -> 0 | H19: =IF(AND(D19>0,B19>0),B19-B17+1,0) -> 0 | I19: =IF(H19>0,IF(H19>Faktoren!$D$5,Faktoren!$E$4,Faktoren!$E$5),0) -> 0 | J19: =IF(H19>0,D19*I19,0) -> 0 | M19: =IF(OR(B19="",D19=""),0,IF(B19<F$6,H19+(F$6-B19)-1,H19+(I$6-B19))) -> 0 | N19: =IF(OR(D19="",M19=0),0,VLOOKUP(M19,Faktoren!$B$16:$D$55,2)/1000) -> 0 | R19: =IF(AND(H19 > 0, B19 > 0), LOOKUP(H19,INDEX(Faktoren!data,,1),INDEX(Faktoren!data,,5)),0) -> 0 | S19: 0
E20: =Textes!A306 -> 3e abattage | G20: =IF(D17-D18-D19-D20>0,D17-D18-D19-D20,0) -> 0 | H20: =IF(AND(D20>0,B20>0),B20-B17+1,0) -> 0 | I20: =IF(H20>0,IF(H20>Faktoren!$D$5,Faktoren!$E$4,Faktoren!$E$5),0) -> 0 | J20: =IF(H20>0,D20*I20,0) -> 0 | M20: =IF(OR(B20="",D20=""),0,IF(B20<F$6,H20+(F$6-B20)-1,H20+(I$6-B20))) -> 0 | N20: =IF(OR(D20="",M20=0),0,VLOOKUP(M20,Faktoren!$B$16:$D$55,2)/1000) -> 0 | R20: =IF(AND(H20 > 0, B20 > 0), LOOKUP(H20,INDEX(Faktoren!data,,1),INDEX(Faktoren!data,,5)),0) -> 0 | S20: 0
E21: =Textes!A307 -> 4e abattage | G21: =IF(D17-D18-D19-D20-D21>0,D17-D18-D19-D20-D21,0) -> 0 | H21: =IF(AND(D21>0,B21>0),B21-B17+1,0) -> 0 | I21: =IF(H21>0,IF(H21>Faktoren!$D$5,Faktoren!$E$4,Faktoren!$E$5),0) -> 0 | J21: =IF(H21>0,D21*I21,0) -> 0 | M21: =IF(OR(B21="",D21=""),0,IF(B21<F$6,H21+(F$6-B21)-1,H21+(I$6-B21))) -> 0 | N21: =IF(OR(D21="",M21=0),0,VLOOKUP(M21,Faktoren!$B$16:$D$55,2)/1000) -> 0 | R21: =IF(AND(H21 > 0, B21 > 0), LOOKUP(H21,INDEX(Faktoren!data,,1),INDEX(Faktoren!data,,5)),0) -> 0 | S21: 0
E22: =Textes!A308 -> 5e abattage | G22: =IF(D17-D18-D19-D20-D21-D22>0,D17-D18-D19-D20-D21-D22,0) -> 0 | H22: =IF(AND(D22>0,B22>0),B22-B17+1,0) -> 0 | I22: =IF(H22>0,IF(H22>Faktoren!$D$5,Faktoren!$E$4,Faktoren!$E$5),0) -> 0 | J22: =IF(H22>0,D22*I22,0) -> 0 | M22: =IF(OR(B22="",D22=""),0,IF(B22<F$6,H22+(F$6-B22)-1,H22+(I$6-B22))) -> 0 | N22: =IF(OR(D22="",M22=0),0,VLOOKUP(M22,Faktoren!$B$16:$D$55,2)/1000) -> 0 | R22: =IF(AND(H22 > 0, B22 > 0), LOOKUP(H22,INDEX(Faktoren!data,,1),INDEX(Faktoren!data,,5)),0) -> 0 | S22: 0
B23: =IF(SUM(B17:B22) > 0,E23,"") ->  | D23: =+D17-SUM(D18:D22) -> 0 | E23: =Textes!A309 -> pertes | F23: =D23*0.6 -> 0 | I23: =IF(D23>0,Faktoren!$E$7,0) -> 0 | J23: =IF(D23>0,D23*I23,0) -> 0 | K23: =SUM(J18:J23) -> 0 | M23: =IF(B17=F6,G17,IF(MIN(B17:B22)>$F$6,0,VLOOKUP($F$6,B17:G22,6))) -> 0 | O23: =MAX(B17:B22) -> 00:00:00 | P23: =IF(OR($F$6="",I$6="",O23<F$6),99,IF(AND(B17>=F$6,O23<=I$6),0,IF(AND(B17>=F$6,O23>I$6),2,1))) -> 99 | R23: =IF(AND(H23 > 0, B23 > 0), LOOKUP(H23,INDEX(Faktoren!data,,1),INDEX(Faktoren!data,,5)),0) -> 0 | S23: 0 | T23: =SUM(S17:S23) -> 0
D24: =IF(D17>0,ROUND(+D23/D17*100,1),0) -> 0 | E24: =Textes!A310 -> pertes en % | G24: belegt | H24: =MAX(H17:H22) -> 0 | I24: =Textes!A312 -> jours poulailler occupé | N24: =IF(P23=1,O23-$F$6+1,H24) -> 0
D25: =IF(P23=99,0,IF(P23=0,H24/MAX(H18:H22),IF(P23=1,(O23-$F$6)/H24,(H24-(O23-I$6))/H24))) -> 0 | E25: =Textes!A311 -> Rotations | H25: =IF(B27<>0,(B27-O23),0) -> 0 | I25: =Textes!A313 -> jours poulailler inoccupé
B26: =Textes!A292 -> Rotation 2
C27: =IF(ISERROR(Jahr), "", IF($F$6>B27,"",IF(B27>$I$6,Jahr + 1,Jahr))) ->  | E27: =Textes!A303 -> Mise en poulailler | F27: =D27*0.04 -> 0 | G27: =IF(D27>0,D27,0) -> 0 | M27: =IF(OR(B27="",D27=""),0,IF((I$6-B27)=0,1,H27+(I$6-B27))) -> 0 | N27: =IF(D27="",0,VLOOKUP(M27,Faktoren!$B$16:$D$55,2)/1000) -> 0 | R27: =IF(AND(H27 > 0, B27 > 0), LOOKUP(H27,INDEX(Faktoren!data,,1),INDEX(Faktoren!data,,5)),0) -> 0 | S27: =D27:D33 * R27:R33 -> 0
E28: =Textes!A304 -> 1er abattage | G28: =IF(D27-D28>0,D27-D28,0) -> 0 | H28: =IF(AND(D28>0,B28>0),B28-B27+1,0) -> 0 | I28: =IF(H28>0,IF(H28>Faktoren!$D$5,Faktoren!$E$4,Faktoren!$E$5),0) -> 0 | J28: =IF(H28>0,D28*I28,0) -> 0 | M28: =IF(OR(B28="",D28=""),0,H28+(I$6-B28)) -> 0 | N28: =IF(D28="",0,VLOOKUP(M28,Faktoren!$B$16:$D$55,2)/1000) -> 0 | R28: =IF(AND(H28 > 0, B28 > 0), LOOKUP(H28,INDEX(Faktoren!data,,1),INDEX(Faktoren!data,,5)),0) -> 0 | S28: 0
E29: =Textes!A305 -> 2e abattage | G29: =IF(D27-D28-D29>0,D27-D28-D29,0) -> 0 | H29: =IF(AND(D29>0,B29>0),B29-B27+1,0) -> 0 | I29: =IF(H29>0,IF(H29>Faktoren!$D$5,Faktoren!$E$4,Faktoren!$E$5),0) -> 0 | J29: =IF(H29>0,D29*I29,0) -> 0 | M29: =IF(OR(B29="",D29=""),0,H29+(I$6-B29)) -> 0 | N29: =IF(D29="",0,VLOOKUP(M29,Faktoren!$B$16:$D$55,2)/1000) -> 0 | R29: =IF(AND(H29 > 0, B29 > 0), LOOKUP(H29,INDEX(Faktoren!data,,1),INDEX(Faktoren!data,,5)),0) -> 0 | S29: 0
E30: =Textes!A306 -> 3e abattage | G30: =IF(D27-D28-D29-D30>0,D27-D28-D29-D30,0) -> 0 | H30: =IF(AND(D30>0,B30>0),B30-B27+1,0) -> 0 | I30: =IF(H30>0,IF(H30>Faktoren!$D$5,Faktoren!$E$4,Faktoren!$E$5),0) -> 0 | J30: =IF(H30>0,D30*I30,0) -> 0 | M30: =IF(OR(B30="",D30=""),0,H30+(I$6-B30)) -> 0 | N30: =IF(D30="",0,VLOOKUP(M30,Faktoren!$B$16:$D$55,2)/1000) -> 0 | R30: =IF(AND(H30 > 0, B30 > 0), LOOKUP(H30,INDEX(Faktoren!data,,1),INDEX(Faktoren!data,,5)),0) -> 0 | S30: 0
E31: =Textes!A307 -> 4e abattage | G31: =IF(D27-D28-D29-D30-D31>0,D27-D28-D29-D30-D31,0) -> 0 | H31: =IF(AND(D31>0,B31>0),B31-B27+1,0) -> 0 | I31: =IF(H31>0,IF(H31>Faktoren!$D$5,Faktoren!$E$4,Faktoren!$E$5),0) -> 0 | J31: =IF(H31>0,D31*I31,0) -> 0 | M31: =IF(OR(B31="",D31=""),0,H31+(I$6-B31)) -> 0 | N31: =IF(D31="",0,VLOOKUP(M31,Faktoren!$B$16:$D$55,2)/1000) -> 0 | R31: =IF(AND(H31 > 0, B31 > 0), LOOKUP(H31,INDEX(Faktoren!data,,1),INDEX(Faktoren!data,,5)),0) -> 0 | S31: 0
E32: =Textes!A308 -> 5e abattage | G32: =IF(D27-D28-D29-D30-D31-D32>0,D27-D28-D29-D30-D31-D32,0) -> 0 | H32: =IF(AND(D32>0,B32>0),B32-B27+1,0) -> 0 | I32: =IF(H32>0,IF(H32>Faktoren!$D$5,Faktoren!$E$4,Faktoren!$E$5),0) -> 0 | J32: =IF(H32>0,D32*I32,0) -> 0 | M32: =IF(OR(B32="",D32=""),0,H32+(I$6-B32)) -> 0 | N32: =IF(D32="",0,VLOOKUP(M32,Faktoren!$B$16:$D$55,2)/1000) -> 0 | R32: =IF(AND(H32 > 0, B32 > 0), LOOKUP(H32,INDEX(Faktoren!data,,1),INDEX(Faktoren!data,,5)),0) -> 0 | S32: 0
B33: =IF(SUM(B27:B32) > 0,E33,"") ->  | D33: =+D27-SUM(D28:D32) -> 0 | E33: =Textes!A309 -> pertes | F33: =D33*0.6 -> 0 | I33: =IF(D33>0,Faktoren!$E$7,0) -> 0 | J33: =IF(D33>0,D33*I33,0) -> 0 | K33: =SUM(J28:J33) -> 0 | M33: =IF(MAX(B27:B32)<$I$6,0,VLOOKUP($I$6,B27:G32,6)) -> 0 | O33: =MAX(B27:B32) -> 00:00:00 | P33: =IF(OR($F$6="",I$6="",O33<F$6),99,IF(AND(O33>F$6,O33<=I$6),0,1)) -> 99 | R33: =IF(AND(H33 > 0, B33 > 0), LOOKUP(H33,INDEX(Faktoren!data,,1),INDEX(Faktoren!data,,5)),0) -> 0 | S33: 0 | T33: =SUM(S27:S33) -> 0
D34: =IF(D27>0,ROUND(+D33/D27*100,1),0) -> 0 | E34: =Textes!A310 -> pertes en % | G34: belegt | H34: =MAX(H27:H32) -> 0 | I34: =Textes!A312 -> jours poulailler occupé | N34: =IF(P33=1,$I$6-B27+1,H34) -> 0
D35: =IF(P33=99,0,IF(P33=0,H34/MAX(H28:H32),IF(P33=1,(H34-(O33-$I$6))/H34,0))) -> 0 | E35: =Textes!A311 -> Rotations | H35: =IF(B37<>0,(B37-O33),0) -> 0 | I35: =Textes!A313 -> jours poulailler inoccupé
B36: =Textes!A293 -> Rotation 3
C37: =IF(ISERROR(Jahr), "", IF($F$6>B37,"",IF(B37>$I$6,Jahr + 1,Jahr))) ->  | E37: =Textes!A303 -> Mise en poulailler | F37: =D37*0.04 -> 0 | G37: =IF(D37>0,D37,0) -> 0 | M37: =IF(OR(B37="",D37=""),0,IF((I$6-B37)=0,1,H37+(I$6-B37))) -> 0 | N37: =IF(D37="",0,VLOOKUP(M37,Faktoren!$B$16:$D$55,2)/1000) -> 0 | R37: =IF(AND(H37 > 0, B37 > 0), LOOKUP(H37,INDEX(Faktoren!data,,1),INDEX(Faktoren!data,,5)),0) -> 0 | S37: =D37:D43 * R37:R43 -> 0
E38: =Textes!A304 -> 1er abattage | G38: =IF(D37-D38>0,D37-D38,0) -> 0 | H38: =IF(AND(D38>0,B38>0),B38-B37+1,0) -> 0 | I38: =IF(H38>0,IF(H38>Faktoren!$D$5,Faktoren!$E$4,Faktoren!$E$5),0) -> 0 | J38: =IF(H38>0,D38*I38,0) -> 0 | M38: =IF(OR(B38="",D38=""),0,H38+(I$6-B38)) -> 0 | N38: =IF(D38="",0,VLOOKUP(M38,Faktoren!$B$16:$D$55,2)/1000) -> 0 | R38: =IF(AND(H38 > 0, B38 > 0), LOOKUP(H38,INDEX(Faktoren!data,,1),INDEX(Faktoren!data,,5)),0) -> 0 | S38: 0
E39: =Textes!A305 -> 2e abattage | G39: =IF(D37-D38-D39>0,D37-D38-D39,0) -> 0 | H39: =IF(AND(D39>0,B39>0),B39-B37+1,0) -> 0 | I39: =IF(H39>0,IF(H39>Faktoren!$D$5,Faktoren!$E$4,Faktoren!$E$5),0) -> 0 | J39: =IF(H39>0,D39*I39,0) -> 0 | M39: =IF(OR(B39="",D39=""),0,H39+(I$6-B39)) -> 0 | N39: =IF(D39="",0,VLOOKUP(M39,Faktoren!$B$16:$D$55,2)/1000) -> 0 | R39: =IF(AND(H39 > 0, B39 > 0), LOOKUP(H39,INDEX(Faktoren!data,,1),INDEX(Faktoren!data,,5)),0) -> 0 | S39: 0
E40: =Textes!A306 -> 3e abattage | G40: =IF(D37-D38-D39-D40>0,D37-D38-D39-D40,0) -> 0 | H40: =IF(AND(D40>0,B40>0),B40-B37+1,0) -> 0 | I40: =IF(H40>0,IF(H40>Faktoren!$D$5,Faktoren!$E$4,Faktoren!$E$5),0) -> 0 | J40: =IF(H40>0,D40*I40,0) -> 0 | M40: =IF(OR(B40="",D40=""),0,H40+(I$6-B40)) -> 0 | N40: =IF(D40="",0,VLOOKUP(M40,Faktoren!$B$16:$D$55,2)/1000) -> 0 | R40: =IF(AND(H40 > 0, B40 > 0), LOOKUP(H40,INDEX(Faktoren!data,,1),INDEX(Faktoren!data,,5)),0) -> 0 | S40: 0
E41: =Textes!A307 -> 4e abattage | G41: =IF(D37-D38-D39-D40-D41>0,D37-D38-D39-D40-D41,0) -> 0 | H41: =IF(AND(D41>0,B41>0),B41-B37+1,0) -> 0 | I41: =IF(H41>0,IF(H41>Faktoren!$D$5,Faktoren!$E$4,Faktoren!$E$5),0) -> 0 | J41: =IF(H41>0,D41*I41,0) -> 0 | M41: =IF(OR(B41="",D41=""),0,H41+(I$6-B41)) -> 0 | N41: =IF(D41="",0,VLOOKUP(M41,Faktoren!$B$16:$D$55,2)/1000) -> 0 | R41: =IF(AND(H41 > 0, B41 > 0), LOOKUP(H41,INDEX(Faktoren!data,,1),INDEX(Faktoren!data,,5)),0) -> 0 | S41: 0
E42: =Textes!A308 -> 5e abattage | G42: =IF(D37-D38-D39-D40-D41-D42>0,D37-D38-D39-D40-D41-D42,0) -> 0 | H42: =IF(AND(D42>0,B42>0),B42-B37+1,0) -> 0 | I42: =IF(H42>0,IF(H42>Faktoren!$D$5,Faktoren!$E$4,Faktoren!$E$5),0) -> 0 | J42: =IF(H42>0,D42*I42,0) -> 0 | M42: =IF(OR(B42="",D42=""),0,H42+(I$6-B42)) -> 0 | N42: =IF(D42="",0,VLOOKUP(M42,Faktoren!$B$16:$D$55,2)/1000) -> 0 | R42: =IF(AND(H42 > 0, B42 > 0), LOOKUP(H42,INDEX(Faktoren!data,,1),INDEX(Faktoren!data,,5)),0) -> 0 | S42: 0
B43: =IF(SUM(B37:B42) > 0,E43,"") ->  | D43: =+D37-SUM(D38:D42) -> 0 | E43: =Textes!A309 -> pertes | F43: =D43*0.6 -> 0 | I43: =IF(D43>0,Faktoren!$E$7,0) -> 0 | J43: =IF(D43>0,D43*I43,0) -> 0 | K43: =SUM(J38:J43) -> 0 | M43: =IF(MAX(B37:B42)<$I$6,0,VLOOKUP($I$6,B37:G42,6)) -> 0 | O43: =MAX(B37:B42) -> 00:00:00 | P43: =IF(OR($F$6="",I$6="",O43<F$6),99,IF(AND(O43>F$6,O43<=I$6),0,1)) -> 99 | R43: =IF(AND(H43 > 0, B43 > 0), LOOKUP(H43,INDEX(Faktoren!data,,1),INDEX(Faktoren!data,,5)),0) -> 0 | S43: 0 | T43: =SUM(S37:S43) -> 0
D44: =IF(D37>0,ROUND(+D43/D37*100,1),0) -> 0 | E44: =Textes!A310 -> pertes en % | G44: belegt | H44: =MAX(H37:H42) -> 0 | I44: =Textes!A312 -> jours poulailler occupé | N44: =IF(P43=1,$I$6-B37+1,H44) -> 0
D45: =IF(P43=99,0,IF(P43=0,H44/MAX(H38:H42),IF(P43=1,(H44-(O43-$I$6))/H44,0))) -> 0 | E45: =Textes!A311 -> Rotations | H45: =IF(B47<>0,(B47-O43),0) -> 0 | I45: =Textes!A313 -> jours poulailler inoccupé
B46: =Textes!A294 -> Rotation 4
C47: =IF(ISERROR(Jahr), "", IF($F$6>B47,"",IF(B47>$I$6,Jahr + 1,Jahr))) ->  | E47: =Textes!A303 -> Mise en poulailler | F47: =D47*0.04 -> 0 | G47: =IF(D47>0,D47,0) -> 0 | M47: =IF(OR(B47="",D47=""),0,IF((I$6-B47)=0,1,H47+(I$6-B47))) -> 0 | N47: =IF(D47="",0,VLOOKUP(M47,Faktoren!$B$16:$D$55,2)/1000) -> 0 | R47: =IF(AND(H47 > 0, B47 > 0), LOOKUP(H47,INDEX(Faktoren!data,,1),INDEX(Faktoren!data,,5)),0) -> 0 | S47: =D47:D53 * R47:R53 -> 0
E48: =Textes!A304 -> 1er abattage | G48: =IF(D47-D48>0,D47-D48,0) -> 0 | H48: =IF(AND(D48>0,B48>0),B48-B47+1,0) -> 0 | I48: =IF(H48>0,IF(H48>Faktoren!$D$5,Faktoren!$E$4,Faktoren!$E$5),0) -> 0 | J48: =IF(H48>0,D48*I48,0) -> 0 | M48: =IF(OR(B48="",D48=""),0,H48+(I$6-B48)) -> 0 | N48: =IF(D48="",0,VLOOKUP(M48,Faktoren!$B$16:$D$55,2)/1000) -> 0 | R48: =IF(AND(H48 > 0, B48 > 0), LOOKUP(H48,INDEX(Faktoren!data,,1),INDEX(Faktoren!data,,5)),0) -> 0 | S48: 0
E49: =Textes!A305 -> 2e abattage | G49: =IF(D47-D48-D49>0,D47-D48-D49,0) -> 0 | H49: =IF(AND(D49>0,B49>0),B49-B47+1,0) -> 0 | I49: =IF(H49>0,IF(H49>Faktoren!$D$5,Faktoren!$E$4,Faktoren!$E$5),0) -> 0 | J49: =IF(H49>0,D49*I49,0) -> 0 | M49: =IF(OR(B49="",D49=""),0,H49+(I$6-B49)) -> 0 | N49: =IF(D49="",0,VLOOKUP(M49,Faktoren!$B$16:$D$55,2)/1000) -> 0 | R49: =IF(AND(H49 > 0, B49 > 0), LOOKUP(H49,INDEX(Faktoren!data,,1),INDEX(Faktoren!data,,5)),0) -> 0 | S49: 0
E50: =Textes!A306 -> 3e abattage | G50: =IF(D47-D48-D49-D50>0,D47-D48-D49-D50,0) -> 0 | H50: =IF(AND(D50>0,B50>0),B50-B47+1,0) -> 0 | I50: =IF(H50>0,IF(H50>Faktoren!$D$5,Faktoren!$E$4,Faktoren!$E$5),0) -> 0 | J50: =IF(H50>0,D50*I50,0) -> 0 | M50: =IF(OR(B50="",D50=""),0,H50+(I$6-B50)) -> 0 | N50: =IF(D50="",0,VLOOKUP(M50,Faktoren!$B$16:$D$55,2)/1000) -> 0 | R50: =IF(AND(H50 > 0, B50 > 0), LOOKUP(H50,INDEX(Faktoren!data,,1),INDEX(Faktoren!data,,5)),0) -> 0 | S50: 0
E51: =Textes!A307 -> 4e abattage | G51: =IF(D47-D48-D49-D50-D51>0,D47-D48-D49-D50-D51,0) -> 0 | H51: =IF(AND(D51>0,B51>0),B51-B47+1,0) -> 0 | I51: =IF(H51>0,IF(H51>Faktoren!$D$5,Faktoren!$E$4,Faktoren!$E$5),0) -> 0 | J51: =IF(H51>0,D51*I51,0) -> 0 | M51: =IF(OR(B51="",D51=""),0,H51+(I$6-B51)) -> 0 | N51: =IF(D51="",0,VLOOKUP(M51,Faktoren!$B$16:$D$55,2)/1000) -> 0 | R51: =IF(AND(H51 > 0, B51 > 0), LOOKUP(H51,INDEX(Faktoren!data,,1),INDEX(Faktoren!data,,5)),0) -> 0 | S51: 0
E52: =Textes!A308 -> 5e abattage | G52: =IF(D47-D48-D49-D50-D51-D52>0,D47-D48-D49-D50-D51-D52,0) -> 0 | H52: =IF(AND(D52>0,B52>0),B52-B47+1,0) -> 0 | I52: =IF(H52>0,IF(H52>Faktoren!$D$5,Faktoren!$E$4,Faktoren!$E$5),0) -> 0 | J52: =IF(H52>0,D52*I52,0) -> 0 | M52: =IF(OR(B52="",D52=""),0,H52+(I$6-B52)) -> 0 | N52: =IF(D52="",0,VLOOKUP(M52,Faktoren!$B$16:$D$55,2)/1000) -> 0 | R52: =IF(AND(H52 > 0, B52 > 0), LOOKUP(H52,INDEX(Faktoren!data,,1),INDEX(Faktoren!data,,5)),0) -> 0 | S52: 0
B53: =IF(SUM(B47:B52) > 0,E53,"") ->  | D53: =+D47-SUM(D48:D52) -> 0 | E53: =Textes!A309 -> pertes | F53: =D53*0.6 -> 0 | I53: =IF(D53>0,Faktoren!$E$7,0) -> 0 | J53: =IF(D53>0,D53*I53,0) -> 0 | K53: =SUM(J48:J53) -> 0 | M53: =IF(MAX(B47:B52)<$I$6,0,VLOOKUP($I$6,B47:G52,6)) -> 0 | O53: =MAX(B47:B52) -> 00:00:00 | P53: =IF(OR($F$6="",I$6="",O53<F$6),99,IF(AND(O53>F$6,O53<=I$6),0,1)) -> 99 | R53: =IF(AND(H53 > 0, B53 > 0), LOOKUP(H53,INDEX(Faktoren!data,,1),INDEX(Faktoren!data,,5)),0) -> 0 | S53: 0 | T53: =SUM(S47:S53) -> 0
D54: =IF(D47>0,ROUND(+D53/D47*100,1),0) -> 0 | E54: =Textes!A310 -> pertes en % | G54: belegt | H54: =MAX(H47:H52) -> 0 | I54: =Textes!A312 -> jours poulailler occupé | N54: =IF(P53=1,$I$6-B47+1,H54) -> 0
D55: =IF(P53=99,0,IF(P53=0,H54/MAX(H48:H52),IF(P53=1,(H54-(O53-$I$6))/H54,0))) -> 0 | E55: =Textes!A311 -> Rotations | H55: =IF(B57<>0,(B57-O53),0) -> 0 | I55: =Textes!A313 -> jours poulailler inoccupé
B56: =Textes!A295 -> Rotation 5
C57: =IF(ISERROR(Jahr), "", IF($F$6>B57,"",IF(B57>$I$6,Jahr + 1,Jahr))) ->  | E57: =Textes!A303 -> Mise en poulailler | F57: =D57*0.04 -> 0 | G57: =IF(D57>0,D57,0) -> 0 | M57: =IF(OR(B57="",D57=""),0,IF((I$6-B57)=0,1,H57+(I$6-B57))) -> 0 | N57: =IF(D57="",0,VLOOKUP(M57,Faktoren!$B$16:$D$55,2)/1000) -> 0 | R57: =IF(AND(H57 > 0, B57 > 0), LOOKUP(H57,INDEX(Faktoren!data,,1),INDEX(Faktoren!data,,5)),0) -> 0 | S57: =D57:D63 * R57:R63 -> 0
E58: =Textes!A304 -> 1er abattage | G58: =IF(D57-D58>0,D57-D58,0) -> 0 | H58: =IF(AND(D58>0,B58>0),B58-B57+1,0) -> 0 | I58: =IF(H58>0,IF(H58>Faktoren!$D$5,Faktoren!$E$4,Faktoren!$E$5),0) -> 0 | J58: =IF(H58>0,D58*I58,0) -> 0 | M58: =IF(OR(B58="",D58=""),0,H58+(I$6-B58)) -> 0 | N58: =IF(D58="",0,VLOOKUP(M58,Faktoren!$B$16:$D$55,2)/1000) -> 0 | R58: =IF(AND(H58 > 0, B58 > 0), LOOKUP(H58,INDEX(Faktoren!data,,1),INDEX(Faktoren!data,,5)),0) -> 0 | S58: 0
E59: =Textes!A305 -> 2e abattage | G59: =IF(D57-D58-D59>0,D57-D58-D59,0) -> 0 | H59: =IF(AND(D59>0,B59>0),B59-B57+1,0) -> 0 | I59: =IF(H59>0,IF(H59>Faktoren!$D$5,Faktoren!$E$4,Faktoren!$E$5),0) -> 0 | J59: =IF(H59>0,D59*I59,0) -> 0 | M59: =IF(OR(B59="",D59=""),0,H59+(I$6-B59)) -> 0 | N59: =IF(D59="",0,VLOOKUP(M59,Faktoren!$B$16:$D$55,2)/1000) -> 0 | R59: =IF(AND(H59 > 0, B59 > 0), LOOKUP(H59,INDEX(Faktoren!data,,1),INDEX(Faktoren!data,,5)),0) -> 0 | S59: 0
E60: =Textes!A306 -> 3e abattage | G60: =IF(D57-D58-D59-D60>0,D57-D58-D59-D60,0) -> 0 | H60: =IF(AND(D60>0,B60>0),B60-B57+1,0) -> 0 | I60: =IF(H60>0,IF(H60>Faktoren!$D$5,Faktoren!$E$4,Faktoren!$E$5),0) -> 0 | J60: =IF(H60>0,D60*I60,0) -> 0 | M60: =IF(OR(B60="",D60=""),0,H60+(I$6-B60)) -> 0 | N60: =IF(D60="",0,VLOOKUP(M60,Faktoren!$B$16:$D$55,2)/1000) -> 0 | R60: =IF(AND(H60 > 0, B60 > 0), LOOKUP(H60,INDEX(Faktoren!data,,1),INDEX(Faktoren!data,,5)),0) -> 0 | S60: 0
E61: =Textes!A307 -> 4e abattage | G61: =IF(D57-D58-D59-D60-D61>0,D57-D58-D59-D60-D61,0) -> 0 | H61: =IF(AND(D61>0,B61>0),B61-B57+1,0) -> 0 | I61: =IF(H61>0,IF(H61>Faktoren!$D$5,Faktoren!$E$4,Faktoren!$E$5),0) -> 0 | J61: =IF(H61>0,D61*I61,0) -> 0 | M61: =IF(OR(B61="",D61=""),0,H61+(I$6-B61)) -> 0 | N61: =IF(D61="",0,VLOOKUP(M61,Faktoren!$B$16:$D$55,2)/1000) -> 0 | R61: =IF(AND(H61 > 0, B61 > 0), LOOKUP(H61,INDEX(Faktoren!data,,1),INDEX(Faktoren!data,,5)),0) -> 0 | S61: 0
E62: =Textes!A308 -> 5e abattage | G62: =IF(D57-D58-D59-D60-D61-D62>0,D57-D58-D59-D60-D61-D62,0) -> 0 | H62: =IF(AND(D62>0,B62>0),B62-B57+1,0) -> 0 | I62: =IF(H62>0,IF(H62>Faktoren!$D$5,Faktoren!$E$4,Faktoren!$E$5),0) -> 0 | J62: =IF(H62>0,D62*I62,0) -> 0 | M62: =IF(OR(B62="",D62=""),0,H62+(I$6-B62)) -> 0 | N62: =IF(D62="",0,VLOOKUP(M62,Faktoren!$B$16:$D$55,2)/1000) -> 0 | R62: =IF(AND(H62 > 0, B62 > 0), LOOKUP(H62,INDEX(Faktoren!data,,1),INDEX(Faktoren!data,,5)),0) -> 0 | S62: 0
B63: =IF(SUM(B57:B62) > 0,E63,"") ->  | D63: =+D57-SUM(D58:D62) -> 0 | E63: =Textes!A309 -> pertes | F63: =D63*0.6 -> 0 | I63: =IF(D63>0,Faktoren!$E$7,0) -> 0 | J63: =IF(D63>0,D63*I63,0) -> 0 | K63: =SUM(J58:J63) -> 0 | M63: =IF(MAX(B57:B62)<$I$6,0,VLOOKUP($I$6,B57:G62,6)) -> 0 | O63: =MAX(B57:B62) -> 00:00:00 | P63: =IF(OR($F$6="",I$6="",O63<F$6),99,IF(AND(O63>F$6,O63<=I$6),0,1)) -> 99 | R63: =IF(AND(H63 > 0, B63 > 0), LOOKUP(H63,INDEX(Faktoren!data,,1),INDEX(Faktoren!data,,5)),0) -> 0 | S63: 0 | T63: =SUM(S57:S63) -> 0
D64: =IF(D57>0,ROUND(+D63/D57*100,1),0) -> 0 | E64: =Textes!A310 -> pertes en % | G64: belegt | H64: =MAX(H57:H62) -> 0 | I64: =Textes!A312 -> jours poulailler occupé | N64: =IF(P63=1,$I$6-B57+1,H64) -> 0
D65: =IF(P63=99,0,IF(P63=0,H64/MAX(H58:H62),IF(P63=1,(H64-(O63-$I$6))/H64,0))) -> 0 | E65: =Textes!A311 -> Rotations | H65: =IF(B69<>0,(B69-O63),0) -> 0 | I65: =Textes!A313 -> jours poulailler inoccupé
B67: =Textes!A267 -> Poulailler 1 | K67: =Textes!A338 -> page 2
B68: =Textes!A296 -> Rotation 6
C69: =IF(ISERROR(Jahr), "", IF($F$6>B69,"",IF(B69>$I$6,Jahr + 1,Jahr))) ->  | E69: =Textes!A303 -> Mise en poulailler | F69: =D69*0.04 -> 0 | G69: =IF(D69>0,D69,0) -> 0 | M69: =IF(OR(B69="",D69=""),0,IF((I$6-B69)=0,1,H69+(I$6-B69))) -> 0 | N69: =IF(D69="",0,VLOOKUP(M69,Faktoren!$B$16:$D$55,2)/1000) -> 0 | R69: =IF(AND(H69 > 0, B69 > 0), LOOKUP(H69,INDEX(Faktoren!data,,1),INDEX(Faktoren!data,,5)),0) -> 0 | S69: =D69:D75 * R69:R75 -> 0
E70: =Textes!A304 -> 1er abattage | G70: =IF(D69-D70>0,D69-D70,0) -> 0 | H70: =IF(AND(D70>0,B70>0),B70-B69+1,0) -> 0 | I70: =IF(H70>0,IF(H70>Faktoren!$D$5,Faktoren!$E$4,Faktoren!$E$5),0) -> 0 | J70: =IF(H70>0,D70*I70,0) -> 0 | M70: =IF(OR(B70="",D70=""),0,H70+(I$6-B70)) -> 0 | N70: =IF(D70="",0,VLOOKUP(M70,Faktoren!$B$16:$D$55,2)/1000) -> 0 | R70: =IF(AND(H70 > 0, B70 > 0), LOOKUP(H70,INDEX(Faktoren!data,,1),INDEX(Faktoren!data,,5)),0) -> 0 | S70: 0
E71: =Textes!A305 -> 2e abattage | G71: =IF(D69-D70-D71>0,D69-D70-D71,0) -> 0 | H71: =IF(AND(D71>0,B71>0),B71-B69+1,0) -> 0 | I71: =IF(H71>0,IF(H71>Faktoren!$D$5,Faktoren!$E$4,Faktoren!$E$5),0) -> 0 | J71: =IF(H71>0,D71*I71,0) -> 0 | M71: =IF(OR(B71="",D71=""),0,H71+(I$6-B71)) -> 0 | N71: =IF(D71="",0,VLOOKUP(M71,Faktoren!$B$16:$D$55,2)/1000) -> 0 | R71: =IF(AND(H71 > 0, B71 > 0), LOOKUP(H71,INDEX(Faktoren!data,,1),INDEX(Faktoren!data,,5)),0) -> 0 | S71: 0
E72: =Textes!A306 -> 3e abattage | G72: =IF(D69-D70-D71-D72>0,D69-D70-D71-D72,0) -> 0 | H72: =IF(AND(D72>0,B72>0),B72-B69+1,0) -> 0 | I72: =IF(H72>0,IF(H72>Faktoren!$D$5,Faktoren!$E$4,Faktoren!$E$5),0) -> 0 | J72: =IF(H72>0,D72*I72,0) -> 0 | M72: =IF(OR(B72="",D72=""),0,H72+(I$6-B72)) -> 0 | N72: =IF(D72="",0,VLOOKUP(M72,Faktoren!$B$16:$D$55,2)/1000) -> 0 | R72: =IF(AND(H72 > 0, B72 > 0), LOOKUP(H72,INDEX(Faktoren!data,,1),INDEX(Faktoren!data,,5)),0) -> 0 | S72: 0
E73: =Textes!A307 -> 4e abattage | G73: =IF(D69-D70-D71-D72-D73>0,D69-D70-D71-D72-D73,0) -> 0 | H73: =IF(AND(D73>0,B73>0),B73-B69+1,0) -> 0 | I73: =IF(H73>0,IF(H73>Faktoren!$D$5,Faktoren!$E$4,Faktoren!$E$5),0) -> 0 | J73: =IF(H73>0,D73*I73,0) -> 0 | M73: =IF(OR(B73="",D73=""),0,H73+(I$6-B73)) -> 0 | N73: =IF(D73="",0,VLOOKUP(M73,Faktoren!$B$16:$D$55,2)/1000) -> 0 | R73: =IF(AND(H73 > 0, B73 > 0), LOOKUP(H73,INDEX(Faktoren!data,,1),INDEX(Faktoren!data,,5)),0) -> 0 | S73: 0
E74: =Textes!A308 -> 5e abattage | G74: =IF(D69-D70-D71-D72-D73-D74>0,D69-D70-D71-D72-D73-D74,0) -> 0 | H74: =IF(AND(D74>0,B74>0),B74-B69+1,0) -> 0 | I74: =IF(H74>0,IF(H74>Faktoren!$D$5,Faktoren!$E$4,Faktoren!$E$5),0) -> 0 | J74: =IF(H74>0,D74*I74,0) -> 0 | M74: =IF(OR(B74="",D74=""),0,H74+(I$6-B74)) -> 0 | N74: =IF(D74="",0,VLOOKUP(M74,Faktoren!$B$16:$D$55,2)/1000) -> 0 | R74: =IF(AND(H74 > 0, B74 > 0), LOOKUP(H74,INDEX(Faktoren!data,,1),INDEX(Faktoren!data,,5)),0) -> 0 | S74: 0
B75: =IF(SUM(B69:B74) > 0,E75,"") ->  | D75: =+D69-SUM(D70:D74) -> 0 | E75: =Textes!A309 -> pertes | F75: =D75*0.6 -> 0 | I75: =IF(D75>0,Faktoren!$E$7,0) -> 0 | J75: =IF(D75>0,D75*I75,0) -> 0 | K75: =SUM(J70:J75) -> 0 | M75: =IF(MAX(B69:B74)<$I$6,0,VLOOKUP($I$6,B69:G74,6)) -> 0 | O75: =MAX(B69:B74) -> 00:00:00 | P75: =IF(OR($F$6="",I$6="",O75<F$6),99,IF(AND(O75>F$6,O75<=I$6),0,1)) -> 99 | R75: =IF(AND(H75 > 0, B75 > 0), LOOKUP(H75,INDEX(Faktoren!data,,1),INDEX(Faktoren!data,,5)),0) -> 0 | S75: 0 | T75: =SUM(S69:S75) -> 0
D76: =IF(D69>0,ROUND(+D75/D69*100,1),0) -> 0 | E76: =Textes!A310 -> pertes en % | G76: belegt | H76: =MAX(H69:H74) -> 0 | I76: =Textes!A312 -> jours poulailler occupé | N76: =IF(P75=1,$I$6-B69+1,H76) -> 0
D77: =IF(P75=99,0,IF(P75=0,H76/MAX(H70:H74),IF(P75=1,(H76-(O75-$I$6))/H76,0))) -> 0 | E77: =Textes!A311 -> Rotations | H77: =IF(B79<>0,(B79-O75),0) -> 0 | I77: =Textes!A313 -> jours poulailler inoccupé
B78: =Textes!A297 -> Rotation 7
C79: =IF(ISERROR(Jahr), "", IF($F$6>B79,"",IF(B79>$I$6,Jahr + 1,Jahr))) ->  | E79: =Textes!A303 -> Mise en poulailler | F79: =D79*0.04 -> 0 | G79: =IF(D79>0,D79,0) -> 0 | M79: =IF(OR(B79="",D79=""),0,IF((I$6-B79)=0,1,H79+(I$6-B79))) -> 0 | N79: =IF(D79="",0,VLOOKUP(M79,Faktoren!$B$16:$D$55,2)/1000) -> 0 | R79: =IF(AND(H79 > 0, B79 > 0), LOOKUP(H79,INDEX(Faktoren!data,,1),INDEX(Faktoren!data,,5)),0) -> 0 | S79: =D79:D85 * R79:R85 -> 0
E80: =Textes!A304 -> 1er abattage | G80: =IF(D79-D80>0,D79-D80,0) -> 0 | H80: =IF(AND(D80>0,B80>0),B80-B79+1,0) -> 0 | I80: =IF(H80>0,IF(H80>Faktoren!$D$5,Faktoren!$E$4,Faktoren!$E$5),0) -> 0 | J80: =IF(H80>0,D80*I80,0) -> 0 | M80: =IF(OR(B80="",D80=""),0,H80+(I$6-B80)) -> 0 | N80: =IF(D80="",0,VLOOKUP(M80,Faktoren!$B$16:$D$55,2)/1000) -> 0 | R80: =IF(AND(H80 > 0, B80 > 0), LOOKUP(H80,INDEX(Faktoren!data,,1),INDEX(Faktoren!data,,5)),0) -> 0 | S80: 0
E81: =Textes!A305 -> 2e abattage | G81: =IF(D79-D80-D81>0,D79-D80-D81,0) -> 0 | H81: =IF(AND(D81>0,B81>0),B81-B79+1,0) -> 0 | I81: =IF(H81>0,IF(H81>Faktoren!$D$5,Faktoren!$E$4,Faktoren!$E$5),0) -> 0 | J81: =IF(H81>0,D81*I81,0) -> 0 | M81: =IF(OR(B81="",D81=""),0,H81+(I$6-B81)) -> 0 | N81: =IF(D81="",0,VLOOKUP(M81,Faktoren!$B$16:$D$55,2)/1000) -> 0 | R81: =IF(AND(H81 > 0, B81 > 0), LOOKUP(H81,INDEX(Faktoren!data,,1),INDEX(Faktoren!data,,5)),0) -> 0 | S81: 0
E82: =Textes!A306 -> 3e abattage | G82: =IF(D79-D80-D81-D82>0,D79-D80-D81-D82,0) -> 0 | H82: =IF(AND(D82>0,B82>0),B82-B79+1,0) -> 0 | I82: =IF(H82>0,IF(H82>Faktoren!$D$5,Faktoren!$E$4,Faktoren!$E$5),0) -> 0 | J82: =IF(H82>0,D82*I82,0) -> 0 | M82: =IF(OR(B82="",D82=""),0,H82+(I$6-B82)) -> 0 | N82: =IF(D82="",0,VLOOKUP(M82,Faktoren!$B$16:$D$55,2)/1000) -> 0 | R82: =IF(AND(H82 > 0, B82 > 0), LOOKUP(H82,INDEX(Faktoren!data,,1),INDEX(Faktoren!data,,5)),0) -> 0 | S82: 0
E83: =Textes!A307 -> 4e abattage | G83: =IF(D79-D80-D81-D82-D83>0,D79-D80-D81-D82-D83,0) -> 0 | H83: =IF(AND(D83>0,B83>0),B83-B79+1,0) -> 0 | I83: =IF(H83>0,IF(H83>Faktoren!$D$5,Faktoren!$E$4,Faktoren!$E$5),0) -> 0 | J83: =IF(H83>0,D83*I83,0) -> 0 | M83: =IF(OR(B83="",D83=""),0,H83+(I$6-B83)) -> 0 | N83: =IF(D83="",0,VLOOKUP(M83,Faktoren!$B$16:$D$55,2)/1000) -> 0 | R83: =IF(AND(H83 > 0, B83 > 0), LOOKUP(H83,INDEX(Faktoren!data,,1),INDEX(Faktoren!data,,5)),0) -> 0 | S83: 0
E84: =Textes!A308 -> 5e abattage | G84: =IF(D79-D80-D81-D82-D83-D84>0,D79-D80-D81-D82-D83-D84,0) -> 0 | H84: =IF(AND(D84>0,B84>0),B84-B79+1,0) -> 0 | I84: =IF(H84>0,IF(H84>Faktoren!$D$5,Faktoren!$E$4,Faktoren!$E$5),0) -> 0 | J84: =IF(H84>0,D84*I84,0) -> 0 | M84: =IF(OR(B84="",D84=""),0,H84+(I$6-B84)) -> 0 | N84: =IF(D84="",0,VLOOKUP(M84,Faktoren!$B$16:$D$55,2)/1000) -> 0 | R84: =IF(AND(H84 > 0, B84 > 0), LOOKUP(H84,INDEX(Faktoren!data,,1),INDEX(Faktoren!data,,5)),0) -> 0 | S84: 0
B85: =IF(SUM(B79:B84) > 0,E85,"") ->  | D85: =+D79-SUM(D80:D84) -> 0 | E85: =Textes!A309 -> pertes | F85: =D85*0.6 -> 0 | I85: =IF(D85>0,Faktoren!$E$7,0) -> 0 | J85: =IF(D85>0,D85*I85,0) -> 0 | K85: =SUM(J80:J85) -> 0 | M85: =IF(MAX(B79:B84)<$I$6,0,VLOOKUP($I$6,B79:G84,6)) -> 0 | O85: =MAX(B79:B84) -> 00:00:00 | P85: =IF(OR($F$6="",I$6="",O85<F$6),99,IF(AND(O85>F$6,O85<=I$6),0,1)) -> 99 | R85: =IF(AND(H85 > 0, B85 > 0), LOOKUP(H85,INDEX(Faktoren!data,,1),INDEX(Faktoren!data,,5)),0) -> 0 | S85: 0 | T85: =SUM(S79:S85) -> 0
D86: =IF(D79>0,ROUND(+D85/D79*100,1),0) -> 0 | E86: =Textes!A310 -> pertes en % | G86: belegt | H86: =MAX(H79:H84) -> 0 | I86: =Textes!A312 -> jours poulailler occupé | N86: =IF(P85=1,$I$6-B79+1,H86) -> 0
D87: =IF(P85=99,0,IF(P85=0,H86/MAX(H80:H84),IF(P85=1,(H86-(O85-$I$6))/H86,0))) -> 0 | E87: =Textes!A311 -> Rotations | H87: =IF(B89<>0,(B89-O85),0) -> 0 | I87: =Textes!A313 -> jours poulailler inoccupé
B88: =Textes!A298 -> Rotation 8
C89: =IF(ISERROR(Jahr), "", IF($F$6>B89,"",IF(B89>$I$6,Jahr + 1,Jahr))) ->  | E89: =Textes!A303 -> Mise en poulailler | F89: =D89*0.04 -> 0 | G89: =IF(D89>0,D89,0) -> 0 | M89: =IF(OR(B89="",D89=""),0,IF((I$6-B89)=0,1,H89+(I$6-B89))) -> 0 | N89: =IF(D89="",0,VLOOKUP(M89,Faktoren!$B$16:$D$55,2)/1000) -> 0 | R89: =IF(AND(H89 > 0, B89 > 0), LOOKUP(H89,INDEX(Faktoren!data,,1),INDEX(Faktoren!data,,5)),0) -> 0 | S89: =D89:D95 * R89:R95 -> 0
E90: =Textes!A304 -> 1er abattage | G90: =IF(D89-D90>0,D89-D90,0) -> 0 | H90: =IF(AND(D90>0,B90>0),B90-B89+1,0) -> 0 | I90: =IF(H90>0,IF(H90>Faktoren!$D$5,Faktoren!$E$4,Faktoren!$E$5),0) -> 0 | J90: =IF(H90>0,D90*I90,0) -> 0 | M90: =IF(OR(B90="",D90=""),0,H90+(I$6-B90)) -> 0 | N90: =IF(D90="",0,VLOOKUP(M90,Faktoren!$B$16:$D$55,2)/1000) -> 0 | R90: =IF(AND(H90 > 0, B90 > 0), LOOKUP(H90,INDEX(Faktoren!data,,1),INDEX(Faktoren!data,,5)),0) -> 0 | S90: 0
E91: =Textes!A305 -> 2e abattage | G91: =IF(D89-D90-D91>0,D89-D90-D91,0) -> 0 | H91: =IF(AND(D91>0,B91>0),B91-B89+1,0) -> 0 | I91: =IF(H91>0,IF(H91>Faktoren!$D$5,Faktoren!$E$4,Faktoren!$E$5),0) -> 0 | J91: =IF(H91>0,D91*I91,0) -> 0 | M91: =IF(OR(B91="",D91=""),0,H91+(I$6-B91)) -> 0 | N91: =IF(D91="",0,VLOOKUP(M91,Faktoren!$B$16:$D$55,2)/1000) -> 0 | R91: =IF(AND(H91 > 0, B91 > 0), LOOKUP(H91,INDEX(Faktoren!data,,1),INDEX(Faktoren!data,,5)),0) -> 0 | S91: 0
E92: =Textes!A306 -> 3e abattage | G92: =IF(D89-D90-D91-D92>0,D89-D90-D91-D92,0) -> 0 | H92: =IF(AND(D92>0,B92>0),B92-B89+1,0) -> 0 | I92: =IF(H92>0,IF(H92>Faktoren!$D$5,Faktoren!$E$4,Faktoren!$E$5),0) -> 0 | J92: =IF(H92>0,D92*I92,0) -> 0 | M92: =IF(OR(B92="",D92=""),0,H92+(I$6-B92)) -> 0 | N92: =IF(D92="",0,VLOOKUP(M92,Faktoren!$B$16:$D$55,2)/1000) -> 0 | R92: =IF(AND(H92 > 0, B92 > 0), LOOKUP(H92,INDEX(Faktoren!data,,1),INDEX(Faktoren!data,,5)),0) -> 0 | S92: 0
E93: =Textes!A307 -> 4e abattage | G93: =IF(D89-D90-D91-D92-D93>0,D89-D90-D91-D92-D93,0) -> 0 | H93: =IF(AND(D93>0,B93>0),B93-B89+1,0) -> 0 | I93: =IF(H93>0,IF(H93>Faktoren!$D$5,Faktoren!$E$4,Faktoren!$E$5),0) -> 0 | J93: =IF(H93>0,D93*I93,0) -> 0 | M93: =IF(OR(B93="",D93=""),0,H93+(I$6-B93)) -> 0 | N93: =IF(D93="",0,VLOOKUP(M93,Faktoren!$B$16:$D$55,2)/1000) -> 0 | R93: =IF(AND(H93 > 0, B93 > 0), LOOKUP(H93,INDEX(Faktoren!data,,1),INDEX(Faktoren!data,,5)),0) -> 0 | S93: 0
E94: =Textes!A308 -> 5e abattage | G94: =IF(D89-D90-D91-D92-D93-D94>0,D89-D90-D91-D92-D93-D94,0) -> 0 | H94: =IF(AND(D94>0,B94>0),B94-B89+1,0) -> 0 | I94: =IF(H94>0,IF(H94>Faktoren!$D$5,Faktoren!$E$4,Faktoren!$E$5),0) -> 0 | J94: =IF(H94>0,D94*I94,0) -> 0 | M94: =IF(OR(B94="",D94=""),0,H94+(I$6-B94)) -> 0 | N94: =IF(D94="",0,VLOOKUP(M94,Faktoren!$B$16:$D$55,2)/1000) -> 0 | R94: =IF(AND(H94 > 0, B94 > 0), LOOKUP(H94,INDEX(Faktoren!data,,1),INDEX(Faktoren!data,,5)),0) -> 0 | S94: 0
B95: =IF(SUM(B89:B94) > 0,E95,"") ->  | D95: =+D89-SUM(D90:D94) -> 0 | E95: =Textes!A309 -> pertes | F95: =D95*0.6 -> 0 | I95: =IF(D95>0,Faktoren!$E$7,0) -> 0 | J95: =IF(D95>0,D95*I95,0) -> 0 | K95: =SUM(J90:J95) -> 0 | M95: =IF(MAX(B89:B94)<$I$6,0,VLOOKUP($I$6,B89:G94,6)) -> 0 | O95: =MAX(B89:B94) -> 00:00:00 | P95: =IF(OR($F$6="",I$6="",O95<F$6),99,IF(AND(O95>F$6,O95<=I$6),0,1)) -> 99 | R95: =IF(AND(H95 > 0, B95 > 0), LOOKUP(H95,INDEX(Faktoren!data,,1),INDEX(Faktoren!data,,5)),0) -> 0 | S95: 0 | T95: =SUM(S89:S95) -> 0
D96: =IF(D89>0,ROUND(+D95/D89*100,1),0) -> 0 | E96: =Textes!A310 -> pertes en % | G96: belegt | H96: =MAX(H89:H94) -> 0 | I96: =Textes!A312 -> jours poulailler occupé | N96: =IF(P95=1,$I$6-B89+1,H96) -> 0
D97: =IF(P95=99,0,IF(P95=0,H96/MAX(H90:H94),IF(P95=1,(H96-(O95-$I$6))/H96,0))) -> 0 | E97: =Textes!A311 -> Rotations | H97: =IF(B99<>0,(B99-O95),0) -> 0 | I97: =Textes!A313 -> jours poulailler inoccupé
B98: =Textes!A299 -> Rotation 9
C99: =IF(ISERROR(Jahr), "", IF($F$6>B99,"",IF(B99>$I$6,Jahr + 1,Jahr))) ->  | E99: =Textes!A303 -> Mise en poulailler | F99: =D99*0.04 -> 0 | G99: =IF(D99>0,D99,0) -> 0 | M99: =IF(OR(B99="",D99=""),0,IF((I$6-B99)=0,1,H99+(I$6-B99))) -> 0 | N99: =IF(D99="",0,VLOOKUP(M99,Faktoren!$B$16:$D$55,2)/1000) -> 0 | R99: =IF(AND(H99 > 0, B99 > 0), LOOKUP(H99,INDEX(Faktoren!data,,1),INDEX(Faktoren!data,,5)),0) -> 0 | S99: =D99:D105 * R99:R105 -> 0
E100: =Textes!A304 -> 1er abattage | G100: =IF(D99-D100>0,D99-D100,0) -> 0 | H100: =IF(AND(D100>0,B100>0),B100-B99+1,0) -> 0 | I100: =IF(H100>0,IF(H100>Faktoren!$D$5,Faktoren!$E$4,Faktoren!$E$5),0) -> 0 | J100: =IF(H100>0,D100*I100,0) -> 0 | M100: =IF(OR(B100="",D100=""),0,H100+(I$6-B100)) -> 0 | N100: =IF(D100="",0,VLOOKUP(M100,Faktoren!$B$16:$D$55,2)/1000) -> 0 | R100: =IF(AND(H100 > 0, B100 > 0), LOOKUP(H100,INDEX(Faktoren!data,,1),INDEX(Faktoren!data,,5)),0) -> 0 | S100: 0
E101: =Textes!A305 -> 2e abattage | G101: =IF(D99-D100-D101>0,D99-D100-D101,0) -> 0 | H101: =IF(AND(D101>0,B101>0),B101-B99+1,0) -> 0 | I101: =IF(H101>0,IF(H101>Faktoren!$D$5,Faktoren!$E$4,Faktoren!$E$5),0) -> 0 | J101: =IF(H101>0,D101*I101,0) -> 0 | M101: =IF(OR(B101="",D101=""),0,H101+(I$6-B101)) -> 0 | N101: =IF(D101="",0,VLOOKUP(M101,Faktoren!$B$16:$D$55,2)/1000) -> 0 | R101: =IF(AND(H101 > 0, B101 > 0), LOOKUP(H101,INDEX(Faktoren!data,,1),INDEX(Faktoren!data,,5)),0) -> 0 | S101: 0
E102: =Textes!A306 -> 3e abattage | G102: =IF(D99-D100-D101-D102>0,D99-D100-D101-D102,0) -> 0 | H102: =IF(AND(D102>0,B102>0),B102-B99+1,0) -> 0 | I102: =IF(H102>0,IF(H102>Faktoren!$D$5,Faktoren!$E$4,Faktoren!$E$5),0) -> 0 | J102: =IF(H102>0,D102*I102,0) -> 0 | M102: =IF(OR(B102="",D102=""),0,H102+(I$6-B102)) -> 0 | N102: =IF(D102="",0,VLOOKUP(M102,Faktoren!$B$16:$D$55,2)/1000) -> 0 | R102: =IF(AND(H102 > 0, B102 > 0), LOOKUP(H102,INDEX(Faktoren!data,,1),INDEX(Faktoren!data,,5)),0) -> 0 | S102: 0
E103: =Textes!A307 -> 4e abattage | G103: =IF(D99-D100-D101-D102-D103>0,D99-D100-D101-D102-D103,0) -> 0 | H103: =IF(AND(D103>0,B103>0),B103-B99+1,0) -> 0 | I103: =IF(H103>0,IF(H103>Faktoren!$D$5,Faktoren!$E$4,Faktoren!$E$5),0) -> 0 | J103: =IF(H103>0,D103*I103,0) -> 0 | M103: =IF(OR(B103="",D103=""),0,H103+(I$6-B103)) -> 0 | N103: =IF(D103="",0,VLOOKUP(M103,Faktoren!$B$16:$D$55,2)/1000) -> 0 | R103: =IF(AND(H103 > 0, B103 > 0), LOOKUP(H103,INDEX(Faktoren!data,,1),INDEX(Faktoren!data,,5)),0) -> 0 | S103: 0
E104: =Textes!A308 -> 5e abattage | G104: =IF(D99-D100-D101-D102-D103-D104>0,D99-D100-D101-D102-D103-D104,0) -> 0 | H104: =IF(AND(D104>0,B104>0),B104-B99+1,0) -> 0 | I104: =IF(H104>0,IF(H104>Faktoren!$D$5,Faktoren!$E$4,Faktoren!$E$5),0) -> 0 | J104: =IF(H104>0,D104*I104,0) -> 0 | M104: =IF(OR(B104="",D104=""),0,H104+(I$6-B104)) -> 0 | N104: =IF(D104="",0,VLOOKUP(M104,Faktoren!$B$16:$D$55,2)/1000) -> 0 | R104: =IF(AND(H104 > 0, B104 > 0), LOOKUP(H104,INDEX(Faktoren!data,,1),INDEX(Faktoren!data,,5)),0) -> 0 | S104: 0
B105: =IF(SUM(B99:B104) > 0,E105,"") ->  | D105: =+D99-SUM(D100:D104) -> 0 | E105: =Textes!A309 -> pertes | F105: =D105*0.6 -> 0 | I105: =IF(D105>0,Faktoren!$E$7,0) -> 0 | J105: =IF(D105>0,D105*I105,0) -> 0 | K105: =SUM(J100:J105) -> 0 | M105: =IF(MAX(B99:B104)<$I$6,0,VLOOKUP($I$6,B99:G104,6)) -> 0 | O105: =MAX(B99:B104) -> 00:00:00 | P105: =IF(OR($F$6="",I$6="",O105<F$6),99,IF(AND(O105>F$6,O105<=I$6),0,1)) -> 99 | R105: =IF(AND(H105 > 0, B105 > 0), LOOKUP(H105,INDEX(Faktoren!data,,1),INDEX(Faktoren!data,,5)),0) -> 0 | S105: 0 | T105: =SUM(S99:S105) -> 0
D106: =IF(D99>0,ROUND(+D105/D99*100,1),0) -> 0 | E106: =Textes!A310 -> pertes en % | G106: belegt | H106: =MAX(H99:H104) -> 0 | I106: =Textes!A312 -> jours poulailler occupé | N106: =IF(P105=1,$I$6-B99+1,H106) -> 0
D107: =IF(P105=99,0,IF(P105=0,H106/MAX(H100:H104),IF(P105=1,(H106-(O105-$I$6))/H106,0))) -> 0 | E107: =Textes!A311 -> Rotations | H107: =IF(B109<>0,(B109-O105),0) -> 0 | I107: =Textes!A313 -> jours poulailler inoccupé
B108: =Textes!A300 -> Rotation 10
C109: =IF(ISERROR(Jahr), "", IF($F$6>B109,"",IF(B109>$I$6,Jahr + 1,Jahr))) ->  | E109: =Textes!A303 -> Mise en poulailler | F109: =D109*0.04 -> 0 | G109: =IF(D109>0,D109,0) -> 0 | M109: =IF(OR(B109="",D109=""),0,IF((I$6-B109)=0,1,H109+(I$6-B109))) -> 0 | N109: =IF(D109="",0,VLOOKUP(M109,Faktoren!$B$16:$D$55,2)/1000) -> 0 | R109: =IF(AND(H109 > 0, B109 > 0), LOOKUP(H109,INDEX(Faktoren!data,,1),INDEX(Faktoren!data,,5)),0) -> 0 | S109: =D109:D115 * R109:R115 -> 0
E110: =Textes!A304 -> 1er abattage | G110: =IF(D109-D110>0,D109-D110,0) -> 0 | H110: =IF(AND(D110>0,B110>0),B110-B109+1,0) -> 0 | I110: =IF(H110>0,IF(H110>Faktoren!$D$5,Faktoren!$E$4,Faktoren!$E$5),0) -> 0 | J110: =IF(H110>0,D110*I110,0) -> 0 | M110: =IF(OR(B110="",D110=""),0,H110+(I$6-B110)) -> 0 | N110: =IF(D110="",0,VLOOKUP(M110,Faktoren!$B$16:$D$55,2)/1000) -> 0 | R110: =IF(AND(H110 > 0, B110 > 0), LOOKUP(H110,INDEX(Faktoren!data,,1),INDEX(Faktoren!data,,5)),0) -> 0 | S110: 0
E111: =Textes!A305 -> 2e abattage | G111: =IF(D109-D110-D111>0,D109-D110-D111,0) -> 0 | H111: =IF(AND(D111>0,B111>0),B111-B109+1,0) -> 0 | I111: =IF(H111>0,IF(H111>Faktoren!$D$5,Faktoren!$E$4,Faktoren!$E$5),0) -> 0 | J111: =IF(H111>0,D111*I111,0) -> 0 | M111: =IF(OR(B111="",D111=""),0,H111+(I$6-B111)) -> 0 | N111: =IF(D111="",0,VLOOKUP(M111,Faktoren!$B$16:$D$55,2)/1000) -> 0 | R111: =IF(AND(H111 > 0, B111 > 0), LOOKUP(H111,INDEX(Faktoren!data,,1),INDEX(Faktoren!data,,5)),0) -> 0 | S111: 0
E112: =Textes!A306 -> 3e abattage | G112: =IF(D109-D110-D111-D112>0,D109-D110-D111-D112,0) -> 0 | H112: =IF(AND(D112>0,B112>0),B112-B109+1,0) -> 0 | I112: =IF(H112>0,IF(H112>Faktoren!$D$5,Faktoren!$E$4,Faktoren!$E$5),0) -> 0 | J112: =IF(H112>0,D112*I112,0) -> 0 | M112: =IF(OR(B112="",D112=""),0,H112+(I$6-B112)) -> 0 | N112: =IF(D112="",0,VLOOKUP(M112,Faktoren!$B$16:$D$55,2)/1000) -> 0 | R112: =IF(AND(H112 > 0, B112 > 0), LOOKUP(H112,INDEX(Faktoren!data,,1),INDEX(Faktoren!data,,5)),0) -> 0 | S112: 0
E113: =Textes!A307 -> 4e abattage | G113: =IF(D109-D110-D111-D112-D113>0,D109-D110-D111-D112-D113,0) -> 0 | H113: =IF(AND(D113>0,B113>0),B113-B109+1,0) -> 0 | I113: =IF(H113>0,IF(H113>Faktoren!$D$5,Faktoren!$E$4,Faktoren!$E$5),0) -> 0 | J113: =IF(H113>0,D113*I113,0) -> 0 | M113: =IF(OR(B113="",D113=""),0,H113+(I$6-B113)) -> 0 | N113: =IF(D113="",0,VLOOKUP(M113,Faktoren!$B$16:$D$55,2)/1000) -> 0 | R113: =IF(AND(H113 > 0, B113 > 0), LOOKUP(H113,INDEX(Faktoren!data,,1),INDEX(Faktoren!data,,5)),0) -> 0 | S113: 0
E114: =Textes!A308 -> 5e abattage | G114: =IF(D109-D110-D111-D112-D113-D114>0,D109-D110-D111-D112-D113-D114,0) -> 0 | H114: =IF(AND(D114>0,B114>0),B114-B109+1,0) -> 0 | I114: =IF(H114>0,IF(H114>Faktoren!$D$5,Faktoren!$E$4,Faktoren!$E$5),0) -> 0 | J114: =IF(H114>0,D114*I114,0) -> 0 | M114: =IF(OR(B114="",D114=""),0,H114+(I$6-B114)) -> 0 | N114: =IF(D114="",0,VLOOKUP(M114,Faktoren!$B$16:$D$55,2)/1000) -> 0 | R114: =IF(AND(H114 > 0, B114 > 0), LOOKUP(H114,INDEX(Faktoren!data,,1),INDEX(Faktoren!data,,5)),0) -> 0 | S114: 0
B115: =IF(SUM(B109:B114) > 0,E115,"") ->  | D115: =+D109-SUM(D110:D114) -> 0 | E115: =Textes!A309 -> pertes | F115: =D115*0.6 -> 0 | I115: =IF(D115>0,Faktoren!$E$7,0) -> 0 | J115: =IF(D115>0,D115*I115,0) -> 0 | K115: =SUM(J110:J115) -> 0 | M115: =IF(MAX(B109:B114)<$I$6,0,VLOOKUP($I$6,B109:G114,6)) -> 0 | O115: =MAX(B109:B114) -> 00:00:00 | P115: =IF(OR($F$6="",I$6="",O115<F$6),99,IF(AND(O115>F$6,O115<=I$6),0,1)) -> 99 | R115: =IF(AND(H115 > 0, B115 > 0), LOOKUP(H115,INDEX(Faktoren!data,,1),INDEX(Faktoren!data,,5)),0) -> 0 | S115: 0 | T115: =SUM(S109:S115) -> 0
D116: =IF(D109>0,ROUND(+D115/D109*100,1),0) -> 0 | E116: =Textes!A310 -> pertes en % | G116: belegt | H116: =MAX(H109:H114) -> 0 | I116: =Textes!A312 -> jours poulailler occupé | N116: =IF(P115=1,$I$6-B109+1,H116) -> 0
D117: =IF(P115=99,0,IF(P115=0,H116/MAX(H110:H114),IF(P115=1,(H116-(O115-$I$6))/H116,0))) -> 0 | E117: =Textes!A311 -> Rotations | H117: =IF(B119<>0,(B119-O115),0) -> 0 | I117: =Textes!A313 -> jours poulailler inoccupé
B118: =Textes!A301 -> Rotation 11
C119: =IF(ISERROR(Jahr), "", IF($F$6>B119,"",IF(B119>$I$6,Jahr + 1,Jahr))) ->  | E119: =Textes!A303 -> Mise en poulailler | F119: =D119*0.04 -> 0 | G119: =IF(D119>0,D119,0) -> 0 | M119: =IF(OR(B119="",D119=""),0,IF((I$6-B119)=0,1,H119+(I$6-B119))) -> 0 | N119: =IF(D119="",0,VLOOKUP(M119,Faktoren!$B$16:$D$55,2)/1000) -> 0 | R119: =IF(AND(H119 > 0, B119 > 0), LOOKUP(H119,INDEX(Faktoren!data,,1),INDEX(Faktoren!data,,5)),0) -> 0 | S119: =D119:D125 * R119:R125 -> 0
E120: =Textes!A304 -> 1er abattage | G120: =IF(D119-D120>0,D119-D120,0) -> 0 | H120: =IF(AND(D120>0,B120>0),B120-B119+1,0) -> 0 | I120: =IF(H120>0,IF(H120>Faktoren!$D$5,Faktoren!$E$4,Faktoren!$E$5),0) -> 0 | J120: =IF(H120>0,D120*I120,0) -> 0 | M120: =IF(OR(B120="",D120=""),0,H120+(I$6-B120)) -> 0 | N120: =IF(D120="",0,VLOOKUP(M120,Faktoren!$B$16:$D$55,2)/1000) -> 0 | R120: =IF(AND(H120 > 0, B120 > 0), LOOKUP(H120,INDEX(Faktoren!data,,1),INDEX(Faktoren!data,,5)),0) -> 0 | S120: 0
E121: =Textes!A305 -> 2e abattage | G121: =IF(D119-D120-D121>0,D119-D120-D121,0) -> 0 | H121: =IF(AND(D121>0,B121>0),B121-B119+1,0) -> 0 | I121: =IF(H121>0,IF(H121>Faktoren!$D$5,Faktoren!$E$4,Faktoren!$E$5),0) -> 0 | J121: =IF(H121>0,D121*I121,0) -> 0 | M121: =IF(OR(B121="",D121=""),0,H121+(I$6-B121)) -> 0 | N121: =IF(D121="",0,VLOOKUP(M121,Faktoren!$B$16:$D$55,2)/1000) -> 0 | R121: =IF(AND(H121 > 0, B121 > 0), LOOKUP(H121,INDEX(Faktoren!data,,1),INDEX(Faktoren!data,,5)),0) -> 0 | S121: 0
E122: =Textes!A306 -> 3e abattage | G122: =IF(D119-D120-D121-D122>0,D119-D120-D121-D122,0) -> 0 | H122: =IF(AND(D122>0,B122>0),B122-B119+1,0) -> 0 | I122: =IF(H122>0,IF(H122>Faktoren!$D$5,Faktoren!$E$4,Faktoren!$E$5),0) -> 0 | J122: =IF(H122>0,D122*I122,0) -> 0 | M122: =IF(OR(B122="",D122=""),0,H122+(I$6-B122)) -> 0 | N122: =IF(D122="",0,VLOOKUP(M122,Faktoren!$B$16:$D$55,2)/1000) -> 0 | R122: =IF(AND(H122 > 0, B122 > 0), LOOKUP(H122,INDEX(Faktoren!data,,1),INDEX(Faktoren!data,,5)),0) -> 0 | S122: 0
E123: =Textes!A307 -> 4e abattage | G123: =IF(D119-D120-D121-D122-D123>0,D119-D120-D121-D122-D123,0) -> 0 | H123: =IF(AND(D123>0,B123>0),B123-B119+1,0) -> 0 | I123: =IF(H123>0,IF(H123>Faktoren!$D$5,Faktoren!$E$4,Faktoren!$E$5),0) -> 0 | J123: =IF(H123>0,D123*I123,0) -> 0 | M123: =IF(OR(B123="",D123=""),0,H123+(I$6-B123)) -> 0 | N123: =IF(D123="",0,VLOOKUP(M123,Faktoren!$B$16:$D$55,2)/1000) -> 0 | R123: =IF(AND(H123 > 0, B123 > 0), LOOKUP(H123,INDEX(Faktoren!data,,1),INDEX(Faktoren!data,,5)),0) -> 0 | S123: 0
E124: =Textes!A308 -> 5e abattage | G124: =IF(D119-D120-D121-D122-D123-D124>0,D119-D120-D121-D122-D123-D124,0) -> 0 | H124: =IF(AND(D124>0,B124>0),B124-B119+1,0) -> 0 | I124: =IF(H124>0,IF(H124>Faktoren!$D$5,Faktoren!$E$4,Faktoren!$E$5),0) -> 0 | J124: =IF(H124>0,D124*I124,0) -> 0 | M124: =IF(OR(B124="",D124=""),0,H124+(I$6-B124)) -> 0 | N124: =IF(D124="",0,VLOOKUP(M124,Faktoren!$B$16:$D$55,2)/1000) -> 0 | R124: =IF(AND(H124 > 0, B124 > 0), LOOKUP(H124,INDEX(Faktoren!data,,1),INDEX(Faktoren!data,,5)),0) -> 0 | S124: 0
B125: =IF(SUM(B119:B124) > 0,E125,"") ->  | D125: =+D119-SUM(D120:D124) -> 0 | E125: =Textes!A309 -> pertes | F125: =D125*0.6 -> 0 | I125: =IF(D125>0,Faktoren!$E$7,0) -> 0 | J125: =IF(D125>0,D125*I125,0) -> 0 | K125: =SUM(J120:J125) -> 0 | M125: =IF(MAX(B119:B124)<$I$6,0,VLOOKUP($I$6,B119:G124,6)) -> 0 | O125: =MAX(B119:B124) -> 00:00:00 | P125: =IF(OR($F$6="",I$6="",O125<F$6),99,IF(AND(O125>F$6,O125<=I$6),0,1)) -> 99 | R125: =IF(AND(H125 > 0, B125 > 0), LOOKUP(H125,INDEX(Faktoren!data,,1),INDEX(Faktoren!data,,5)),0) -> 0 | S125: 0 | T125: =SUM(S119:S125) -> 0
D126: =IF(D119>0,ROUND(+D125/D119*100,1),0) -> 0 | E126: =Textes!A310 -> pertes en % | G126: belegt | H126: =MAX(H119:H124) -> 0 | I126: =Textes!A312 -> jours poulailler occupé | N126: =IF(P125=1,$I$6-B119+1,H126) -> 0
D127: =IF(P125=99,0,IF(P125=0,H126/MAX(H120:H124),IF(P125=1,(H126-(O125-$I$6))/H126,0))) -> 0 | E127: =Textes!A311 -> Rotations | H127: =IF(B131<>0,(B131-O125),0) -> 0 | I127: =Textes!A313 -> jours poulailler inoccupé
B129: =Textes!A267 -> Poulailler 1 | K129: =Textes!A339 -> page 3
B130: =Textes!A302 -> Rotation 12
C131: =IF(ISERROR(Jahr), "", IF($F$6>B131,"",IF(B131>$I$6,Jahr + 1,Jahr))) ->  | E131: =Textes!A303 -> Mise en poulailler | F131: =D131*0.04 -> 0 | G131: =IF(D131>0,D131,0) -> 0 | M131: =IF(OR(B131="",D131=""),0,IF((I$6-B131)=0,1,H131+(I$6-B131))) -> 0 | N131: =IF(D131="",0,VLOOKUP(M131,Faktoren!$B$16:$D$55,2)/1000) -> 0 | R131: =IF(AND(H131 > 0, B131 > 0), LOOKUP(H131,INDEX(Faktoren!data,,1),INDEX(Faktoren!data,,5)),0) -> 0 | S131: =D131:D137 * R131:R137 -> 0
E132: =Textes!A304 -> 1er abattage | G132: =IF(D131-D132>0,D131-D132,0) -> 0 | H132: =IF(AND(D132>0,B132>0),B132-B131+1,0) -> 0 | I132: =IF(H132>0,IF(H132>Faktoren!$D$5,Faktoren!$E$4,Faktoren!$E$5),0) -> 0 | J132: =IF(H132>0,D132*I132,0) -> 0 | M132: =IF(OR(B132="",D132=""),0,H132+(I$6-B132)) -> 0 | N132: =IF(D132="",0,VLOOKUP(M132,Faktoren!$B$16:$D$55,2)/1000) -> 0 | R132: =IF(AND(H132 > 0, B132 > 0), LOOKUP(H132,INDEX(Faktoren!data,,1),INDEX(Faktoren!data,,5)),0) -> 0 | S132: 0
E133: =Textes!A305 -> 2e abattage | G133: =IF(D131-D132-D133>0,D131-D132-D133,0) -> 0 | H133: =IF(AND(D133>0,B133>0),B133-B131+1,0) -> 0 | I133: =IF(H133>0,IF(H133>Faktoren!$D$5,Faktoren!$E$4,Faktoren!$E$5),0) -> 0 | J133: =IF(H133>0,D133*I133,0) -> 0 | M133: =IF(OR(B133="",D133=""),0,H133+(I$6-B133)) -> 0 | N133: =IF(D133="",0,VLOOKUP(M133,Faktoren!$B$16:$D$55,2)/1000) -> 0 | R133: =IF(AND(H133 > 0, B133 > 0), LOOKUP(H133,INDEX(Faktoren!data,,1),INDEX(Faktoren!data,,5)),0) -> 0 | S133: 0
E134: =Textes!A306 -> 3e abattage | G134: =IF(D131-D132-D133-D134>0,D131-D132-D133-D134,0) -> 0 | H134: =IF(AND(D134>0,B134>0),B134-B131+1,0) -> 0 | I134: =IF(H134>0,IF(H134>Faktoren!$D$5,Faktoren!$E$4,Faktoren!$E$5),0) -> 0 | J134: =IF(H134>0,D134*I134,0) -> 0 | M134: =IF(OR(B134="",D134=""),0,H134+(I$6-B134)) -> 0 | N134: =IF(D134="",0,VLOOKUP(M134,Faktoren!$B$16:$D$55,2)/1000) -> 0 | R134: =IF(AND(H134 > 0, B134 > 0), LOOKUP(H134,INDEX(Faktoren!data,,1),INDEX(Faktoren!data,,5)),0) -> 0 | S134: 0
E135: =Textes!A307 -> 4e abattage | G135: =IF(D131-D132-D133-D134-D135>0,D131-D132-D133-D134-D135,0) -> 0 | H135: =IF(AND(D135>0,B135>0),B135-B131+1,0) -> 0 | I135: =IF(H135>0,IF(H135>Faktoren!$D$5,Faktoren!$E$4,Faktoren!$E$5),0) -> 0 | J135: =IF(H135>0,D135*I135,0) -> 0 | M135: =IF(OR(B135="",D135=""),0,H135+(I$6-B135)) -> 0 | N135: =IF(D135="",0,VLOOKUP(M135,Faktoren!$B$16:$D$55,2)/1000) -> 0 | R135: =IF(AND(H135 > 0, B135 > 0), LOOKUP(H135,INDEX(Faktoren!data,,1),INDEX(Faktoren!data,,5)),0) -> 0 | S135: 0
E136: =Textes!A308 -> 5e abattage | G136: =IF(D131-D132-D133-D134-D135-D136>0,D131-D132-D133-D134-D135-D136,0) -> 0 | H136: =IF(AND(D136>0,B136>0),B136-B131+1,0) -> 0 | I136: =IF(H136>0,IF(H136>Faktoren!$D$5,Faktoren!$E$4,Faktoren!$E$5),0) -> 0 | J136: =IF(H136>0,D136*I136,0) -> 0 | M136: =IF(OR(B136="",D136=""),0,H136+(I$6-B136)) -> 0 | N136: =IF(D136="",0,VLOOKUP(M136,Faktoren!$B$16:$D$55,2)/1000) -> 0 | R136: =IF(AND(H136 > 0, B136 > 0), LOOKUP(H136,INDEX(Faktoren!data,,1),INDEX(Faktoren!data,,5)),0) -> 0 | S136: 0
B137: =IF(SUM(B131:B136) > 0,E137,"") ->  | C137: =Jahr+1 ->  | D137: =+D131-D132-D133-D136 -> 0 | E137: =Textes!A309 -> pertes | F137: =D137*0.6 -> 0 | I137: =IF(D137>0,Faktoren!$E$7,0) -> 0 | J137: =IF(D137>0,D137*I137,0) -> 0 | K137: =SUM(J132:J137) -> 0 | M137: =IF(MAX(B131:B136)<$I$6,0,VLOOKUP($I$6,B131:G136,6)) -> 0 | O137: =MAX(B131:B136) -> 00:00:00 | P137: =IF(OR($F$6="",I$6="",O137<F$6),99,IF(AND(O137>F$6,O137<=I$6),0,1)) -> 99 | R137: =IF(AND(H137 > 0, B137 > 0), LOOKUP(H137,INDEX(Faktoren!data,,1),INDEX(Faktoren!data,,5)),0) -> 0 | S137: 0 | T137: =SUM(S131:S137) -> 0
D138: =IF(D131>0,ROUND(+D137/D131*100,1),0) -> 0 | E138: =Textes!A310 -> pertes en % | G138: belegt | H138: =MAX(H131:H136) -> 0 | I138: =Textes!A312 -> jours poulailler occupé | N138: =IF(P137=1,$I$6-B131+1,H138) -> 0
D139: =IF(P137=99,0,IF(P137=0,H138/MAX(H132:H136),IF(P137=1,(H138-(O137-$I$6))/H138,0))) -> 0 | E139: =Textes!A311 -> Rotations
B141: =Textes!A314 -> Effectif moyen | R141: =B141 -> Effectif moyen
B142: =Textes!A315 -> en nombre déterminant | K142: =IF((K137+K125+K115+K105+K95+K85+K75+K63+K53+K43+K33+K23)>0,(K137+K125+K115+K105+K95+K85+K75+K63+K53+K43+K33+K23)/SUM($G$144:$G$155),0) -> 0 | R142: =Textes!A316 -> en unités de la période | T142: =IF((T137+T125+T115+T105+T95+T85+T75+T63+T53+T43+T33+T23)>0,(T137+T125+T115+T105+T95+T85+T75+T63+T53+T43+T33+T23)/SUM($G$144:$G$155),0) -> 0
B144: Berechnung der Anzahl Umtriebe | G144: =IF(AND(K23>0,K33>0,K43>0,K53>0,K63>0,K75>0,K85>0,K95>0,K105>0,K115>0,K125>0,K137>0),12,0) -> 0
G145: =IF(AND(K23>0,K33>0,K43>0,K53>0,K63>0,K75>0,K85>0,K95>0,K105>0,K115>0,K125>0,K137=0),11,0) -> 0
G146: =IF(AND(K23>0,K33>0,K43>0,K53>0,K63>0,K75>0,K85>0,K95>0,K105>0,K115>0,K125=0,K137=0),10,0) -> 0
G147: =IF(AND(K23>0,K33>0,K43>0,K53>0,K63>0,K75>0,K85>0,K95>0,K105>0,K115=0,K125=0,K137=0),9,0) -> 0
G148: =IF(AND(K23>0,K33>0,K43>0,K53>0,K63>0,K75>0,K85>0,K95>0,K105=0,K115=0,K125=0,K137=0),8,0) -> 0
G149: =IF(AND(K23>0,K33>0,K43>0,K53>0,K63>0,K75>0,K85>0,K95=0,K105=0,K115=0,K125=0,K137=0),7,0) -> 0
G150: =IF(AND(K23>0,K33>0,K43>0,K53>0,K63>0,K75>0,K85=0,K95=0,K105=0,K115=0,K125=0,K137=0),6,0) -> 0
G151: =IF(AND(K23>0,K33>0,K43>0,K53>0,K63>0,K75=0,K85=0,K95=0,K105=0,K115=0,K125=0,K137=0),5,0) -> 0
G152: =IF(AND(K23>0,K33>0,K43>0,K53>0,K63=0,K75=0,K85=0,K95=0,K105=0,K115=0,K125=0,K137=0),4,0) -> 0
G153: =IF(AND(K23>0,K33>0,K43>0,K53=0,K63=0,K75=0,K85=0,K95=0,K105=0,K115=0,K125=0,K137=0),3,0) -> 0
G154: =IF(AND(K23>0,K33>0,K43=0,K53=0,K63=0,K75=0,K85=0,K95=0,K105=0,K115=0,K125=0,K137=0),2,0) -> 0
G155: =IF(AND(K23>0,K33=0,K43=0,K53=0,K63=0,K75=0,K85=0,K95=0,K105=0,K115=0,K125=0,K137=0),1,0) -> 0
B158: =Textes!A317 -> Nombre de rotations | E158: =SUM(D25,D35,D45,D55,D65,D77,D87,D97,D107,D117,D127,D139) -> 0
B160: =Textes!A318 -> Durée d'occupation | E160: =IF((H24+H34+H44+H54+H64+H76+H86+H96+H106+H116+H126+H138)>0,(H24+H34+H44+H54+H64+H76+H86+H96+H106+H116+H126+H138)/SUM(G144:G155),0) -> 0 | H160: =Textes!A326 -> (moyenne, sans interruption entre
B161: =Textes!A319 -> par rotation | H161: =Textes!A327 -> les rotations)
B163: =Textes!A320 -> Durée d'occupation | D163: B(eff) | E163: =(N24+N34+N44+N54+N64+N76+N86+N96+N106+N116+N126+N138) -> 0 | H163: =Textes!A328 -> (nombre total de jours, sans interruption entre
B164: =Textes!A321 -> totale | H164: =Textes!A329 -> les rotations)
B166: =Textes!A322 -> Durée d'occupation | D166: B(min) | E166: 270 | H166: =Textes!A330 -> (durée d'occupation minimale
B167: =Textes!A323 -> minimale par an | H167: =Textes!A331 -> pour une utilisation normale du poulailler)
B169: =Textes!A324 -> Durée d'occupation | D169: B(min) | E169: =IF(K6 = "",0,E166/365*K6) -> 0 | H169: =Textes!A330 -> (durée d'occupation minimale
B170: =Textes!A325 -> minimale par periode | H170: =Textes!A332 -> calculée pour la periode)
R172: =B141 -> Effectif moyen
B173: =B141 & " " & R173 -> Effectif moyen au poulailler 1 | K173: =IF($E$163>=$E$169,K142,K142/$E$169*$E$163) -> 0 | R173: =Textes!A333 -> au poulailler 1 | T173: =IF($E$163>=$E$169,T142,T142/$E$169*$E$163) -> 0
B175: =Textes!A336 -> correspond à l'effectif exprimé en UGB | K175: =K173*Faktoren!E10 -> 0
B177: =+Textes!A73 -> Organisation de contrôle, Date: | H177: =+Textes!A88 -> Signature:
B179: =+Textes!A77 -> Exploitant, Date: | H179: =+Textes!A88 -> Signature:

Sheet Poulet2 (hidden)
L2: =Textes!A268 -> Poulailler 2
B3: =Textes!A273 -> Attention:
B4: =Textes!A274 -> Travaux commencés avant la période et non terminés pendant la période sont à saisir entièrement !
B6: =Textes!A19 -> Période: | E6: =Textes!A20 -> Date début: | F6: =IF(Inv!I8=0,"",Inv!I8) ->  | H6: =Textes!A21 -> Date fin: | I6: =IF(Inv!I9=0,"",Inv!I9) ->  | J6: =Textes!A22 -> Durée en jours: | K6: =IF(OR(F6="",I6=""),"",I6-F6+1) -> 
F7: =YEAR(F6) -> 
B8: =+Textes!A9 -> No cantonal: | E8: =IF(Inv!D4=0,"",Inv!D4) -> 
B9: =+Textes!A10 -> Nom: | E9: =IF(Inv!D5=0,"",Inv!D6 & " " & Inv!D5) -> 
B10: =+Textes!A13 -> Adresse: | E10: =IF(Inv!D7=0,"",Inv!D7) -> 
B11: =+Textes!A14 -> NPA, lieu: | E11: =IF(Inv!D9=0,"",Inv!D9) -> 
H13: =Textes!A278 -> Jours | J13: =Textes!A282 -> Nbre d'ani- | K13: =Textes!A285 -> Nombre déter- | P13: Erkennen | R13: =I15 -> Coefficient | S13: =J13 -> Nbre d'ani- | T13: =D15 -> Nombre d'animaux
G14: Tier- | H14: =Textes!A279 -> d'engrais- | J14: =Textes!A283 -> maux abattus | K14: =Textes!A286 -> minant d'animaux | O14: Datum | P14: letzter Umtrieb | R14: =Textes!A288 -> pour valeurs | S14: =J14 -> maux abattus | T14: =K15 -> par rotation
B15: =Textes!A275 -> Date | D15: =Textes!A276 -> Nombre d'animaux | F15: =Textes!A277 -> kg PV total | G15: Bestand | H15: =Textes!A280 -> sement | I15: =Textes!A281 -> Coefficient | J15: =Textes!A284 -> x coefficient | K15: =Textes!A287 -> par rotation | O15: (Hilfswert) | P15: für Abgrenzung | R15: =Textes!A289 -> minimales (vm) | S15: x coefficient | T15: =Textes!A290 -> pour vm
B16: =Textes!A291 -> Rotation 1 | C16: =Jahr -> 
C17: =IF(ISERROR(Jahr), "", IF($F$6>B17,"",IF(B17>$I$6,Jahr + 1,Jahr))) ->  | E17: =Textes!A303 -> Mise en poulailler | F17: =D17*0.04 -> 0 | G17: =IF(D17>0,D17,0) -> 0 | M17: =IF(OR(B17="",D17=""),0,IF(B17<F$6,H17+(F$6-B17)-1,IF((I$6-B17)=0,1,H17+(I$6-B17)))) -> 0 | N17: =IF(D17="",0,IF(M17=0,VLOOKUP(1,Faktoren!$B$16:$D$55,2)/1000,VLOOKUP(M17,Faktoren!$B$16:$D$55,2)/1000)) -> 0 | R17: =IF(AND(H17 > 0, B17 > 0), LOOKUP(H17,INDEX(Faktoren!data,,1),INDEX(Faktoren!data,,5)),0) -> 0 | S17: =D17:D23 * R17:R23 -> 0
E18: =Textes!A304 -> 1er abattage | G18: =IF(D17-D18>0,D17-D18,0) -> 0 | H18: =IF(AND(D18>0,B18>0),B18-B17+1,0) -> 0 | I18: =IF(H18>0,IF(H18>Faktoren!$D$5,Faktoren!$E$4,Faktoren!$E$5),0) -> 0 | J18: =IF(H18>0,D18*I18,0) -> 0 | M18: =IF(OR(B18="",D18=""),0,IF(B18<F$6,H18+(F$6-B18)-1,H18+(I$6-B18))) -> 0 | N18: =IF(OR(D18="",M18=0),0,VLOOKUP(M18,Faktoren!$B$16:$D$55,2)/1000) -> 0 | R18: =IF(AND(H18 > 0, B18 > 0), LOOKUP(H18,INDEX(Faktoren!data,,1),INDEX(Faktoren!data,,5)),0) -> 0 | S18: 0
E19: =Textes!A305 -> 2e abattage | G19: =IF(D17-D18-D19>0,D17-D18-D19,0) -> 0 | H19: =IF(AND(D19>0,B19>0),B19-B17+1,0) -> 0 | I19: =IF(H19>0,IF(H19>Faktoren!$D$5,Faktoren!$E$4,Faktoren!$E$5),0) -> 0 | J19: =IF(H19>0,D19*I19,0) -> 0 | M19: =IF(OR(B19="",D19=""),0,IF(B19<F$6,H19+(F$6-B19)-1,H19+(I$6-B19))) -> 0 | N19: =IF(OR(D19="",M19=0),0,VLOOKUP(M19,Faktoren!$B$16:$D$55,2)/1000) -> 0 | R19: =IF(AND(H19 > 0, B19 > 0), LOOKUP(H19,INDEX(Faktoren!data,,1),INDEX(Faktoren!data,,5)),0) -> 0 | S19: 0
E20: =Textes!A306 -> 3e abattage | G20: =IF(D17-D18-D19-D20>0,D17-D18-D19-D20,0) -> 0 | H20: =IF(AND(D20>0,B20>0),B20-B17+1,0) -> 0 | I20: =IF(H20>0,IF(H20>Faktoren!$D$5,Faktoren!$E$4,Faktoren!$E$5),0) -> 0 | J20: =IF(H20>0,D20*I20,0) -> 0 | M20: =IF(OR(B20="",D20=""),0,IF(B20<F$6,H20+(F$6-B20)-1,H20+(I$6-B20))) -> 0 | N20: =IF(OR(D20="",M20=0),0,VLOOKUP(M20,Faktoren!$B$16:$D$55,2)/1000) -> 0 | R20: =IF(AND(H20 > 0, B20 > 0), LOOKUP(H20,INDEX(Faktoren!data,,1),INDEX(Faktoren!data,,5)),0) -> 0 | S20: 0
E21: =Textes!A307 -> 4e abattage | G21: =IF(D17-D18-D19-D20-D21>0,D17-D18-D19-D20-D21,0) -> 0 | H21: =IF(AND(D21>0,B21>0),B21-B17+1,0) -> 0 | I21: =IF(H21>0,IF(H21>Faktoren!$D$5,Faktoren!$E$4,Faktoren!$E$5),0) -> 0 | J21: =IF(H21>0,D21*I21,0) -> 0 | M21: =IF(OR(B21="",D21=""),0,IF(B21<F$6,H21+(F$6-B21)-1,H21+(I$6-B21))) -> 0 | N21: =IF(OR(D21="",M21=0),0,VLOOKUP(M21,Faktoren!$B$16:$D$55,2)/1000) -> 0 | R21: =IF(AND(H21 > 0, B21 > 0), LOOKUP(H21,INDEX(Faktoren!data,,1),INDEX(Faktoren!data,,5)),0) -> 0 | S21: 0
E22: =Textes!A308 -> 5e abattage | G22: =IF(D17-D18-D19-D20-D21-D22>0,D17-D18-D19-D20-D21-D22,0) -> 0 | H22: =IF(AND(D22>0,B22>0),B22-B17+1,0) -> 0 | I22: =IF(H22>0,IF(H22>Faktoren!$D$5,Faktoren!$E$4,Faktoren!$E$5),0) -> 0 | J22: =IF(H22>0,D22*I22,0) -> 0 | M22: =IF(OR(B22="",D22=""),0,IF(B22<F$6,H22+(F$6-B22)-1,H22+(I$6-B22))) -> 0 | N22: =IF(OR(D22="",M22=0),0,VLOOKUP(M22,Faktoren!$B$16:$D$55,2)/1000) -> 0 | R22: =IF(AND(H22 > 0, B22 > 0), LOOKUP(H22,INDEX(Faktoren!data,,1),INDEX(Faktoren!data,,5)),0) -> 0 | S22: 0
B23: =IF(SUM(B17:B22) > 0,E23,"") ->  | D23: =+D17-SUM(D18:D22) -> 0 | E23: =Textes!A309 -> pertes | F23: =D23*0.6 -> 0 | I23: =IF(D23>0,Faktoren!$E$7,0) -> 0 | J23: =IF(D23>0,D23*I23,0) -> 0 | K23: =SUM(J18:J23) -> 0 | M23: =IF(B17=F6,G17,IF(MIN(B17:B22)>$F$6,0,VLOOKUP($F$6,B17:G22,6))) -> 0 | O23: =MAX(B17:B22) -> 00:00:00 | P23: =IF(OR($F$6="",I$6="",O23<F$6),99,IF(AND(B17>=F$6,O23<=I$6),0,IF(AND(B17>=F$6,O23>I$6),2,1))) -> 99 | R23: =IF(AND(H23 > 0, B23 > 0), LOOKUP(H23,INDEX(Faktoren!data,,1),INDEX(Faktoren!data,,5)),0) -> 0 | S23: 0 | T23: =SUM(S17:S23) -> 0
D24: =IF(D17>0,ROUND(+D23/D17*100,1),0) -> 0 | E24: =Textes!A310 -> pertes en % | G24: belegt | H24: =MAX(H17:H22) -> 0 | I24: =Textes!A312 -> jours poulailler occupé | N24: =IF(P23=1,O23-$F$6+1,H24) -> 0
D25: =IF(P23=99,0,IF(P23=0,H24/MAX(H18:H22),IF(P23=1,(O23-$F$6)/H24,(H24-(O23-I$6))/H24))) -> 0 | E25: =Textes!A311 -> Rotations | H25: =IF(B27<>0,(B27-O23),0) -> 0 | I25: =Textes!A313 -> jours poulailler inoccupé
B26: =Textes!A292 -> Rotation 2
C27: =IF(ISERROR(Jahr), "", IF($F$6>B27,"",IF(B27>$I$6,Jahr + 1,Jahr))) ->  | E27: =Textes!A303 -> Mise en poulailler | F27: =D27*0.04 -> 0 | G27: =IF(D27>0,D27,0) -> 0 | M27: =IF(OR(B27="",D27=""),0,IF((I$6-B27)=0,1,H27+(I$6-B27))) -> 0 | N27: =IF(D27="",0,VLOOKUP(M27,Faktoren!$B$16:$D$55,2)/1000) -> 0 | R27: =IF(AND(H27 > 0, B27 > 0), LOOKUP(H27,INDEX(Faktoren!data,,1),INDEX(Faktoren!data,,5)),0) -> 0 | S27: =D27:D33 * R27:R33 -> 0
E28: =Textes!A304 -> 1er abattage | G28: =IF(D27-D28>0,D27-D28,0) -> 0 | H28: =IF(AND(D28>0,B28>0),B28-B27+1,0) -> 0 | I28: =IF(H28>0,IF(H28>Faktoren!$D$5,Faktoren!$E$4,Faktoren!$E$5),0) -> 0 | J28: =IF(H28>0,D28*I28,0) -> 0 | M28: =IF(OR(B28="",D28=""),0,H28+(I$6-B28)) -> 0 | N28: =IF(D28="",0,VLOOKUP(M28,Faktoren!$B$16:$D$55,2)/1000) -> 0 | R28: =IF(AND(H28 > 0, B28 > 0), LOOKUP(H28,INDEX(Faktoren!data,,1),INDEX(Faktoren!data,,5)),0) -> 0 | S28: 0
E29: =Textes!A305 -> 2e abattage | G29: =IF(D27-D28-D29>0,D27-D28-D29,0) -> 0 | H29: =IF(AND(D29>0,B29>0),B29-B27+1,0) -> 0 | I29: =IF(H29>0,IF(H29>Faktoren!$D$5,Faktoren!$E$4,Faktoren!$E$5),0) -> 0 | J29: =IF(H29>0,D29*I29,0) -> 0 | M29: =IF(OR(B29="",D29=""),0,H29+(I$6-B29)) -> 0 | N29: =IF(D29="",0,VLOOKUP(M29,Faktoren!$B$16:$D$55,2)/1000) -> 0 | R29: =IF(AND(H29 > 0, B29 > 0), LOOKUP(H29,INDEX(Faktoren!data,,1),INDEX(Faktoren!data,,5)),0) -> 0 | S29: 0
E30: =Textes!A306 -> 3e abattage | G30: =IF(D27-D28-D29-D30>0,D27-D28-D29-D30,0) -> 0 | H30: =IF(AND(D30>0,B30>0),B30-B27+1,0) -> 0 | I30: =IF(H30>0,IF(H30>Faktoren!$D$5,Faktoren!$E$4,Faktoren!$E$5),0) -> 0 | J30: =IF(H30>0,D30*I30,0) -> 0 | M30: =IF(OR(B30="",D30=""),0,H30+(I$6-B30)) -> 0 | N30: =IF(D30="",0,VLOOKUP(M30,Faktoren!$B$16:$D$55,2)/1000) -> 0 | R30: =IF(AND(H30 > 0, B30 > 0), LOOKUP(H30,INDEX(Faktoren!data,,1),INDEX(Faktoren!data,,5)),0) -> 0 | S30: 0
E31: =Textes!A307 -> 4e abattage | G31: =IF(D27-D28-D29-D30-D31>0,D27-D28-D29-D30-D31,0) -> 0 | H31: =IF(AND(D31>0,B31>0),B31-B27+1,0) -> 0 | I31: =IF(H31>0,IF(H31>Faktoren!$D$5,Faktoren!$E$4,Faktoren!$E$5),0) -> 0 | J31: =IF(H31>0,D31*I31,0) -> 0 | M31: =IF(OR(B31="",D31=""),0,H31+(I$6-B31)) -> 0 | N31: =IF(D31="",0,VLOOKUP(M31,Faktoren!$B$16:$D$55,2)/1000) -> 0 | R31: =IF(AND(H31 > 0, B31 > 0), LOOKUP(H31,INDEX(Faktoren!data,,1),INDEX(Faktoren!data,,5)),0) -> 0 | S31: 0
E32: =Textes!A308 -> 5e abattage | G32: =IF(D27-D28-D29-D30-D31-D32>0,D27-D28-D29-D30-D31-D32,0) -> 0 | H32: =IF(AND(D32>0,B32>0),B32-B27+1,0) -> 0 | I32: =IF(H32>0,IF(H32>Faktoren!$D$5,Faktoren!$E$4,Faktoren!$E$5),0) -> 0 | J32: =IF(H32>0,D32*I32,0) -> 0 | M32: =IF(OR(B32="",D32=""),0,H32+(I$6-B32)) -> 0 | N32: =IF(D32="",0,VLOOKUP(M32,Faktoren!$B$16:$D$55,2)/1000) -> 0 | R32: =IF(AND(H32 > 0, B32 > 0), LOOKUP(H32,INDEX(Faktoren!data,,1),INDEX(Faktoren!data,,5)),0) -> 0 | S32: 0
B33: =IF(SUM(B27:B32) > 0,E33,"") ->  | D33: =+D27-SUM(D28:D32) -> 0 | E33: =Textes!A309 -> pertes | F33: =D33*0.6 -> 0 | I33: =IF(D33>0,Faktoren!$E$7,0) -> 0 | J33: =IF(D33>0,D33*I33,0) -> 0 | K33: =SUM(J28:J33) -> 0 | M33: =IF(MAX(B27:B32)<$I$6,0,VLOOKUP($I$6,B27:G32,6)) -> 0 | O33: =MAX(B27:B32) -> 00:00:00 | P33: =IF(OR($F$6="",I$6="",O33<F$6),99,IF(AND(O33>F$6,O33<=I$6),0,1)) -> 99 | R33: =IF(AND(H33 > 0, B33 > 0), LOOKUP(H33,INDEX(Faktoren!data,,1),INDEX(Faktoren!data,,5)),0) -> 0 | S33: 0 | T33: =SUM(S27:S33) -> 0
D34: =IF(D27>0,ROUND(+D33/D27*100,1),0) -> 0 | E34: =Textes!A310 -> pertes en % | G34: belegt | H34: =MAX(H27:H32) -> 0 | I34: =Textes!A312 -> jours poulailler occupé | N34: =IF(P33=1,$I$6-B27+1,H34) -> 0
D35: =IF(P33=99,0,IF(P33=0,H34/MAX(H28:H32),IF(P33=1,(H34-(O33-$I$6))/H34,0))) -> 0 | E35: =Textes!A311 -> Rotations | H35: =IF(B37<>0,(B37-O33),0) -> 0 | I35: =Textes!A313 -> jours poulailler inoccupé
B36: =Textes!A293 -> Rotation 3
C37: =IF(ISERROR(Jahr), "", IF($F$6>B37,"",IF(B37>$I$6,Jahr + 1,Jahr))) ->  | E37: =Textes!A303 -> Mise en poulailler | F37: =D37*0.04 -> 0 | G37: =IF(D37>0,D37,0) -> 0 | M37: =IF(OR(B37="",D37=""),0,IF((I$6-B37)=0,1,H37+(I$6-B37))) -> 0 | N37: =IF(D37="",0,VLOOKUP(M37,Faktoren!$B$16:$D$55,2)/1000) -> 0 | R37: =IF(AND(H37 > 0, B37 > 0), LOOKUP(H37,INDEX(Faktoren!data,,1),INDEX(Faktoren!data,,5)),0) -> 0 | S37: =D37:D43 * R37:R43 -> 0
E38: =Textes!A304 -> 1er abattage | G38: =IF(D37-D38>0,D37-D38,0) -> 0 | H38: =IF(AND(D38>0,B38>0),B38-B37+1,0) -> 0 | I38: =IF(H38>0,IF(H38>Faktoren!$D$5,Faktoren!$E$4,Faktoren!$E$5),0) -> 0 | J38: =IF(H38>0,D38*I38,0) -> 0 | M38: =IF(OR(B38="",D38=""),0,H38+(I$6-B38)) -> 0 | N38: =IF(D38="",0,VLOOKUP(M38,Faktoren!$B$16:$D$55,2)/1000) -> 0 | R38: =IF(AND(H38 > 0, B38 > 0), LOOKUP(H38,INDEX(Faktoren!data,,1),INDEX(Faktoren!data,,5)),0) -> 0 | S38: 0
E39: =Textes!A305 -> 2e abattage | G39: =IF(D37-D38-D39>0,D37-D38-D39,0) -> 0 | H39: =IF(AND(D39>0,B39>0),B39-B37+1,0) -> 0 | I39: =IF(H39>0,IF(H39>Faktoren!$D$5,Faktoren!$E$4,Faktoren!$E$5),0) -> 0 | J39: =IF(H39>0,D39*I39,0) -> 0 | M39: =IF(OR(B39="",D39=""),0,H39+(I$6-B39)) -> 0 | N39: =IF(D39="",0,VLOOKUP(M39,Faktoren!$B$16:$D$55,2)/1000) -> 0 | R39: =IF(AND(H39 > 0, B39 > 0), LOOKUP(H39,INDEX(Faktoren!data,,1),INDEX(Faktoren!data,,5)),0) -> 0 | S39: 0
E40: =Textes!A306 -> 3e abattage | G40: =IF(D37-D38-D39-D40>0,D37-D38-D39-D40,0) -> 0 | H40: =IF(AND(D40>0,B40>0),B40-B37+1,0) -> 0 | I40: =IF(H40>0,IF(H40>Faktoren!$D$5,Faktoren!$E$4,Faktoren!$E$5),0) -> 0 | J40: =IF(H40>0,D40*I40,0) -> 0 | M40: =IF(OR(B40="",D40=""),0,H40+(I$6-B40)) -> 0 | N40: =IF(D40="",0,VLOOKUP(M40,Faktoren!$B$16:$D$55,2)/1000) -> 0 | R40: =IF(AND(H40 > 0, B40 > 0), LOOKUP(H40,INDEX(Faktoren!data,,1),INDEX(Faktoren!data,,5)),0) -> 0 | S40: 0
E41: =Textes!A307 -> 4e abattage | G41: =IF(D37-D38-D39-D40-D41>0,D37-D38-D39-D40-D41,0) -> 0 | H41: =IF(AND(D41>0,B41>0),B41-B37+1,0) -> 0 | I41: =IF(H41>0,IF(H41>Faktoren!$D$5,Faktoren!$E$4,Faktoren!$E$5),0) -> 0 | J41: =IF(H41>0,D41*I41,0) -> 0 | M41: =IF(OR(B41="",D41=""),0,H41+(I$6-B41)) -> 0 | N41: =IF(D41="",0,VLOOKUP(M41,Faktoren!$B$16:$D$55,2)/1000) -> 0 | R41: =IF(AND(H41 > 0, B41 > 0), LOOKUP(H41,INDEX(Faktoren!data,,1),INDEX(Faktoren!data,,5)),0) -> 0 | S41: 0
E42: =Textes!A308 -> 5e abattage | G42: =IF(D37-D38-D39-D40-D41-D42>0,D37-D38-D39-D40-D41-D42,0) -> 0 | H42: =IF(AND(D42>0,B42>0),B42-B37+1,0) -> 0 | I42: =IF(H42>0,IF(H42>Faktoren!$D$5,Faktoren!$E$4,Faktoren!$E$5),0) -> 0 | J42: =IF(H42>0,D42*I42,0) -> 0 | M42: =IF(OR(B42="",D42=""),0,H42+(I$6-B42)) -> 0 | N42: =IF(D42="",0,VLOOKUP(M42,Faktoren!$B$16:$D$55,2)/1000) -> 0 | R42: =IF(AND(H42 > 0, B42 > 0), LOOKUP(H42,INDEX(Faktoren!data,,1),INDEX(Faktoren!data,,5)),0) -> 0 | S42: 0
B43: =IF(SUM(B37:B42) > 0,E43,"") ->  | D43: =+D37-SUM(D38:D42) -> 0 | E43: =Textes!A309 -> pertes | F43: =D43*0.6 -> 0 | I43: =IF(D43>0,Faktoren!$E$7,0) -> 0 | J43: =IF(D43>0,D43*I43,0) -> 0 | K43: =SUM(J38:J43) -> 0 | M43: =IF(MAX(B37:B42)<$I$6,0,VLOOKUP($I$6,B37:G42,6)) -> 0 | O43: =MAX(B37:B42) -> 00:00:00 | P43: =IF(OR($F$6="",I$6="",O43<F$6),99,IF(AND(O43>F$6,O43<=I$6),0,1)) -> 99 | R43: =IF(AND(H43 > 0, B43 > 0), LOOKUP(H43,INDEX(Faktoren!data,,1),INDEX(Faktoren!data,,5)),0) -> 0 | S43: 0 | T43: =SUM(S37:S43) -> 0
D44: =IF(D37>0,ROUND(+D43/D37*100,1),0) -> 0 | E44: =Textes!A310 -> pertes en % | G44: belegt | H44: =MAX(H37:H42) -> 0 | I44: =Textes!A312 -> jours poulailler occupé | N44: =IF(P43=1,$I$6-B37+1,H44) -> 0
D45: =IF(P43=99,0,IF(P43=0,H44/MAX(H38:H42),IF(P43=1,(H44-(O43-$I$6))/H44,0))) -> 0 | E45: =Textes!A311 -> Rotations | H45: =IF(B47<>0,(B47-O43),0) -> 0 | I45: =Textes!A313 -> jours poulailler inoccupé
B46: =Textes!A294 -> Rotation 4
C47: =IF(ISERROR(Jahr), "", IF($F$6>B47,"",IF(B47>$I$6,Jahr + 1,Jahr))) ->  | E47: =Textes!A303 -> Mise en poulailler | F47: =D47*0.04 -> 0 | G47: =IF(D47>0,D47,0) -> 0 | M47: =IF(OR(B47="",D47=""),0,IF((I$6-B47)=0,1,H47+(I$6-B47))) -> 0 | N47: =IF(D47="",0,VLOOKUP(M47,Faktoren!$B$16:$D$55,2)/1000) -> 0 | R47: =IF(AND(H47 > 0, B47 > 0), LOOKUP(H47,INDEX(Faktoren!data,,1),INDEX(Faktoren!data,,5)),0) -> 0 | S47: =D47:D53 * R47:R53 -> 0
E48: =Textes!A304 -> 1er abattage | G48: =IF(D47-D48>0,D47-D48,0) -> 0 | H48: =IF(AND(D48>0,B48>0),B48-B47+1,0) -> 0 | I48: =IF(H48>0,IF(H48>Faktoren!$D$5,Faktoren!$E$4,Faktoren!$E$5),0) -> 0 | J48: =IF(H48>0,D48*I48,0) -> 0 | M48: =IF(OR(B48="",D48=""),0,H48+(I$6-B48)) -> 0 | N48: =IF(D48="",0,VLOOKUP(M48,Faktoren!$B$16:$D$55,2)/1000) -> 0 | R48: =IF(AND(H48 > 0, B48 > 0), LOOKUP(H48,INDEX(Faktoren!data,,1),INDEX(Faktoren!data,,5)),0) -> 0 | S48: 0
E49: =Textes!A305 -> 2e abattage | G49: =IF(D47-D48-D49>0,D47-D48-D49,0) -> 0 | H49: =IF(AND(D49>0,B49>0),B49-B47+1,0) -> 0 | I49: =IF(H49>0,IF(H49>Faktoren!$D$5,Faktoren!$E$4,Faktoren!$E$5),0) -> 0 | J49: =IF(H49>0,D49*I49,0) -> 0 | M49: =IF(OR(B49="",D49=""),0,H49+(I$6-B49)) -> 0 | N49: =IF(D49="",0,VLOOKUP(M49,Faktoren!$B$16:$D$55,2)/1000) -> 0 | R49: =IF(AND(H49 > 0, B49 > 0), LOOKUP(H49,INDEX(Faktoren!data,,1),INDEX(Faktoren!data,,5)),0) -> 0 | S49: 0
E50: =Textes!A306 -> 3e abattage | G50: =IF(D47-D48-D49-D50>0,D47-D48-D49-D50,0) -> 0 | H50: =IF(AND(D50>0,B50>0),B50-B47+1,0) -> 0 | I50: =IF(H50>0,IF(H50>Faktoren!$D$5,Faktoren!$E$4,Faktoren!$E$5),0) -> 0 | J50: =IF(H50>0,D50*I50,0) -> 0 | M50: =IF(OR(B50="",D50=""),0,H50+(I$6-B50)) -> 0 | N50: =IF(D50="",0,VLOOKUP(M50,Faktoren!$B$16:$D$55,2)/1000) -> 0 | R50: =IF(AND(H50 > 0, B50 > 0), LOOKUP(H50,INDEX(Faktoren!data,,1),INDEX(Faktoren!data,,5)),0) -> 0 | S50: 0
E51: =Textes!A307 -> 4e abattage | G51: =IF(D47-D48-D49-D50-D51>0,D47-D48-D49-D50-D51,0) -> 0 | H51: =IF(AND(D51>0,B51>0),B51-B47+1,0) -> 0 | I51: =IF(H51>0,IF(H51>Faktoren!$D$5,Faktoren!$E$4,Faktoren!$E$5),0) -> 0 | J51: =IF(H51>0,D51*I51,0) -> 0 | M51: =IF(OR(B51="",D51=""),0,H51+(I$6-B51)) -> 0 | N51: =IF(D51="",0,VLOOKUP(M51,Faktoren!$B$16:$D$55,2)/1000) -> 0 | R51: =IF(AND(H51 > 0, B51 > 0), LOOKUP(H51,INDEX(Faktoren!data,,1),INDEX(Faktoren!data,,5)),0) -> 0 | S51: 0
E52: =Textes!A308 -> 5e abattage | G52: =IF(D47-D48-D49-D50-D51-D52>0,D47-D48-D49-D50-D51-D52,0) -> 0 | H52: =IF(AND(D52>0,B52>0),B52-B47+1,0) -> 0 | I52: =IF(H52>0,IF(H52>Faktoren!$D$5,Faktoren!$E$4,Faktoren!$E$5),0) -> 0 | J52: =IF(H52>0,D52*I52,0) -> 0 | M52: =IF(OR(B52="",D52=""),0,H52+(I$6-B52)) -> 0 | N52: =IF(D52="",0,VLOOKUP(M52,Faktoren!$B$16:$D$55,2)/1000) -> 0 | R52: =IF(AND(H52 > 0, B52 > 0), LOOKUP(H52,INDEX(Faktoren!data,,1),INDEX(Faktoren!data,,5)),0) -> 0 | S52: 0
B53: =IF(SUM(B47:B52) > 0,E53,"") ->  | D53: =+D47-SUM(D48:D52) -> 0 | E53: =Textes!A309 -> pertes | F53: =D53*0.6 -> 0 | I53: =IF(D53>0,Faktoren!$E$7,0) -> 0 | J53: =IF(D53>0,D53*I53,0) -> 0 | K53: =SUM(J48:J53) -> 0 | M53: =IF(MAX(B47:B52)<$I$6,0,VLOOKUP($I$6,B47:G52,6)) -> 0 | O53: =MAX(B47:B52) -> 00:00:00 | P53: =IF(OR($F$6="",I$6="",O53<F$6),99,IF(AND(O53>F$6,O53<=I$6),0,1)) -> 99 | R53: =IF(AND(H53 > 0, B53 > 0), LOOKUP(H53,INDEX(Faktoren!data,,1),INDEX(Faktoren!data,,5)),0) -> 0 | S53: 0 | T53: =SUM(S47:S53) -> 0
D54: =IF(D47>0,ROUND(+D53/D47*100,1),0) -> 0 | E54: =Textes!A310 -> pertes en % | G54: belegt | H54: =MAX(H47:H52) -> 0 | I54: =Textes!A312 -> jours poulailler occupé | N54: =IF(P53=1,$I$6-B47+1,H54) -> 0
D55: =IF(P53=99,0,IF(P53=0,H54/MAX(H48:H52),IF(P53=1,(H54-(O53-$I$6))/H54,0))) -> 0 | E55: =Textes!A311 -> Rotations | H55: =IF(B57<>0,(B57-O53),0) -> 0 | I55: =Textes!A313 -> jours poulailler inoccupé
B56: =Textes!A295 -> Rotation 5
C57: =IF(ISERROR(Jahr), "", IF($F$6>B57,"",IF(B57>$I$6,Jahr + 1,Jahr))) ->  | E57: =Textes!A303 -> Mise en poulailler | F57: =D57*0.04 -> 0 | G57: =IF(D57>0,D57,0) -> 0 | M57: =IF(OR(B57="",D57=""),0,IF((I$6-B57)=0,1,H57+(I$6-B57))) -> 0 | N57: =IF(D57="",0,VLOOKUP(M57,Faktoren!$B$16:$D$55,2)/1000) -> 0 | R57: =IF(AND(H57 > 0, B57 > 0), LOOKUP(H57,INDEX(Faktoren!data,,1),INDEX(Faktoren!data,,5)),0) -> 0 | S57: =D57:D63 * R57:R63 -> 0
E58: =Textes!A304 -> 1er abattage | G58: =IF(D57-D58>0,D57-D58,0) -> 0 | H58: =IF(AND(D58>0,B58>0),B58-B57+1,0) -> 0 | I58: =IF(H58>0,IF(H58>Faktoren!$D$5,Faktoren!$E$4,Faktoren!$E$5),0) -> 0 | J58: =IF(H58>0,D58*I58,0) -> 0 | M58: =IF(OR(B58="",D58=""),0,H58+(I$6-B58)) -> 0 | N58: =IF(D58="",0,VLOOKUP(M58,Faktoren!$B$16:$D$55,2)/1000) -> 0 | R58: =IF(AND(H58 > 0, B58 > 0), LOOKUP(H58,INDEX(Faktoren!data,,1),INDEX(Faktoren!data,,5)),0) -> 0 | S58: 0
E59: =Textes!A305 -> 2e abattage | G59: =IF(D57-D58-D59>0,D57-D58-D59,0) -> 0 | H59: =IF(AND(D59>0,B59>0),B59-B57+1,0) -> 0 | I59: =IF(H59>0,IF(H59>Faktoren!$D$5,Faktoren!$E$4,Faktoren!$E$5),0) -> 0 | J59: =IF(H59>0,D59*I59,0) -> 0 | M59: =IF(OR(B59="",D59=""),0,H59+(I$6-B59)) -> 0 | N59: =IF(D59="",0,VLOOKUP(M59,Faktoren!$B$16:$D$55,2)/1000) -> 0 | R59: =IF(AND(H59 > 0, B59 > 0), LOOKUP(H59,INDEX(Faktoren!data,,1),INDEX(Faktoren!data,,5)),0) -> 0 | S59: 0
E60: =Textes!A306 -> 3e abattage | G60: =IF(D57-D58-D59-D60>0,D57-D58-D59-D60,0) -> 0 | H60: =IF(AND(D60>0,B60>0),B60-B57+1,0) -> 0 | I60: =IF(H60>0,IF(H60>Faktoren!$D$5,Faktoren!$E$4,Faktoren!$E$5),0) -> 0 | J60: =IF(H60>0,D60*I60,0) -> 0 | M60: =IF(OR(B60="",D60=""),0,H60+(I$6-B60)) -> 0 | N60: =IF(D60="",0,VLOOKUP(M60,Faktoren!$B$16:$D$55,2)/1000) -> 0 | R60: =IF(AND(H60 > 0, B60 > 0), LOOKUP(H60,INDEX(Faktoren!data,,1),INDEX(Faktoren!data,,5)),0) -> 0 | S60: 0
E61: =Textes!A307 -> 4e abattage | G61: =IF(D57-D58-D59-D60-D61>0,D57-D58-D59-D60-D61,0) -> 0 | H61: =IF(AND(D61>0,B61>0),B61-B57+1,0) -> 0 | I61: =IF(H61>0,IF(H61>Faktoren!$D$5,Faktoren!$E$4,Faktoren!$E$5),0) -> 0 | J61: =IF(H61>0,D61*I61,0) -> 0 | M61: =IF(OR(B61="",D61=""),0,H61+(I$6-B61)) -> 0 | N61: =IF(D61="",0,VLOOKUP(M61,Faktoren!$B$16:$D$55,2)/1000) -> 0 | R61: =IF(AND(H61 > 0, B61 > 0), LOOKUP(H61,INDEX(Faktoren!data,,1),INDEX(Faktoren!data,,5)),0) -> 0 | S61: 0
E62: =Textes!A308 -> 5e abattage | G62: =IF(D57-D58-D59-D60-D61-D62>0,D57-D58-D59-D60-D61-D62,0) -> 0 | H62: =IF(AND(D62>0,B62>0),B62-B57+1,0) -> 0 | I62: =IF(H62>0,IF(H62>Faktoren!$D$5,Faktoren!$E$4,Faktoren!$E$5),0) -> 0 | J62: =IF(H62>0,D62*I62,0) -> 0 | M62: =IF(OR(B62="",D62=""),0,H62+(I$6-B62)) -> 0 | N62: =IF(D62="",0,VLOOKUP(M62,Faktoren!$B$16:$D$55,2)/1000) -> 0 | R62: =IF(AND(H62 > 0, B62 > 0), LOOKUP(H62,INDEX(Faktoren!data,,1),INDEX(Faktoren!data,,5)),0) -> 0 | S62: 0
B63: =IF(SUM(B57:B62) > 0,E63,"") ->  | D63: =+D57-SUM(D58:D62) -> 0 | E63: =Textes!A309 -> pertes | F63: =D63*0.6 -> 0 | I63: =IF(D63>0,Faktoren!$E$7,0) -> 0 | J63: =IF(D63>0,D63*I63,0) -> 0 | K63: =SUM(J58:J63) -> 0 | M63: =IF(MAX(B57:B62)<$I$6,0,VLOOKUP($I$6,B57:G62,6)) -> 0 | O63: =MAX(B57:B62) -> 00:00:00 | P63: =IF(OR($F$6="",I$6="",O63<F$6),99,IF(AND(O63>F$6,O63<=I$6),0,1)) -> 99 | R63: =IF(AND(H63 > 0, B63 > 0), LOOKUP(H63,INDEX(Faktoren!data,,1),INDEX(Faktoren!data,,5)),0) -> 0 | S63: 0 | T63: =SUM(S57:S63) -> 0
D64: =IF(D57>0,ROUND(+D63/D57*100,1),0) -> 0 | E64: =Textes!A310 -> pertes en % | G64: belegt | H64: =MAX(H57:H62) -> 0 | I64: =Textes!A312 -> jours poulailler occupé | N64: =IF(P63=1,$I$6-B57+1,H64) -> 0
D65: =IF(P63=99,0,IF(P63=0,H64/MAX(H58:H62),IF(P63=1,(H64-(O63-$I$6))/H64,0))) -> 0 | E65: =Textes!A311 -> Rotations | H65: =IF(B69<>0,(B69-O63),0) -> 0 | I65: =Textes!A313 -> jours poulailler inoccupé
B67: =Textes!A268 -> Poulailler 2 | K67: =Textes!A338 -> page 2
B68: =Textes!A296 -> Rotation 6
C69: =IF(ISERROR(Jahr), "", IF($F$6>B69,"",IF(B69>$I$6,Jahr + 1,Jahr))) ->  | E69: =Textes!A303 -> Mise en poulailler | F69: =D69*0.04 -> 0 | G69: =IF(D69>0,D69,0) -> 0 | M69: =IF(OR(B69="",D69=""),0,IF((I$6-B69)=0,1,H69+(I$6-B69))) -> 0 | N69: =IF(D69="",0,VLOOKUP(M69,Faktoren!$B$16:$D$55,2)/1000) -> 0 | R69: =IF(AND(H69 > 0, B69 > 0), LOOKUP(H69,INDEX(Faktoren!data,,1),INDEX(Faktoren!data,,5)),0) -> 0 | S69: =D69:D75 * R69:R75 -> 0
E70: =Textes!A304 -> 1er abattage | G70: =IF(D69-D70>0,D69-D70,0) -> 0 | H70: =IF(AND(D70>0,B70>0),B70-B69+1,0) -> 0 | I70: =IF(H70>0,IF(H70>Faktoren!$D$5,Faktoren!$E$4,Faktoren!$E$5),0) -> 0 | J70: =IF(H70>0,D70*I70,0) -> 0 | M70: =IF(OR(B70="",D70=""),0,H70+(I$6-B70)) -> 0 | N70: =IF(D70="",0,VLOOKUP(M70,Faktoren!$B$16:$D$55,2)/1000) -> 0 | R70: =IF(AND(H70 > 0, B70 > 0), LOOKUP(H70,INDEX(Faktoren!data,,1),INDEX(Faktoren!data,,5)),0) -> 0 | S70: 0
E71: =Textes!A305 -> 2e abattage | G71: =IF(D69-D70-D71>0,D69-D70-D71,0) -> 0 | H71: =IF(AND(D71>0,B71>0),B71-B69+1,0) -> 0 | I71: =IF(H71>0,IF(H71>Faktoren!$D$5,Faktoren!$E$4,Faktoren!$E$5),0) -> 0 | J71: =IF(H71>0,D71*I71,0) -> 0 | M71: =IF(OR(B71="",D71=""),0,H71+(I$6-B71)) -> 0 | N71: =IF(D71="",0,VLOOKUP(M71,Faktoren!$B$16:$D$55,2)/1000) -> 0 | R71: =IF(AND(H71 > 0, B71 > 0), LOOKUP(H71,INDEX(Faktoren!data,,1),INDEX(Faktoren!data,,5)),0) -> 0 | S71: 0
E72: =Textes!A306 -> 3e abattage | G72: =IF(D69-D70-D71-D72>0,D69-D70-D71-D72,0) -> 0 | H72: =IF(AND(D72>0,B72>0),B72-B69+1,0) -> 0 | I72: =IF(H72>0,IF(H72>Faktoren!$D$5,Faktoren!$E$4,Faktoren!$E$5),0) -> 0 | J72: =IF(H72>0,D72*I72,0) -> 0 | M72: =IF(OR(B72="",D72=""),0,H72+(I$6-B72)) -> 0 | N72: =IF(D72="",0,VLOOKUP(M72,Faktoren!$B$16:$D$55,2)/1000) -> 0 | R72: =IF(AND(H72 > 0, B72 > 0), LOOKUP(H72,INDEX(Faktoren!data,,1),INDEX(Faktoren!data,,5)),0) -> 0 | S72: 0
E73: =Textes!A307 -> 4e abattage | G73: =IF(D69-D70-D71-D72-D73>0,D69-D70-D71-D72-D73,0) -> 0 | H73: =IF(AND(D73>0,B73>0),B73-B69+1,0) -> 0 | I73: =IF(H73>0,IF(H73>Faktoren!$D$5,Faktoren!$E$4,Faktoren!$E$5),0) -> 0 | J73: =IF(H73>0,D73*I73,0) -> 0 | M73: =IF(OR(B73="",D73=""),0,H73+(I$6-B73)) -> 0 | N73: =IF(D73="",0,VLOOKUP(M73,Faktoren!$B$16:$D$55,2)/1000) -> 0 | R73: =IF(AND(H73 > 0, B73 > 0), LOOKUP(H73,INDEX(Faktoren!data,,1),INDEX(Faktoren!data,,5)),0) -> 0 | S73: 0
E74: =Textes!A308 -> 5e abattage | G74: =IF(D69-D70-D71-D72-D73-D74>0,D69-D70-D71-D72-D73-D74,0) -> 0 | H74: =IF(AND(D74>0,B74>0),B74-B69+1,0) -> 0 | I74: =IF(H74>0,IF(H74>Faktoren!$D$5,Faktoren!$E$4,Faktoren!$E$5),0) -> 0 | J74: =IF(H74>0,D74*I74,0) -> 0 | M74: =IF(OR(B74="",D74=""),0,H74+(I$6-B74)) -> 0 | N74: =IF(D74="",0,VLOOKUP(M74,Faktoren!$B$16:$D$55,2)/1000) -> 0 | R74: =IF(AND(H74 > 0, B74 > 0), LOOKUP(H74,INDEX(Faktoren!data,,1),INDEX(Faktoren!data,,5)),0) -> 0 | S74: 0
B75: =IF(SUM(B69:B74) > 0,E75,"") ->  | D75: =+D69-SUM(D70:D74) -> 0 | E75: =Textes!A309 -> pertes | F75: =D75*0.6 -> 0 | I75: =IF(D75>0,Faktoren!$E$7,0) -> 0 | J75: =IF(D75>0,D75*I75,0) -> 0 | K75: =SUM(J70:J75) -> 0 | M75: =IF(MAX(B69:B74)<$I$6,0,VLOOKUP($I$6,B69:G74,6)) -> 0 | O75: =MAX(B69:B74) -> 00:00:00 | P75: =IF(OR($F$6="",I$6="",O75<F$6),99,IF(AND(O75>F$6,O75<=I$6),0,1)) -> 99 | R75: =IF(AND(H75 > 0, B75 > 0), LOOKUP(H75,INDEX(Faktoren!data,,1),INDEX(Faktoren!data,,5)),0) -> 0 | S75: 0 | T75: =SUM(S69:S75) -> 0
D76: =IF(D69>0,ROUND(+D75/D69*100,1),0) -> 0 | E76: =Textes!A310 -> pertes en % | G76: belegt | H76: =MAX(H69:H74) -> 0 | I76: =Textes!A312 -> jours poulailler occupé | N76: =IF(P75=1,$I$6-B69+1,H76) -> 0
D77: =IF(P75=99,0,IF(P75=0,H76/MAX(H70:H74),IF(P75=1,(H76-(O75-$I$6))/H76,0))) -> 0 | E77: =Textes!A311 -> Rotations | H77: =IF(B79<>0,(B79-O75),0) -> 0 | I77: =Textes!A313 -> jours poulailler inoccupé
B78: =Textes!A297 -> Rotation 7
C79: =IF(ISERROR(Jahr), "", IF($F$6>B79,"",IF(B79>$I$6,Jahr + 1,Jahr))) ->  | E79: =Textes!A303 -> Mise en poulailler | F79: =D79*0.04 -> 0 | G79: =IF(D79>0,D79,0) -> 0 | M79: =IF(OR(B79="",D79=""),0,IF((I$6-B79)=0,1,H79+(I$6-B79))) -> 0 | N79: =IF(D79="",0,VLOOKUP(M79,Faktoren!$B$16:$D$55,2)/1000) -> 0 | R79: =IF(AND(H79 > 0, B79 > 0), LOOKUP(H79,INDEX(Faktoren!data,,1),INDEX(Faktoren!data,,5)),0) -> 0 | S79: =D79:D85 * R79:R85 -> 0
E80: =Textes!A304 -> 1er abattage | G80: =IF(D79-D80>0,D79-D80,0) -> 0 | H80: =IF(AND(D80>0,B80>0),B80-B79+1,0) -> 0 | I80: =IF(H80>0,IF(H80>Faktoren!$D$5,Faktoren!$E$4,Faktoren!$E$5),0) -> 0 | J80: =IF(H80>0,D80*I80,0) -> 0 | M80: =IF(OR(B80="",D80=""),0,H80+(I$6-B80)) -> 0 | N80: =IF(D80="",0,VLOOKUP(M80,Faktoren!$B$16:$D$55,2)/1000) -> 0 | R80: =IF(AND(H80 > 0, B80 > 0), LOOKUP(H80,INDEX(Faktoren!data,,1),INDEX(Faktoren!data,,5)),0) -> 0 | S80: 0
E81: =Textes!A305 -> 2e abattage | G81: =IF(D79-D80-D81>0,D79-D80-D81,0) -> 0 | H81: =IF(AND(D81>0,B81>0),B81-B79+1,0) -> 0 | I81: =IF(H81>0,IF(H81>Faktoren!$D$5,Faktoren!$E$4,Faktoren!$E$5),0) -> 0 | J81: =IF(H81>0,D81*I81,0) -> 0 | M81: =IF(OR(B81="",D81=""),0,H81+(I$6-B81)) -> 0 | N81: =IF(D81="",0,VLOOKUP(M81,Faktoren!$B$16:$D$55,2)/1000) -> 0 | R81: =IF(AND(H81 > 0, B81 > 0), LOOKUP(H81,INDEX(Faktoren!data,,1),INDEX(Faktoren!data,,5)),0) -> 0 | S81: 0
E82: =Textes!A306 -> 3e abattage | G82: =IF(D79-D80-D81-D82>0,D79-D80-D81-D82,0) -> 0 | H82: =IF(AND(D82>0,B82>0),B82-B79+1,0) -> 0 | I82: =IF(H82>0,IF(H82>Faktoren!$D$5,Faktoren!$E$4,Faktoren!$E$5),0) -> 0 | J82: =IF(H82>0,D82*I82,0) -> 0 | M82: =IF(OR(B82="",D82=""),0,H82+(I$6-B82)) -> 0 | N82: =IF(D82="",0,VLOOKUP(M82,Faktoren!$B$16:$D$55,2)/1000) -> 0 | R82: =IF(AND(H82 > 0, B82 > 0), LOOKUP(H82,INDEX(Faktoren!data,,1),INDEX(Faktoren!data,,5)),0) -> 0 | S82: 0
E83: =Textes!A307 -> 4e abattage | G83: =IF(D79-D80-D81-D82-D83>0,D79-D80-D81-D82-D83,0) -> 0 | H83: =IF(AND(D83>0,B83>0),B83-B79+1,0) -> 0 | I83: =IF(H83>0,IF(H83>Faktoren!$D$5,Faktoren!$E$4,Faktoren!$E$5),0) -> 0 | J83: =IF(H83>0,D83*I83,0) -> 0 | M83: =IF(OR(B83="",D83=""),0,H83+(I$6-B83)) -> 0 | N83: =IF(D83="",0,VLOOKUP(M83,Faktoren!$B$16:$D$55,2)/1000) -> 0 | R83: =IF(AND(H83 > 0, B83 > 0), LOOKUP(H83,INDEX(Faktoren!data,,1),INDEX(Faktoren!data,,5)),0) -> 0 | S83: 0
E84: =Textes!A308 -> 5e abattage | G84: =IF(D79-D80-D81-D82-D83-D84>0,D79-D80-D81-D82-D83-D84,0) -> 0 | H84: =IF(AND(D84>0,B84>0),B84-B79+1,0) -> 0 | I84: =IF(H84>0,IF(H84>Faktoren!$D$5,Faktoren!$E$4,Faktoren!$E$5),0) -> 0 | J84: =IF(H84>0,D84*I84,0) -> 0 | M84: =IF(OR(B84="",D84=""),0,H84+(I$6-B84)) -> 0 | N84: =IF(D84="",0,VLOOKUP(M84,Faktoren!$B$16:$D$55,2)/1000) -> 0 | R84: =IF(AND(H84 > 0, B84 > 0), LOOKUP(H84,INDEX(Faktoren!data,,1),INDEX(Faktoren!data,,5)),0) -> 0 | S84: 0
B85: =IF(SUM(B79:B84) > 0,E85,"") ->  | D85: =+D79-SUM(D80:D84) -> 0 | E85: =Textes!A309 -> pertes | F85: =D85*0.6 -> 0 | I85: =IF(D85>0,Faktoren!$E$7,0) -> 0 | J85: =IF(D85>0,D85*I85,0) -> 0 | K85: =SUM(J80:J85) -> 0 | M85: =IF(MAX(B79:B84)<$I$6,0,VLOOKUP($I$6,B79:G84,6)) -> 0 | O85: =MAX(B79:B84) -> 00:00:00 | P85: =IF(OR($F$6="",I$6="",O85<F$6),99,IF(AND(O85>F$6,O85<=I$6),0,1)) -> 99 | R85: =IF(AND(H85 > 0, B85 > 0), LOOKUP(H85,INDEX(Faktoren!data,,1),INDEX(Faktoren!data,,5)),0) -> 0 | S85: 0 | T85: =SUM(S79:S85) -> 0
D86: =IF(D79>0,ROUND(+D85/D79*100,1),0) -> 0 | E86: =Textes!A310 -> pertes en % | G86: belegt | H86: =MAX(H79:H84) -> 0 | I86: =Textes!A312 -> jours poulailler occupé | N86: =IF(P85=1,$I$6-B79+1,H86) -> 0
D87: =IF(P85=99,0,IF(P85=0,H86/MAX(H80:H84),IF(P85=1,(H86-(O85-$I$6))/H86,0))) -> 0 | E87: =Textes!A311 -> Rotations | H87: =IF(B89<>0,(B89-O85),0) -> 0 | I87: =Textes!A313 -> jours poulailler inoccupé
B88: =Textes!A298 -> Rotation 8
C89: =IF(ISERROR(Jahr), "", IF($F$6>B89,"",IF(B89>$I$6,Jahr + 1,Jahr))) ->  | E89: =Textes!A303 -> Mise en poulailler | F89: =D89*0.04 -> 0 | G89: =IF(D89>0,D89,0) -> 0 | M89: =IF(OR(B89="",D89=""),0,IF((I$6-B89)=0,1,H89+(I$6-B89))) -> 0 | N89: =IF(D89="",0,VLOOKUP(M89,Faktoren!$B$16:$D$55,2)/1000) -> 0 | R89: =IF(AND(H89 > 0, B89 > 0), LOOKUP(H89,INDEX(Faktoren!data,,1),INDEX(Faktoren!data,,5)),0) -> 0 | S89: =D89:D95 * R89:R95 -> 0
E90: =Textes!A304 -> 1er abattage | G90: =IF(D89-D90>0,D89-D90,0) -> 0 | H90: =IF(AND(D90>0,B90>0),B90-B89+1,0) -> 0 | I90: =IF(H90>0,IF(H90>Faktoren!$D$5,Faktoren!$E$4,Faktoren!$E$5),0) -> 0 | J90: =IF(H90>0,D90*I90,0) -> 0 | M90: =IF(OR(B90="",D90=""),0,H90+(I$6-B90)) -> 0 | N90: =IF(D90="",0,VLOOKUP(M90,Faktoren!$B$16:$D$55,2)/1000) -> 0 | R90: =IF(AND(H90 > 0, B90 > 0), LOOKUP(H90,INDEX(Faktoren!data,,1),INDEX(Faktoren!data,,5)),0) -> 0 | S90: 0
E91: =Textes!A305 -> 2e abattage | G91: =IF(D89-D90-D91>0,D89-D90-D91,0) -> 0 | H91: =IF(AND(D91>0,B91>0),B91-B89+1,0) -> 0 | I91: =IF(H91>0,IF(H91>Faktoren!$D$5,Faktoren!$E$4,Faktoren!$E$5),0) -> 0 | J91: =IF(H91>0,D91*I91,0) -> 0 | M91: =IF(OR(B91="",D91=""),0,H91+(I$6-B91)) -> 0 | N91: =IF(D91="",0,VLOOKUP(M91,Faktoren!$B$16:$D$55,2)/1000) -> 0 | R91: =IF(AND(H91 > 0, B91 > 0), LOOKUP(H91,INDEX(Faktoren!data,,1),INDEX(Faktoren!data,,5)),0) -> 0 | S91: 0
E92: =Textes!A306 -> 3e abattage | G92: =IF(D89-D90-D91-D92>0,D89-D90-D91-D92,0) -> 0 | H92: =IF(AND(D92>0,B92>0),B92-B89+1,0) -> 0 | I92: =IF(H92>0,IF(H92>Faktoren!$D$5,Faktoren!$E$4,Faktoren!$E$5),0) -> 0 | J92: =IF(H92>0,D92*I92,0) -> 0 | M92: =IF(OR(B92="",D92=""),0,H92+(I$6-B92)) -> 0 | N92: =IF(D92="",0,VLOOKUP(M92,Faktoren!$B$16:$D$55,2)/1000) -> 0 | R92: =IF(AND(H92 > 0, B92 > 0), LOOKUP(H92,INDEX(Faktoren!data,,1),INDEX(Faktoren!data,,5)),0) -> 0 | S92: 0
E93: =Textes!A307 -> 4e abattage | G93: =IF(D89-D90-D91-D92-D93>0,D89-D90-D91-D92-D93,0) -> 0 | H93: =IF(AND(D93>0,B93>0),B93-B89+1,0) -> 0 | I93: =IF(H93>0,IF(H93>Faktoren!$D$5,Faktoren!$E$4,Faktoren!$E$5),0) -> 0 | J93: =IF(H93>0,D93*I93,0) -> 0 | M93: =IF(OR(B93="",D93=""),0,H93+(I$6-B93)) -> 0 | N93: =IF(D93="",0,VLOOKUP(M93,Faktoren!$B$16:$D$55,2)/1000) -> 0 | R93: =IF(AND(H93 > 0, B93 > 0), LOOKUP(H93,INDEX(Faktoren!data,,1),INDEX(Faktoren!data,,5)),0) -> 0 | S93: 0
E94: =Textes!A308 -> 5e abattage | G94: =IF(D89-D90-D91-D92-D93-D94>0,D89-D90-D91-D92-D93-D94,0) -> 0 | H94: =IF(AND(D94>0,B94>0),B94-B89+1,0) -> 0 | I94: =IF(H94>0,IF(H94>Faktoren!$D$5,Faktoren!$E$4,Faktoren!$E$5),0) -> 0 | J94: =IF(H94>0,D94*I94,0) -> 0 | M94: =IF(OR(B94="",D94=""),0,H94+(I$6-B94)) -> 0 | N94: =IF(D94="",0,VLOOKUP(M94,Faktoren!$B$16:$D$55,2)/1000) -> 0 | R94: =IF(AND(H94 > 0, B94 > 0), LOOKUP(H94,INDEX(Faktoren!data,,1),INDEX(Faktoren!data,,5)),0) -> 0 | S94: 0
B95: =IF(SUM(B89:B94) > 0,E95,"") ->  | D95: =+D89-SUM(D90:D94) -> 0 | E95: =Textes!A309 -> pertes | F95: =D95*0.6 -> 0 | I95: =IF(D95>0,Faktoren!$E$7,0) -> 0 | J95: =IF(D95>0,D95*I95,0) -> 0 | K95: =SUM(J90:J95) -> 0 | M95: =IF(MAX(B89:B94)<$I$6,0,VLOOKUP($I$6,B89:G94,6)) -> 0 | O95: =MAX(B89:B94) -> 00:00:00 | P95: =IF(OR($F$6="",I$6="",O95<F$6),99,IF(AND(O95>F$6,O95<=I$6),0,1)) -> 99 | R95: =IF(AND(H95 > 0, B95 > 0), LOOKUP(H95,INDEX(Faktoren!data,,1),INDEX(Faktoren!data,,5)),0) -> 0 | S95: 0 | T95: =SUM(S89:S95) -> 0
D96: =IF(D89>0,ROUND(+D95/D89*100,1),0) -> 0 | E96: =Textes!A310 -> pertes en % | G96: belegt | H96: =MAX(H89:H94) -> 0 | I96: =Textes!A312 -> jours poulailler occupé | N96: =IF(P95=1,$I$6-B89+1,H96) -> 0
D97: =IF(P95=99,0,IF(P95=0,H96/MAX(H90:H94),IF(P95=1,(H96-(O95-$I$6))/H96,0))) -> 0 | E97: =Textes!A311 -> Rotations | H97: =IF(B99<>0,(B99-O95),0) -> 0 | I97: =Textes!A313 -> jours poulailler inoccupé
B98: =Textes!A299 -> Rotation 9
C99: =IF(ISERROR(Jahr), "", IF($F$6>B99,"",IF(B99>$I$6,Jahr + 1,Jahr))) ->  | E99: =Textes!A303 -> Mise en poulailler | F99: =D99*0.04 -> 0 | G99: =IF(D99>0,D99,0) -> 0 | M99: =IF(OR(B99="",D99=""),0,IF((I$6-B99)=0,1,H99+(I$6-B99))) -> 0 | N99: =IF(D99="",0,VLOOKUP(M99,Faktoren!$B$16:$D$55,2)/1000) -> 0 | R99: =IF(AND(H99 > 0, B99 > 0), LOOKUP(H99,INDEX(Faktoren!data,,1),INDEX(Faktoren!data,,5)),0) -> 0 | S99: =D99:D105 * R99:R105 -> 0
E100: =Textes!A304 -> 1er abattage | G100: =IF(D99-D100>0,D99-D100,0) -> 0 | H100: =IF(AND(D100>0,B100>0),B100-B99+1,0) -> 0 | I100: =IF(H100>0,IF(H100>Faktoren!$D$5,Faktoren!$E$4,Faktoren!$E$5),0) -> 0 | J100: =IF(H100>0,D100*I100,0) -> 0 | M100: =IF(OR(B100="",D100=""),0,H100+(I$6-B100)) -> 0 | N100: =IF(D100="",0,VLOOKUP(M100,Faktoren!$B$16:$D$55,2)/1000) -> 0 | R100: =IF(AND(H100 > 0, B100 > 0), LOOKUP(H100,INDEX(Faktoren!data,,1),INDEX(Faktoren!data,,5)),0) -> 0 | S100: 0
E101: =Textes!A305 -> 2e abattage | G101: =IF(D99-D100-D101>0,D99-D100-D101,0) -> 0 | H101: =IF(AND(D101>0,B101>0),B101-B99+1,0) -> 0 | I101: =IF(H101>0,IF(H101>Faktoren!$D$5,Faktoren!$E$4,Faktoren!$E$5),0) -> 0 | J101: =IF(H101>0,D101*I101,0) -> 0 | M101: =IF(OR(B101="",D101=""),0,H101+(I$6-B101)) -> 0 | N101: =IF(D101="",0,VLOOKUP(M101,Faktoren!$B$16:$D$55,2)/1000) -> 0 | R101: =IF(AND(H101 > 0, B101 > 0), LOOKUP(H101,INDEX(Faktoren!data,,1),INDEX(Faktoren!data,,5)),0) -> 0 | S101: 0
E102: =Textes!A306 -> 3e abattage | G102: =IF(D99-D100-D101-D102>0,D99-D100-D101-D102,0) -> 0 | H102: =IF(AND(D102>0,B102>0),B102-B99+1,0) -> 0 | I102: =IF(H102>0,IF(H102>Faktoren!$D$5,Faktoren!$E$4,Faktoren!$E$5),0) -> 0 | J102: =IF(H102>0,D102*I102,0) -> 0 | M102: =IF(OR(B102="",D102=""),0,H102+(I$6-B102)) -> 0 | N102: =IF(D102="",0,VLOOKUP(M102,Faktoren!$B$16:$D$55,2)/1000) -> 0 | R102: =IF(AND(H102 > 0, B102 > 0), LOOKUP(H102,INDEX(Faktoren!data,,1),INDEX(Faktoren!data,,5)),0) -> 0 | S102: 0
E103: =Textes!A307 -> 4e abattage | G103: =IF(D99-D100-D101-D102-D103>0,D99-D100-D101-D102-D103,0) -> 0 | H103: =IF(AND(D103>0,B103>0),B103-B99+1,0) -> 0 | I103: =IF(H103>0,IF(H103>Faktoren!$D$5,Faktoren!$E$4,Faktoren!$E$5),0) -> 0 | J103: =IF(H103>0,D103*I103,0) -> 0 | M103: =IF(OR(B103="",D103=""),0,H103+(I$6-B103)) -> 0 | N103: =IF(D103="",0,VLOOKUP(M103,Faktoren!$B$16:$D$55,2)/1000) -> 0 | R103: =IF(AND(H103 > 0, B103 > 0), LOOKUP(H103,INDEX(Faktoren!data,,1),INDEX(Faktoren!data,,5)),0) -> 0 | S103: 0
E104: =Textes!A308 -> 5e abattage | G104: =IF(D99-D100-D101-D102-D103-D104>0,D99-D100-D101-D102-D103-D104,0) -> 0 | H104: =IF(AND(D104>0,B104>0),B104-B99+1,0) -> 0 | I104: =IF(H104>0,IF(H104>Faktoren!$D$5,Faktoren!$E$4,Faktoren!$E$5),0) -> 0 | J104: =IF(H104>0,D104*I104,0) -> 0 | M104: =IF(OR(B104="",D104=""),0,H104+(I$6-B104)) -> 0 | N104: =IF(D104="",0,VLOOKUP(M104,Faktoren!$B$16:$D$55,2)/1000) -> 0 | R104: =IF(AND(H104 > 0, B104 > 0), LOOKUP(H104,INDEX(Faktoren!data,,1),INDEX(Faktoren!data,,5)),0) -> 0 | S104: 0
B105: =IF(SUM(B99:B104) > 0,E105,"") ->  | D105: =+D99-SUM(D100:D104) -> 0 | E105: =Textes!A309 -> pertes | F105: =D105*0.6 -> 0 | I105: =IF(D105>0,Faktoren!$E$7,0) -> 0 | J105: =IF(D105>0,D105*I105,0) -> 0 | K105: =SUM(J100:J105) -> 0 | M105: =IF(MAX(B99:B104)<$I$6,0,VLOOKUP($I$6,B99:G104,6)) -> 0 | O105: =MAX(B99:B104) -> 00:00:00 | P105: =IF(OR($F$6="",I$6="",O105<F$6),99,IF(AND(O105>F$6,O105<=I$6),0,1)) -> 99 | R105: =IF(AND(H105 > 0, B105 > 0), LOOKUP(H105,INDEX(Faktoren!data,,1),INDEX(Faktoren!data,,5)),0) -> 0 | S105: 0 | T105: =SUM(S99:S105) -> 0
D106: =IF(D99>0,ROUND(+D105/D99*100,1),0) -> 0 | E106: =Textes!A310 -> pertes en % | G106: belegt | H106: =MAX(H99:H104) -> 0 | I106: =Textes!A312 -> jours poulailler occupé | N106: =IF(P105=1,$I$6-B99+1,H106) -> 0
D107: =IF(P105=99,0,IF(P105=0,H106/MAX(H100:H104),IF(P105=1,(H106-(O105-$I$6))/H106,0))) -> 0 | E107: =Textes!A311 -> Rotations | H107: =IF(B109<>0,(B109-O105),0) -> 0 | I107: =Textes!A313 -> jours poulailler inoccupé
B108: =Textes!A300 -> Rotation 10
C109: =IF(ISERROR(Jahr), "", IF($F$6>B109,"",IF(B109>$I$6,Jahr + 1,Jahr))) ->  | E109: =Textes!A303 -> Mise en poulailler | F109: =D109*0.04 -> 0 | G109: =IF(D109>0,D109,0) -> 0 | M109: =IF(OR(B109="",D109=""),0,IF((I$6-B109)=0,1,H109+(I$6-B109))) -> 0 | N109: =IF(D109="",0,VLOOKUP(M109,Faktoren!$B$16:$D$55,2)/1000) -> 0 | R109: =IF(AND(H109 > 0, B109 > 0), LOOKUP(H109,INDEX(Faktoren!data,,1),INDEX(Faktoren!data,,5)),0) -> 0 | S109: =D109:D115 * R109:R115 -> 0
E110: =Textes!A304 -> 1er abattage | G110: =IF(D109-D110>0,D109-D110,0) -> 0 | H110: =IF(AND(D110>0,B110>0),B110-B109+1,0) -> 0 | I110: =IF(H110>0,IF(H110>Faktoren!$D$5,Faktoren!$E$4,Faktoren!$E$5),0) -> 0 | J110: =IF(H110>0,D110*I110,0) -> 0 | M110: =IF(OR(B110="",D110=""),0,H110+(I$6-B110)) -> 0 | N110: =IF(D110="",0,VLOOKUP(M110,Faktoren!$B$16:$D$55,2)/1000) -> 0 | R110: =IF(AND(H110 > 0, B110 > 0), LOOKUP(H110,INDEX(Faktoren!data,,1),INDEX(Faktoren!data,,5)),0) -> 0 | S110: 0
E111: =Textes!A305 -> 2e abattage | G111: =IF(D109-D110-D111>0,D109-D110-D111,0) -> 0 | H111: =IF(AND(D111>0,B111>0),B111-B109+1,0) -> 0 | I111: =IF(H111>0,IF(H111>Faktoren!$D$5,Faktoren!$E$4,Faktoren!$E$5),0) -> 0 | J111: =IF(H111>0,D111*I111,0) -> 0 | M111: =IF(OR(B111="",D111=""),0,H111+(I$6-B111)) -> 0 | N111: =IF(D111="",0,VLOOKUP(M111,Faktoren!$B$16:$D$55,2)/1000) -> 0 | R111: =IF(AND(H111 > 0, B111 > 0), LOOKUP(H111,INDEX(Faktoren!data,,1),INDEX(Faktoren!data,,5)),0) -> 0 | S111: 0
E112: =Textes!A306 -> 3e abattage | G112: =IF(D109-D110-D111-D112>0,D109-D110-D111-D112,0) -> 0 | H112: =IF(AND(D112>0,B112>0),B112-B109+1,0) -> 0 | I112: =IF(H112>0,IF(H112>Faktoren!$D$5,Faktoren!$E$4,Faktoren!$E$5),0) -> 0 | J112: =IF(H112>0,D112*I112,0) -> 0 | M112: =IF(OR(B112="",D112=""),0,H112+(I$6-B112)) -> 0 | N112: =IF(D112="",0,VLOOKUP(M112,Faktoren!$B$16:$D$55,2)/1000) -> 0 | R112: =IF(AND(H112 > 0, B112 > 0), LOOKUP(H112,INDEX(Faktoren!data,,1),INDEX(Faktoren!data,,5)),0) -> 0 | S112: 0
E113: =Textes!A307 -> 4e abattage | G113: =IF(D109-D110-D111-D112-D113>0,D109-D110-D111-D112-D113,0) -> 0 | H113: =IF(AND(D113>0,B113>0),B113-B109+1,0) -> 0 | I113: =IF(H113>0,IF(H113>Faktoren!$D$5,Faktoren!$E$4,Faktoren!$E$5),0) -> 0 | J113: =IF(H113>0,D113*I113,0) -> 0 | M113: =IF(OR(B113="",D113=""),0,H113+(I$6-B113)) -> 0 | N113: =IF(D113="",0,VLOOKUP(M113,Faktoren!$B$16:$D$55,2)/1000) -> 0 | R113: =IF(AND(H113 > 0, B113 > 0), LOOKUP(H113,INDEX(Faktoren!data,,1),INDEX(Faktoren!data,,5)),0) -> 0 | S113: 0
E114: =Textes!A308 -> 5e abattage | G114: =IF(D109-D110-D111-D112-D113-D114>0,D109-D110-D111-D112-D113-D114,0) -> 0 | H114: =IF(AND(D114>0,B114>0),B114-B109+1,0) -> 0 | I114: =IF(H114>0,IF(H114>Faktoren!$D$5,Faktoren!$E$4,Faktoren!$E$5),0) -> 0 | J114: =IF(H114>0,D114*I114,0) -> 0 | M114: =IF(OR(B114="",D114=""),0,H114+(I$6-B114)) -> 0 | N114: =IF(D114="",0,VLOOKUP(M114,Faktoren!$B$16:$D$55,2)/1000) -> 0 | R114: =IF(AND(H114 > 0, B114 > 0), LOOKUP(H114,INDEX(Faktoren!data,,1),INDEX(Faktoren!data,,5)),0) -> 0 | S114: 0
B115: =IF(SUM(B109:B114) > 0,E115,"") ->  | D115: =+D109-SUM(D110:D114) -> 0 | E115: =Textes!A309 -> pertes | F115: =D115*0.6 -> 0 | I115: =IF(D115>0,Faktoren!$E$7,0) -> 0 | J115: =IF(D115>0,D115*I115,0) -> 0 | K115: =SUM(J110:J115) -> 0 | M115: =IF(MAX(B109:B114)<$I$6,0,VLOOKUP($I$6,B109:G114,6)) -> 0 | O115: =MAX(B109:B114) -> 00:00:00 | P115: =IF(OR($F$6="",I$6="",O115<F$6),99,IF(AND(O115>F$6,O115<=I$6),0,1)) -> 99 | R115: =IF(AND(H115 > 0, B115 > 0), LOOKUP(H115,INDEX(Faktoren!data,,1),INDEX(Faktoren!data,,5)),0) -> 0 | S115: 0 | T115: =SUM(S109:S115) -> 0
D116: =IF(D109>0,ROUND(+D115/D109*100,1),0) -> 0 | E116: =Textes!A310 -> pertes en % | G116: belegt | H116: =MAX(H109:H114) -> 0 | I116: =Textes!A312 -> jours poulailler occupé | N116: =IF(P115=1,$I$6-B109+1,H116) -> 0
D117: =IF(P115=99,0,IF(P115=0,H116/MAX(H110:H114),IF(P115=1,(H116-(O115-$I$6))/H116,0))) -> 0 | E117: =Textes!A311 -> Rotations | H117: =IF(B119<>0,(B119-O115),0) -> 0 | I117: =Textes!A313 -> jours poulailler inoccupé
B118: =Textes!A301 -> Rotation 11
C119: =IF(ISERROR(Jahr), "", IF($F$6>B119,"",IF(B119>$I$6,Jahr + 1,Jahr))) ->  | E119: =Textes!A303 -> Mise en poulailler | F119: =D119*0.04 -> 0 | G119: =IF(D119>0,D119,0) -> 0 | M119: =IF(OR(B119="",D119=""),0,IF((I$6-B119)=0,1,H119+(I$6-B119))) -> 0 | N119: =IF(D119="",0,VLOOKUP(M119,Faktoren!$B$16:$D$55,2)/1000) -> 0 | R119: =IF(AND(H119 > 0, B119 > 0), LOOKUP(H119,INDEX(Faktoren!data,,1),INDEX(Faktoren!data,,5)),0) -> 0 | S119: =D119:D125 * R119:R125 -> 0
E120: =Textes!A304 -> 1er abattage | G120: =IF(D119-D120>0,D119-D120,0) -> 0 | H120: =IF(AND(D120>0,B120>0),B120-B119+1,0) -> 0 | I120: =IF(H120>0,IF(H120>Faktoren!$D$5,Faktoren!$E$4,Faktoren!$E$5),0) -> 0 | J120: =IF(H120>0,D120*I120,0) -> 0 | M120: =IF(OR(B120="",D120=""),0,H120+(I$6-B120)) -> 0 | N120: =IF(D120="",0,VLOOKUP(M120,Faktoren!$B$16:$D$55,2)/1000) -> 0 | R120: =IF(AND(H120 > 0, B120 > 0), LOOKUP(H120,INDEX(Faktoren!data,,1),INDEX(Faktoren!data,,5)),0) -> 0 | S120: 0
E121: =Textes!A305 -> 2e abattage | G121: =IF(D119-D120-D121>0,D119-D120-D121,0) -> 0 | H121: =IF(AND(D121>0,B121>0),B121-B119+1,0) -> 0 | I121: =IF(H121>0,IF(H121>Faktoren!$D$5,Faktoren!$E$4,Faktoren!$E$5),0) -> 0 | J121: =IF(H121>0,D121*I121,0) -> 0 | M121: =IF(OR(B121="",D121=""),0,H121+(I$6-B121)) -> 0 | N121: =IF(D121="",0,VLOOKUP(M121,Faktoren!$B$16:$D$55,2)/1000) -> 0 | R121: =IF(AND(H121 > 0, B121 > 0), LOOKUP(H121,INDEX(Faktoren!data,,1),INDEX(Faktoren!data,,5)),0) -> 0 | S121: 0
E122: =Textes!A306 -> 3e abattage | G122: =IF(D119-D120-D121-D122>0,D119-D120-D121-D122,0) -> 0 | H122: =IF(AND(D122>0,B122>0),B122-B119+1,0) -> 0 | I122: =IF(H122>0,IF(H122>Faktoren!$D$5,Faktoren!$E$4,Faktoren!$E$5),0) -> 0 | J122: =IF(H122>0,D122*I122,0) -> 0 | M122: =IF(OR(B122="",D122=""),0,H122+(I$6-B122)) -> 0 | N122: =IF(D122="",0,VLOOKUP(M122,Faktoren!$B$16:$D$55,2)/1000) -> 0 | R122: =IF(AND(H122 > 0, B122 > 0), LOOKUP(H122,INDEX(Faktoren!data,,1),INDEX(Faktoren!data,,5)),0) -> 0 | S122: 0
E123: =Textes!A307 -> 4e abattage | G123: =IF(D119-D120-D121-D122-D123>0,D119-D120-D121-D122-D123,0) -> 0 | H123: =IF(AND(D123>0,B123>0),B123-B119+1,0) -> 0 | I123: =IF(H123>0,IF(H123>Faktoren!$D$5,Faktoren!$E$4,Faktoren!$E$5),0) -> 0 | J123: =IF(H123>0,D123*I123,0) -> 0 | M123: =IF(OR(B123="",D123=""),0,H123+(I$6-B123)) -> 0 | N123: =IF(D123="",0,VLOOKUP(M123,Faktoren!$B$16:$D$55,2)/1000) -> 0 | R123: =IF(AND(H123 > 0, B123 > 0), LOOKUP(H123,INDEX(Faktoren!data,,1),INDEX(Faktoren!data,,5)),0) -> 0 | S123: 0
E124: =Textes!A308 -> 5e abattage | G124: =IF(D119-D120-D121-D122-D123-D124>0,D119-D120-D121-D122-D123-D124,0) -> 0 | H124: =IF(AND(D124>0,B124>0),B124-B119+1,0) -> 0 | I124: =IF(H124>0,IF(H124>Faktoren!$D$5,Faktoren!$E$4,Faktoren!$E$5),0) -> 0 | J124: =IF(H124>0,D124*I124,0) -> 0 | M124: =IF(OR(B124="",D124=""),0,H124+(I$6-B124)) -> 0 | N124: =IF(D124="",0,VLOOKUP(M124,Faktoren!$B$16:$D$55,2)/1000) -> 0 | R124: =IF(AND(H124 > 0, B124 > 0), LOOKUP(H124,INDEX(Faktoren!data,,1),INDEX(Faktoren!data,,5)),0) -> 0 | S124: 0
B125: =IF(SUM(B119:B124) > 0,E125,"") ->  | D125: =+D119-SUM(D120:D124) -> 0 | E125: =Textes!A309 -> pertes | F125: =D125*0.6 -> 0 | I125: =IF(D125>0,Faktoren!$E$7,0) -> 0 | J125: =IF(D125>0,D125*I125,0) -> 0 | K125: =SUM(J120:J125) -> 0 | M125: =IF(MAX(B119:B124)<$I$6,0,VLOOKUP($I$6,B119:G124,6)) -> 0 | O125: =MAX(B119:B124) -> 00:00:00 | P125: =IF(OR($F$6="",I$6="",O125<F$6),99,IF(AND(O125>F$6,O125<=I$6),0,1)) -> 99 | R125: =IF(AND(H125 > 0, B125 > 0), LOOKUP(H125,INDEX(Faktoren!data,,1),INDEX(Faktoren!data,,5)),0) -> 0 | S125: 0 | T125: =SUM(S119:S125) -> 0
D126: =IF(D119>0,ROUND(+D125/D119*100,1),0) -> 0 | E126: =Textes!A310 -> pertes en % | G126: belegt | H126: =MAX(H119:H124) -> 0 | I126: =Textes!A312 -> jours poulailler occupé | N126: =IF(P125=1,$I$6-B119+1,H126) -> 0
D127: =IF(P125=99,0,IF(P125=0,H126/MAX(H120:H124),IF(P125=1,(H126-(O125-$I$6))/H126,0))) -> 0 | E127: =Textes!A311 -> Rotations | H127: =IF(B131<>0,(B131-O125),0) -> 0 | I127: =Textes!A313 -> jours poulailler inoccupé
B129: =Textes!A268 -> Poulailler 2 | K129: =Textes!A339 -> page 3
B130: =Textes!A302 -> Rotation 12
C131: =IF(ISERROR(Jahr), "", IF($F$6>B131,"",IF(B131>$I$6,Jahr + 1,Jahr))) ->  | E131: =Textes!A303 -> Mise en poulailler | F131: =D131*0.04 -> 0 | G131: =IF(D131>0,D131,0) -> 0 | M131: =IF(OR(B131="",D131=""),0,IF((I$6-B131)=0,1,H131+(I$6-B131))) -> 0 | N131: =IF(D131="",0,VLOOKUP(M131,Faktoren!$B$16:$D$55,2)/1000) -> 0 | R131: =IF(AND(H131 > 0, B131 > 0), LOOKUP(H131,INDEX(Faktoren!data,,1),INDEX(Faktoren!data,,5)),0) -> 0 | S131: =D131:D137 * R131:R137 -> 0
E132: =Textes!A304 -> 1er abattage | G132: =IF(D131-D132>0,D131-D132,0) -> 0 | H132: =IF(AND(D132>0,B132>0),B132-B131+1,0) -> 0 | I132: =IF(H132>0,IF(H132>Faktoren!$D$5,Faktoren!$E$4,Faktoren!$E$5),0) -> 0 | J132: =IF(H132>0,D132*I132,0) -> 0 | M132: =IF(OR(B132="",D132=""),0,H132+(I$6-B132)) -> 0 | N132: =IF(D132="",0,VLOOKUP(M132,Faktoren!$B$16:$D$55,2)/1000) -> 0 | R132: =IF(AND(H132 > 0, B132 > 0), LOOKUP(H132,INDEX(Faktoren!data,,1),INDEX(Faktoren!data,,5)),0) -> 0 | S132: 0
E133: =Textes!A305 -> 2e abattage | G133: =IF(D131-D132-D133>0,D131-D132-D133,0) -> 0 | H133: =IF(AND(D133>0,B133>0),B133-B131+1,0) -> 0 | I133: =IF(H133>0,IF(H133>Faktoren!$D$5,Faktoren!$E$4,Faktoren!$E$5),0) -> 0 | J133: =IF(H133>0,D133*I133,0) -> 0 | M133: =IF(OR(B133="",D133=""),0,H133+(I$6-B133)) -> 0 | N133: =IF(D133="",0,VLOOKUP(M133,Faktoren!$B$16:$D$55,2)/1000) -> 0 | R133: =IF(AND(H133 > 0, B133 > 0), LOOKUP(H133,INDEX(Faktoren!data,,1),INDEX(Faktoren!data,,5)),0) -> 0 | S133: 0
E134: =Textes!A306 -> 3e abattage | G134: =IF(D131-D132-D133-D134>0,D131-D132-D133-D134,0) -> 0 | H134: =IF(AND(D134>0,B134>0),B134-B131+1,0) -> 0 | I134: =IF(H134>0,IF(H134>Faktoren!$D$5,Faktoren!$E$4,Faktoren!$E$5),0) -> 0 | J134: =IF(H134>0,D134*I134,0) -> 0 | M134: =IF(OR(B134="",D134=""),0,H134+(I$6-B134)) -> 0 | N134: =IF(D134="",0,VLOOKUP(M134,Faktoren!$B$16:$D$55,2)/1000) -> 0 | R134: =IF(AND(H134 > 0, B134 > 0), LOOKUP(H134,INDEX(Faktoren!data,,1),INDEX(Faktoren!data,,5)),0) -> 0 | S134: 0
E135: =Textes!A307 -> 4e abattage | G135: =IF(D131-D132-D133-D134-D135>0,D131-D132-D133-D134-D135,0) -> 0 | H135: =IF(AND(D135>0,B135>0),B135-B131+1,0) -> 0 | I135: =IF(H135>0,IF(H135>Faktoren!$D$5,Faktoren!$E$4,Faktoren!$E$5),0) -> 0 | J135: =IF(H135>0,D135*I135,0) -> 0 | M135: =IF(OR(B135="",D135=""),0,H135+(I$6-B135)) -> 0 | N135: =IF(D135="",0,VLOOKUP(M135,Faktoren!$B$16:$D$55,2)/1000) -> 0 | R135: =IF(AND(H135 > 0, B135 > 0), LOOKUP(H135,INDEX(Faktoren!data,,1),INDEX(Faktoren!data,,5)),0) -> 0 | S135: 0
E136: =Textes!A308 -> 5e abattage | G136: =IF(D131-D132-D133-D134-D135-D136>0,D131-D132-D133-D134-D135-D136,0) -> 0 | H136: =IF(AND(D136>0,B136>0),B136-B131+1,0) -> 0 | I136: =IF(H136>0,IF(H136>Faktoren!$D$5,Faktoren!$E$4,Faktoren!$E$5),0) -> 0 | J136: =IF(H136>0,D136*I136,0) -> 0 | M136: =IF(OR(B136="",D136=""),0,H136+(I$6-B136)) -> 0 | N136: =IF(D136="",0,VLOOKUP(M136,Faktoren!$B$16:$D$55,2)/1000) -> 0 | R136: =IF(AND(H136 > 0, B136 > 0), LOOKUP(H136,INDEX(Faktoren!data,,1),INDEX(Faktoren!data,,5)),0) -> 0 | S136: 0
B137: =IF(SUM(B131:B136) > 0,E137,"") ->  | C137: =Jahr+1 ->  | D137: =+D131-D132-D133-D136 -> 0 | E137: =Textes!A309 -> pertes | F137: =D137*0.6 -> 0 | I137: =IF(D137>0,Faktoren!$E$7,0) -> 0 | J137: =IF(D137>0,D137*I137,0) -> 0 | K137: =SUM(J132:J137) -> 0 | M137: =IF(MAX(B131:B136)<$I$6,0,VLOOKUP($I$6,B131:G136,6)) -> 0 | O137: =MAX(B131:B136) -> 00:00:00 | P137: =IF(OR($F$6="",I$6="",O137<F$6),99,IF(AND(O137>F$6,O137<=I$6),0,1)) -> 99 | R137: =IF(AND(H137 > 0, B137 > 0), LOOKUP(H137,INDEX(Faktoren!data,,1),INDEX(Faktoren!data,,5)),0) -> 0 | S137: 0 | T137: =SUM(S131:S137) -> 0
D138: =IF(D131>0,ROUND(+D137/D131*100,1),0) -> 0 | E138: =Textes!A310 -> pertes en % | G138: belegt | H138: =MAX(H131:H136) -> 0 | I138: =Textes!A312 -> jours poulailler occupé | N138: =IF(P137=1,$I$6-B131+1,H138) -> 0
D139: =IF(P137=99,0,IF(P137=0,H138/MAX(H132:H136),IF(P137=1,(H138-(O137-$I$6))/H138,0))) -> 0 | E139: =Textes!A311 -> Rotations
B141: =Poulet1!B141 -> Effectif moyen | R141: =Poulet1!R141 -> Effectif moyen
B142: =Poulet1!B142 -> en nombre déterminant | K142: =IF((K137+K125+K115+K105+K95+K85+K75+K63+K53+K43+K33+K23)>0,(K137+K125+K115+K105+K95+K85+K75+K63+K53+K43+K33+K23)/SUM(G144:G155),0) -> 0 | R142: =Poulet1!R142 -> en unités de la période | T142: =IF((T137+T125+T115+T105+T95+T85+T75+T63+T53+T43+T33+T23)>0,(T137+T125+T115+T105+T95+T85+T75+T63+T53+T43+T33+T23)/SUM($G$144:$G$155),0) -> 0
B144: Berechnung der Anzahl Umtriebe | G144: =IF(AND(K23>0,K33>0,K43>0,K53>0,K63>0,K75>0,K85>0,K95>0,K105>0,K115>0,K125>0,K137>0),12,0) -> 0
G145: =IF(AND(K23>0,K33>0,K43>0,K53>0,K63>0,K75>0,K85>0,K95>0,K105>0,K115>0,K125>0,K137=0),11,0) -> 0
G146: =IF(AND(K23>0,K33>0,K43>0,K53>0,K63>0,K75>0,K85>0,K95>0,K105>0,K115>0,K125=0,K137=0),10,0) -> 0
G147: =IF(AND(K23>0,K33>0,K43>0,K53>0,K63>0,K75>0,K85>0,K95>0,K105>0,K115=0,K125=0,K137=0),9,0) -> 0
G148: =IF(AND(K23>0,K33>0,K43>0,K53>0,K63>0,K75>0,K85>0,K95>0,K105=0,K115=0,K125=0,K137=0),8,0) -> 0
G149: =IF(AND(K23>0,K33>0,K43>0,K53>0,K63>0,K75>0,K85>0,K95=0,K105=0,K115=0,K125=0,K137=0),7,0) -> 0
G150: =IF(AND(K23>0,K33>0,K43>0,K53>0,K63>0,K75>0,K85=0,K95=0,K105=0,K115=0,K125=0,K137=0),6,0) -> 0
G151: =IF(AND(K23>0,K33>0,K43>0,K53>0,K63>0,K75=0,K85=0,K95=0,K105=0,K115=0,K125=0,K137=0),5,0) -> 0
G152: =IF(AND(K23>0,K33>0,K43>0,K53>0,K63=0,K75=0,K85=0,K95=0,K105=0,K115=0,K125=0,K137=0),4,0) -> 0
G153: =IF(AND(K23>0,K33>0,K43>0,K53=0,K63=0,K75=0,K85=0,K95=0,K105=0,K115=0,K125=0,K137=0),3,0) -> 0
G154: =IF(AND(K23>0,K33>0,K43=0,K53=0,K63=0,K75=0,K85=0,K95=0,K105=0,K115=0,K125=0,K137=0),2,0) -> 0
G155: =IF(AND(K23>0,K33=0,K43=0,K53=0,K63=0,K75=0,K85=0,K95=0,K105=0,K115=0,K125=0,K137=0),1,0) -> 0
B158: =Textes!A317 -> Nombre de rotations | E158: =SUM(D25,D35,D45,D55,D65,D77,D87,D97,D107,D117,D127,D139) -> 0
B160: =Textes!A318 -> Durée d'occupation | E160: =IF((H24+H34+H44+H54+H64+H76+H86+H96+H106+H116+H126+H138)>0,(H24+H34+H44+H54+H64+H76+H86+H96+H106+H116+H126+H138)/SUM(G144:G155),0) -> 0 | H160: =Textes!A326 -> (moyenne, sans interruption entre
B161: =Textes!A319 -> par rotation | H161: =Textes!A327 -> les rotations)
B163: =Textes!A320 -> Durée d'occupation | D163: B(eff) | E163: =(N24+N34+N44+N54+N64+N76+N86+N96+N106+N116+N126+N138) -> 0 | H163: =Textes!A328 -> (nombre total de jours, sans interruption entre
B164: =Textes!A321 -> totale | H164: =Textes!A329 -> les rotations)
B166: =Textes!A322 -> Durée d'occupation | D166: B(min) | E166: 270 | H166: =Textes!A330 -> (durée d'occupation minimale
B167: =Textes!A323 -> minimale par an | H167: =Textes!A331 -> pour une utilisation normale du poulailler)
B169: =Textes!A324 -> Durée d'occupation | D169: B(min) | E169: =IF(K6 = "",0,E166/365*K6) -> 0 | H169: =Textes!A330 -> (durée d'occupation minimale
B170: =Textes!A325 -> minimale par periode | H170: =Textes!A332 -> calculée pour la periode)
R172: =B141 -> Effectif moyen
B173: =B141 & " " & R173 -> Effectif moyen au poulailler 2 | K173: =IF(E163>=E169,K142,K142/E169*E163) -> 0 | R173: =Textes!A334 -> au poulailler 2 | T173: =IF($E$163>=$E$169,T142,T142/$E$169*$E$163) -> 0
B175: =Textes!A336 -> correspond à l'effectif exprimé en UGB | K175: =K173*Faktoren!E10 -> 0
B177: =+Textes!A73 -> Organisation de contrôle, Date: | H177: =+Textes!A88 -> Signature:
B179: =+Textes!A77 -> Exploitant, Date: | H179: =+Textes!A88 -> Signature:

Sheet Poulet3 (hidden)
L2: =Textes!A269 -> Poulailler 3
B3: =Textes!A273 -> Attention:
B4: =Textes!A274 -> Travaux commencés avant la période et non terminés pendant la période sont à saisir entièrement !
B6: =Textes!A19 -> Période: | E6: =Textes!$A$20 -> Date début: | F6: =IF(Inv!$I$8=0,"",Inv!$I$8) ->  | H6: =Textes!$A$21 -> Date fin: | I6: =IF(Inv!$I$9=0,"",Inv!$I$9) ->  | J6: =Textes!A22 -> Durée en jours: | K6: =IF(OR(F6="",I6=""),"",I6-F6+1) -> 
F7: =YEAR(F6) -> 
B8: =+Textes!A9 -> No cantonal: | E8: =IF(Inv!D4=0,"",Inv!D4) -> 
B9: =+Textes!A10 -> Nom: | E9: =IF(Inv!D5=0,"",Inv!D6 & " " & Inv!D5) -> 
B10: =+Textes!A13 -> Adresse: | E10: =IF(Inv!D7=0,"",Inv!D7) -> 
B11: =+Textes!A14 -> NPA, lieu: | E11: =IF(Inv!D9=0,"",Inv!D9) -> 
H13: =Textes!A278 -> Jours | J13: =Textes!A282 -> Nbre d'ani- | K13: =Textes!A285 -> Nombre déter- | P13: Erkennen | R13: =I15 -> Coefficient | S13: =J13 -> Nbre d'ani- | T13: =D15 -> Nombre d'animaux
G14: Tier- | H14: =Textes!A279 -> d'engrais- | J14: =Textes!A283 -> maux abattus | K14: =Textes!A286 -> minant d'animaux | O14: Datum | P14: letzter Umtrieb | R14: =Textes!A288 -> pour valeurs | S14: =J14 -> maux abattus | T14: =K15 -> par rotation
B15: =Textes!A275 -> Date | D15: =Textes!A276 -> Nombre d'animaux | F15: =Textes!A277 -> kg PV total | G15: Bestand | H15: =Textes!A280 -> sement | I15: =Textes!A281 -> Coefficient | J15: =Textes!A284 -> x coefficient | K15: =Textes!A287 -> par rotation | O15: (Hilfswert) | P15: für Abgrenzung | R15: =Textes!A289 -> minimales (vm) | S15: x coefficient | T15: =Textes!A290 -> pour vm
B16: =Textes!A291 -> Rotation 1 | C16: =Jahr -> 
C17: =IF(ISERROR(Jahr), "", IF($F$6>B17,"",IF(B17>$I$6,Jahr + 1,Jahr))) ->  | E17: =Textes!A303 -> Mise en poulailler | F17: =D17*0.04 -> 0 | G17: =IF(D17>0,D17,0) -> 0 | M17: =IF(OR(B17="",D17=""),0,IF(B17<F$6,H17+(F$6-B17)-1,IF((I$6-B17)=0,1,H17+(I$6-B17)))) -> 0 | N17: =IF(D17="",0,IF(M17=0,VLOOKUP(1,Faktoren!$B$16:$D$55,2)/1000,VLOOKUP(M17,Faktoren!$B$16:$D$55,2)/1000)) -> 0 | R17: =IF(AND(H17 > 0, B17 > 0), LOOKUP(H17,INDEX(Faktoren!data,,1),INDEX(Faktoren!data,,5)),0) -> 0 | S17: =D17:D23 * R17:R23 -> 0
E18: =Textes!A304 -> 1er abattage | G18: =IF(D17-D18>0,D17-D18,0) -> 0 | H18: =IF(AND(D18>0,B18>0),B18-B17+1,0) -> 0 | I18: =IF(H18>0,IF(H18>Faktoren!$D$5,Faktoren!$E$4,Faktoren!$E$5),0) -> 0 | J18: =IF(H18>0,D18*I18,0) -> 0 | M18: =IF(OR(B18="",D18=""),0,IF(B18<F$6,H18+(F$6-B18)-1,H18+(I$6-B18))) -> 0 | N18: =IF(OR(D18="",M18=0),0,VLOOKUP(M18,Faktoren!$B$16:$D$55,2)/1000) -> 0 | R18: =IF(AND(H18 > 0, B18 > 0), LOOKUP(H18,INDEX(Faktoren!data,,1),INDEX(Faktoren!data,,5)),0) -> 0 | S18: 0
E19: =Textes!A305 -> 2e abattage | G19: =IF(D17-D18-D19>0,D17-D18-D19,0) -> 0 | H19: =IF(AND(D19>0,B19>0),B19-B17+1,0) -> 0 | I19: =IF(H19>0,IF(H19>Faktoren!$D$5,Faktoren!$E$4,Faktoren!$E$5),0) -> 0 | J19: =IF(H19>0,D19*I19,0) -> 0 | M19: =IF(OR(B19="",D19=""),0,IF(B19<F$6,H19+(F$6-B19)-1,H19+(I$6-B19))) -> 0 | N19: =IF(OR(D19="",M19=0),0,VLOOKUP(M19,Faktoren!$B$16:$D$55,2)/1000) -> 0 | R19: =IF(AND(H19 > 0, B19 > 0), LOOKUP(H19,INDEX(Faktoren!data,,1),INDEX(Faktoren!data,,5)),0) -> 0 | S19: 0
E20: =Textes!A306 -> 3e abattage | G20: =IF(D17-D18-D19-D20>0,D17-D18-D19-D20,0) -> 0 | H20: =IF(AND(D20>0,B20>0),B20-B17+1,0) -> 0 | I20: =IF(H20>0,IF(H20>Faktoren!$D$5,Faktoren!$E$4,Faktoren!$E$5),0) -> 0 | J20: =IF(H20>0,D20*I20,0) -> 0 | M20: =IF(OR(B20="",D20=""),0,IF(B20<F$6,H20+(F$6-B20)-1,H20+(I$6-B20))) -> 0 | N20: =IF(OR(D20="",M20=0),0,VLOOKUP(M20,Faktoren!$B$16:$D$55,2)/1000) -> 0 | R20: =IF(AND(H20 > 0, B20 > 0), LOOKUP(H20,INDEX(Faktoren!data,,1),INDEX(Faktoren!data,,5)),0) -> 0 | S20: 0
E21: =Textes!A307 -> 4e abattage | G21: =IF(D17-D18-D19-D20-D21>0,D17-D18-D19-D20-D21,0) -> 0 | H21: =IF(AND(D21>0,B21>0),B21-B17+1,0) -> 0 | I21: =IF(H21>0,IF(H21>Faktoren!$D$5,Faktoren!$E$4,Faktoren!$E$5),0) -> 0 | J21: =IF(H21>0,D21*I21,0) -> 0 | M21: =IF(OR(B21="",D21=""),0,IF(B21<F$6,H21+(F$6-B21)-1,H21+(I$6-B21))) -> 0 | N21: =IF(OR(D21="",M21=0),0,VLOOKUP(M21,Faktoren!$B$16:$D$55,2)/1000) -> 0 | R21: =IF(AND(H21 > 0, B21 > 0), LOOKUP(H21,INDEX(Faktoren!data,,1),INDEX(Faktoren!data,,5)),0) -> 0 | S21: 0
E22: =Textes!A308 -> 5e abattage | G22: =IF(D17-D18-D19-D20-D21-D22>0,D17-D18-D19-D20-D21-D22,0) -> 0 | H22: =IF(AND(D22>0,B22>0),B22-B17+1,0) -> 0 | I22: =IF(H22>0,IF(H22>Faktoren!$D$5,Faktoren!$E$4,Faktoren!$E$5),0) -> 0 | J22: =IF(H22>0,D22*I22,0) -> 0 | M22: =IF(OR(B22="",D22=""),0,IF(B22<F$6,H22+(F$6-B22)-1,H22+(I$6-B22))) -> 0 | N22: =IF(OR(D22="",M22=0),0,VLOOKUP(M22,Faktoren!$B$16:$D$55,2)/1000) -> 0 | R22: =IF(AND(H22 > 0, B22 > 0), LOOKUP(H22,INDEX(Faktoren!data,,1),INDEX(Faktoren!data,,5)),0) -> 0 | S22: 0
B23: =IF(SUM(B17:B22) > 0,E23,"") ->  | D23: =+D17-SUM(D18:D22) -> 0 | E23: =Textes!A309 -> pertes | F23: =D23*0.6 -> 0 | I23: =IF(D23>0,Faktoren!$E$7,0) -> 0 | J23: =IF(D23>0,D23*I23,0) -> 0 | K23: =SUM(J18:J23) -> 0 | M23: =IF(B17=F6,G17,IF(MIN(B17:B22)>$F$6,0,VLOOKUP($F$6,B17:G22,6))) -> 0 | O23: =MAX(B17:B22) -> 00:00:00 | P23: =IF(OR($F$6="",I$6="",O23<F$6),99,IF(AND(B17>=F$6,O23<=I$6),0,IF(AND(B17>=F$6,O23>I$6),2,1))) -> 99 | R23: =IF(AND(H23 > 0, B23 > 0), LOOKUP(H23,INDEX(Faktoren!data,,1),INDEX(Faktoren!data,,5)),0) -> 0 | S23: 0 | T23: =SUM(S17:S23) -> 0
D24: =IF(D17>0,ROUND(+D23/D17*100,1),0) -> 0 | E24: =Textes!A310 -> pertes en % | G24: belegt | H24: =MAX(H17:H22) -> 0 | I24: =Textes!A312 -> jours poulailler occupé | N24: =IF(P23=1,O23-$F$6+1,H24) -> 0
D25: =IF(P23=99,0,IF(P23=0,H24/MAX(H18:H22),IF(P23=1,(O23-$F$6)/H24,(H24-(O23-I$6))/H24))) -> 0 | E25: =Textes!A311 -> Rotations | H25: =IF(B27<>0,(B27-O23),0) -> 0 | I25: =Textes!A313 -> jours poulailler inoccupé
B26: =Textes!A292 -> Rotation 2
C27: =IF(ISERROR(Jahr), "", IF($F$6>B27,"",IF(B27>$I$6,Jahr + 1,Jahr))) ->  | E27: =Textes!A303 -> Mise en poulailler | F27: =D27*0.04 -> 0 | G27: =IF(D27>0,D27,0) -> 0 | M27: =IF(OR(B27="",D27=""),0,IF((I$6-B27)=0,1,H27+(I$6-B27))) -> 0 | N27: =IF(D27="",0,VLOOKUP(M27,Faktoren!$B$16:$D$55,2)/1000) -> 0 | R27: =IF(AND(H27 > 0, B27 > 0), LOOKUP(H27,INDEX(Faktoren!data,,1),INDEX(Faktoren!data,,5)),0) -> 0 | S27: =D27:D33 * R27:R33 -> 0
E28: =Textes!A304 -> 1er abattage | G28: =IF(D27-D28>0,D27-D28,0) -> 0 | H28: =IF(AND(D28>0,B28>0),B28-B27+1,0) -> 0 | I28: =IF(H28>0,IF(H28>Faktoren!$D$5,Faktoren!$E$4,Faktoren!$E$5),0) -> 0 | J28: =IF(H28>0,D28*I28,0) -> 0 | M28: =IF(OR(B28="",D28=""),0,H28+(I$6-B28)) -> 0 | N28: =IF(D28="",0,VLOOKUP(M28,Faktoren!$B$16:$D$55,2)/1000) -> 0 | R28: =IF(AND(H28 > 0, B28 > 0), LOOKUP(H28,INDEX(Faktoren!data,,1),INDEX(Faktoren!data,,5)),0) -> 0 | S28: 0
E29: =Textes!A305 -> 2e abattage | G29: =IF(D27-D28-D29>0,D27-D28-D29,0) -> 0 | H29: =IF(AND(D29>0,B29>0),B29-B27+1,0) -> 0 | I29: =IF(H29>0,IF(H29>Faktoren!$D$5,Faktoren!$E$4,Faktoren!$E$5),0) -> 0 | J29: =IF(H29>0,D29*I29,0) -> 0 | M29: =IF(OR(B29="",D29=""),0,H29+(I$6-B29)) -> 0 | N29: =IF(D29="",0,VLOOKUP(M29,Faktoren!$B$16:$D$55,2)/1000) -> 0 | R29: =IF(AND(H29 > 0, B29 > 0), LOOKUP(H29,INDEX(Faktoren!data,,1),INDEX(Faktoren!data,,5)),0) -> 0 | S29: 0
E30: =Textes!A306 -> 3e abattage | G30: =IF(D27-D28-D29-D30>0,D27-D28-D29-D30,0) -> 0 | H30: =IF(AND(D30>0,B30>0),B30-B27+1,0) -> 0 | I30: =IF(H30>0,IF(H30>Faktoren!$D$5,Faktoren!$E$4,Faktoren!$E$5),0) -> 0 | J30: =IF(H30>0,D30*I30,0) -> 0 | M30: =IF(OR(B30="",D30=""),0,H30+(I$6-B30)) -> 0 | N30: =IF(D30="",0,VLOOKUP(M30,Faktoren!$B$16:$D$55,2)/1000) -> 0 | R30: =IF(AND(H30 > 0, B30 > 0), LOOKUP(H30,INDEX(Faktoren!data,,1),INDEX(Faktoren!data,,5)),0) -> 0 | S30: 0
E31: =Textes!A307 -> 4e abattage | G31: =IF(D27-D28-D29-D30-D31>0,D27-D28-D29-D30-D31,0) -> 0 | H31: =IF(AND(D31>0,B31>0),B31-B27+1,0) -> 0 | I31: =IF(H31>0,IF(H31>Faktoren!$D$5,Faktoren!$E$4,Faktoren!$E$5),0) -> 0 | J31: =IF(H31>0,D31*I31,0) -> 0 | M31: =IF(OR(B31="",D31=""),0,H31+(I$6-B31)) -> 0 | N31: =IF(D31="",0,VLOOKUP(M31,Faktoren!$B$16:$D$55,2)/1000) -> 0 | R31: =IF(AND(H31 > 0, B31 > 0), LOOKUP(H31,INDEX(Faktoren!data,,1),INDEX(Faktoren!data,,5)),0) -> 0 | S31: 0
E32: =Textes!A308 -> 5e abattage | G32: =IF(D27-D28-D29-D30-D31-D32>0,D27-D28-D29-D30-D31-D32,0) -> 0 | H32: =IF(AND(D32>0,B32>0),B32-B27+1,0) -> 0 | I32: =IF(H32>0,IF(H32>Faktoren!$D$5,Faktoren!$E$4,Faktoren!$E$5),0) -> 0 | J32: =IF(H32>0,D32*I32,0) -> 0 | M32: =IF(OR(B32="",D32=""),0,H32+(I$6-B32)) -> 0 | N32: =IF(D32="",0,VLOOKUP(M32,Faktoren!$B$16:$D$55,2)/1000) -> 0 | R32: =IF(AND(H32 > 0, B32 > 0), LOOKUP(H32,INDEX(Faktoren!data,,1),INDEX(Faktoren!data,,5)),0) -> 0 | S32: 0
B33: =IF(SUM(B27:B32) > 0,E33,"") ->  | D33: =+D27-SUM(D28:D32) -> 0 | E33: =Textes!A309 -> pertes | F33: =D33*0.6 -> 0 | I33: =IF(D33>0,Faktoren!$E$7,0) -> 0 | J33: =IF(D33>0,D33*I33,0) -> 0 | K33: =SUM(J28:J33) -> 0 | M33: =IF(MAX(B27:B32)<$I$6,0,VLOOKUP($I$6,B27:G32,6)) -> 0 | O33: =MAX(B27:B32) -> 00:00:00 | P33: =IF(OR($F$6="",I$6="",O33<F$6),99,IF(AND(O33>F$6,O33<=I$6),0,1)) -> 99 | R33: =IF(AND(H33 > 0, B33 > 0), LOOKUP(H33,INDEX(Faktoren!data,,1),INDEX(Faktoren!data,,5)),0) -> 0 | S33: 0 | T33: =SUM(S27:S33) -> 0
D34: =IF(D27>0,ROUND(+D33/D27*100,1),0) -> 0 | E34: =Textes!A310 -> pertes en % | G34: belegt | H34: =MAX(H27:H32) -> 0 | I34: =Textes!A312 -> jours poulailler occupé | N34: =IF(P33=1,$I$6-B27+1,H34) -> 0
D35: =IF(P33=99,0,IF(P33=0,H34/MAX(H28:H32),IF(P33=1,(H34-(O33-$I$6))/H34,0))) -> 0 | E35: =Textes!A311 -> Rotations | H35: =IF(B37<>0,(B37-O33),0) -> 0 | I35: =Textes!A313 -> jours poulailler inoccupé
B36: =Textes!A293 -> Rotation 3
C37: =IF(ISERROR(Jahr), "", IF($F$6>B37,"",IF(B37>$I$6,Jahr + 1,Jahr))) ->  | E37: =Textes!A303 -> Mise en poulailler | F37: =D37*0.04 -> 0 | G37: =IF(D37>0,D37,0) -> 0 | M37: =IF(OR(B37="",D37=""),0,IF((I$6-B37)=0,1,H37+(I$6-B37))) -> 0 | N37: =IF(D37="",0,VLOOKUP(M37,Faktoren!$B$16:$D$55,2)/1000) -> 0 | R37: =IF(AND(H37 > 0, B37 > 0), LOOKUP(H37,INDEX(Faktoren!data,,1),INDEX(Faktoren!data,,5)),0) -> 0 | S37: =D37:D43 * R37:R43 -> 0
E38: =Textes!A304 -> 1er abattage | G38: =IF(D37-D38>0,D37-D38,0) -> 0 | H38: =IF(AND(D38>0,B38>0),B38-B37+1,0) -> 0 | I38: =IF(H38>0,IF(H38>Faktoren!$D$5,Faktoren!$E$4,Faktoren!$E$5),0) -> 0 | J38: =IF(H38>0,D38*I38,0) -> 0 | M38: =IF(OR(B38="",D38=""),0,H38+(I$6-B38)) -> 0 | N38: =IF(D38="",0,VLOOKUP(M38,Faktoren!$B$16:$D$55,2)/1000) -> 0 | R38: =IF(AND(H38 > 0, B38 > 0), LOOKUP(H38,INDEX(Faktoren!data,,1),INDEX(Faktoren!data,,5)),0) -> 0 | S38: 0
E39: =Textes!A305 -> 2e abattage | G39: =IF(D37-D38-D39>0,D37-D38-D39,0) -> 0 | H39: =IF(AND(D39>0,B39>0),B39-B37+1,0) -> 0 | I39: =IF(H39>0,IF(H39>Faktoren!$D$5,Faktoren!$E$4,Faktoren!$E$5),0) -> 0 | J39: =IF(H39>0,D39*I39,0) -> 0 | M39: =IF(OR(B39="",D39=""),0,H39+(I$6-B39)) -> 0 | N39: =IF(D39="",0,VLOOKUP(M39,Faktoren!$B$16:$D$55,2)/1000) -> 0 | R39: =IF(AND(H39 > 0, B39 > 0), LOOKUP(H39,INDEX(Faktoren!data,,1),INDEX(Faktoren!data,,5)),0) -> 0 | S39: 0
E40: =Textes!A306 -> 3e abattage | G40: =IF(D37-D38-D39-D40>0,D37-D38-D39-D40,0) -> 0 | H40: =IF(AND(D40>0,B40>0),B40-B37+1,0) -> 0 | I40: =IF(H40>0,IF(H40>Faktoren!$D$5,Faktoren!$E$4,Faktoren!$E$5),0) -> 0 | J40: =IF(H40>0,D40*I40,0) -> 0 | M40: =IF(OR(B40="",D40=""),0,H40+(I$6-B40)) -> 0 | N40: =IF(D40="",0,VLOOKUP(M40,Faktoren!$B$16:$D$55,2)/1000) -> 0 | R40: =IF(AND(H40 > 0, B40 > 0), LOOKUP(H40,INDEX(Faktoren!data,,1),INDEX(Faktoren!data,,5)),0) -> 0 | S40: 0
E41: =Textes!A307 -> 4e abattage | G41: =IF(D37-D38-D39-D40-D41>0,D37-D38-D39-D40-D41,0) -> 0 | H41: =IF(AND(D41>0,B41>0),B41-B37+1,0) -> 0 | I41: =IF(H41>0,IF(H41>Faktoren!$D$5,Faktoren!$E$4,Faktoren!$E$5),0) -> 0 | J41: =IF(H41>0,D41*I41,0) -> 0 | M41: =IF(OR(B41="",D41=""),0,H41+(I$6-B41)) -> 0 | N41: =IF(D41="",0,VLOOKUP(M41,Faktoren!$B$16:$D$55,2)/1000) -> 0 | R41: =IF(AND(H41 > 0, B41 > 0), LOOKUP(H41,INDEX(Faktoren!data,,1),INDEX(Faktoren!data,,5)),0) -> 0 | S41: 0
E42: =Textes!A308 -> 5e abattage | G42: =IF(D37-D38-D39-D40-D41-D42>0,D37-D38-D39-D40-D41-D42,0) -> 0 | H42: =IF(AND(D42>0,B42>0),B42-B37+1,0) -> 0 | I42: =IF(H42>0,IF(H42>Faktoren!$D$5,Faktoren!$E$4,Faktoren!$E$5),0) -> 0 | J42: =IF(H42>0,D42*I42,0) -> 0 | M42: =IF(OR(B42="",D42=""),0,H42+(I$6-B42)) -> 0 | N42: =IF(D42="",0,VLOOKUP(M42,Faktoren!$B$16:$D$55,2)/1000) -> 0 | R42: =IF(AND(H42 > 0, B42 > 0), LOOKUP(H42,INDEX(Faktoren!data,,1),INDEX(Faktoren!data,,5)),0) -> 0 | S42: 0
B43: =IF(SUM(B37:B42) > 0,E43,"") ->  | D43: =+D37-SUM(D38:D42) -> 0 | E43: =Textes!A309 -> pertes | F43: =D43*0.6 -> 0 | I43: =IF(D43>0,Faktoren!$E$7,0) -> 0 | J43: =IF(D43>0,D43*I43,0) -> 0 | K43: =SUM(J38:J43) -> 0 | M43: =IF(MAX(B37:B42)<$I$6,0,VLOOKUP($I$6,B37:G42,6)) -> 0 | O43: =MAX(B37:B42) -> 00:00:00 | P43: =IF(OR($F$6="",I$6="",O43<F$6),99,IF(AND(O43>F$6,O43<=I$6),0,1)) -> 99 | R43: =IF(AND(H43 > 0, B43 > 0), LOOKUP(H43,INDEX(Faktoren!data,,1),INDEX(Faktoren!data,,5)),0) -> 0 | S43: 0 | T43: =SUM(S37:S43) -> 0
D44: =IF(D37>0,ROUND(+D43/D37*100,1),0) -> 0 | E44: =Textes!A310 -> pertes en % | G44: belegt | H44: =MAX(H37:H42) -> 0 | I44: =Textes!A312 -> jours poulailler occupé | N44: =IF(P43=1,$I$6-B37+1,H44) -> 0
D45: =IF(P43=99,0,IF(P43=0,H44/MAX(H38:H42),IF(P43=1,(H44-(O43-$I$6))/H44,0))) -> 0 | E45: =Textes!A311 -> Rotations | H45: =IF(B47<>0,(B47-O43),0) -> 0 | I45: =Textes!A313 -> jours poulailler inoccupé
B46: =Textes!A294 -> Rotation 4
C47: =IF(ISERROR(Jahr), "", IF($F$6>B47,"",IF(B47>$I$6,Jahr + 1,Jahr))) ->  | E47: =Textes!A303 -> Mise en poulailler | F47: =D47*0.04 -> 0 | G47: =IF(D47>0,D47,0) -> 0 | M47: =IF(OR(B47="",D47=""),0,IF((I$6-B47)=0,1,H47+(I$6-B47))) -> 0 | N47: =IF(D47="",0,VLOOKUP(M47,Faktoren!$B$16:$D$55,2)/1000) -> 0 | R47: =IF(AND(H47 > 0, B47 > 0), LOOKUP(H47,INDEX(Faktoren!data,,1),INDEX(Faktoren!data,,5)),0) -> 0 | S47: =D47:D53 * R47:R53 -> 0
E48: =Textes!A304 -> 1er abattage | G48: =IF(D47-D48>0,D47-D48,0) -> 0 | H48: =IF(AND(D48>0,B48>0),B48-B47+1,0) -> 0 | I48: =IF(H48>0,IF(H48>Faktoren!$D$5,Faktoren!$E$4,Faktoren!$E$5),0) -> 0 | J48: =IF(H48>0,D48*I48,0) -> 0 | M48: =IF(OR(B48="",D48=""),0,H48+(I$6-B48)) -> 0 | N48: =IF(D48="",0,VLOOKUP(M48,Faktoren!$B$16:$D$55,2)/1000) -> 0 | R48: =IF(AND(H48 > 0, B48 > 0), LOOKUP(H48,INDEX(Faktoren!data,,1),INDEX(Faktoren!data,,5)),0) -> 0 | S48: 0
E49: =Textes!A305 -> 2e abattage | G49: =IF(D47-D48-D49>0,D47-D48-D49,0) -> 0 | H49: =IF(AND(D49>0,B49>0),B49-B47+1,0) -> 0 | I49: =IF(H49>0,IF(H49>Faktoren!$D$5,Faktoren!$E$4,Faktoren!$E$5),0) -> 0 | J49: =IF(H49>0,D49*I49,0) -> 0 | M49: =IF(OR(B49="",D49=""),0,H49+(I$6-B49)) -> 0 | N49: =IF(D49="",0,VLOOKUP(M49,Faktoren!$B$16:$D$55,2)/1000) -> 0 | R49: =IF(AND(H49 > 0, B49 > 0), LOOKUP(H49,INDEX(Faktoren!data,,1),INDEX(Faktoren!data,,5)),0) -> 0 | S49: 0
E50: =Textes!A306 -> 3e abattage | G50: =IF(D47-D48-D49-D50>0,D47-D48-D49-D50,0) -> 0 | H50: =IF(AND(D50>0,B50>0),B50-B47+1,0) -> 0 | I50: =IF(H50>0,IF(H50>Faktoren!$D$5,Faktoren!$E$4,Faktoren!$E$5),0) -> 0 | J50: =IF(H50>0,D50*I50,0) -> 0 | M50: =IF(OR(B50="",D50=""),0,H50+(I$6-B50)) -> 0 | N50: =IF(D50="",0,VLOOKUP(M50,Faktoren!$B$16:$D$55,2)/1000) -> 0 | R50: =IF(AND(H50 > 0, B50 > 0), LOOKUP(H50,INDEX(Faktoren!data,,1),INDEX(Faktoren!data,,5)),0) -> 0 | S50: 0
E51: =Textes!A307 -> 4e abattage | G51: =IF(D47-D48-D49-D50-D51>0,D47-D48-D49-D50-D51,0) -> 0 | H51: =IF(AND(D51>0,B51>0),B51-B47+1,0) -> 0 | I51: =IF(H51>0,IF(H51>Faktoren!$D$5,Faktoren!$E$4,Faktoren!$E$5),0) -> 0 | J51: =IF(H51>0,D51*I51,0) -> 0 | M51: =IF(OR(B51="",D51=""),0,H51+(I$6-B51)) -> 0 | N51: =IF(D51="",0,VLOOKUP(M51,Faktoren!$B$16:$D$55,2)/1000) -> 0 | R51: =IF(AND(H51 > 0, B51 > 0), LOOKUP(H51,INDEX(Faktoren!data,,1),INDEX(Faktoren!data,,5)),0) -> 0 | S51: 0
E52: =Textes!A308 -> 5e abattage | G52: =IF(D47-D48-D49-D50-D51-D52>0,D47-D48-D49-D50-D51-D52,0) -> 0 | H52: =IF(AND(D52>0,B52>0),B52-B47+1,0) -> 0 | I52: =IF(H52>0,IF(H52>Faktoren!$D$5,Faktoren!$E$4,Faktoren!$E$5),0) -> 0 | J52: =IF(H52>0,D52*I52,0) -> 0 | M52: =IF(OR(B52="",D52=""),0,H52+(I$6-B52)) -> 0 | N52: =IF(D52="",0,VLOOKUP(M52,Faktoren!$B$16:$D$55,2)/1000) -> 0 | R52: =IF(AND(H52 > 0, B52 > 0), LOOKUP(H52,INDEX(Faktoren!data,,1),INDEX(Faktoren!data,,5)),0) -> 0 | S52: 0
B53: =IF(SUM(B47:B52) > 0,E53,"") ->  | D53: =+D47-SUM(D48:D52) -> 0 | E53: =Textes!A309 -> pertes | F53: =D53*0.6 -> 0 | I53: =IF(D53>0,Faktoren!$E$7,0) -> 0 | J53: =IF(D53>0,D53*I53,0) -> 0 | K53: =SUM(J48:J53) -> 0 | M53: =IF(MAX(B47:B52)<$I$6,0,VLOOKUP($I$6,B47:G52,6)) -> 0 | O53: =MAX(B47:B52) -> 00:00:00 | P53: =IF(OR($F$6="",I$6="",O53<F$6),99,IF(AND(O53>F$6,O53<=I$6),0,1)) -> 99 | R53: =IF(AND(H53 > 0, B53 > 0), LOOKUP(H53,INDEX(Faktoren!data,,1),INDEX(Faktoren!data,,5)),0) -> 0 | S53: 0 | T53: =SUM(S47:S53) -> 0
D54: =IF(D47>0,ROUND(+D53/D47*100,1),0) -> 0 | E54: =Textes!A310 -> pertes en % | G54: belegt | H54: =MAX(H47:H52) -> 0 | I54: =Textes!A312 -> jours poulailler occupé | N54: =IF(P53=1,$I$6-B47+1,H54) -> 0
D55: =IF(P53=99,0,IF(P53=0,H54/MAX(H48:H52),IF(P53=1,(H54-(O53-$I$6))/H54,0))) -> 0 | E55: =Textes!A311 -> Rotations | H55: =IF(B57<>0,(B57-O53),0) -> 0 | I55: =Textes!A313 -> jours poulailler inoccupé
B56: =Textes!A295 -> Rotation 5
C57: =IF(ISERROR(Jahr), "", IF($F$6>B57,"",IF(B57>$I$6,Jahr + 1,Jahr))) ->  | E57: =Textes!A303 -> Mise en poulailler | F57: =D57*0.04 -> 0 | G57: =IF(D57>0,D57,0) -> 0 | M57: =IF(OR(B57="",D57=""),0,IF((I$6-B57)=0,1,H57+(I$6-B57))) -> 0 | N57: =IF(D57="",0,VLOOKUP(M57,Faktoren!$B$16:$D$55,2)/1000) -> 0 | R57: =IF(AND(H57 > 0, B57 > 0), LOOKUP(H57,INDEX(Faktoren!data,,1),INDEX(Faktoren!data,,5)),0) -> 0 | S57: =D57:D63 * R57:R63 -> 0
E58: =Textes!A304 -> 1er abattage | G58: =IF(D57-D58>0,D57-D58,0) -> 0 | H58: =IF(AND(D58>0,B58>0),B58-B57+1,0) -> 0 | I58: =IF(H58>0,IF(H58>Faktoren!$D$5,Faktoren!$E$4,Faktoren!$E$5),0) -> 0 | J58: =IF(H58>0,D58*I58,0) -> 0 | M58: =IF(OR(B58="",D58=""),0,H58+(I$6-B58)) -> 0 | N58: =IF(D58="",0,VLOOKUP(M58,Faktoren!$B$16:$D$55,2)/1000) -> 0 | R58: =IF(AND(H58 > 0, B58 > 0), LOOKUP(H58,INDEX(Faktoren!data,,1),INDEX(Faktoren!data,,5)),0) -> 0 | S58: 0
E59: =Textes!A305 -> 2e abattage | G59: =IF(D57-D58-D59>0,D57-D58-D59,0) -> 0 | H59: =IF(AND(D59>0,B59>0),B59-B57+1,0) -> 0 | I59: =IF(H59>0,IF(H59>Faktoren!$D$5,Faktoren!$E$4,Faktoren!$E$5),0) -> 0 | J59: =IF(H59>0,D59*I59,0) -> 0 | M59: =IF(OR(B59="",D59=""),0,H59+(I$6-B59)) -> 0 | N59: =IF(D59="",0,VLOOKUP(M59,Faktoren!$B$16:$D$55,2)/1000) -> 0 | R59: =IF(AND(H59 > 0, B59 > 0), LOOKUP(H59,INDEX(Faktoren!data,,1),INDEX(Faktoren!data,,5)),0) -> 0 | S59: 0
E60: =Textes!A306 -> 3e abattage | G60: =IF(D57-D58-D59-D60>0,D57-D58-D59-D60,0) -> 0 | H60: =IF(AND(D60>0,B60>0),B60-B57+1,0) -> 0 | I60: =IF(H60>0,IF(H60>Faktoren!$D$5,Faktoren!$E$4,Faktoren!$E$5),0) -> 0 | J60: =IF(H60>0,D60*I60,0) -> 0 | M60: =IF(OR(B60="",D60=""),0,H60+(I$6-B60)) -> 0 | N60: =IF(D60="",0,VLOOKUP(M60,Faktoren!$B$16:$D$55,2)/1000) -> 0 | R60: =IF(AND(H60 > 0, B60 > 0), LOOKUP(H60,INDEX(Faktoren!data,,1),INDEX(Faktoren!data,,5)),0) -> 0 | S60: 0
E61: =Textes!A307 -> 4e abattage | G61: =IF(D57-D58-D59-D60-D61>0,D57-D58-D59-D60-D61,0) -> 0 | H61: =IF(AND(D61>0,B61>0),B61-B57+1,0) -> 0 | I61: =IF(H61>0,IF(H61>Faktoren!$D$5,Faktoren!$E$4,Faktoren!$E$5),0) -> 0 | J61: =IF(H61>0,D61*I61,0) -> 0 | M61: =IF(OR(B61="",D61=""),0,H61+(I$6-B61)) -> 0 | N61: =IF(D61="",0,VLOOKUP(M61,Faktoren!$B$16:$D$55,2)/1000) -> 0 | R61: =IF(AND(H61 > 0, B61 > 0), LOOKUP(H61,INDEX(Faktoren!data,,1),INDEX(Faktoren!data,,5)),0) -> 0 | S61: 0
E62: =Textes!A308 -> 5e abattage | G62: =IF(D57-D58-D59-D60-D61-D62>0,D57-D58-D59-D60-D61-D62,0) -> 0 | H62: =IF(AND(D62>0,B62>0),B62-B57+1,0) -> 0 | I62: =IF(H62>0,IF(H62>Faktoren!$D$5,Faktoren!$E$4,Faktoren!$E$5),0) -> 0 | J62: =IF(H62>0,D62*I62,0) -> 0 | M62: =IF(OR(B62="",D62=""),0,H62+(I$6-B62)) -> 0 | N62: =IF(D62="",0,VLOOKUP(M62,Faktoren!$B$16:$D$55,2)/1000) -> 0 | R62: =IF(AND(H62 > 0, B62 > 0), LOOKUP(H62,INDEX(Faktoren!data,,1),INDEX(Faktoren!data,,5)),0) -> 0 | S62: 0
B63: =IF(SUM(B57:B62) > 0,E63,"") ->  | D63: =+D57-SUM(D58:D62) -> 0 | E63: =Textes!A309 -> pertes | F63: =D63*0.6 -> 0 | I63: =IF(D63>0,Faktoren!$E$7,0) -> 0 | J63: =IF(D63>0,D63*I63,0) -> 0 | K63: =SUM(J58:J63) -> 0 | M63: =IF(MAX(B57:B62)<$I$6,0,VLOOKUP($I$6,B57:G62,6)) -> 0 | O63: =MAX(B57:B62) -> 00:00:00 | P63: =IF(OR($F$6="",I$6="",O63<F$6),99,IF(AND(O63>F$6,O63<=I$6),0,1)) -> 99 | R63: =IF(AND(H63 > 0, B63 > 0), LOOKUP(H63,INDEX(Faktoren!data,,1),INDEX(Faktoren!data,,5)),0) -> 0 | S63: 0 | T63: =SUM(S57:S63) -> 0
D64: =IF(D57>0,ROUND(+D63/D57*100,1),0) -> 0 | E64: =Textes!A310 -> pertes en % | G64: belegt | H64: =MAX(H57:H62) -> 0 | I64: =Textes!A312 -> jours poulailler occupé | N64: =IF(P63=1,$I$6-B57+1,H64) -> 0
D65: =IF(P63=99,0,IF(P63=0,H64/MAX(H58:H62),IF(P63=1,(H64-(O63-$I$6))/H64,0))) -> 0 | E65: =Textes!A311 -> Rotations | H65: =IF(B69<>0,(B69-O63),0) -> 0 | I65: =Textes!A313 -> jours poulailler inoccupé
B67: =Textes!A269 -> Poulailler 3 | K67: =Textes!A338 -> page 2
B68: =Textes!A296 -> Rotation 6
C69: =IF(ISERROR(Jahr), "", IF($F$6>B69,"",IF(B69>$I$6,Jahr + 1,Jahr))) ->  | E69: =Textes!A303 -> Mise en poulailler | F69: =D69*0.04 -> 0 | G69: =IF(D69>0,D69,0) -> 0 | M69: =IF(OR(B69="",D69=""),0,IF((I$6-B69)=0,1,H69+(I$6-B69))) -> 0 | N69: =IF(D69="",0,VLOOKUP(M69,Faktoren!$B$16:$D$55,2)/1000) -> 0 | R69: =IF(AND(H69 > 0, B69 > 0), LOOKUP(H69,INDEX(Faktoren!data,,1),INDEX(Faktoren!data,,5)),0) -> 0 | S69: =D69:D75 * R69:R75 -> 0
E70: =Textes!A304 -> 1er abattage | G70: =IF(D69-D70>0,D69-D70,0) -> 0 | H70: =IF(AND(D70>0,B70>0),B70-B69+1,0) -> 0 | I70: =IF(H70>0,IF(H70>Faktoren!$D$5,Faktoren!$E$4,Faktoren!$E$5),0) -> 0 | J70: =IF(H70>0,D70*I70,0) -> 0 | M70: =IF(OR(B70="",D70=""),0,H70+(I$6-B70)) -> 0 | N70: =IF(D70="",0,VLOOKUP(M70,Faktoren!$B$16:$D$55,2)/1000) -> 0 | R70: =IF(AND(H70 > 0, B70 > 0), LOOKUP(H70,INDEX(Faktoren!data,,1),INDEX(Faktoren!data,,5)),0) -> 0 | S70: 0
E71: =Textes!A305 -> 2e abattage | G71: =IF(D69-D70-D71>0,D69-D70-D71,0) -> 0 | H71: =IF(AND(D71>0,B71>0),B71-B69+1,0) -> 0 | I71: =IF(H71>0,IF(H71>Faktoren!$D$5,Faktoren!$E$4,Faktoren!$E$5),0) -> 0 | J71: =IF(H71>0,D71*I71,0) -> 0 | M71: =IF(OR(B71="",D71=""),0,H71+(I$6-B71)) -> 0 | N71: =IF(D71="",0,VLOOKUP(M71,Faktoren!$B$16:$D$55,2)/1000) -> 0 | R71: =IF(AND(H71 > 0, B71 > 0), LOOKUP(H71,INDEX(Faktoren!data,,1),INDEX(Faktoren!data,,5)),0) -> 0 | S71: 0
E72: =Textes!A306 -> 3e abattage | G72: =IF(D69-D70-D71-D72>0,D69-D70-D71-D72,0) -> 0 | H72: =IF(AND(D72>0,B72>0),B72-B69+1,0) -> 0 | I72: =IF(H72>0,IF(H72>Faktoren!$D$5,Faktoren!$E$4,Faktoren!$E$5),0) -> 0 | J72: =IF(H72>0,D72*I72,0) -> 0 | M72: =IF(OR(B72="",D72=""),0,H72+(I$6-B72)) -> 0 | N72: =IF(D72="",0,VLOOKUP(M72,Faktoren!$B$16:$D$55,2)/1000) -> 0 | R72: =IF(AND(H72 > 0, B72 > 0), LOOKUP(H72,INDEX(Faktoren!data,,1),INDEX(Faktoren!data,,5)),0) -> 0 | S72: 0
E73: =Textes!A307 -> 4e abattage | G73: =IF(D69-D70-D71-D72-D73>0,D69-D70-D71-D72-D73,0) -> 0 | H73: =IF(AND(D73>0,B73>0),B73-B69+1,0) -> 0 | I73: =IF(H73>0,IF(H73>Faktoren!$D$5,Faktoren!$E$4,Faktoren!$E$5),0) -> 0 | J73: =IF(H73>0,D73*I73,0) -> 0 | M73: =IF(OR(B73="",D73=""),0,H73+(I$6-B73)) -> 0 | N73: =IF(D73="",0,VLOOKUP(M73,Faktoren!$B$16:$D$55,2)/1000) -> 0 | R73: =IF(AND(H73 > 0, B73 > 0), LOOKUP(H73,INDEX(Faktoren!data,,1),INDEX(Faktoren!data,,5)),0) -> 0 | S73: 0
E74: =Textes!A308 -> 5e abattage | G74: =IF(D69-D70-D71-D72-D73-D74>0,D69-D70-D71-D72-D73-D74,0) -> 0 | H74: =IF(AND(D74>0,B74>0),B74-B69+1,0) -> 0 | I74: =IF(H74>0,IF(H74>Faktoren!$D$5,Faktoren!$E$4,Faktoren!$E$5),0) -> 0 | J74: =IF(H74>0,D74*I74,0) -> 0 | M74: =IF(OR(B74="",D74=""),0,H74+(I$6-B74)) -> 0 | N74: =IF(D74="",0,VLOOKUP(M74,Faktoren!$B$16:$D$55,2)/1000) -> 0 | R74: =IF(AND(H74 > 0, B74 > 0), LOOKUP(H74,INDEX(Faktoren!data,,1),INDEX(Faktoren!data,,5)),0) -> 0 | S74: 0
B75: =IF(SUM(B69:B74) > 0,E75,"") ->  | D75: =+D69-SUM(D70:D74) -> 0 | E75: =Textes!A309 -> pertes | F75: =D75*0.6 -> 0 | I75: =IF(D75>0,Faktoren!$E$7,0) -> 0 | J75: =IF(D75>0,D75*I75,0) -> 0 | K75: =SUM(J70:J75) -> 0 | M75: =IF(MAX(B69:B74)<$I$6,0,VLOOKUP($I$6,B69:G74,6)) -> 0 | O75: =MAX(B69:B74) -> 00:00:00 | P75: =IF(OR($F$6="",I$6="",O75<F$6),99,IF(AND(O75>F$6,O75<=I$6),0,1)) -> 99 | R75: =IF(AND(H75 > 0, B75 > 0), LOOKUP(H75,INDEX(Faktoren!data,,1),INDEX(Faktoren!data,,5)),0) -> 0 | S75: 0 | T75: =SUM(S69:S75) -> 0
D76: =IF(D69>0,ROUND(+D75/D69*100,1),0) -> 0 | E76: =Textes!A310 -> pertes en % | G76: belegt | H76: =MAX(H69:H74) -> 0 | I76: =Textes!A312 -> jours poulailler occupé | N76: =IF(P75=1,$I$6-B69+1,H76) -> 0
D77: =IF(P75=99,0,IF(P75=0,H76/MAX(H70:H74),IF(P75=1,(H76-(O75-$I$6))/H76,0))) -> 0 | E77: =Textes!A311 -> Rotations | H77: =IF(B79<>0,(B79-O75),0) -> 0 | I77: =Textes!A313 -> jours poulailler inoccupé
B78: =Textes!A297 -> Rotation 7
C79: =IF(ISERROR(Jahr), "", IF($F$6>B79,"",IF(B79>$I$6,Jahr + 1,Jahr))) ->  | E79: =Textes!A303 -> Mise en poulailler | F79: =D79*0.04 -> 0 | G79: =IF(D79>0,D79,0) -> 0 | M79: =IF(OR(B79="",D79=""),0,IF((I$6-B79)=0,1,H79+(I$6-B79))) -> 0 | N79: =IF(D79="",0,VLOOKUP(M79,Faktoren!$B$16:$D$55,2)/1000) -> 0 | R79: =IF(AND(H79 > 0, B79 > 0), LOOKUP(H79,INDEX(Faktoren!data,,1),INDEX(Faktoren!data,,5)),0) -> 0 | S79: =D79:D85 * R79:R85 -> 0
E80: =Textes!A304 -> 1er abattage | G80: =IF(D79-D80>0,D79-D80,0) -> 0 | H80: =IF(AND(D80>0,B80>0),B80-B79+1,0) -> 0 | I80: =IF(H80>0,IF(H80>Faktoren!$D$5,Faktoren!$E$4,Faktoren!$E$5),0) -> 0 | J80: =IF(H80>0,D80*I80,0) -> 0 | M80: =IF(OR(B80="",D80=""),0,H80+(I$6-B80)) -> 0 | N80: =IF(D80="",0,VLOOKUP(M80,Faktoren!$B$16:$D$55,2)/1000) -> 0 | R80: =IF(AND(H80 > 0, B80 > 0), LOOKUP(H80,INDEX(Faktoren!data,,1),INDEX(Faktoren!data,,5)),0) -> 0 | S80: 0
E81: =Textes!A305 -> 2e abattage | G81: =IF(D79-D80-D81>0,D79-D80-D81,0) -> 0 | H81: =IF(AND(D81>0,B81>0),B81-B79+1,0) -> 0 | I81: =IF(H81>0,IF(H81>Faktoren!$D$5,Faktoren!$E$4,Faktoren!$E$5),0) -> 0 | J81: =IF(H81>0,D81*I81,0) -> 0 | M81: =IF(OR(B81="",D81=""),0,H81+(I$6-B81)) -> 0 | N81: =IF(D81="",0,VLOOKUP(M81,Faktoren!$B$16:$D$55,2)/1000) -> 0 | R81: =IF(AND(H81 > 0, B81 > 0), LOOKUP(H81,INDEX(Faktoren!data,,1),INDEX(Faktoren!data,,5)),0) -> 0 | S81: 0
E82: =Textes!A306 -> 3e abattage | G82: =IF(D79-D80-D81-D82>0,D79-D80-D81-D82,0) -> 0 | H82: =IF(AND(D82>0,B82>0),B82-B79+1,0) -> 0 | I82: =IF(H82>0,IF(H82>Faktoren!$D$5,Faktoren!$E$4,Faktoren!$E$5),0) -> 0 | J82: =IF(H82>0,D82*I82,0) -> 0 | M82: =IF(OR(B82="",D82=""),0,H82+(I$6-B82)) -> 0 | N82: =IF(D82="",0,VLOOKUP(M82,Faktoren!$B$16:$D$55,2)/1000) -> 0 | R82: =IF(AND(H82 > 0, B82 > 0), LOOKUP(H82,INDEX(Faktoren!data,,1),INDEX(Faktoren!data,,5)),0) -> 0 | S82: 0
E83: =Textes!A307 -> 4e abattage | G83: =IF(D79-D80-D81-D82-D83>0,D79-D80-D81-D82-D83,0) -> 0 | H83: =IF(AND(D83>0,B83>0),B83-B79+1,0) -> 0 | I83: =IF(H83>0,IF(H83>Faktoren!$D$5,Faktoren!$E$4,Faktoren!$E$5),0) -> 0 | J83: =IF(H83>0,D83*I83,0) -> 0 | M83: =IF(OR(B83="",D83=""),0,H83+(I$6-B83)) -> 0 | N83: =IF(D83="",0,VLOOKUP(M83,Faktoren!$B$16:$D$55,2)/1000) -> 0 | R83: =IF(AND(H83 > 0, B83 > 0), LOOKUP(H83,INDEX(Faktoren!data,,1),INDEX(Faktoren!data,,5)),0) -> 0 | S83: 0
E84: =Textes!A308 -> 5e abattage | G84: =IF(D79-D80-D81-D82-D83-D84>0,D79-D80-D81-D82-D83-D84,0) -> 0 | H84: =IF(AND(D84>0,B84>0),B84-B79+1,0) -> 0 | I84: =IF(H84>0,IF(H84>Faktoren!$D$5,Faktoren!$E$4,Faktoren!$E$5),0) -> 0 | J84: =IF(H84>0,D84*I84,0) -> 0 | M84: =IF(OR(B84="",D84=""),0,H84+(I$6-B84)) -> 0 | N84: =IF(D84="",0,VLOOKUP(M84,Faktoren!$B$16:$D$55,2)/1000) -> 0 | R84: =IF(AND(H84 > 0, B84 > 0), LOOKUP(H84,INDEX(Faktoren!data,,1),INDEX(Faktoren!data,,5)),0) -> 0 | S84: 0
B85: =IF(SUM(B79:B84) > 0,E85,"") ->  | D85: =+D79-SUM(D80:D84) -> 0 | E85: =Textes!A309 -> pertes | F85: =D85*0.6 -> 0 | I85: =IF(D85>0,Faktoren!$E$7,0) -> 0 | J85: =IF(D85>0,D85*I85,0) -> 0 | K85: =SUM(J80:J85) -> 0 | M85: =IF(MAX(B79:B84)<$I$6,0,VLOOKUP($I$6,B79:G84,6)) -> 0 | O85: =MAX(B79:B84) -> 00:00:00 | P85: =IF(OR($F$6="",I$6="",O85<F$6),99,IF(AND(O85>F$6,O85<=I$6),0,1)) -> 99 | R85: =IF(AND(H85 > 0, B85 > 0), LOOKUP(H85,INDEX(Faktoren!data,,1),INDEX(Faktoren!data,,5)),0) -> 0 | S85: 0 | T85: =SUM(S79:S85) -> 0
D86: =IF(D79>0,ROUND(+D85/D79*100,1),0) -> 0 | E86: =Textes!A310 -> pertes en % | G86: belegt | H86: =MAX(H79:H84) -> 0 | I86: =Textes!A312 -> jours poulailler occupé | N86: =IF(P85=1,$I$6-B79+1,H86) -> 0
D87: =IF(P85=99,0,IF(P85=0,H86/MAX(H80:H84),IF(P85=1,(H86-(O85-$I$6))/H86,0))) -> 0 | E87: =Textes!A311 -> Rotations | H87: =IF(B89<>0,(B89-O85),0) -> 0 | I87: =Textes!A313 -> jours poulailler inoccupé
B88: =Textes!A298 -> Rotation 8
C89: =IF(ISERROR(Jahr), "", IF($F$6>B89,"",IF(B89>$I$6,Jahr + 1,Jahr))) ->  | E89: =Textes!A303 -> Mise en poulailler | F89: =D89*0.04 -> 0 | G89: =IF(D89>0,D89,0) -> 0 | M89: =IF(OR(B89="",D89=""),0,IF((I$6-B89)=0,1,H89+(I$6-B89))) -> 0 | N89: =IF(D89="",0,VLOOKUP(M89,Faktoren!$B$16:$D$55,2)/1000) -> 0 | R89: =IF(AND(H89 > 0, B89 > 0), LOOKUP(H89,INDEX(Faktoren!data,,1),INDEX(Faktoren!data,,5)),0) -> 0 | S89: =D89:D95 * R89:R95 -> 0
E90: =Textes!A304 -> 1er abattage | G90: =IF(D89-D90>0,D89-D90,0) -> 0 | H90: =IF(AND(D90>0,B90>0),B90-B89+1,0) -> 0 | I90: =IF(H90>0,IF(H90>Faktoren!$D$5,Faktoren!$E$4,Faktoren!$E$5),0) -> 0 | J90: =IF(H90>0,D90*I90,0) -> 0 | M90: =IF(OR(B90="",D90=""),0,H90+(I$6-B90)) -> 0 | N90: =IF(D90="",0,VLOOKUP(M90,Faktoren!$B$16:$D$55,2)/1000) -> 0 | R90: =IF(AND(H90 > 0, B90 > 0), LOOKUP(H90,INDEX(Faktoren!data,,1),INDEX(Faktoren!data,,5)),0) -> 0 | S90: 0
E91: =Textes!A305 -> 2e abattage | G91: =IF(D89-D90-D91>0,D89-D90-D91,0) -> 0 | H91: =IF(AND(D91>0,B91>0),B91-B89+1,0) -> 0 | I91: =IF(H91>0,IF(H91>Faktoren!$D$5,Faktoren!$E$4,Faktoren!$E$5),0) -> 0 | J91: =IF(H91>0,D91*I91,0) -> 0 | M91: =IF(OR(B91="",D91=""),0,H91+(I$6-B91)) -> 0 | N91: =IF(D91="",0,VLOOKUP(M91,Faktoren!$B$16:$D$55,2)/1000) -> 0 | R91: =IF(AND(H91 > 0, B91 > 0), LOOKUP(H91,INDEX(Faktoren!data,,1),INDEX(Faktoren!data,,5)),0) -> 0 | S91: 0
E92: =Textes!A306 -> 3e abattage | G92: =IF(D89-D90-D91-D92>0,D89-D90-D91-D92,0) -> 0 | H92: =IF(AND(D92>0,B92>0),B92-B89+1,0) -> 0 | I92: =IF(H92>0,IF(H92>Faktoren!$D$5,Faktoren!$E$4,Faktoren!$E$5),0) -> 0 | J92: =IF(H92>0,D92*I92,0) -> 0 | M92: =IF(OR(B92="",D92=""),0,H92+(I$6-B92)) -> 0 | N92: =IF(D92="",0,VLOOKUP(M92,Faktoren!$B$16:$D$55,2)/1000) -> 0 | R92: =IF(AND(H92 > 0, B92 > 0), LOOKUP(H92,INDEX(Faktoren!data,,1),INDEX(Faktoren!data,,5)),0) -> 0 | S92: 0
E93: =Textes!A307 -> 4e abattage | G93: =IF(D89-D90-D91-D92-D93>0,D89-D90-D91-D92-D93,0) -> 0 | H93: =IF(AND(D93>0,B93>0),B93-B89+1,0) -> 0 | I93: =IF(H93>0,IF(H93>Faktoren!$D$5,Faktoren!$E$4,Faktoren!$E$5),0) -> 0 | J93: =IF(H93>0,D93*I93,0) -> 0 | M93: =IF(OR(B93="",D93=""),0,H93+(I$6-B93)) -> 0 | N93: =IF(D93="",0,VLOOKUP(M93,Faktoren!$B$16:$D$55,2)/1000) -> 0 | R93: =IF(AND(H93 > 0, B93 > 0), LOOKUP(H93,INDEX(Faktoren!data,,1),INDEX(Faktoren!data,,5)),0) -> 0 | S93: 0
E94: =Textes!A308 -> 5e abattage | G94: =IF(D89-D90-D91-D92-D93-D94>0,D89-D90-D91-D92-D93-D94,0) -> 0 | H94: =IF(AND(D94>0,B94>0),B94-B89+1,0) -> 0 | I94: =IF(H94>0,IF(H94>Faktoren!$D$5,Faktoren!$E$4,Faktoren!$E$5),0) -> 0 | J94: =IF(H94>0,D94*I94,0) -> 0 | M94: =IF(OR(B94="",D94=""),0,H94+(I$6-B94)) -> 0 | N94: =IF(D94="",0,VLOOKUP(M94,Faktoren!$B$16:$D$55,2)/1000) -> 0 | R94: =IF(AND(H94 > 0, B94 > 0), LOOKUP(H94,INDEX(Faktoren!data,,1),INDEX(Faktoren!data,,5)),0) -> 0 | S94: 0
B95: =IF(SUM(B89:B94) > 0,E95,"") ->  | D95: =+D89-SUM(D90:D94) -> 0 | E95: =Textes!A309 -> pertes | F95: =D95*0.6 -> 0 | I95: =IF(D95>0,Faktoren!$E$7,0) -> 0 | J95: =IF(D95>0,D95*I95,0) -> 0 | K95: =SUM(J90:J95) -> 0 | M95: =IF(MAX(B89:B94)<$I$6,0,VLOOKUP($I$6,B89:G94,6)) -> 0 | O95: =MAX(B89:B94) -> 00:00:00 | P95: =IF(OR($F$6="",I$6="",O95<F$6),99,IF(AND(O95>F$6,O95<=I$6),0,1)) -> 99 | R95: =IF(AND(H95 > 0, B95 > 0), LOOKUP(H95,INDEX(Faktoren!data,,1),INDEX(Faktoren!data,,5)),0) -> 0 | S95: 0 | T95: =SUM(S89:S95) -> 0
D96: =IF(D89>0,ROUND(+D95/D89*100,1),0) -> 0 | E96: =Textes!A310 -> pertes en % | G96: belegt | H96: =MAX(H89:H94) -> 0 | I96: =Textes!A312 -> jours poulailler occupé | N96: =IF(P95=1,$I$6-B89+1,H96) -> 0
D97: =IF(P95=99,0,IF(P95=0,H96/MAX(H90:H94),IF(P95=1,(H96-(O95-$I$6))/H96,0))) -> 0 | E97: =Textes!A311 -> Rotations | H97: =IF(B99<>0,(B99-O95),0) -> 0 | I97: =Textes!A313 -> jours poulailler inoccupé
B98: =Textes!A299 -> Rotation 9
C99: =IF(ISERROR(Jahr), "", IF($F$6>B99,"",IF(B99>$I$6,Jahr + 1,Jahr))) ->  | E99: =Textes!A303 -> Mise en poulailler | F99: =D99*0.04 -> 0 | G99: =IF(D99>0,D99,0) -> 0 | M99: =IF(OR(B99="",D99=""),0,IF((I$6-B99)=0,1,H99+(I$6-B99))) -> 0 | N99: =IF(D99="",0,VLOOKUP(M99,Faktoren!$B$16:$D$55,2)/1000) -> 0 | R99: =IF(AND(H99 > 0, B99 > 0), LOOKUP(H99,INDEX(Faktoren!data,,1),INDEX(Faktoren!data,,5)),0) -> 0 | S99: =D99:D105 * R99:R105 -> 0
E100: =Textes!A304 -> 1er abattage | G100: =IF(D99-D100>0,D99-D100,0) -> 0 | H100: =IF(AND(D100>0,B100>0),B100-B99+1,0) -> 0 | I100: =IF(H100>0,IF(H100>Faktoren!$D$5,Faktoren!$E$4,Faktoren!$E$5),0) -> 0 | J100: =IF(H100>0,D100*I100,0) -> 0 | M100: =IF(OR(B100="",D100=""),0,H100+(I$6-B100)) -> 0 | N100: =IF(D100="",0,VLOOKUP(M100,Faktoren!$B$16:$D$55,2)/1000) -> 0 | R100: =IF(AND(H100 > 0, B100 > 0), LOOKUP(H100,INDEX(Faktoren!data,,1),INDEX(Faktoren!data,,5)),0) -> 0 | S100: 0
E101: =Textes!A305 -> 2e abattage | G101: =IF(D99-D100-D101>0,D99-D100-D101,0) -> 0 | H101: =IF(AND(D101>0,B101>0),B101-B99+1,0) -> 0 | I101: =IF(H101>0,IF(H101>Faktoren!$D$5,Faktoren!$E$4,Faktoren!$E$5),0) -> 0 | J101: =IF(H101>0,D101*I101,0) -> 0 | M101: =IF(OR(B101="",D101=""),0,H101+(I$6-B101)) -> 0 | N101: =IF(D101="",0,VLOOKUP(M101,Faktoren!$B$16:$D$55,2)/1000) -> 0 | R101: =IF(AND(H101 > 0, B101 > 0), LOOKUP(H101,INDEX(Faktoren!data,,1),INDEX(Faktoren!data,,5)),0) -> 0 | S101: 0
E102: =Textes!A306 -> 3e abattage | G102: =IF(D99-D100-D101-D102>0,D99-D100-D101-D102,0) -> 0 | H102: =IF(AND(D102>0,B102>0),B102-B99+1,0) -> 0 | I102: =IF(H102>0,IF(H102>Faktoren!$D$5,Faktoren!$E$4,Faktoren!$E$5),0) -> 0 | J102: =IF(H102>0,D102*I102,0) -> 0 | M102: =IF(OR(B102="",D102=""),0,H102+(I$6-B102)) -> 0 | N102: =IF(D102="",0,VLOOKUP(M102,Faktoren!$B$16:$D$55,2)/1000) -> 0 | R102: =IF(AND(H102 > 0, B102 > 0), LOOKUP(H102,INDEX(Faktoren!data,,1),INDEX(Faktoren!data,,5)),0) -> 0 | S102: 0
E103: =Textes!A307 -> 4e abattage | G103: =IF(D99-D100-D101-D102-D103>0,D99-D100-D101-D102-D103,0) -> 0 | H103: =IF(AND(D103>0,B103>0),B103-B99+1,0) -> 0 | I103: =IF(H103>0,IF(H103>Faktoren!$D$5,Faktoren!$E$4,Faktoren!$E$5),0) -> 0 | J103: =IF(H103>0,D103*I103,0) -> 0 | M103: =IF(OR(B103="",D103=""),0,H103+(I$6-B103)) -> 0 | N103: =IF(D103="",0,VLOOKUP(M103,Faktoren!$B$16:$D$55,2)/1000) -> 0 | R103: =IF(AND(H103 > 0, B103 > 0), LOOKUP(H103,INDEX(Faktoren!data,,1),INDEX(Faktoren!data,,5)),0) -> 0 | S103: 0
E104: =Textes!A308 -> 5e abattage | G104: =IF(D99-D100-D101-D102-D103-D104>0,D99-D100-D101-D102-D103-D104,0) -> 0 | H104: =IF(AND(D104>0,B104>0),B104-B99+1,0) -> 0 | I104: =IF(H104>0,IF(H104>Faktoren!$D$5,Faktoren!$E$4,Faktoren!$E$5),0) -> 0 | J104: =IF(H104>0,D104*I104,0) -> 0 | M104: =IF(OR(B104="",D104=""),0,H104+(I$6-B104)) -> 0 | N104: =IF(D104="",0,VLOOKUP(M104,Faktoren!$B$16:$D$55,2)/1000) -> 0 | R104: =IF(AND(H104 > 0, B104 > 0), LOOKUP(H104,INDEX(Faktoren!data,,1),INDEX(Faktoren!data,,5)),0) -> 0 | S104: 0
B105: =IF(SUM(B99:B104) > 0,E105,"") ->  | D105: =+D99-SUM(D100:D104) -> 0 | E105: =Textes!A309 -> pertes | F105: =D105*0.6 -> 0 | I105: =IF(D105>0,Faktoren!$E$7,0) -> 0 | J105: =IF(D105>0,D105*I105,0) -> 0 | K105: =SUM(J100:J105) -> 0 | M105: =IF(MAX(B99:B104)<$I$6,0,VLOOKUP($I$6,B99:G104,6)) -> 0 | O105: =MAX(B99:B104) -> 00:00:00 | P105: =IF(OR($F$6="",I$6="",O105<F$6),99,IF(AND(O105>F$6,O105<=I$6),0,1)) -> 99 | R105: =IF(AND(H105 > 0, B105 > 0), LOOKUP(H105,INDEX(Faktoren!data,,1),INDEX(Faktoren!data,,5)),0) -> 0 | S105: 0 | T105: =SUM(S99:S105) -> 0
D106: =IF(D99>0,ROUND(+D105/D99*100,1),0) -> 0 | E106: =Textes!A310 -> pertes en % | G106: belegt | H106: =MAX(H99:H104) -> 0 | I106: =Textes!A312 -> jours poulailler occupé | N106: =IF(P105=1,$I$6-B99+1,H106) -> 0
D107: =IF(P105=99,0,IF(P105=0,H106/MAX(H100:H104),IF(P105=1,(H106-(O105-$I$6))/H106,0))) -> 0 | E107: =Textes!A311 -> Rotations | H107: =IF(B109<>0,(B109-O105),0) -> 0 | I107: =Textes!A313 -> jours poulailler inoccupé
B108: =Textes!A300 -> Rotation 10
C109: =IF(ISERROR(Jahr), "", IF($F$6>B109,"",IF(B109>$I$6,Jahr + 1,Jahr))) ->  | E109: =Textes!A303 -> Mise en poulailler | F109: =D109*0.04 -> 0 | G109: =IF(D109>0,D109,0) -> 0 | M109: =IF(OR(B109="",D109=""),0,IF((I$6-B109)=0,1,H109+(I$6-B109))) -> 0 | N109: =IF(D109="",0,VLOOKUP(M109,Faktoren!$B$16:$D$55,2)/1000) -> 0 | R109: =IF(AND(H109 > 0, B109 > 0), LOOKUP(H109,INDEX(Faktoren!data,,1),INDEX(Faktoren!data,,5)),0) -> 0 | S109: =D109:D115 * R109:R115 -> 0
E110: =Textes!A304 -> 1er abattage | G110: =IF(D109-D110>0,D109-D110,0) -> 0 | H110: =IF(AND(D110>0,B110>0),B110-B109+1,0) -> 0 | I110: =IF(H110>0,IF(H110>Faktoren!$D$5,Faktoren!$E$4,Faktoren!$E$5),0) -> 0 | J110: =IF(H110>0,D110*I110,0) -> 0 | M110: =IF(OR(B110="",D110=""),0,H110+(I$6-B110)) -> 0 | N110: =IF(D110="",0,VLOOKUP(M110,Faktoren!$B$16:$D$55,2)/1000) -> 0 | R110: =IF(AND(H110 > 0, B110 > 0), LOOKUP(H110,INDEX(Faktoren!data,,1),INDEX(Faktoren!data,,5)),0) -> 0 | S110: 0
E111: =Textes!A305 -> 2e abattage | G111: =IF(D109-D110-D111>0,D109-D110-D111,0) -> 0 | H111: =IF(AND(D111>0,B111>0),B111-B109+1,0) -> 0 | I111: =IF(H111>0,IF(H111>Faktoren!$D$5,Faktoren!$E$4,Faktoren!$E$5),0) -> 0 | J111: =IF(H111>0,D111*I111,0) -> 0 | M111: =IF(OR(B111="",D111=""),0,H111+(I$6-B111)) -> 0 | N111: =IF(D111="",0,VLOOKUP(M111,Faktoren!$B$16:$D$55,2)/1000) -> 0 | R111: =IF(AND(H111 > 0, B111 > 0), LOOKUP(H111,INDEX(Faktoren!data,,1),INDEX(Faktoren!data,,5)),0) -> 0 | S111: 0
E112: =Textes!A306 -> 3e abattage | G112: =IF(D109-D110-D111-D112>0,D109-D110-D111-D112,0) -> 0 | H112: =IF(AND(D112>0,B112>0),B112-B109+1,0) -> 0 | I112: =IF(H112>0,IF(H112>Faktoren!$D$5,Faktoren!$E$4,Faktoren!$E$5),0) -> 0 | J112: =IF(H112>0,D112*I112,0) -> 0 | M112: =IF(OR(B112="",D112=""),0,H112+(I$6-B112)) -> 0 | N112: =IF(D112="",0,VLOOKUP(M112,Faktoren!$B$16:$D$55,2)/1000) -> 0 | R112: =IF(AND(H112 > 0, B112 > 0), LOOKUP(H112,INDEX(Faktoren!data,,1),INDEX(Faktoren!data,,5)),0) -> 0 | S112: 0
E113: =Textes!A307 -> 4e abattage | G113: =IF(D109-D110-D111-D112-D113>0,D109-D110-D111-D112-D113,0) -> 0 | H113: =IF(AND(D113>0,B113>0),B113-B109+1,0) -> 0 | I113: =IF(H113>0,IF(H113>Faktoren!$D$5,Faktoren!$E$4,Faktoren!$E$5),0) -> 0 | J113: =IF(H113>0,D113*I113,0) -> 0 | M113: =IF(OR(B113="",D113=""),0,H113+(I$6-B113)) -> 0 | N113: =IF(D113="",0,VLOOKUP(M113,Faktoren!$B$16:$D$55,2)/1000) -> 0 | R113: =IF(AND(H113 > 0, B113 > 0), LOOKUP(H113,INDEX(Faktoren!data,,1),INDEX(Faktoren!data,,5)),0) -> 0 | S113: 0
E114: =Textes!A308 -> 5e abattage | G114: =IF(D109-D110-D111-D112-D113-D114>0,D109-D110-D111-D112-D113-D114,0) -> 0 | H114: =IF(AND(D114>0,B114>0),B114-B109+1,0) -> 0 | I114: =IF(H114>0,IF(H114>Faktoren!$D$5,Faktoren!$E$4,Faktoren!$E$5),0) -> 0 | J114: =IF(H114>0,D114*I114,0) -> 0 | M114: =IF(OR(B114="",D114=""),0,H114+(I$6-B114)) -> 0 | N114: =IF(D114="",0,VLOOKUP(M114,Faktoren!$B$16:$D$55,2)/1000) -> 0 | R114: =IF(AND(H114 > 0, B114 > 0), LOOKUP(H114,INDEX(Faktoren!data,,1),INDEX(Faktoren!data,,5)),0) -> 0 | S114: 0
B115: =IF(SUM(B109:B114) > 0,E115,"") ->  | D115: =+D109-SUM(D110:D114) -> 0 | E115: =Textes!A309 -> pertes | F115: =D115*0.6 -> 0 | I115: =IF(D115>0,Faktoren!$E$7,0) -> 0 | J115: =IF(D115>0,D115*I115,0) -> 0 | K115: =SUM(J110:J115) -> 0 | M115: =IF(MAX(B109:B114)<$I$6,0,VLOOKUP($I$6,B109:G114,6)) -> 0 | O115: =MAX(B109:B114) -> 00:00:00 | P115: =IF(OR($F$6="",I$6="",O115<F$6),99,IF(AND(O115>F$6,O115<=I$6),0,1)) -> 99 | R115: =IF(AND(H115 > 0, B115 > 0), LOOKUP(H115,INDEX(Faktoren!data,,1),INDEX(Faktoren!data,,5)),0) -> 0 | S115: 0 | T115: =SUM(S109:S115) -> 0
D116: =IF(D109>0,ROUND(+D115/D109*100,1),0) -> 0 | E116: =Textes!A310 -> pertes en % | G116: belegt | H116: =MAX(H109:H114) -> 0 | I116: =Textes!A312 -> jours poulailler occupé | N116: =IF(P115=1,$I$6-B109+1,H116) -> 0
D117: =IF(P115=99,0,IF(P115=0,H116/MAX(H110:H114),IF(P115=1,(H116-(O115-$I$6))/H116,0))) -> 0 | E117: =Textes!A311 -> Rotations | H117: =IF(B119<>0,(B119-O115),0) -> 0 | I117: =Textes!A313 -> jours poulailler inoccupé
B118: =Textes!A301 -> Rotation 11
C119: =IF(ISERROR(Jahr), "", IF($F$6>B119,"",IF(B119>$I$6,Jahr + 1,Jahr))) ->  | E119: =Textes!A303 -> Mise en poulailler | F119: =D119*0.04 -> 0 | G119: =IF(D119>0,D119,0) -> 0 | M119: =IF(OR(B119="",D119=""),0,IF((I$6-B119)=0,1,H119+(I$6-B119))) -> 0 | N119: =IF(D119="",0,VLOOKUP(M119,Faktoren!$B$16:$D$55,2)/1000) -> 0 | R119: =IF(AND(H119 > 0, B119 > 0), LOOKUP(H119,INDEX(Faktoren!data,,1),INDEX(Faktoren!data,,5)),0) -> 0 | S119: =D119:D125 * R119:R125 -> 0
E120: =Textes!A304 -> 1er abattage | G120: =IF(D119-D120>0,D119-D120,0) -> 0 | H120: =IF(AND(D120>0,B120>0),B120-B119+1,0) -> 0 | I120: =IF(H120>0,IF(H120>Faktoren!$D$5,Faktoren!$E$4,Faktoren!$E$5),0) -> 0 | J120: =IF(H120>0,D120*I120,0) -> 0 | M120: =IF(OR(B120="",D120=""),0,H120+(I$6-B120)) -> 0 | N120: =IF(D120="",0,VLOOKUP(M120,Faktoren!$B$16:$D$55,2)/1000) -> 0 | R120: =IF(AND(H120 > 0, B120 > 0), LOOKUP(H120,INDEX(Faktoren!data,,1),INDEX(Faktoren!data,,5)),0) -> 0 | S120: 0
E121: =Textes!A305 -> 2e abattage | G121: =IF(D119-D120-D121>0,D119-D120-D121,0) -> 0 | H121: =IF(AND(D121>0,B121>0),B121-B119+1,0) -> 0 | I121: =IF(H121>0,IF(H121>Faktoren!$D$5,Faktoren!$E$4,Faktoren!$E$5),0) -> 0 | J121: =IF(H121>0,D121*I121,0) -> 0 | M121: =IF(OR(B121="",D121=""),0,H121+(I$6-B121)) -> 0 | N121: =IF(D121="",0,VLOOKUP(M121,Faktoren!$B$16:$D$55,2)/1000) -> 0 | R121: =IF(AND(H121 > 0, B121 > 0), LOOKUP(H121,INDEX(Faktoren!data,,1),INDEX(Faktoren!data,,5)),0) -> 0 | S121: 0
E122: =Textes!A306 -> 3e abattage | G122: =IF(D119-D120-D121-D122>0,D119-D120-D121-D122,0) -> 0 | H122: =IF(AND(D122>0,B122>0),B122-B119+1,0) -> 0 | I122: =IF(H122>0,IF(H122>Faktoren!$D$5,Faktoren!$E$4,Faktoren!$E$5),0) -> 0 | J122: =IF(H122>0,D122*I122,0) -> 0 | M122: =IF(OR(B122="",D122=""),0,H122+(I$6-B122)) -> 0 | N122: =IF(D122="",0,VLOOKUP(M122,Faktoren!$B$16:$D$55,2)/1000) -> 0 | R122: =IF(AND(H122 > 0, B122 > 0), LOOKUP(H122,INDEX(Faktoren!data,,1),INDEX(Faktoren!data,,5)),0) -> 0 | S122: 0
E123: =Textes!A307 -> 4e abattage | G123: =IF(D119-D120-D121-D122-D123>0,D119-D120-D121-D122-D123,0) -> 0 | H123: =IF(AND(D123>0,B123>0),B123-B119+1,0) -> 0 | I123: =IF(H123>0,IF(H123>Faktoren!$D$5,Faktoren!$E$4,Faktoren!$E$5),0) -> 0 | J123: =IF(H123>0,D123*I123,0) -> 0 | M123: =IF(OR(B123="",D123=""),0,H123+(I$6-B123)) -> 0 | N123: =IF(D123="",0,VLOOKUP(M123,Faktoren!$B$16:$D$55,2)/1000) -> 0 | R123: =IF(AND(H123 > 0, B123 > 0), LOOKUP(H123,INDEX(Faktoren!data,,1),INDEX(Faktoren!data,,5)),0) -> 0 | S123: 0
E124: =Textes!A308 -> 5e abattage | G124: =IF(D119-D120-D121-D122-D123-D124>0,D119-D120-D121-D122-D123-D124,0) -> 0 | H124: =IF(AND(D124>0,B124>0),B124-B119+1,0) -> 0 | I124: =IF(H124>0,IF(H124>Faktoren!$D$5,Faktoren!$E$4,Faktoren!$E$5),0) -> 0 | J124: =IF(H124>0,D124*I124,0) -> 0 | M124: =IF(OR(B124="",D124=""),0,H124+(I$6-B124)) -> 0 | N124: =IF(D124="",0,VLOOKUP(M124,Faktoren!$B$16:$D$55,2)/1000) -> 0 | R124: =IF(AND(H124 > 0, B124 > 0), LOOKUP(H124,INDEX(Faktoren!data,,1),INDEX(Faktoren!data,,5)),0) -> 0 | S124: 0
B125: =IF(SUM(B119:B124) > 0,E125,"") ->  | D125: =+D119-SUM(D120:D124) -> 0 | E125: =Textes!A309 -> pertes | F125: =D125*0.6 -> 0 | I125: =IF(D125>0,Faktoren!$E$7,0) -> 0 | J125: =IF(D125>0,D125*I125,0) -> 0 | K125: =SUM(J120:J125) -> 0 | M125: =IF(MAX(B119:B124)<$I$6,0,VLOOKUP($I$6,B119:G124,6)) -> 0 | O125: =MAX(B119:B124) -> 00:00:00 | P125: =IF(OR($F$6="",I$6="",O125<F$6),99,IF(AND(O125>F$6,O125<=I$6),0,1)) -> 99 | R125: =IF(AND(H125 > 0, B125 > 0), LOOKUP(H125,INDEX(Faktoren!data,,1),INDEX(Faktoren!data,,5)),0) -> 0 | S125: 0 | T125: =SUM(S119:S125) -> 0
D126: =IF(D119>0,ROUND(+D125/D119*100,1),0) -> 0 | E126: =Textes!A310 -> pertes en % | G126: belegt | H126: =MAX(H119:H124) -> 0 | I126: =Textes!A312 -> jours poulailler occupé | N126: =IF(P125=1,$I$6-B119+1,H126) -> 0
D127: =IF(P125=99,0,IF(P125=0,H126/MAX(H120:H124),IF(P125=1,(H126-(O125-$I$6))/H126,0))) -> 0 | E127: =Textes!A311 -> Rotations | H127: =IF(B131<>0,(B131-O125),0) -> 0 | I127: =Textes!A313 -> jours poulailler inoccupé
B129: =Textes!A269 -> Poulailler 3 | K129: =Textes!A339 -> page 3
B130: =Textes!A302 -> Rotation 12
C131: =IF(ISERROR(Jahr), "", IF($F$6>B131,"",IF(B131>$I$6,Jahr + 1,Jahr))) ->  | E131: =Textes!A303 -> Mise en poulailler | F131: =D131*0.04 -> 0 | G131: =IF(D131>0,D131,0) -> 0 | M131: =IF(OR(B131="",D131=""),0,IF((I$6-B131)=0,1,H131+(I$6-B131))) -> 0 | N131: =IF(D131="",0,VLOOKUP(M131,Faktoren!$B$16:$D$55,2)/1000) -> 0 | R131: =IF(AND(H131 > 0, B131 > 0), LOOKUP(H131,INDEX(Faktoren!data,,1),INDEX(Faktoren!data,,5)),0) -> 0 | S131: =D131:D137 * R131:R137 -> 0
E132: =Textes!A304 -> 1er abattage | G132: =IF(D131-D132>0,D131-D132,0) -> 0 | H132: =IF(AND(D132>0,B132>0),B132-B131+1,0) -> 0 | I132: =IF(H132>0,IF(H132>Faktoren!$D$5,Faktoren!$E$4,Faktoren!$E$5),0) -> 0 | J132: =IF(H132>0,D132*I132,0) -> 0 | M132: =IF(OR(B132="",D132=""),0,H132+(I$6-B132)) -> 0 | N132: =IF(D132="",0,VLOOKUP(M132,Faktoren!$B$16:$D$55,2)/1000) -> 0 | R132: =IF(AND(H132 > 0, B132 > 0), LOOKUP(H132,INDEX(Faktoren!data,,1),INDEX(Faktoren!data,,5)),0) -> 0 | S132: 0
E133: =Textes!A305 -> 2e abattage | G133: =IF(D131-D132-D133>0,D131-D132-D133,0) -> 0 | H133: =IF(AND(D133>0,B133>0),B133-B131+1,0) -> 0 | I133: =IF(H133>0,IF(H133>Faktoren!$D$5,Faktoren!$E$4,Faktoren!$E$5),0) -> 0 | J133: =IF(H133>0,D133*I133,0) -> 0 | M133: =IF(OR(B133="",D133=""),0,H133+(I$6-B133)) -> 0 | N133: =IF(D133="",0,VLOOKUP(M133,Faktoren!$B$16:$D$55,2)/1000) -> 0 | R133: =IF(AND(H133 > 0, B133 > 0), LOOKUP(H133,INDEX(Faktoren!data,,1),INDEX(Faktoren!data,,5)),0) -> 0 | S133: 0
E134: =Textes!A306 -> 3e abattage | G134: =IF(D131-D132-D133-D134>0,D131-D132-D133-D134,0) -> 0 | H134: =IF(AND(D134>0,B134>0),B134-B131+1,0) -> 0 | I134: =IF(H134>0,IF(H134>Faktoren!$D$5,Faktoren!$E$4,Faktoren!$E$5),0) -> 0 | J134: =IF(H134>0,D134*I134,0) -> 0 | M134: =IF(OR(B134="",D134=""),0,H134+(I$6-B134)) -> 0 | N134: =IF(D134="",0,VLOOKUP(M134,Faktoren!$B$16:$D$55,2)/1000) -> 0 | R134: =IF(AND(H134 > 0, B134 > 0), LOOKUP(H134,INDEX(Faktoren!data,,1),INDEX(Faktoren!data,,5)),0) -> 0 | S134: 0
E135: =Textes!A307 -> 4e abattage | G135: =IF(D131-D132-D133-D134-D135>0,D131-D132-D133-D134-D135,0) -> 0 | H135: =IF(AND(D135>0,B135>0),B135-B131+1,0) -> 0 | I135: =IF(H135>0,IF(H135>Faktoren!$D$5,Faktoren!$E$4,Faktoren!$E$5),0) -> 0 | J135: =IF(H135>0,D135*I135,0) -> 0 | M135: =IF(OR(B135="",D135=""),0,H135+(I$6-B135)) -> 0 | N135: =IF(D135="",0,VLOOKUP(M135,Faktoren!$B$16:$D$55,2)/1000) -> 0 | R135: =IF(AND(H135 > 0, B135 > 0), LOOKUP(H135,INDEX(Faktoren!data,,1),INDEX(Faktoren!data,,5)),0) -> 0 | S135: 0
E136: =Textes!A308 -> 5e abattage | G136: =IF(D131-D132-D133-D134-D135-D136>0,D131-D132-D133-D134-D135-D136,0) -> 0 | H136: =IF(AND(D136>0,B136>0),B136-B131+1,0) -> 0 | I136: =IF(H136>0,IF(H136>Faktoren!$D$5,Faktoren!$E$4,Faktoren!$E$5),0) -> 0 | J136: =IF(H136>0,D136*I136,0) -> 0 | M136: =IF(OR(B136="",D136=""),0,H136+(I$6-B136)) -> 0 | N136: =IF(D136="",0,VLOOKUP(M136,Faktoren!$B$16:$D$55,2)/1000) -> 0 | R136: =IF(AND(H136 > 0, B136 > 0), LOOKUP(H136,INDEX(Faktoren!data,,1),INDEX(Faktoren!data,,5)),0) -> 0 | S136: 0
B137: =IF(SUM(B131:B136) > 0,E137,"") ->  | C137: =Jahr+1 ->  | D137: =+D131-D132-D133-D136 -> 0 | E137: =Textes!A309 -> pertes | F137: =D137*0.6 -> 0 | I137: =IF(D137>0,Faktoren!$E$7,0) -> 0 | J137: =IF(D137>0,D137*I137,0) -> 0 | K137: =SUM(J132:J137) -> 0 | M137: =IF(MAX(B131:B136)<$I$6,0,VLOOKUP($I$6,B131:G136,6)) -> 0 | O137: =MAX(B131:B136) -> 00:00:00 | P137: =IF(OR($F$6="",I$6="",O137<F$6),99,IF(AND(O137>F$6,O137<=I$6),0,1)) -> 99 | R137: =IF(AND(H137 > 0, B137 > 0), LOOKUP(H137,INDEX(Faktoren!data,,1),INDEX(Faktoren!data,,5)),0) -> 0 | S137: 0 | T137: =SUM(S131:S137) -> 0
D138: =IF(D131>0,ROUND(+D137/D131*100,1),0) -> 0 | E138: =Textes!A310 -> pertes en % | G138: belegt | H138: =MAX(H131:H136) -> 0 | I138: =Textes!A312 -> jours poulailler occupé | N138: =IF(P137=1,$I$6-B131+1,H138) -> 0
D139: =IF(P137=99,0,IF(P137=0,H138/MAX(H132:H136),IF(P137=1,(H138-(O137-$I$6))/H138,0))) -> 0 | E139: =Textes!A311 -> Rotations
B141: =Textes!A314 -> Effectif moyen | R141: =Poulet1!R141 -> Effectif moyen
B142: =Textes!A315 -> en nombre déterminant | K142: =IF((K137+K125+K115+K105+K95+K85+K75+K63+K53+K43+K33+K23)>0,(K137+K125+K115+K105+K95+K85+K75+K63+K53+K43+K33+K23)/SUM(G144:G155),0) -> 0 | R142: =Poulet1!R142 -> en unités de la période | T142: =IF((T137+T125+T115+T105+T95+T85+T75+T63+T53+T43+T33+T23)>0,(T137+T125+T115+T105+T95+T85+T75+T63+T53+T43+T33+T23)/SUM($G$144:$G$155),0) -> 0
B144: Berechnung der Anzahl Umtriebe | G144: =IF(AND(K23>0,K33>0,K43>0,K53>0,K63>0,K75>0,K85>0,K95>0,K105>0,K115>0,K125>0,K137>0),12,0) -> 0
G145: =IF(AND(K23>0,K33>0,K43>0,K53>0,K63>0,K75>0,K85>0,K95>0,K105>0,K115>0,K125>0,K137=0),11,0) -> 0
G146: =IF(AND(K23>0,K33>0,K43>0,K53>0,K63>0,K75>0,K85>0,K95>0,K105>0,K115>0,K125=0,K137=0),10,0) -> 0
G147: =IF(AND(K23>0,K33>0,K43>0,K53>0,K63>0,K75>0,K85>0,K95>0,K105>0,K115=0,K125=0,K137=0),9,0) -> 0
G148: =IF(AND(K23>0,K33>0,K43>0,K53>0,K63>0,K75>0,K85>0,K95>0,K105=0,K115=0,K125=0,K137=0),8,0) -> 0
G149: =IF(AND(K23>0,K33>0,K43>0,K53>0,K63>0,K75>0,K85>0,K95=0,K105=0,K115=0,K125=0,K137=0),7,0) -> 0
G150: =IF(AND(K23>0,K33>0,K43>0,K53>0,K63>0,K75>0,K85=0,K95=0,K105=0,K115=0,K125=0,K137=0),6,0) -> 0
G151: =IF(AND(K23>0,K33>0,K43>0,K53>0,K63>0,K75=0,K85=0,K95=0,K105=0,K115=0,K125=0,K137=0),5,0) -> 0
G152: =IF(AND(K23>0,K33>0,K43>0,K53>0,K63=0,K75=0,K85=0,K95=0,K105=0,K115=0,K125=0,K137=0),4,0) -> 0
G153: =IF(AND(K23>0,K33>0,K43>0,K53=0,K63=0,K75=0,K85=0,K95=0,K105=0,K115=0,K125=0,K137=0),3,0) -> 0
G154: =IF(AND(K23>0,K33>0,K43=0,K53=0,K63=0,K75=0,K85=0,K95=0,K105=0,K115=0,K125=0,K137=0),2,0) -> 0
G155: =IF(AND(K23>0,K33=0,K43=0,K53=0,K63=0,K75=0,K85=0,K95=0,K105=0,K115=0,K125=0,K137=0),1,0) -> 0
B158: =Textes!A317 -> Nombre de rotations | E158: =SUM(D25,D35,D45,D55,D65,D77,D87,D97,D107,D117,D127,D139) -> 0
B160: =Textes!A318 -> Durée d'occupation | E160: =IF((H24+H34+H44+H54+H64+H76+H86+H96+H106+H116+H126+H138)>0,(H24+H34+H44+H54+H64+H76+H86+H96+H106+H116+H126+H138)/SUM(G144:G155),0) -> 0 | H160: =Textes!A326 -> (moyenne, sans interruption entre
B161: =Textes!A319 -> par rotation | H161: =Textes!A327 -> les rotations)
B163: =Textes!A320 -> Durée d'occupation | D163: B(eff) | E163: =(N24+N34+N44+N54+N64+N76+N86+N96+N106+N116+N126+N138) -> 0 | H163: =Textes!A328 -> (nombre total de jours, sans interruption entre
B164: =Textes!A321 -> totale | H164: =Textes!A329 -> les rotations)
B166: =Textes!A322 -> Durée d'occupation | D166: B(min) | E166: 270 | H166: =Textes!A330 -> (durée d'occupation minimale
B167: =Textes!A323 -> minimale par an | H167: =Textes!A331 -> pour une utilisation normale du poulailler)
B169: =Textes!A324 -> Durée d'occupation | D169: B(min) | E169: =IF(K6 = "",0,E166/365*K6) -> 0 | H169: =Textes!A330 -> (durée d'occupation minimale
B170: =Textes!A325 -> minimale par periode | H170: =Textes!A332 -> calculée pour la periode)
R172: =B141 -> Effectif moyen
B173: =B141 & " " & R173 -> Effectif moyen au poulailler 3 | K173: =IF(E163>=E169,K142,K142/E169*E163) -> 0 | R173: =Textes!A335 -> au poulailler 3 | T173: =IF($E$163>=$E$169,T142,T142/$E$169*$E$163) -> 0
B175: =Textes!A336 -> correspond à l'effectif exprimé en UGB | K175: =K173*Faktoren!E10 -> 0
B177: =+Textes!A73 -> Organisation de contrôle, Date: | H177: =+Textes!A88 -> Signature:
B179: =+Textes!A77 -> Exploitant, Date: | H179: =+Textes!A88 -> Signature:

Sheet Poulet_tot (hidden)
H1: =Textes!A340 -> Sommaire poulets
B3: =Textes!A341 -> Nombre total d'animaux déterminant
B4: =Textes!A342 -> pendant la période
B6: =Textes!A343 -> Période | F6: =IF(Inv!$N$9>0,TEXT(Inv!DatumAnfang,Textes!A355) & " - " & TEXT( Inv!DatumEnde,Textes!A355),"") -> 
B8: =Textes!A344 -> No cantonal de l'exploitation | F8: =IF(Inv!D4=0,"",Inv!D4) -> 
B10: =Textes!A345 -> Prénom, nom | F10: =IF(Inv!D5=0,"",Inv!D6 & " " & Inv!D5) -> 
B12: =Textes!A346 -> Adresse | F12: =IF(Inv!D7=0,"",Inv!D7) -> 
B14: =Textes!A347 -> NPA, lieu | F14: =IF(Inv!D9=0,"",Inv!D9) -> 
B18: =Textes!A348 -> Nombre de poulaillers occupés
F21: =Textes!A349 -> Effectif moyen selon l'OPD | N21: =Textes!A350 -> Effectif moyen pour l'évaluation des valeurs minimales
E22: Total | F22: =Textes!A357 -> Nombre d'animaux | G22: =Textes!A358 -> UGB | N22: Total | O22: =F22 -> Nombre d'animaux
F23: =SUM(F29,F33,F37) -> 0 | G23: =G29+G33+G37 -> 0 | O23: =SUM(O29,O33,O37) -> 0
F25: =Textes!A351 -> Si la période correspond à l'année civile, alors l'effectif moyen selon l'OPD | N25: =Textes!A353 -> L'effectif moyen pour l'évaluation des valeurs minimales tient compte de la production plus
F26: =Textes!A352 -> doit être déclaré lors du relevé des structures agricoles. | N26: =Textes!A354 -> faible de nutriments chez les animaux dont la durée d'engraissement est plus courte.
F27: =$F$21 -> Effectif moyen selon l'OPD | N27: =$N$21 -> Effectif moyen pour l'évaluation des valeurs minimales
E28: =Textes!A360 -> Poulailler 1 | F28: =Textes!A357 -> Nombre d'animaux | G28: =Textes!A358 -> UGB | N28: =E28 -> Poulailler 1 | O28: =F28 -> Nombre d'animaux
F29: =Poulet1!K173 -> 0 | G29: =Poulet1!K175 -> 0 | O29: =Poulet1!T173 -> 0
F31: =$F$21 -> Effectif moyen selon l'OPD | N31: =$N$21 -> Effectif moyen pour l'évaluation des valeurs minimales
E32: =Textes!A361 -> Poulailler 2 | F32: =Textes!A357 -> Nombre d'animaux | G32: =Textes!A358 -> UGB | N32: =E32 -> Poulailler 2 | O32: =F32 -> Nombre d'animaux
F33: =Poulet2!K173 -> 0 | G33: =Poulet2!K175 -> 0 | O33: =Poulet2!T173 -> 0
F35: =$F$21 -> Effectif moyen selon l'OPD | N35: =$N$21 -> Effectif moyen pour l'évaluation des valeurs minimales
E36: =Textes!A362 -> Poulailler 3 | F36: =Textes!A357 -> Nombre d'animaux | G36: =Textes!A358 -> UGB | N36: =E36 -> Poulailler 3 | O36: =F36 -> Nombre d'animaux
F37: =Poulet3!K173 -> 0 | G37: =Poulet3!K175 -> 0 | O37: =Poulet3!T173 -> 0
B39: =+Textes!A73 -> Organisation de contrôle, Date: | F39: =+Textes!A88 -> Signature:
B41: =+Textes!A77 -> Exploitant, Date: | F41: =+Textes!A88 -> Signature:

Sheet Reserve
A1: Reserve

Sheet Faktoren (hidden)
B2: Bezeichnung | C2: Mastdauer | E2: Umrechnungsfaktoren
C3: untere Grenze | D3: obere Grenze
B4: Normalmast | C4: 30 | D4: 100 | E4: 1
B5: Ultrakurzmast | C5: 1 | D5: 29 | E5: 0.5
B7: Abgänge | E7: 0
B10: GVE Faktor | E10: 0.004
B13: Masttage | C13: Lebend-gewicht | D13: Zuwachs pro Tier und Tag | E13: Verluste | F13: Umrechnungs-faktor
C14: im Stall | E14: bis heute | F14: für TW
C15: in g | D15: in g | E15: in %
B16: 1 | C16: 40 | D16: 3 | E16: 0.03 | F16: 0.3
B17: 2 | C17: 48 | D17: 7 | E17: 0.15 | F17: 0.3
B18: 3 | C18: 59 | D18: 11 | E18: 0.3 | F18: 0.3
B19: 4 | C19: 74 | D19: 15 | E19: 0.4 | F19: 0.3
B20: 5 | C20: 91 | D20: 17 | E20: 0.5 | F20: 0.3
B21: 6 | C21: 113 | D21: 22 | E21: 0.59 | F21: 0.3
B22: 7 | C22: 138 | D22: 25 | E22: 0.67 | F22: 0.3
B23: 8 | C23: 167 | D23: 29 | E23: 0.75 | F23: 0.3
B24: 9 | C24: 198 | D24: 31 | E24: 0.83 | F24: 0.3
B25: 10 | C25: 232 | D25: 34 | E25: 0.91 | F25: 0.3
B26: 11 | C26: 269 | D26: 37 | E26: 0.99 | F26: 0.3
B27: 12 | C27: 310 | D27: 41 | E27: 1.09 | F27: 0.3
B28: 13 | C28: 355 | D28: 45 | E28: 1.2 | F28: 0.3
B29: 14 | C29: 402 | D29: 47 | E29: 1.31 | F29: 0.3
B30: 15 | C30: 451 | D30: 50 | E30: 1.42 | F30: 0.3
B31: 16 | C31: 505 | D31: 53 | E31: 1.53 | F31: 0.3
B32: 17 | C32: 560 | D32: 55 | E32: 1.64 | F32: 0.3
B33: 18 | C33: 618 | D33: 58 | E33: 1.75 | F33: 0.3
B34: 19 | C34: 679 | D34: 61 | E34: 1.86 | F34: 0.3
B35: 20 | C35: 743 | D35: 64 | E35: 1.97 | F35: 0.3
B36: 21 | C36: 809 | D36: 66 | E36: 2.05 | F36: 0.3
B37: 22 | C37: 879 | D37: 70 | E37: 2.13 | F37: 0.3
B38: 23 | C38: 951 | D38: 73 | E38: 2.21 | F38: 0.3
B39: 24 | C39: 1027 | D39: 76 | E39: 2.29 | F39: 0.3
B40: 25 | C40: 1107 | D40: 80 | E40: 2.37 | F40: 0.3
B41: 26 | C41: 1190 | D41: 83 | E41: 2.45 | F41: 0.3
B42: 27 | C42: 1276 | D42: 86 | E42: 2.53 | F42: 0.3
B43: 28 | C43: 1365 | D43: 89 | E43: 2.6 | F43: 0.3
B44: 29 | C44: 1455 | D44: 91 | E44: 2.67 | F44: 0.3
B45: 30 | C45: 1547 | D45: 92 | E45: 2.74 | F45: 0.4
B46: 31 | C46: 1641 | D46: 94 | E46: 2.8 | F46: 0.5
B47: 32 | C47: 1737 | D47: 96 | E47: 2.87 | F47: 0.6
B48: 33 | C48: 1833 | D48: 96 | E48: 2.94 | F48: 0.7
B49: 34 | C49: 1930 | D49: 97 | E49: 3.02 | F49: 0.8
B50: 35 | C50: 2027 | D50: 97 | E50: 3.1 | F50: 0.9
B51: 36 | C51: 2124 | D51: 97 | E51: 3.14 | F51: 1
B52: 37 | C52: 2221 | D52: 97 | E52: 3.18 | F52: 1
B53: 38 | C53: 2316 | D53: 96 | E53: 3.2 | F53: 1
B54: 39 | C54: 2411 | D54: 95 | E54: 3.23 | F54: 1
B55: 40 | C55: 2503 | D55: 92 | E55: 3.26 | F55: 1

Sheet Textes (hidden)
A1: Texte | B1: Français | C1: Deutsch | D1: Italiano | E1: Numbers | F1: Language | G1: Catégorie | K1: Schweinetyp/Schlachtart | S1: =I3 -> Schweinehaltung | U1: =I4 -> Junghennen | W1: =I5 -> Mastpoulets | Y1: =I6 -> Masttruten | AA1: =I7 -> Kaninchen | AD1: often used
F2: 1 | G2: 1 | O2: Ausbeute | S2: 1 | T2: =S2+0.5 -> 1.5 | U2: 2 | V2: =U2+0.5 -> 2.5 | W2: 3 | X2: =W2+0.5 -> 3.5 | Y2: 4 | Z2: =Y2+0.5 -> 4.5 | AA2: 5 | AB2: =AA2+0.5 -> 5.5 | AE2: strLf
F3: Français | G3: =IF(Textes!F$2=1,H3,IF(Textes!F$2=2,I3,IF(Textes!F$2=3,J3,""))) -> Production porcine | H3: Production porcine | I3: Schweinehaltung | K3: =IF(Textes!F$2=1,L3,IF(Textes!F$2=2,M3,IF(Textes!F$2=3,N3,""))) -> porcs d'engraissement | L3: porcs d'engraissement | M3: Mastschweine | O3: 0.79 | Q3: =$A33 -> Code | R3: =$A34 -> Catégorie d'animaux | S3: =$A33 -> Code | T3: =$A34 -> Catégorie d'animaux | U3: =$A33 -> Code | V3: =$A34 -> Catégorie d'animaux | W3: =$A33 -> Code | X3: =$A34 -> Catégorie d'animaux | Y3: =$A33 -> Code | Z3: =$A34 -> Catégorie d'animaux | AA3: =$A33 -> Code | AB3: =$A34 -> Catégorie d'animaux | AD3: , | AE3: strCom
A4: =IF(Textes!F$2=1,B4,IF(Textes!F$2=2,C4,IF(Textes!F$2=3,D4,""))) -> MJ EDP | B4: MJ EDP | C4: MJ VES | F4: Deutsch | G4: =IF(Textes!F$2=1,H4,IF(Textes!F$2=2,I4,IF(Textes!F$2=3,J4,""))) -> Poulettes | H4: Poulettes | I4: Junghennen | K4: =IF(Textes!F$2=1,L4,IF(Textes!F$2=2,M4,IF(Textes!F$2=3,N4,""))) -> truies, échaudées | L4: truies, échaudées | M4: Mutterschweine, gebrüht | O4: 0.71 | Q4: =LOOKUP($G$2,$S$2:AB2,S4:AB4) -> 1611 | R4: =LOOKUP($G$2+0.5,$S$2:AB2,S4:AB4) -> Truies allaitantes | S4: 1611 | T4: =A35 -> Truies allaitantes | U4: 1755 | V4: =C41 -> Junghennen | W4: 1757 | X4: =A42 -> Poulets à l'engrais poulailler 1 | Y4: 1761 | Z4: =A45 -> Dindes de tout âge | AA4: 1861 | AB4: =A48 -> Lapines reproductrices
A5: =IF(Textes!F$2=1,B5,IF(Textes!F$2=2,C5,IF(Textes!F$2=3,D5,""))) -> MJ EMV | B5: MJ EMV | C5: MJ UEG | G5: =IF(Textes!F$2=1,H5,IF(Textes!F$2=2,I5,IF(Textes!F$2=3,J5,""))) -> Poulets à l'engrais | H5: Poulets à l'engrais | I5: Mastpoulets | K5: =IF(Textes!F$2=1,L5,IF(Textes!F$2=2,M5,IF(Textes!F$2=3,N5,""))) -> truies, dépouillées | L5: truies, dépouillées | M5: Mutterschweine, gehäutet | O5: 0.62 | Q5: =LOOKUP($G$2,$S$2:AB3,S5:AB5) -> 1615 | R5: =LOOKUP($G$2+0.5,$S$2:AB3,S5:AB5) -> Truies non allaitantes > 6 mois | S5: 1615 | T5: Truies non allaitantes > 6 mois | U5: 1755 | V5: =C41 -> Junghennen | W5: 1757 | X5: =A43 -> Poulets à l'engrais poulailler 2 | Y5: 1761 | Z5: =A45 -> Dindes de tout âge | AA5: 1861 | AB5: =A48 -> Lapines reproductrices
A6: =IF(Textes!F$2=1,B6,IF(Textes!F$2=2,C6,IF(Textes!F$2=3,D6,""))) -> MJ EDP | B6: =+IF(Textes!G2=1,B4,B5) -> MJ EDP | C6: =+IF(Textes!G2=1,C4,C5) -> MJ VES | G6: =IF(Textes!F$2=1,H6,IF(Textes!F$2=2,I6,IF(Textes!F$2=3,J6,""))) -> Dindes à l'engrais | H6: Dindes à l'engrais | I6: Masttruten | Q6: =LOOKUP($G$2,$S$2:AB4,S6:AB6) -> 1621 | R6: =LOOKUP($G$2+0.5,$S$2:AB4,S6:AB6) -> Verrats d'élevage | S6: 1621 | T6: Verrats d'élevage | U6: 1755 | V6: =C41 -> Junghennen | W6: 1757 | X6: =A44 -> Poulets à l'engrais poulailler 3 | Y6: 1762 | Z6: =A46 -> Dindes pour le préengraissement | AA6: 1862 | AB6: =A49 -> Jeunes animaux
A7: =IF(Textes!F$2=1,B7,IF(Textes!F$2=2,C7,IF(Textes!F$2=3,D7,""))) -> MJ EDP kg TS | B7: =+B6&" kg TS" -> MJ EDP kg TS | C7: =+C6&" kg TS" -> MJ VES kg TS | G7: =IF(Textes!F$2=1,H7,IF(Textes!F$2=2,I7,IF(Textes!F$2=3,J7,""))) -> Lapins | H7: Lapins | I7: Kaninchen | Q7: =LOOKUP($G$2,$S$2:AB5,S7:AB7) -> 1631 | R7: =LOOKUP($G$2+0.5,$S$2:AB5,S7:AB7) -> Porcelets sevrés < 26 kg PV | S7: 1631 | T7: Porcelets sevrés < 26 kg PV | Y7: 1762 | Z7: =A46 -> Dindes pour le préengraissement | AA7: 1862 | AB7: =A49 -> Jeunes animaux
A8: =IF(Textes!F$2=1,B8,IF(Textes!F$2=2,C8,IF(Textes!F$2=3,D8,""))) -> Inventaire début et fin | B8: Inventaire début et fin | C8: Anfangs-, Endinventar | Q8: =LOOKUP($G$2,$S$2:AB6,S8:AB8) -> 1635 | R8: =LOOKUP($G$2+0.5,$S$2:AB6,S8:AB8) -> Porcelets allaités | S8: 1635 | T8: Porcelets allaités | Y8: 1763 | Z8: =A47 -> Dindes pour l'engraissement complet | AA8: 1863 | AB8: =A50 -> Autres lapins
A9: =IF(Textes!F$2=1,B9,IF(Textes!F$2=2,C9,IF(Textes!F$2=3,D9,""))) -> No cantonal: | B9: No cantonal: | C9: Betriebs-Nr: | Q9: =LOOKUP($G$2,$S$2:AB7,S9:AB9) -> 1639 | R9: =LOOKUP($G$2+0.5,$S$2:AB7,S9:AB9) -> Porcs à l'engrais/remontes<6 mois | S9: 1639 | T9: Porcs à l'engrais/remontes<6 mois | Y9: 1763 | Z9: =A47 -> Dindes pour l'engraissement complet | AA9: 1863 | AB9: =A50 -> Autres lapins
A10: =IF(Textes!F$2=1,B10,IF(Textes!F$2=2,C10,IF(Textes!F$2=3,D10,""))) -> Nom: | B10: Nom: | C10: Name: | E10: " & BEZUG & " | Q10: =LOOKUP($G$2,$S$2:AB8,S10:AB10) -> 1639 | R10: =LOOKUP($G$2+0.5,$S$2:AB8,S10:AB10) -> Porcs à l'engrais/remontes<6 mois | S10: 1639 | T10: =A40 -> Porcs à l'engrais/remontes<6 mois
A11: =IF(Textes!F$2=1,B11,IF(Textes!F$2=2,C11,IF(Textes!F$2=3,D11,""))) -> Prénom: | B11: Prénom: | C11: Vorname: | Q11: =LOOKUP($G$2,$S$2:AB9,S11:AB11) -> 1639 | R11: =LOOKUP($G$2+0.5,$S$2:AB9,S11:AB11) -> Porcs à l'engrais/remontes<6 mois | S11: 1639 | T11: =A40 -> Porcs à l'engrais/remontes<6 mois
A12: =IF(Textes!F$2=1,B12,IF(Textes!F$2=2,C12,IF(Textes!F$2=3,D12,""))) -> Complément: | B12: Complément: | C12: Adresszusatz:
A13: =IF(Textes!F$2=1,B13,IF(Textes!F$2=2,C13,IF(Textes!F$2=3,D13,""))) -> Adresse: | B13: Adresse: | C13: Adresse:
A14: =IF(Textes!F$2=1,B14,IF(Textes!F$2=2,C14,IF(Textes!F$2=3,D14,""))) -> NPA, lieu: | B14: NPA, lieu: | C14: PLZ, Ort:
A15: =IF(Textes!F$2=1,B15,IF(Textes!F$2=2,C15,IF(Textes!F$2=3,D15,""))) -> Calculé par: | B15: Calculé par: | C15: Berechnet durch:
A16: =IF(Textes!F$2=1,B16,IF(Textes!F$2=2,C16,IF(Textes!F$2=3,D16,""))) -> Firme: | B16: Firme: | C16: Firma:
A17: =IF(Textes!F$2=1,B17,IF(Textes!F$2=2,C17,IF(Textes!F$2=3,D17,""))) -> No téléphone: | B17: No téléphone: | C17: Telefon-Nr:
A18: =IF(Textes!F$2=1,B18,IF(Textes!F$2=2,C18,IF(Textes!F$2=3,D18,""))) -> Fax / e-mail: | B18: Fax / e-mail: | C18: Fax / E-Mail:
A19: =IF(Textes!F$2=1,B19,IF(Textes!F$2=2,C19,IF(Textes!F$2=3,D19,""))) -> Période: | B19: Période: | C19: Periode:
A20: =IF(Textes!F$2=1,B20,IF(Textes!F$2=2,C20,IF(Textes!F$2=3,D20,""))) -> Date début: | B20: Date début: | C20: Datum Anfang:
A21: =IF(Textes!F$2=1,B21,IF(Textes!F$2=2,C21,IF(Textes!F$2=3,D21,""))) -> Date fin: | B21: Date fin: | C21: Datum Ende:
A22: =IF(Textes!F$2=1,B22,IF(Textes!F$2=2,C22,IF(Textes!F$2=3,D22,""))) -> Durée en jours: | B22: Durée en jours: | C22: Dauer in Tagen:
A23: =IF(Textes!F$2=1,B23,IF(Textes!F$2=2,C23,IF(Textes!F$2=3,D23,""))) -> Ajouter des aliments supplém. | B23: Ajouter des aliments supplém. | C23: Futtermittel erweitern
A24: =IF(Textes!F$2=1,B24,IF(Textes!F$2=2,C24,IF(Textes!F$2=3,D24,""))) -> Inventaire des animaux | B24: Inventaire des animaux | C24: Tierinventar
A25: =IF(Textes!F$2=1,B25,IF(Textes!F$2=2,C25,IF(Textes!F$2=3,D25,""))) -> Maximum | B25: Maximum | C25: Maximale
A26: =IF(Textes!F$2=1,B26,IF(Textes!F$2=2,C26,IF(Textes!F$2=3,D26,""))) -> de places | B26: de places | C26: Stallplätze
A27: =IF(Textes!F$2=1,B27,IF(Textes!F$2=2,C27,IF(Textes!F$2=3,D27,""))) -> Début de la période | B27: Début de la période | C27: Anfang der Periode
A28: =IF(Textes!F$2=1,B28,IF(Textes!F$2=2,C28,IF(Textes!F$2=3,D28,""))) -> Fin de la période | B28: Fin de la période | C28: Ende der Periode
A29: =IF(Textes!F$2=1,B29,IF(Textes!F$2=2,C29,IF(Textes!F$2=3,D29,""))) -> Nombre | B29: Nombre | C29: Anzahl
A30: =IF(Textes!F$2=1,B30,IF(Textes!F$2=2,C30,IF(Textes!F$2=3,D30,""))) -> Poids | B30: Poids | C30: Gewicht
A31: =IF(Textes!F$2=1,B31,IF(Textes!F$2=2,C31,IF(Textes!F$2=3,D31,""))) -> PV / anim. | B31: PV / anim. | C31: LG / Tier
A32: =IF(Textes!F$2=1,B32,IF(Textes!F$2=2,C32,IF(Textes!F$2=3,D32,""))) -> PV | B32: PV | C32: LG
A33: =IF(Textes!F$2=1,B33,IF(Textes!F$2=2,C33,IF(Textes!F$2=3,D33,""))) -> Code | B33: Code | C33: Code
A34: =IF(Textes!F$2=1,B34,IF(Textes!F$2=2,C34,IF(Textes!F$2=3,D34,""))) -> Catégorie d'animaux | B34: Catégorie d'animaux | C34: Tierkategorie
A35: =IF(Textes!F$2=1,B35,IF(Textes!F$2=2,C35,IF(Textes!F$2=3,D35,""))) -> Truies allaitantes | B35: Truies allaitantes | C35: Säugende Zuchtsauen
A36: =IF(Textes!F$2=1,B36,IF(Textes!F$2=2,C36,IF(Textes!F$2=3,D36,""))) -> Truies non allaitantes > 6 mois | B36: Truies non allaitantes > 6 mois | C36: Nicht säugende Zuchtsauen > 6 Mte
A37: =IF(Textes!F$2=1,B37,IF(Textes!F$2=2,C37,IF(Textes!F$2=3,D37,""))) -> Verrats d'élevage | B37: Verrats d'élevage | C37: Zuchteber
A38: =IF(Textes!F$2=1,B38,IF(Textes!F$2=2,C38,IF(Textes!F$2=3,D38,""))) -> Porcelets sevrés < 26 kg PV | B38: ="Porcelets sevrés < " &E38 & " kg PV" -> Porcelets sevrés < 26 kg PV | C38: ="Abgesetzte Ferkel bis " & E38 &" kg LG" -> Abgesetzte Ferkel bis 26 kg LG | E38: =E206 -> 26
A39: =IF(Textes!F$2=1,B39,IF(Textes!F$2=2,C39,IF(Textes!F$2=3,D39,""))) -> Porcelets allaités | B39: Porcelets allaités | C39: Saugferkel
A40: =IF(Textes!F$2=1,B40,IF(Textes!F$2=2,C40,IF(Textes!F$2=3,D40,""))) -> Porcs à l'engrais/remontes<6 mois | B40: Porcs à l'engrais/remontes<6 mois | C40: Mastschweine&Remonten < 6 Mte
A41: =IF(Textes!F$2=1,B41,IF(Textes!F$2=2,C41,IF(Textes!F$2=3,D41,""))) -> Jeunes poules | B41: Jeunes poules | C41: Junghennen
A42: =IF(Textes!F$2=1,B42,IF(Textes!F$2=2,C42,IF(Textes!F$2=3,D42,""))) -> Poulets à l'engrais poulailler 1 | B42: Poulets à l'engrais poulailler 1 | C42: Mastpoulets Stall 1
A43: =IF(Textes!F$2=1,B43,IF(Textes!F$2=2,C43,IF(Textes!F$2=3,D43,""))) -> Poulets à l'engrais poulailler 2 | B43: Poulets à l'engrais poulailler 2 | C43: Mastpoulets Stall 2
A44: =IF(Textes!F$2=1,B44,IF(Textes!F$2=2,C44,IF(Textes!F$2=3,D44,""))) -> Poulets à l'engrais poulailler 3 | B44: Poulets à l'engrais poulailler 3 | C44: Mastpoulets Stall 3
A45: =IF(Textes!F$2=1,B45,IF(Textes!F$2=2,C45,IF(Textes!F$2=3,D45,""))) -> Dindes de tout âge | B45: Dindes de tout âge | C45: Truten jeden Alters
A46: =IF(Textes!F$2=1,B46,IF(Textes!F$2=2,C46,IF(Textes!F$2=3,D46,""))) -> Dindes pour le préengraissement | B46: Dindes pour le préengraissement | C46: Trutenvormast
A47: =IF(Textes!F$2=1,B47,IF(Textes!F$2=2,C47,IF(Textes!F$2=3,D47,""))) -> Dindes pour l'engraissement complet | B47: Dindes pour l'engraissement complet | C47: Trutenausmast
A48: =IF(Textes!F$2=1,B48,IF(Textes!F$2=2,C48,IF(Textes!F$2=3,D48,""))) -> Lapines reproductrices | B48: Lapines reproductrices | C48: Produz. Zibbe
A49: =IF(Textes!F$2=1,B49,IF(Textes!F$2=2,C49,IF(Textes!F$2=3,D49,""))) -> Jeunes animaux | B49: Jeunes animaux | C49: Jungtiere
A50: =IF(Textes!F$2=1,B50,IF(Textes!F$2=2,C50,IF(Textes!F$2=3,D50,""))) -> Autres lapins | B50: Autres lapins | C50: Andere Kaninchen
A51: =IF(Textes!F$2=1,B51,IF(Textes!F$2=2,C51,IF(Textes!F$2=3,D51,""))) -> Total inventaire animaux | B51: Total inventaire animaux | C51: Total Tierinventar
A52: =IF(Textes!F$2=1,B52,IF(Textes!F$2=2,C52,IF(Textes!F$2=3,D52,""))) -> Inventaire aliments | B52: Inventaire aliments | C52: Futtermittelinventar
A53: =IF(Textes!F$2=1,B53,IF(Textes!F$2=2,C53,IF(Textes!F$2=3,D53,""))) -> Aliments | B53: Aliments | C53: Mischfuttermittel
A54: =IF(Textes!F$2=1,B54,IF(Textes!F$2=2,C54,IF(Textes!F$2=3,D54,""))) -> Teneur par kg aliment | B54: Teneur par kg aliment | C54: Gehalte in kg Futter
A55: =IF(Textes!F$2=1,B55,IF(Textes!F$2=2,C55,IF(Textes!F$2=3,D55,""))) -> MS en % | B55: MS en % | C55: TS in %
A56: =IF(Textes!F$2=1,B56,IF(Textes!F$2=2,C56,IF(Textes!F$2=3,D56,""))) -> g MA | B56: g MA | C56: g RP
A57: =IF(Textes!F$2=1,B57,IF(Textes!F$2=2,C57,IF(Textes!F$2=3,D57,""))) -> g P | B57: g P | C57: g P
A58: =IF(Textes!F$2=1,B58,IF(Textes!F$2=2,C58,IF(Textes!F$2=3,D58,""))) -> Début | B58: Début | C58: Anfang
A59: =IF(Textes!F$2=1,B59,IF(Textes!F$2=2,C59,IF(Textes!F$2=3,D59,""))) -> Fin | B59: Fin | C59: Ende
A60: =IF(Textes!F$2=1,B60,IF(Textes!F$2=2,C60,IF(Textes!F$2=3,D60,""))) -> kg d'aliment | B60: kg d'aliment | C60: Menge in kg Futter
A61: =IF(Textes!F$2=1,B61,IF(Textes!F$2=2,C61,IF(Textes!F$2=3,D61,""))) -> Autres aliments | B61: Autres aliments | C61: Andere Futtermittel
A62: =IF(Textes!F$2=1,B62,IF(Textes!F$2=2,C62,IF(Textes!F$2=3,D62,""))) -> Teneurs par kg de MS | B62: Teneurs par kg de MS | C62: Gehalte in kg TS
A63: =IF(Textes!F$2=1,B63,IF(Textes!F$2=2,C63,IF(Textes!F$2=3,D63,""))) -> kg de MF | B63: kg de MF | C63: Menge in kg FS
A64: =IF(Textes!F$2=1,B64,IF(Textes!F$2=2,C64,IF(Textes!F$2=3,D64,""))) -> Paille, granulés de paille | B64: Paille, granulés de paille | C64: Stroh, Strohpellets
A65: =IF(Textes!F$2=1,B65,IF(Textes!F$2=2,C65,IF(Textes!F$2=3,D65,""))) -> Matériaux d’occupation, dés de fourrage grossier | B65: Matériaux d’occupation, dés de fourrage grossier | C65: Beschäftigungs-, Raufutterwürfel
A66: =IF(Textes!F$2=1,B66,IF(Textes!F$2=2,C66,IF(Textes!F$2=3,D66,""))) -> Fourrages | B66: Fourrages | C66: Raufutter
A67: =IF(Textes!F$2=1,B67,IF(Textes!F$2=2,C67,IF(Textes!F$2=3,D67,""))) -> kg de MS | B67: kg de MS | C67: Menge in kg TS
A68: =IF(Textes!F$2=1,B68,IF(Textes!F$2=2,C68,IF(Textes!F$2=3,D68,""))) -> Maïs, plante entière | B68: ="Maïs" & strCom & strLf & "plante entière" -> Maïs, plante entière | C68: ="Mais" & strCom & strLf & "ganze Pflanze" -> Mais, ganze Pflanze
A69: =IF(Textes!F$2=1,B69,IF(Textes!F$2=2,C69,IF(Textes!F$2=3,#REF!,""))) -> Ensilages de céréales plante entière | B69: ="Ensilages de céréales " &strLf & "plante entière" -> Ensilages de céréales plante entière | C69: ="Getreide-Ganzpflanzensilage" -> Getreide-Ganzpflanzensilage
A70: =IF(Textes!F$2=1,B70,IF(Textes!F$2=2,C70,IF(Textes!F$2=3,D70,""))) -> Herbages: herbe, silo, … | B70: ="Herbages: " & strLf & "herbe, silo, …" -> Herbages: herbe, silo, … | C70: ="Wiesenfutter: " & strLf & "Gras, Silo, …" -> Wiesenfutter: Gras, Silo, …
A71: =IF(Textes!F$2=1,B71,IF(Textes!F$2=2,C71,IF(Textes!F$2=3,D71,""))) -> Lactosérum | B71: Lactosérum | C71: Schotte
A72: =IF(Textes!F$2=1,B72,IF(Textes!F$2=2,C72,IF(Textes!F$2=3,D72,""))) -> CCM | B72: CCM | C72: CCM
A73: =IF(Textes!F$2=1,B73,IF(Textes!F$2=2,C73,IF(Textes!F$2=3,D73,""))) -> Organisation de contrôle, Date: | B73: Organisation de contrôle, Date: | C73: Kantonale Vollzugsstelle, Datum:
A74: =IF(Textes!F$2=1,B74,IF(Textes!F$2=2,C74,IF(Textes!F$2=3,D74,""))) -> Signature: | B74: Signature: | C74: Unterschrift:
A75: =IF(Textes!F$2=1,B75,IF(Textes!F$2=2,C75,IF(Textes!F$2=3,D75,""))) -> L'exploitant certifie l'exactitude des informations saisies sur cette feuille ainsi que les indications sur les entrées | B75: L'exploitant certifie l'exactitude des informations saisies sur cette feuille ainsi que les indications sur les entrées | C75: Der Betriebsleiter bestätigt die Vollständigkeit der Angaben auf diesem Inventarblatt, wie auch auf den
A76: =IF(Textes!F$2=1,B76,IF(Textes!F$2=2,C76,IF(Textes!F$2=3,D76,""))) -> et les sorties d'animaux, les achats d'aliments. | B76: et les sorties d'animaux, les achats d'aliments. | C76: dazugehörigen Aufzeichnungen Tiereingang, Tierausgang und Futterzufuhren.
A77: =IF(Textes!F$2=1,B77,IF(Textes!F$2=2,C77,IF(Textes!F$2=3,D77,""))) -> Exploitant, Date: | B77: Exploitant, Date: | C77: Betriebsleiter, Datum:
A78: =IF(Textes!F$2=1,B78,IF(Textes!F$2=2,C78,IF(Textes!F$2=3,D78,""))) -> Signature de l'exploitant: | B78: Signature de l'exploitant: | C78: Unterschrift Betriebsleiter:
A79: =IF(Textes!F$2=1,B79,IF(Textes!F$2=2,C79,IF(Textes!F$2=3,D79,""))) -> Entrée animaux | B79: Entrée animaux | C79: Tiereingang
A80: =IF(Textes!F$2=1,B80,IF(Textes!F$2=2,C80,IF(Textes!F$2=3,D80,""))) -> Entrée animaux < 60 kg PV | B80: Entrée animaux < 60 kg PV | C80: Zufuhr Tiere bis 60 kg LG
A81: =IF(Textes!F$2=1,B81,IF(Textes!F$2=2,C81,IF(Textes!F$2=3,D81,""))) -> Entrée animaux > 60 kg PV | B81: Entrée animaux > 60 kg PV | C81: Zufuhr Tiere über 60 kg LG
A82: =IF(Textes!F$2=1,B82,IF(Textes!F$2=2,C82,IF(Textes!F$2=3,D82,""))) -> Entrée animaux | B82: Entrée animaux | C82: Zufuhr Tiere
A83: =IF(Textes!F$2=1,B83,IF(Textes!F$2=2,C83,IF(Textes!F$2=3,D83,""))) -> Date | B83: Date | C83: Datum
A84: =IF(Textes!F$2=1,B84,IF(Textes!F$2=2,C84,IF(Textes!F$2=3,D84,""))) -> Nombre | B84: Nombre | C84: Stück
A85: =IF(Textes!F$2=1,B85,IF(Textes!F$2=2,C85,IF(Textes!F$2=3,D85,""))) -> kg PV total | B85: kg PV total | C85: kg LG total
A86: =IF(Textes!F$2=1,B86,IF(Textes!F$2=2,C86,IF(Textes!F$2=3,D86,""))) -> Total entrée | B86: Total entrée | C86: Total Zufuhr
A87: *** Bald löschen? *** | B87: Organisation de contrôle Date: | C87: Kantonale Vollzugsstelle Datum:
A88: =IF(Textes!F$2=1,B88,IF(Textes!F$2=2,C88,IF(Textes!F$2=3,D88,""))) -> Signature: | B88: Signature: | C88: Unterschrift:
A89: =IF(Textes!F$2=1,B89,IF(Textes!F$2=2,C89,IF(Textes!F$2=3,D89,""))) -> Sortie animaux | B89: Sortie animaux | C89: Tierausgang
A90: =IF(Textes!F$2=1,B90,IF(Textes!F$2=2,C90,IF(Textes!F$2=3,D90,""))) -> Choisissez la catégorie correcte! | B90: Choisissez la catégorie correcte! | C90: Korrekte Tierkategorie für die Eingabe in kg SG wählen!
A91: =IF(Textes!F$2=1,B91,IF(Textes!F$2=2,C91,IF(Textes!F$2=3,D91,""))) -> kg PM total * | B91: kg PM total * | C91: kg SG total *
A92: =IF(Textes!F$2=1,B92,IF(Textes!F$2=2,C92,IF(Textes!F$2=3,D92,""))) -> Inclure les ventes, les utilisations propres et les pertes d'animaux. | B92: Inclure les ventes, les utilisations propres et les pertes d'animaux. | C92: Mit Angabe der Tierverkäufe, der Eigenversorgung und der Abgänge
A93: =IF(Textes!F$2=1,B93,IF(Textes!F$2=2,C93,IF(Textes!F$2=3,D93,""))) -> Sortie animaux < 60 kg PV | B93: Sortie animaux < 60 kg PV | C93: Wegfuhr Tiere bis 60 kg LG
A94: =IF(Textes!F$2=1,B94,IF(Textes!F$2=2,C94,IF(Textes!F$2=3,D94,""))) -> Sortie animaux > 60 kg PV | B94: Sortie animaux > 60 kg PV | C94: Wegfuhr Tiere über 60 kg LG
A95: =IF(Textes!F$2=1,B95,IF(Textes!F$2=2,C95,IF(Textes!F$2=3,D95,""))) -> Sortie animaux | B95: Sortie animaux | C95: Wegfuhr Tiere
A96: =IF(Textes!F$2=1,B96,IF(Textes!F$2=2,C96,IF(Textes!F$2=3,D96,""))) -> Date | B96: Date | C96: Datum
A97: =IF(Textes!F$2=1,B97,IF(Textes!F$2=2,C97,IF(Textes!F$2=3,D97,""))) -> Nombre | B97: Nombre | C97: Stück
A98: =IF(Textes!F$2=1,B98,IF(Textes!F$2=2,C98,IF(Textes!F$2=3,D98,""))) -> kg PV total | B98: kg PV total | C98: kg LG total
A99: =IF(Textes!F$2=1,B99,IF(Textes!F$2=2,C99,IF(Textes!F$2=3,D99,""))) -> Total sortie | B99: Total sortie | C99: Total Wegfuhr
A100: *** Bald löschen? *** | B100: Organisation de contrôle Date: | C100: Kantonale Vollzugsstelle Datum:
A101: =IF(Textes!F$2=1,B101,IF(Textes!F$2=2,C101,IF(Textes!F$2=3,D101,""))) -> Signature: | B101: Signature: | C101: Unterschrift:
A102: =IF(Textes!F$2=1,B102,IF(Textes!F$2=2,C102,IF(Textes!F$2=3,D102,""))) -> * = selon le système; en kg PV ou PM | B102: * = selon le système; en kg PV ou PM | C102: * = je nach Abrechnungsart Schweineverkauf kg SG oder kg LG eintragen
A103: =IF(Textes!F$2=1,B103,IF(Textes!F$2=2,C103,IF(Textes!F$2=3,D103,""))) -> Entrée aliments | B103: Entrée aliments | C103: Mischfutterzufuhr
A104: =IF(Textes!F$2=1,B104,IF(Textes!F$2=2,C104,IF(Textes!F$2=3,D104,""))) -> Entrée aliments | B104: Entrée aliments | C104: Futterzufuhr
A105: =IF(Textes!F$2=1,B105,IF(Textes!F$2=2,C105,IF(Textes!F$2=3,D105,""))) -> Moulin | B105: Moulin | C105: Futterlieferant
A106: =IF(Textes!F$2=1,B106,IF(Textes!F$2=2,C106,IF(Textes!F$2=3,D106,""))) -> par kg d'aliment | B106: par kg d'aliment | C106: pro kg Futter
A107: =IF(Textes!F$2=1,B107,IF(Textes!F$2=2,C107,IF(Textes!F$2=3,D107,""))) -> Date | B107: Date | C107: Datum
A108: =IF(Textes!F$2=1,B108,IF(Textes!F$2=2,C108,IF(Textes!F$2=3,D108,""))) -> kg aliment | B108: kg aliment | C108: kg Futter
A109: =IF(Textes!F$2=1,B109,IF(Textes!F$2=2,C109,IF(Textes!F$2=3,D109,""))) -> Total entrée | B109: Total entrée | C109: Total Zufuhr
A110: *** Bald löschen? *** | B110: Organisation de contrôle Date: | C110: Kantonale Vollzugsstelle Datum:
A111: =IF(Textes!F$2=1,B111,IF(Textes!F$2=2,C111,IF(Textes!F$2=3,D111,""))) -> Signature: | B111: Signature: | C111: Unterschrift:
A112: =IF(Textes!F$2=1,B112,IF(Textes!F$2=2,C112,IF(Textes!F$2=3,D112,""))) -> Tous les aliments utilisés doivent être saisis. | B112: Tous les aliments utilisés doivent être saisis. | C112: Es müssen alle eingesetzten Futtermittel erfasst werden.
A113: =IF(Textes!F$2=1,B113,IF(Textes!F$2=2,C113,IF(Textes!F$2=3,D113,""))) -> En kg MF | B113: En kg MF | C113: In kg FS
A114: =IF(Textes!F$2=1,B114,IF(Textes!F$2=2,C114,IF(Textes!F$2=3,D114,""))) -> En kg MS | B114: En kg MS | C114: In kg TS
A115: =IF(Textes!F$2=1,B115,IF(Textes!F$2=2,C115,IF(Textes!F$2=3,D115,""))) -> kg MF | B115: kg MF | C115: kg FS
A116: =IF(Textes!F$2=1,B116,IF(Textes!F$2=2,C116,IF(Textes!F$2=3,D116,""))) -> par kg MS | B116: par kg MS | C116: pro kg TS
A117: =IF(Textes!F$2=1,B117,IF(Textes!F$2=2,C117,IF(Textes!F$2=3,D117,""))) -> Mois | B117: Mois | C117: Monat
A118: =IF(Textes!F$2=1,B118,IF(Textes!F$2=2,C118,IF(Textes!F$2=3,D118,""))) -> kg MS | B118: kg MS | C118: kg TS
A119: =IF(Textes!F$2=1,B119,IF(Textes!F$2=2,C119,IF(Textes!F$2=3,D119,""))) -> Bilan import/export | B119: Bilan import/export | C119: Import/Exportbilanz
A120: =IF(Textes!F$2=1,B120,IF(Textes!F$2=2,C120,IF(Textes!F$2=3,D120,""))) -> Date ? | B120: Date ? | C120: Datum ?
A121: =IF(Textes!F$2=1,B121,IF(Textes!F$2=2,C121,IF(Textes!F$2=3,D121,""))) -> Pas A: Exportation d'éléments fertilisants par les animaux | B121: Pas A: Exportation d'éléments fertilisants par les animaux | C121: Teil A: Nährstoffexport durch Tiere
A122: =IF(Textes!F$2=1,B122,IF(Textes!F$2=2,C122,IF(Textes!F$2=3,D122,""))) -> Inv.-D | B122: Inv.-D | C122: A-Inv.
A123: =IF(Textes!F$2=1,B123,IF(Textes!F$2=2,C123,IF(Textes!F$2=3,D123,""))) -> Inv.-F | B123: Inv.-F | C123: E-Inv.
A124: =IF(Textes!F$2=1,B124,IF(Textes!F$2=2,C124,IF(Textes!F$2=3,D124,""))) -> Entrées | B124: Entrées | C124: Zukauf
A125: =IF(Textes!F$2=1,B125,IF(Textes!F$2=2,C125,IF(Textes!F$2=3,D125,""))) -> Sorties | B125: Sorties | C125: Verkauf
A126: =IF(Textes!F$2=1,B126,IF(Textes!F$2=2,C126,IF(Textes!F$2=3,D126,""))) -> PV total | B126: PV total | C126: LG total
A127: =IF(Textes!F$2=1,B127,IF(Textes!F$2=2,C127,IF(Textes!F$2=3,D127,""))) -> g N / kg | B127: g N / kg | C127: g N / kg
A128: =IF(Textes!F$2=1,B128,IF(Textes!F$2=2,C128,IF(Textes!F$2=3,D128,""))) -> g P / kg | B128: g P / kg | C128: g P / kg
A129: =IF(Textes!F$2=1,B129,IF(Textes!F$2=2,C129,IF(Textes!F$2=3,D129,""))) -> Total kg N | B129: Total kg N | C129: Total kg N
A130: =IF(Textes!F$2=1,B130,IF(Textes!F$2=2,C130,IF(Textes!F$2=3,D130,""))) -> Total kg P | B130: Total kg P | C130: Total kg P
A131: =IF(Textes!F$2=1,B131,IF(Textes!F$2=2,C131,IF(Textes!F$2=3,D131,""))) -> Animaux < 60 kg PV | B131: Animaux < 60 kg PV | C131: Tiere bis 60 kg LG
A132: =IF(Textes!F$2=1,B132,IF(Textes!F$2=2,C132,IF(Textes!F$2=3,D132,""))) -> Animaux > 60 kg PV | B132: Animaux > 60 kg PV | C132: Tiere ab 60 kg LG
A133: =IF(Textes!F$2=1,B133,IF(Textes!F$2=2,C133,IF(Textes!F$2=3,D133,""))) -> Animaux | B133: Animaux | C133: Tiere
A134: =IF(Textes!F$2=1,B134,IF(Textes!F$2=2,C134,IF(Textes!F$2=3,D134,""))) -> Animaux | B134: Animaux | C134: Tiere
A135: =IF(Textes!F$2=1,B135,IF(Textes!F$2=2,C135,IF(Textes!F$2=3,D135,""))) -> Exportation totale d'éléments fertilisants | B135: Exportation totale d'éléments fertilisants | C135: Total Nährstoffexport durch Tiere
A136: =IF(Textes!F$2=1,B136,IF(Textes!F$2=2,C136,IF(Textes!F$2=3,D136,""))) -> Pas B: Importation d'éléments fertilisants par les aliments | B136: Pas B: Importation d'éléments fertilisants par les aliments | C136: Teil B: Nährstoffimport durch Futtermittel
A137: =IF(Textes!F$2=1,B137,IF(Textes!F$2=2,C137,IF(Textes!F$2=3,D137,""))) -> Inv.-D | B137: Inv.-D | C137: A-Inv.
A138: =IF(Textes!F$2=1,B138,IF(Textes!F$2=2,C138,IF(Textes!F$2=3,D138,""))) -> Inv.-F | B138: Inv.-F | C138: E-Inv.
A139: =IF(Textes!F$2=1,B139,IF(Textes!F$2=2,C139,IF(Textes!F$2=3,D139,""))) -> Entrées | B139: Entrées | C139: Zukauf
A140: =IF(Textes!F$2=1,B140,IF(Textes!F$2=2,C140,IF(Textes!F$2=3,D140,""))) -> kg total | B140: kg total | C140: kg total
A141: =IF(Textes!F$2=1,B141,IF(Textes!F$2=2,C141,IF(Textes!F$2=3,D141,""))) -> % MS | B141: % MS | C141: % TS
A142: =IF(Textes!F$2=1,B142,IF(Textes!F$2=2,C142,IF(Textes!F$2=3,D142,""))) -> MJ EDP | B142: MJ EDP | C142: MJ VES
A143: =IF(Textes!F$2=1,B143,IF(Textes!F$2=2,C143,IF(Textes!F$2=3,D143,""))) -> g MA / kg | B143: g MA / kg | C143: g RP / kg
A144: =IF(Textes!F$2=1,B144,IF(Textes!F$2=2,C144,IF(Textes!F$2=3,D144,""))) -> g P / kg | B144: g P / kg | C144: g P / kg
A145: =IF(Textes!F$2=1,B145,IF(Textes!F$2=2,C145,IF(Textes!F$2=3,D145,""))) -> Total kg N | B145: Total kg N | C145: Total kg N
A146: =IF(Textes!F$2=1,B146,IF(Textes!F$2=2,C146,IF(Textes!F$2=3,D146,""))) -> Total kg P | B146: Total kg P | C146: Total kg P
A147: =IF(Textes!F$2=1,B147,IF(Textes!F$2=2,C147,IF(Textes!F$2=3,D147,""))) -> en kg aliment | B147: en kg aliment | C147: in kg Futter
A148: =IF(Textes!F$2=1,B148,IF(Textes!F$2=2,C148,IF(Textes!F$2=3,D148,""))) -> par kg aliment | B148: par kg aliment | C148: pro kg Futter
A149: =IF(Textes!F$2=1,B149,IF(Textes!F$2=2,C149,IF(Textes!F$2=3,D149,""))) -> en kg MS | B149: en kg MS | C149: in kg TS
A150: =IF(Textes!F$2=1,B150,IF(Textes!F$2=2,C150,IF(Textes!F$2=3,D150,""))) -> par kg MS | B150: par kg MS | C150: pro kg TS
A151: =IF(Textes!F$2=1,B151,IF(Textes!F$2=2,C151,IF(Textes!F$2=3,D151,""))) -> Ensil. de céréal. pl. entière | B151: ="Ensil. de céréal. " &strLf & "pl. entière" -> Ensil. de céréal. pl. entière | C151: Getreide-Ganzpflanzensil.
A152: =IF(Textes!F$2=1,B152,IF(Textes!F$2=2,C152,IF(Textes!F$2=3,D152,""))) -> Herbages: herbe, silo, … | B152: ="Herbages: " & strLf & "herbe, silo, …" -> Herbages: herbe, silo, … | C152: ="Wiesenfutter: " & strLf & "Gras, Silo, …" -> Wiesenfutter: Gras, Silo, …
A153: =IF(Textes!F$2=1,B153,IF(Textes!F$2=2,C153,IF(Textes!F$2=3,D153,""))) -> Importation totale d'éléments fertilisants | B153: Importation totale d'éléments fertilisants | C153: Total Nährstoffimport durch Futtermittel
A154: =IF(Textes!F$2=1,B154,IF(Textes!F$2=2,C154,IF(Textes!F$2=3,D154,""))) -> Pas C: Bilan import/export | B154: Pas C: Bilan import/export | C154: Teil C: Import/Export Bilanz
A155: =IF(Textes!F$2=1,B155,IF(Textes!F$2=2,C155,IF(Textes!F$2=3,D155,""))) -> kg N | B155: kg N | C155: kg N
A156: =IF(Textes!F$2=1,B156,IF(Textes!F$2=2,C156,IF(Textes!F$2=3,D156,""))) -> kg P | B156: kg P | C156: kg P
A157: =IF(Textes!F$2=1,B157,IF(Textes!F$2=2,C157,IF(Textes!F$2=3,D157,""))) -> kg Nstock | B157: kg Nstock | C157: kg Nges
A158: =IF(Textes!F$2=1,B158,IF(Textes!F$2=2,C158,IF(Textes!F$2=3,D158,""))) -> kg P2O5 | B158: kg P2O5 | C158: kg P2O5
A159: =IF(Textes!F$2=1,B159,IF(Textes!F$2=2,C159,IF(Textes!F$2=3,D159,""))) -> Exportation par les animaux | B159: Exportation par les animaux | C159: Nährstoffexport Tiere
A160: =IF(Textes!F$2=1,B160,IF(Textes!F$2=2,C160,IF(Textes!F$2=3,D160,""))) -> Importation par les aliments | B160: Importation par les aliments | C160: Nährstoffimport Futtermittel
A161: =IF(Textes!F$2=1,B161,IF(Textes!F$2=2,C161,IF(Textes!F$2=3,D161,""))) -> Pour la période | B161: Pour la période | C161: Für die Periode
A162: =IF(Textes!F$2=1,B162,IF(Textes!F$2=2,C162,IF(Textes!F$2=3,D162,""))) -> Pour 365 jours | B162: Pour 365 jours | C162: Pro 365 Tage
A163: =IF(Textes!F$2=1,B163,IF(Textes!F$2=2,C163,IF(Textes!F$2=3,D163,""))) -> kg Nstock | B163: kg Nstock | C163: kg Nges
A164: =IF(Textes!F$2=1,B164,IF(Textes!F$2=2,C164,IF(Textes!F$2=3,D164,""))) -> => Contrôle avec les valeurs minimales | B164: => Contrôle avec les valeurs minimales | C164: => Vergleich mit Tiefstwerten
A165: =IF(Textes!F$2=1,B165,IF(Textes!F$2=2,C165,IF(Textes!F$2=3,D165,""))) -> Pas D: Données de contrôle | B165: Pas D: Données de contrôle | C165: Teil D: Kontrolldaten
A166: =IF(Textes!F$2=1,B166,IF(Textes!F$2=2,C166,IF(Textes!F$2=3,D166,""))) -> Aliment 88% MS pour 365 j | B166: Aliment 88% MS pour 365 j | C166: Futter 88% TS pro 365 Tage
A167: =IF(Textes!F$2=1,B167,IF(Textes!F$2=2,C167,IF(Textes!F$2=3,D167,""))) -> Aliment 88% MS par kg croît | B167: Aliment 88% MS par kg croît | C167: Futter 88% TS / kg Zuwachs
A168: =IF(Textes!F$2=1,B168,IF(Textes!F$2=2,C168,IF(Textes!F$2=3,D168,""))) -> Aliment g MA / MJ EDP | B168: Aliment g MA / MJ EDP | C168: Futter g RP / MJ VES
A169: =IF(Textes!F$2=1,B169,IF(Textes!F$2=2,C169,IF(Textes!F$2=3,D169,""))) -> MJ / kg croît | B169: MJ / kg croît | C169: MJ / kg Zuwachs
A170: =IF(Textes!F$2=1,B170,IF(Textes!F$2=2,C170,IF(Textes!F$2=3,D170,""))) -> MJ consommés en 365 jours | B170: MJ consommés en 365 jours | C170: MJ in 365 Tagen verfüttert
A171: =IF(Textes!F$2=1,B171,IF(Textes!F$2=2,C171,IF(Textes!F$2=3,D171,""))) -> Teneur MS lactosérum | B171: Teneur MS lactosérum | C171: TS Gehalt Schotte
A172: =IF(Textes!F$2=1,B172,IF(Textes!F$2=2,C172,IF(Textes!F$2=3,D172,""))) -> dt MS de Fourrages par an | B172: dt MS de Fourrages par an | C172: Raufutter in dt TS pro Jahr
A173: =IF(Textes!F$2=1,B173,IF(Textes!F$2=2,C173,IF(Textes!F$2=3,D173,""))) -> Fourrages > 15 % ? | B173: Fourrages > 15 % ? | C173: Anteil Raufutter > 15 %?
A174: =IF(Textes!F$2=1,B174,IF(Textes!F$2=2,C174,IF(Textes!F$2=3,D174,""))) -> y. c. fourrages | B174: y. c. fourrages | C174: mit Raufutter
A175: =IF(Textes!F$2=1,B175,IF(Textes!F$2=2,C175,IF(Textes!F$2=3,D175,""))) -> sans fourrages | B175: sans fourrages | C175: ohne Raufutter
A176: =IF(Textes!F$2=1,B176,IF(Textes!F$2=2,C176,IF(Textes!F$2=3,D176,""))) -> Croît total par an | B176: Croît total par an | C176: Zuwachs pro 365 Tage
A177: =IF(Textes!F$2=1,B177,IF(Textes!F$2=2,C177,IF(Textes!F$2=3,D177,""))) -> PPE à partir du croît | B177: PPE à partir du croît | C177: MSP nach Zuwachs
A178: =IF(Textes!F$2=1,B178,IF(Textes!F$2=2,C178,IF(Textes!F$2=3,D178,""))) -> Bilan animaux | B178: Bilan animaux | C178: Tierbilanz
A179: =IF(Textes!F$2=1,B179,IF(Textes!F$2=2,C179,IF(Textes!F$2=3,D179,""))) -> Nombre | B179: Nombre | C179: Anzahl
A180: =IF(Textes!F$2=1,B180,IF(Textes!F$2=2,C180,IF(Textes!F$2=3,D180,""))) -> kg PV | B180: kg PV | C180: kg LG
A181: =IF(Textes!F$2=1,B181,IF(Textes!F$2=2,C181,IF(Textes!F$2=3,D181,""))) -> Inventaire début | B181: Inventaire début | C181: Anfangsinventar
A182: =IF(Textes!F$2=1,B182,IF(Textes!F$2=2,C182,IF(Textes!F$2=3,D182,""))) -> Entrées | B182: Entrées | C182: Zukauf
A183: =IF(Textes!F$2=1,B183,IF(Textes!F$2=2,C183,IF(Textes!F$2=3,D183,""))) -> Sorties | B183: Sorties | C183: Ausgang
A184: =IF(Textes!F$2=1,B184,IF(Textes!F$2=2,C184,IF(Textes!F$2=3,D184,""))) -> Inventaire fin | B184: Inventaire fin | C184: Endinventar
A185: =IF(Textes!F$2=1,B185,IF(Textes!F$2=2,C185,IF(Textes!F$2=3,D185,""))) -> Période | B185: Période | C185: Periode
A186: =IF(Textes!F$2=1,B186,IF(Textes!F$2=2,C186,IF(Textes!F$2=3,D186,""))) -> 365 jours | B186: 365 jours | C186: 365 Tage
A187: =IF(Textes!F$2=1,B187,IF(Textes!F$2=2,C187,IF(Textes!F$2=3,D187,""))) -> (Période) | B187: (Période) | C187: (Periode)
A188: =IF(Textes!F$2=1,B188,IF(Textes!F$2=2,C188,IF(Textes!F$2=3,D188,""))) -> (365 jours) | B188: (365 jours) | C188: (365 Tage)
A189: =IF(Textes!F$2=1,B189,IF(Textes!F$2=2,C189,IF(Textes!F$2=3,D189,""))) -> Bilan | B189: Bilan | C189: Bilanz
A190: =IF(Textes!F$2=1,B190,IF(Textes!F$2=2,C190,IF(Textes!F$2=3,D190,""))) -> Bilan total | B190: Bilan total | C190: Bilanz aller Tiere
A191: =IF(Textes!F$2=1,B191,IF(Textes!F$2=2,C191,IF(Textes!F$2=3,D191,""))) -> L'exploitant autorise le calcul du Suisse-Bilanz | B191: L'exploitant autorise le calcul du Suisse-Bilanz | C191: Der Betriebsleiter ist damit einverstanden, dass das Resultat dieser Berechnung zur Beurteilung der Suisse-Bilanz
A192: =IF(Textes!F$2=1,B192,IF(Textes!F$2=2,C192,IF(Textes!F$2=3,D192,""))) -> avec le résultat de ce bilan import/export | B192: avec le résultat de ce bilan import/export | C192: berücksichtigt wird.
A193: =IF(Textes!F$2=1,B193,IF(Textes!F$2=2,C193,IF(Textes!F$2=3,D193,""))) -> Exploitant, Date: | B193: Exploitant, Date: | C193: Betriebsleiter, Datum:
A194: =IF(Textes!F$2=1,B194,IF(Textes!F$2=2,C194,IF(Textes!F$2=3,D194,""))) -> Organisation de contrôle, Date: | B194: Organisation de contrôle, Date: | C194: Kantonale Vollzugsstelle, Datum:
A195: =IF(Textes!F$2=1,B195,IF(Textes!F$2=2,C195,IF(Textes!F$2=3,D195,""))) -> dt MS | B195: dt MS | C195: dt TS
A196: =IF(Textes!F$2=1,B196,IF(Textes!F$2=2,C196,IF(Textes!F$2=3,D196,""))) -> 1g N = 6.25 g MA | B196: 1g N = 6.25 g MA | C196: 1g N = 6.25 g RP
A197: =IF(Textes!F$2=1,B197,IF(Textes!F$2=2,C197,IF(Textes!F$2=3,D197,""))) -> jours | B197: jours | C197: Tage
A198: =IF(Textes!F$2=1,B198,IF(Textes!F$2=2,C198,IF(Textes!F$2=3,D198,""))) -> PPE | B198: PPE | C198: MSP
A199: =IF(Textes!F$2=1,B199,IF(Textes!F$2=2,C199,IF(Textes!F$2=3,D199,""))) -> Signature: | B199: Signature: | C199: Unterschrift:
A200: =IF(Textes!F$2=1,B200,IF(Textes!F$2=2,C200,IF(Textes!F$2=3,D200,""))) -> < 60 kg PV | B200: < 60 kg PV | C200: bis 60 kg LG
... 265 more rows

Sheet Corr (hidden)
A1: Datum | B1: Blatt | C1: Version | D1: Anpassungen | E1: Grund
A2: 2004-05-25 | B2: Impex | D2: Neue Berechnung des MJ Verbrauch in 365 Tage (Kontrolldaten) | E2: GT 19.5.2004
A3: 2004-05-25 | B3: Impex | D3: Futter 88% TS/365 Tage. Beim ersten Teil des futtermittel wurde bisher immer mit 88% TS gerechnet auch wenn das Futter einen anderen TS Gehalt aufwies. Zellen R20-31 | E3: GT 19.5.2004
A4: 2004-06-02 | B4: Inventar | D4: Anpassungen der Werte des gelben Buchs: Schotte 137 RP, 7.3 P; Maïs ganze Pflanze 100 %TS, 11 MJ, 74 RP, 2 P. | E4: Anpassungen ALP
A5: 2004-07-12 | B5: Inventar | D5: Formel C21 und F21 mit "0" statt "" => keine Fehlermeldung in Impex I58 | E5: A. Uebersax
A6: 2004-07-12 | B6: Impex | D6: K51, K53 und K54 kein Wert wenn Junghennen | E6: A. Uebersax
A7: 2004-08-19 | B7: A2 | D7: Formel in J45 und J46 fehlte | E7: A. Uebersax
A8: 2004-09-28 | B8: Impex | D8: Unvermeidbare Verluste der Junghennen (U6+C35 neu = 0.6) | E8: GT 19.5.2004
A9: 2007-08-20 | B9: Impex | D9: Zusätzliche Tabellenblätter für Tierein- und -ausgänge; Möglichkeit, in Listenblättern Zeilen einzufügen | E9: Wunsch von Anwendern mit grossen Tierbeständen
A10: 2008-03-11 | B10: Impex | D10: Neuaufnahme der Tierkategorien Mastpoulets und Kaninchen | E10: GT 12.03.08
A11: 2008-04-03 | B11: Impex und Linear | D11: Angepasste Gehaltswerte für Schotte, CCM, Mais ganze Pflanze u. Wiesenfutter aufgrund Futtermitteldatenbank ALP | E11: GT 12.03.08
A12: 2009-01-07 | B12: Impex | D12: Angepasste Gehaltswerte für Schotte, CCM, Mais ganze Pflanze u. Wiesenfutter aufgrund Futtermitteldatenbank ALP | E12: GT Dez.08
A13: 2010-06-15 | B13: Impex | D13: Angepasste Gehaltswerte für Wiesenfutter, angepasste Tiefstwerte für Tierkategorien, neue Tierkategorie Masttruten | E13: GT Nov. 09, GRUDAF 09
A14: 2010-08-30 | B14: Impex | D14: 2 neue Zeilen in Tierbilanz für Umrechnung von Zukauf und Ausgang auf 365 Tage
A15: 2010-08-30 | D15: Einbindung der 5 Blätter des BLW-Poulet-Tools zur Berechnung des durchschnittlichen Bestandes mit Übertrag der Tierzahlen und -gewichte in die Impexblätter
A16: 2010-11-08 | D16: In Pouletblättern fixe Kükengewichte (40g) und überschreibbare Vorgabewert für Abgänge (600g)
A17: 2010-11-08 | B17: Impex | D17: Fehler bei N-Ges-Anteil für Truten: 0.6 statt 0.85 (Zelle U4); Formelfehler in Zelle E1 (Tierkatagorie) | E17: Beim Einbau von Masttruten übersehen
A18: 2011-01-12 | B18: Impex | D18: Neue Ganzkörperwerte für Mastpoulets | E18: Totkörperanalyse ALP
A19: 2011-09-28 | B19: Impex | D19: Überarbeitung der Pouletblätter und der Übertragsmechanismen, Anpassungen an Wegleitung 1.9 | E19: BLW, GT 10.05.2011
A20: 2011-10-10 | B20: Impex | D20: Neue Ganzkörperwerte für Masttruten, neue Tiefstwerte für Kaninchen (neue Kategorien) | E20: H.Menzi / P.Schlegel
A21: 2011-12-16 | B21: Impex | D21: Plausibilisierung der Datumseingaben in den Blättern "Inv" und "Poulet1" bis "Poulet4" mit entsprechenden Hinweisen | E21: Laufzeitfehler bei unsinnigen Eingaben
A22: 2012-01-10 | B22: Impex | D22: Plausibilisierung des Anfangs- und Enddatums der Periode (nur bei Poulets) im Blatt "Inv" | E22: Unsinnige Resultate bei falschen Eingaben
A23: 2012-01-26 | B23: Impex | D23: Fehlerkorrektur im Blatt "Impex": fehlende Formeln in den Zellen P31 bis R34
A24: 2012-04-10 | B24: Impex | C24: 2.3a | D24: Poulet-Blätter: Beheben einer Ungenauigkeit bei der Übertragung der Inventarwerte
A25: 2012-08-31 | B25: Impex | C25: 2.4 | D25: - Neue Tiefstwerte bei Junghennen und Mastpoulets | E25: GT
D26: - Auswahl der Schlachtart bei Schweinen (Ausbeute)
D27: - Fehlerkorrektur bei Seitenzahlen auf Poulet-Blättern
D28: - Einbau eines Menüs "Tabellenblätter" mit den Untermenüs "Blatt wählen" und "drucken", fakultatives Inhaltsverzeichnis
D29: - Neues Blatt mit Hinweisen zur Bedienung des Programmes als Startseite
A30: Ab hier IWE Juli 2013
A31: 2013-07-09 | B31: Impex | C31: 2.5 | D31: Definitionen Blatt Plausi ergänzen | E31: GT 2013
A32: 2014-02-07 | B32: Impex | C32: 2.5a | D32: Anfangsinventarwert korrigieren, wenn letzter Umtrieb am 31.12. eingestallt wird. Grund: mit bisheriger Formel war Endinventar vom alten Jahr<>Anfangsinventar vom neuen Jahr, weil der Einstallungstag nie als Tag für Wachstum zählt. Die Kücken sind 1 Tag alt, erst am Tag nach der Einstallung und haben dann 40 g. Stallt man am 31. ein, so waren sie bisher 0 Tage alt, mit 0 g Gewicht. Formel ergänzt in M17, so dass, wenn N17=0, dann sind sie trotzdem 1 Tag alt. | E32: Th. Schildknecht
A33: 2015-02-24 | B33: Impex | C33: 2.5b | D33: DFE: Die Futtermittelliste soll erweitert werden können, um mehr Futtermittel zu erfassen. Da dieses Bedürfnis nur bei einem speziellen Kunden besteht, soll sich für die übrigen Anwender möglichst wenig ändern. Die für die Erweiterung erforderliche Veränderung der Datei wird durch das Kontrollkästchen "Futtermittel erweitern" auf dem Blatt "Inv" angestossen. Kleinere Formatkorrekturen
A34: 2015-06-29 | B34: Impex | C34: 2.6 | D34: DFE: Anpassung zur Erhebung der maximalen Anzahl der Stallplätze, Code und feste Einträge pro Tierkategorie einfügen. Zusätzliche Spalten im Kopf: Adresszusatz und eMail-Adresse, Anpassungen im Programm in Prozedur Uebertrag, Anpassung für Formatierung von Betriebsnummer und Namen in den Kopfzeilen (alle A- und B-Blätter, Plausi) | E34: ?
D35: Hinweis aud den A2-Blättern bei Schweinen bzgl. der Kategorien geändert, Textanpassung Impex (Einverständniserkl.) | E35: Th. Schildknecht
D36: Drucksteuerung auch für Mastpoulets (Stall1 bis Zusammenfassung) korrekt angepasst, Inhaltsverzeichnis vollständig mit korr. Seitenzahlen | E36: UJA
A37: 2016-02-22 | B37: Impex | C37: 2.6a | D37: Poulet-Blätter: Korrektur im 1. Umtrieb, damit er auch dann richtig ist, wenn er auch der letzte im Berichtsjahr ist. Korrektur für Ausstallung am 31.Dezember: Auch dann muss der Umtrieb als komplett im Berichtsjahr zählen. | E37: 2 Supportfälle Korr. IWE / DFE
A38: 2017-04-25 | B38: Impex | C38: 2.7 | D38: DFE: gemäss Spezifikation IWE | E38: GT Nov. 2016
A39: 2017-04-27 | B39: Impex | C39: 2.7 | D39: Einbau Finisher | E39: DFE: Zeit-Optimierung
B40: Impex | D40: Verbesserungen Speichern Unter (Einschränkung DateiFormate) | E40: DFE: Bedienungs-Optimierung
A41: 2017-05-18 | B41: Impex | D41: Neues PW
A42: 2017-11-21 | B42: Impex | C42: 2.7a | D42: Korrektur Formel Tabelle Impex Zelle E64: Bezug E11 -> I11 | E42: DFE/IWE <- Th.Schildkn.
A43: 2017-12-11 | B43: Impex | C43: 2.7a | D43: Seiteneinrichtung für Blatt "Impex" | E43: DFE gem. Mail v. UJA
A44: 2018-03-02 | B44: Impex | C44: 2.8 | D44: DFE, gemäss Spezifikation von IWE, 2018_2 und Korr. Durch Thomas Schildknecht: Austausch von Werten, Periode von Mastpoulets unabh. vom Kalenderjahr, Codeschutz-Pw, neues PW.
A45: 2019-03-05 | B45: Impex | C45: 2.9 | D45: DFE, gemäss Spez von IWE, 20190219, Ergänzung Getreide Ganzpflanzen-Silage, Update Ntot, Datenübernahme
A47: 2022-03-21 | B47: Impex | C47: 2.11 | D47: DFE, gem. Spez IWE
